Workbook

Sheet ORCAMENTO_RESUMO
C1: Ministério do Desenvolvimento Regional - MDR
C2: Companhia de Desenvolvimento dos Vales do São Francisco e do Parnaíba
C3: Gerência de Operação do PISF - Centro de Controle e Operação (AD / GOI / CCO)
A5: SERVIÇOS DE OPERAÇÃO E MANUTENÇÃO DAS INFRAESTRUTURAS DO EIXO LESTE DO PROJETO DE INTEGRAÇÃO DO RIO SÃO FRANCISCO COM AS BACIAS HIDROGRÁFICAS DO NORDESTE SETENTRIONAL – PISF
A8: ORÇAMENTO CONSOLIDADO | D8: TOTAL - (R$) | E8: =SUBTOTAL(109,D12:D45) -> 
A11: ITEM | B11: CÓDIGO | C11: DESCRIÇÃO | D11: R$ TOTAL | E11: %
A12: 1. | C12: =VLOOKUP(A12,ORCAMENTO_CONSOLIDADO!A$12:C$782,3,FALSE) -> MOBILIZAÇÃO E DESMOBILIZAÇAO | D12: =SUBTOTAL(109,D13:D14) -> 0 | E12: =ROUND(D12/E$8,4) -> 
A13: 1.1 | C13: =VLOOKUP(A13&".",ORCAMENTO_CONSOLIDADO!A$12:C$782,3,FALSE) -> MOBILIZAÇÃO (Máquinas, Equipamentos, Ferramentas, Instrumentos, Materiais, Mobiliário) | D13: =SUMIF(ORCAMENTO_CONSOLIDADO!A$12:A$782,A13&".",ORCAMENTO_CONSOLIDADO!G$12:G$782) -> 0 | E13: =ROUND(D13/E$8,4) -> 
A14: 1.2 | C14: =VLOOKUP(A14&".",ORCAMENTO_CONSOLIDADO!A$12:C$782,3,FALSE) -> DESMOBILIZAÇÃO (Máquinas, Equip., Ferramentas, Instrumentos, Materiais, Mobiliário) | D14: =SUMIF(ORCAMENTO_CONSOLIDADO!A$12:A$782,A14&".",ORCAMENTO_CONSOLIDADO!G$12:G$782) -> 0
A15: 2. | C15: =VLOOKUP(A15,ORCAMENTO_CONSOLIDADO!A$12:C$782,3,FALSE) -> REFORMA DOS CANTEIROS | D15: =SUBTOTAL(109,D16:D18) -> 0
A16: 2.1 | C16: REFORMA DO CANTEIRO DO LOTE 09 (FLORESTA/PE) | D16: =SUMIF(ORCAMENTO_CONSOLIDADO!A$12:A$782,A16&".",ORCAMENTO_CONSOLIDADO!G$12:G$782) -> 0
A17: 2.2 | C17: =VLOOKUP(A17&".",ORCAMENTO_CONSOLIDADO!A$12:C$782,3,FALSE) -> REFORMA DO CANTEIRO DO LOTE 10 (CUSTÓDIA/PE) | D17: =SUMIF(ORCAMENTO_CONSOLIDADO!A$12:A$782,A17&".",ORCAMENTO_CONSOLIDADO!G$12:G$782) -> 0
A18: 2.3 | C18: =VLOOKUP(A18&".",ORCAMENTO_CONSOLIDADO!A$12:C$782,3,FALSE) -> REFORMA DO CANTEIRO DO LOTE 12 (SERTÂNIA/PE) | D18: =SUMIF(ORCAMENTO_CONSOLIDADO!A$12:A$782,A18&".",ORCAMENTO_CONSOLIDADO!G$12:G$782) -> 0
A19: 3. | C19: =VLOOKUP(A19,ORCAMENTO_CONSOLIDADO!A$12:C$782,3,FALSE) -> MOBILIÁRIO E EQUIPAMENTOS DE ESCRTÓRIO | D19: =SUMIF(ORCAMENTO_CONSOLIDADO!A$12:A$782,A19,ORCAMENTO_CONSOLIDADO!G$12:G$782) -> 0
A20: 4. | C20: =VLOOKUP(A20,ORCAMENTO_CONSOLIDADO!A$12:C$782,3,FALSE) -> EQUIPE - MÃO DE OBRA | D20: =SUMIF(ORCAMENTO_CONSOLIDADO!A$12:A$782,A20,ORCAMENTO_CONSOLIDADO!G$12:G$782) -> 0
A21: 5. | C21: =VLOOKUP(A21,ORCAMENTO_CONSOLIDADO!A$12:C$782,3,FALSE) -> VIAGENS / DIÁRIAS | D21: =SUBTOTAL(109,D22:D23) -> 0
A22: 5.1 | C22: =VLOOKUP(A22&".",ORCAMENTO_CONSOLIDADO!A$12:C$782,3,FALSE) -> DESPESAS COM VIAGENS COMERCIAIS | D22: =SUMIF(ORCAMENTO_CONSOLIDADO!A$12:A$782,A22&".",ORCAMENTO_CONSOLIDADO!G$12:G$782) -> 0
A23: 5.2 | C23: =VLOOKUP(A23&".",ORCAMENTO_CONSOLIDADO!A$12:C$782,3,FALSE) -> DESPESAS COM DIÁRIAS | D23: =SUMIF(ORCAMENTO_CONSOLIDADO!A$12:A$782,A23&".",ORCAMENTO_CONSOLIDADO!G$12:G$782) -> 0
A24: 6. | C24: =VLOOKUP(A24,ORCAMENTO_CONSOLIDADO!A$12:C$782,3,FALSE) -> VEÍCULOS AUTOMOTORES | D24: =SUMIF(ORCAMENTO_CONSOLIDADO!A$12:A$782,A24,ORCAMENTO_CONSOLIDADO!G$12:G$782) -> 
A25: 7. | C25: =VLOOKUP(A25,ORCAMENTO_CONSOLIDADO!A$12:C$782,3,FALSE) -> FRENTES MÓVEIS DE LIMPEZA E CONSERVAÇÃO | D25: =SUMIF(ORCAMENTO_CONSOLIDADO!A$12:A$782,A25,ORCAMENTO_CONSOLIDADO!G$12:G$782) -> 0
A26: 8. | C26: =VLOOKUP(A26,ORCAMENTO_CONSOLIDADO!A$12:C$782,3,FALSE) -> MATERIAL DE CONSUMO - ALMOXARIFADOS | D26: =SUBTOTAL(109,D27:D30) -> 0
A27: 8.1 | C27: =VLOOKUP(A27&".",ORCAMENTO_CONSOLIDADO!A$12:C$782,3,FALSE) -> MATERIAL DE CONSUMO - MECÂNICA | D27: =SUMIF(ORCAMENTO_CONSOLIDADO!A$12:A$782,A27&".",ORCAMENTO_CONSOLIDADO!G$12:G$782) -> 0
A28: 8.2 | C28: =VLOOKUP(A28&".",ORCAMENTO_CONSOLIDADO!A$12:C$782,3,FALSE) -> MATERIAL DE CONSUMO - ELÉTRICA | D28: =SUMIF(ORCAMENTO_CONSOLIDADO!A$12:A$782,A28&".",ORCAMENTO_CONSOLIDADO!G$12:G$782) -> 0
A29: 8.3 | C29: =VLOOKUP(A29&".",ORCAMENTO_CONSOLIDADO!A$12:C$782,3,FALSE) -> MATERIAL DE CONSUMO - CIVIL | D29: =SUMIF(ORCAMENTO_CONSOLIDADO!A$12:A$782,A29&".",ORCAMENTO_CONSOLIDADO!G$12:G$782) -> 0
A30: 8.4 | C30: =VLOOKUP(A30&".",ORCAMENTO_CONSOLIDADO!A$12:C$782,3,FALSE) -> MANUTENÇÃO DE CANTEIRO - ESCRITÓRIO | D30: =SUMIF(ORCAMENTO_CONSOLIDADO!A$12:A$782,A30&".",ORCAMENTO_CONSOLIDADO!G$12:G$782) -> 0
A31: 9. | C31: =VLOOKUP(A31,ORCAMENTO_CONSOLIDADO!A$12:C$782,3,FALSE) -> FERRAMENTAS | D31: =SUBTOTAL(109,D32:D34) -> 0
A32: 9.1 | C32: =VLOOKUP(A32&".",ORCAMENTO_CONSOLIDADO!A$12:C$782,3,FALSE) -> FERRAMENTAS - MECÂNICA | D32: =SUMIF(ORCAMENTO_CONSOLIDADO!A$12:A$782,A32&".",ORCAMENTO_CONSOLIDADO!G$12:G$782) -> 0
A33: 9.2 | C33: =VLOOKUP(A33&".",ORCAMENTO_CONSOLIDADO!A$12:C$782,3,FALSE) -> FERRAMENTAS - ELÉTRICA | D33: =SUMIF(ORCAMENTO_CONSOLIDADO!A$12:A$782,A33&".",ORCAMENTO_CONSOLIDADO!G$12:G$782) -> 0
A34: 9.3 | C34: =VLOOKUP(A34&".",ORCAMENTO_CONSOLIDADO!A$12:C$782,3,FALSE) -> FERRAMENTAS - CIVIL | D34: =SUMIF(ORCAMENTO_CONSOLIDADO!A$12:A$782,A34&".",ORCAMENTO_CONSOLIDADO!G$12:G$782) -> 0
A35: 10. | C35: =VLOOKUP(A35,ORCAMENTO_CONSOLIDADO!A$12:C$782,3,FALSE) -> EQUIPAMENTOS | D35: =SUBTOTAL(109,D36:D38) -> 0
A36: 10.1 | C36: =VLOOKUP(A36&".",ORCAMENTO_CONSOLIDADO!A$12:C$782,3,FALSE) -> EQUIPAMENTOS - MECÂNICA | D36: =SUMIF(ORCAMENTO_CONSOLIDADO!A$12:A$782,A36&".",ORCAMENTO_CONSOLIDADO!G$12:G$782) -> 0
A37: 10.2 | C37: =VLOOKUP(A37&".",ORCAMENTO_CONSOLIDADO!A$12:C$782,3,FALSE) -> EQUIPAMENTOS - ELÉTRICA | D37: =SUMIF(ORCAMENTO_CONSOLIDADO!A$12:A$782,A37&".",ORCAMENTO_CONSOLIDADO!G$12:G$782) -> 0
A38: 10.3 | C38: =VLOOKUP(A38&".",ORCAMENTO_CONSOLIDADO!A$12:C$782,3,FALSE) -> EQUIPAMENTOS - CIVIL | D38: =SUMIF(ORCAMENTO_CONSOLIDADO!A$12:A$782,A38&".",ORCAMENTO_CONSOLIDADO!G$12:G$782) -> 0
A39: 11. | C39: =VLOOKUP(A39,ORCAMENTO_CONSOLIDADO!A$12:C$782,3,FALSE) -> INSTRUMENTOS | D39: =SUBTOTAL(109,D40:D42) -> 0
A40: 11.1 | C40: =VLOOKUP(A40&".",ORCAMENTO_CONSOLIDADO!A$12:C$782,3,FALSE) -> INSTRUMENTOS - MECÂNICA | D40: =SUMIF(ORCAMENTO_CONSOLIDADO!A$12:A$782,A40&".",ORCAMENTO_CONSOLIDADO!G$12:G$782) -> 0
A41: 11.2 | C41: =VLOOKUP(A41&".",ORCAMENTO_CONSOLIDADO!A$12:C$782,3,FALSE) -> INSTRUMENTOS - ELÉTRICA | D41: =SUMIF(ORCAMENTO_CONSOLIDADO!A$12:A$782,A41&".",ORCAMENTO_CONSOLIDADO!G$12:G$782) -> 0
A42: 11.3 | C42: =VLOOKUP(A42&".",ORCAMENTO_CONSOLIDADO!A$12:C$782,3,FALSE) -> INSTRUMENTOS - CIVIL | D42: =SUMIF(ORCAMENTO_CONSOLIDADO!A$12:A$782,A42&".",ORCAMENTO_CONSOLIDADO!G$12:G$782) -> 0
A43: 12. | C43: =VLOOKUP(A43,ORCAMENTO_CONSOLIDADO!A$12:C$782,3,FALSE) -> SISTEMA DE RÁDIO COMUNICAÇÃO | D43: =SUMIF(ORCAMENTO_CONSOLIDADO!A$12:A$782,A43,ORCAMENTO_CONSOLIDADO!G$12:G$782) -> 
A44: 13. | C44: =VLOOKUP(A44,ORCAMENTO_CONSOLIDADO!A$12:C$782,3,FALSE) -> SERVIÇOS E FORNECIMENTOS REEMBOLSÁVEIS | D44: =SUMIF(ORCAMENTO_CONSOLIDADO!A$12:A$782,A44,ORCAMENTO_CONSOLIDADO!G$12:G$782) -> 
A45: 14. | C45: =VLOOKUP(A45,ORCAMENTO_CONSOLIDADO!A$12:C$782,3,FALSE) -> CUSTOS INDIRETOS | D45: =SUMIF(ORCAMENTO_CONSOLIDADO!A$12:A$782,A45,ORCAMENTO_CONSOLIDADO!G$12:G$782) -> 

Sheet ORCAMENTO_CONSOLIDADO
C1: Ministério do Desenvolvimento Regional - MDR
C2: Companhia de Desenvolvimento dos Vales do São Francisco e do Parnaíba
C3: Gerência de Operação do PISF - Centro de Controle e Operação (AD / GOI / CCO)
A5: SERVIÇOS DE OPERAÇÃO E MANUTENÇÃO DAS INFRAESTRUTURAS DO EIXO LESTE DO PROJETO DE INTEGRAÇÃO DO RIO SÃO FRANCISCO COM AS BACIAS HIDROGRÁFICAS DO NORDESTE SETENTRIONAL – PISF
A8: ORÇAMENTO CONSOLIDADO | F8: TOTAL - (R$) | G8: =SUBTOTAL(109,G12:G782) -> 
A11: ITEM | B11: CÓDIGO | C11: DESCRIÇÃO | D11: UNID. | E11: QUANTID. | F11: R$ UNIT. | G11: R$ TOTAL | H11: %
A13: 1. | C13: =Mobilizacao_Desmobilizacao!C13 -> MOBILIZAÇÃO E DESMOBILIZAÇAO | G13: =SUBTOTAL(109,G14:G21) -> 0 | H13: =ROUND(G13/G$8,4) -> 
A14: 1.1. | C14: =Mobilizacao_Desmobilizacao!C15 -> MOBILIZAÇÃO (Máquinas, Equipamentos, Ferramentas, Instrumentos, Materiais, Mobiliário) | G14: =SUBTOTAL(109,G15:G17) -> 0 | H14: =ROUND(G14/G$8,4) -> 
A15: 1.1.1 | B15: =Mobilizacao_Desmobilizacao!B16 -> 0 | C15: =Mobilizacao_Desmobilizacao!C16 -> Mobilização da Equipe - Canteiro Lote 09 (Floresta/PE) | D15: =Mobilizacao_Desmobilizacao!D16 -> un | E15: =Mobilizacao_Desmobilizacao!E16 -> 1 | F15: =Mobilizacao_Desmobilizacao!F16 -> 0 | G15: =ROUND(E15*F15,2) -> 0
A16: 1.1.2 | B16: =Mobilizacao_Desmobilizacao!B17 -> 0 | C16: =Mobilizacao_Desmobilizacao!C17 -> Mobilização da Equipe - Canteiro Lote 10 (Custódia/PE) | D16: =Mobilizacao_Desmobilizacao!D17 -> un | E16: =Mobilizacao_Desmobilizacao!E17 -> 1 | F16: =Mobilizacao_Desmobilizacao!F17 -> 0 | G16: 0
A17: 1.1.3 | B17: =Mobilizacao_Desmobilizacao!B18 -> 0 | C17: =Mobilizacao_Desmobilizacao!C18 -> Mobilização da Equipe - Canteiro Lote 12 (Sertânia/PE) | D17: =Mobilizacao_Desmobilizacao!D18 -> un | E17: =Mobilizacao_Desmobilizacao!E18 -> 1 | F17: =Mobilizacao_Desmobilizacao!F18 -> 0 | G17: 0
A18: 1.2. | C18: =Mobilizacao_Desmobilizacao!C21 -> DESMOBILIZAÇÃO (Máquinas, Equip., Ferramentas, Instrumentos, Materiais, Mobiliário) | G18: =SUBTOTAL(109,G19:G21) -> 0
A19: 1.2.1 | B19: =Mobilizacao_Desmobilizacao!B20 -> 0 | C19: =Mobilizacao_Desmobilizacao!C22 -> Desmobilização da Equipe - Canteiro Lote 09 (Floresta/PE) | D19: =Mobilizacao_Desmobilizacao!D22 -> un | E19: =Mobilizacao_Desmobilizacao!E22 -> 1 | F19: =Mobilizacao_Desmobilizacao!F22 -> 0 | G19: =ROUND(E19*F19,2) -> 0
A20: 1.2.2 | B20: =Mobilizacao_Desmobilizacao!B21 -> 0 | C20: =Mobilizacao_Desmobilizacao!C23 -> Desmobilização da Equipe - Canteiro Lote 10 (Custódia/PE) | D20: =Mobilizacao_Desmobilizacao!D23 -> un | E20: =Mobilizacao_Desmobilizacao!E23 -> 1 | F20: =Mobilizacao_Desmobilizacao!F23 -> 0 | G20: 0
A21: 1.2.3 | B21: =Mobilizacao_Desmobilizacao!B22 -> 0 | C21: =Mobilizacao_Desmobilizacao!C24 -> Desmobilização da Equipe - Canteiro Lote 12 (Sertânia/PE) | D21: =Mobilizacao_Desmobilizacao!D24 -> un | E21: =Mobilizacao_Desmobilizacao!E24 -> 1 | F21: =Mobilizacao_Desmobilizacao!F24 -> 0 | G21: 0
A23: 2. | C23: =Reforma_Canteiros!C13 -> REFORMA DOS CANTEIROS | G23: =SUBTOTAL(109,G24:G52) -> 0 | H23: =ROUND(G23/G$8,4) -> 
A24: 2.1. | C24: =Reforma_Canteiros!C15 -> REFORMA DO CANTEIRO DO LOTE 09 (FLOPRESTA/PE) | G24: =SUBTOTAL(109,G25:G32) -> 0
A25: 2.1.1 | B25: =Reforma_Canteiros!B16 -> 93206-SINAPI/PE* | C25: =Reforma_Canteiros!C16 -> Escritório 1 | D25: =Reforma_Canteiros!D16 -> m² | E25: =Reforma_Canteiros!E16 -> 174.06 | F25: =Reforma_Canteiros!F16 -> 0 | G25: =ROUND(E25*F25,2) -> 0
A26: 2.1.2 | B26: =Reforma_Canteiros!B17 -> 93206-SINAPI/PE* | C26: =Reforma_Canteiros!C17 -> Escritório 2 | D26: =Reforma_Canteiros!D17 -> m² | E26: =Reforma_Canteiros!E17 -> 276.75 | F26: =Reforma_Canteiros!F17 -> 0 | G26: 0
A27: 2.1.3 | B27: =Reforma_Canteiros!B18 -> 93585-SINAPI/PE* | C27: =Reforma_Canteiros!C18 -> Guarita | D27: =Reforma_Canteiros!D18 -> m² | E27: =Reforma_Canteiros!E18 -> 57.29 | F27: =Reforma_Canteiros!F18 -> 0 | G27: 0
A28: 2.1.4 | B28: =Reforma_Canteiros!B19 -> 93213-SINAPI/PE* | C28: =Reforma_Canteiros!C19 -> Vestiário e sanitário | D28: =Reforma_Canteiros!D19 -> m² | E28: =Reforma_Canteiros!E19 -> 108.24 | F28: =Reforma_Canteiros!F19 -> 0 | G28: 0
A29: 2.1.5 | B29: =Reforma_Canteiros!B20 -> 93211-SINAPI/PE* | C29: =Reforma_Canteiros!C20 -> Cozinha e refeitório/Auditório | D29: =Reforma_Canteiros!D20 -> m² | E29: =Reforma_Canteiros!E20 -> 427.68 | F29: =Reforma_Canteiros!F20 -> 0 | G29: 0
A30: 2.1.6 | B30: =Reforma_Canteiros!B21 -> 93213-SINAPI/PE* | C30: =Reforma_Canteiros!C21 -> Lazer (área de convivência) | D30: =Reforma_Canteiros!D21 -> m² | E30: =Reforma_Canteiros!E21 -> 142.21 | F30: =Reforma_Canteiros!F21 -> 0 | G30: 0
A31: 2.1.7 | B31: =Reforma_Canteiros!B22 -> 93209-SINAPI/PE* | C31: =Reforma_Canteiros!C22 -> Almoxarifado | D31: =Reforma_Canteiros!D22 -> m² | E31: =Reforma_Canteiros!E22 -> 264.96 | F31: =Reforma_Canteiros!F22 -> 0 | G31: 0
A32: 2.1.8 | B32: =Reforma_Canteiros!B23 -> 93582-SINAPI/PE* | C32: =Reforma_Canteiros!C23 -> Central de armação | D32: =Reforma_Canteiros!D23 -> m² | E32: =Reforma_Canteiros!E23 -> 702.74 | F32: =Reforma_Canteiros!F23 -> 0 | G32: 0
A33: 2.2. | C33: =Reforma_Canteiros!C26 -> REFORMA DO CANTEIRO DO LOTE 10 (CUSTÓDIA/PE) | G33: =SUBTOTAL(109,G34:G42) -> 0
A34: 2.2.1 | B34: =Reforma_Canteiros!B27 -> 93206-SINAPI/PE | C34: =Reforma_Canteiros!C27 -> Escritório 1 | D34: =Reforma_Canteiros!D27 -> m² | E34: =Reforma_Canteiros!E27 -> 255.16 | F34: =Reforma_Canteiros!F27 -> 0 | G34: =ROUND(E34*F34,2) -> 0
A35: 2.2.2 | B35: =Reforma_Canteiros!B28 -> 93206-SINAPI/PE | C35: =Reforma_Canteiros!C28 -> Escritório 2 | D35: =Reforma_Canteiros!D28 -> m² | E35: =Reforma_Canteiros!E28 -> 297.08 | F35: =Reforma_Canteiros!F28 -> 0 | G35: 0
A36: 2.2.3 | B36: =Reforma_Canteiros!B29 -> 93585-SINAPI/PE* | C36: =Reforma_Canteiros!C29 -> Guarita | D36: =Reforma_Canteiros!D29 -> m² | E36: =Reforma_Canteiros!E29 -> 12.46 | F36: =Reforma_Canteiros!F29 -> 0 | G36: 0
A37: 2.2.4 | B37: =Reforma_Canteiros!B30 -> 93213-SINAPI/PE | C37: =Reforma_Canteiros!C30 -> Vestiário e sanitário | D37: =Reforma_Canteiros!D30 -> m² | E37: =Reforma_Canteiros!E30 -> 268.64 | F37: =Reforma_Canteiros!F30 -> 0 | G37: 0
A38: 2.2.5 | B38: =Reforma_Canteiros!B31 -> 93211-SINAPI/PE | C38: =Reforma_Canteiros!C31 -> Cozinha e refeitório/Auditório | D38: =Reforma_Canteiros!D31 -> m² | E38: =Reforma_Canteiros!E31 -> 1477.66 | F38: =Reforma_Canteiros!F31 -> 0 | G38: 0
A39: 2.2.6 | B39: =Reforma_Canteiros!B32 -> 93213-SINAPI/PE* | C39: =Reforma_Canteiros!C32 -> Lazer (área de convivência) | D39: =Reforma_Canteiros!D32 -> m² | E39: =Reforma_Canteiros!E32 -> 350 | F39: =Reforma_Canteiros!F32 -> 0 | G39: 0
A40: 2.2.7 | B40: =Reforma_Canteiros!B33 -> 93209-SINAPI/PE* | C40: =Reforma_Canteiros!C33 -> Almoxarifado | D40: =Reforma_Canteiros!D33 -> m² | E40: =Reforma_Canteiros!E33 -> 456.2 | F40: =Reforma_Canteiros!F33 -> 0 | G40: 0
A41: 2.2.8 | B41: =Reforma_Canteiros!B34 -> 93582-SINAPI/PE* | C41: =Reforma_Canteiros!C34 -> Central de armação | D41: =Reforma_Canteiros!D34 -> m² | E41: =Reforma_Canteiros!E34 -> 663.82 | F41: =Reforma_Canteiros!F34 -> 0 | G41: 0
A42: 2.2.9 | B42: =Reforma_Canteiros!B35 -> 93206-SINAPI/PE | C42: =Reforma_Canteiros!C35 -> Centro de Saúde | D42: =Reforma_Canteiros!D35 -> m² | E42: =Reforma_Canteiros!E35 -> 53.72 | F42: =Reforma_Canteiros!F35 -> 0 | G42: 0
A43: 2.3. | C43: =Reforma_Canteiros!C38 -> REFORMA DO CANTEIRO DO LOTE 12 (SERTÂNIA/PE) | G43: =SUBTOTAL(109,G44:G52) -> 0
A44: 2.3.1 | B44: =Reforma_Canteiros!B39 -> 93206-SINAPI/PE* | C44: =Reforma_Canteiros!C39 -> Escritório 1 | D44: =Reforma_Canteiros!D39 -> m² | E44: =Reforma_Canteiros!E39 -> 285.33 | F44: =Reforma_Canteiros!F39 -> 0 | G44: =ROUND(E44*F44,2) -> 0
A45: 2.3.2 | B45: =Reforma_Canteiros!B40 -> 93206-SINAPI/PE* | C45: =Reforma_Canteiros!C40 -> Escritório 2 | D45: =Reforma_Canteiros!D40 -> m² | E45: =Reforma_Canteiros!E40 -> 323.2 | F45: =Reforma_Canteiros!F40 -> 0 | G45: 0
A46: 2.3.3 | B46: =Reforma_Canteiros!B41 -> 93585-SINAPI/PE* | C46: =Reforma_Canteiros!C41 -> Guarita | D46: =Reforma_Canteiros!D41 -> m² | E46: =Reforma_Canteiros!E41 -> 9.9 | F46: =Reforma_Canteiros!F41 -> 0 | G46: 0
A47: 2.3.4 | B47: =Reforma_Canteiros!B42 -> 93213-SINAPI/PE* | C47: =Reforma_Canteiros!C42 -> Vestiário e sanitário | D47: =Reforma_Canteiros!D42 -> m² | E47: =Reforma_Canteiros!E42 -> 616.98 | F47: =Reforma_Canteiros!F42 -> 0 | G47: 0
A48: 2.3.5 | B48: =Reforma_Canteiros!B43 -> 93211-SINAPI/PE* | C48: =Reforma_Canteiros!C43 -> Cozinha e refeitório/Auditório | D48: =Reforma_Canteiros!D43 -> m² | E48: =Reforma_Canteiros!E43 -> 690.8 | F48: =Reforma_Canteiros!F43 -> 0 | G48: 0
A49: 2.3.6 | B49: =Reforma_Canteiros!B44 -> 93213-SINAPI/PE* | C49: =Reforma_Canteiros!C44 -> Lazer (área de convivência) | D49: =Reforma_Canteiros!D44 -> m² | E49: =Reforma_Canteiros!E44 -> 58.76 | F49: =Reforma_Canteiros!F44 -> 0 | G49: 0
A50: 2.3.7 | B50: =Reforma_Canteiros!B45 -> 93209-SINAPI/PE* | C50: =Reforma_Canteiros!C45 -> Almoxarifado | D50: =Reforma_Canteiros!D45 -> m² | E50: =Reforma_Canteiros!E45 -> 229.35 | F50: =Reforma_Canteiros!F45 -> 0 | G50: 0
A51: 2.3.8 | B51: =Reforma_Canteiros!B46 -> 93582-SINAPI/PE* | C51: =Reforma_Canteiros!C46 -> Central de armação | D51: =Reforma_Canteiros!D46 -> m² | E51: =Reforma_Canteiros!E46 -> 216.72 | F51: =Reforma_Canteiros!F46 -> 0 | G51: 0
A52: 2.3.9 | B52: =Reforma_Canteiros!B47 -> 93206-SINAPI/PE* | C52: =Reforma_Canteiros!C47 -> Centro de Saúde | D52: =Reforma_Canteiros!D47 -> m² | E52: =Reforma_Canteiros!E47 -> 53.72 | F52: =Reforma_Canteiros!F47 -> 0 | G52: 0
A54: 3. | C54: =Moveis_Equipamentos!C13 -> MOBILIÁRIO E EQUIPAMENTOS DE ESCRTÓRIO | G54: =SUBTOTAL(109,G55:G106) -> 0 | H54: =ROUND(G54/G$8,4) -> 
A55: 3.1 | B55: =Moveis_Equipamentos!B14 -> E209300236-EMBASA/BA | C55: =Moveis_Equipamentos!C14 -> Aluguel de impressora colorida-Laser com cartuchos-formatos A4 e A3 (inclusive suprimentos) | D55: =Moveis_Equipamentos!D14 -> un x mês | E55: =Moveis_Equipamentos!E14 -> 216 | F55: =Moveis_Equipamentos!F14 -> 0 | G55: =ROUND(E55*F55,2) -> 0
A56: 3.2 | B56: =Moveis_Equipamentos!B15 -> I8612-SEINFRA/CE | C56: =Moveis_Equipamentos!C15 -> Aluguel de Plotter (inclusive suprimentos) | D56: =Moveis_Equipamentos!D15 -> un x mês | E56: =Moveis_Equipamentos!E15 -> 36 | F56: =Moveis_Equipamentos!F15 -> 0 | G56: =ROUND(E56*F56,2) -> 0
A57: 3.3 | B57: =Moveis_Equipamentos!B16 -> I2677-SEINFRA/CE | C57: =Moveis_Equipamentos!C16 -> Servidor para backup | D57: =Moveis_Equipamentos!D16 -> un | E57: =Moveis_Equipamentos!E16 -> 36 | F57: =Moveis_Equipamentos!F16 -> 0 | G57: 0
A58: 3.4 | B58: =Moveis_Equipamentos!B17 -> 3671-ORSE/SE | C58: =Moveis_Equipamentos!C17 -> Desktop com software-tipo 1 (i7, 1T, 8GB, monitor 19", S.O. Windows 10 e Office última versão) | D58: =Moveis_Equipamentos!D17 -> un | E58: =Moveis_Equipamentos!E17 -> 73 | F58: =Moveis_Equipamentos!F17 -> 0 | G58: 0
A59: 3.5 | B59: =Moveis_Equipamentos!B18 -> I6395-SEINFRA/CE | C59: =Moveis_Equipamentos!C18 -> Notebook-tipo 1 (i7, 1T, 8GB, S.O. Windows 10 e Office última versão) | D59: =Moveis_Equipamentos!D18 -> um | E59: =Moveis_Equipamentos!E18 -> 16 | F59: =Moveis_Equipamentos!F18 -> 0 | G59: 0
A60: 3.6 | B60: =Moveis_Equipamentos!B19 -> P.17.000.042561-CPOS/SP | C60: =Moveis_Equipamentos!C19 -> Antena externa | D60: =Moveis_Equipamentos!D19 -> un | E60: =Moveis_Equipamentos!E19 -> 1 | F60: =Moveis_Equipamentos!F19 -> 0 | G60: 0
A61: 3.7 | B61: =Moveis_Equipamentos!B20 -> AP_JANTAR | C61: =Moveis_Equipamentos!C20 -> Aparelho de jantar para 06 pessoas | D61: =Moveis_Equipamentos!D20 -> un | E61: =Moveis_Equipamentos!E20 -> 20 | F61: =Moveis_Equipamentos!F20 -> 0 | G61: 0
A62: 3.8 | B62: =Moveis_Equipamentos!B21 -> I0122-SEINFRA/CE | C62: =Moveis_Equipamentos!C21 -> Armário de cozinha completo | D62: =Moveis_Equipamentos!D21 -> un | E62: =Moveis_Equipamentos!E21 -> 3 | F62: =Moveis_Equipamentos!F21 -> 0 | G62: 0
A63: 3.9 | B63: =Moveis_Equipamentos!B22 -> I0123-SEINFRA/CE | C63: =Moveis_Equipamentos!C22 -> Armário de escritório | D63: =Moveis_Equipamentos!D22 -> un | E63: =Moveis_Equipamentos!E22 -> 11 | F63: =Moveis_Equipamentos!F22 -> 0 | G63: 0
A64: 3.10 | B64: =Moveis_Equipamentos!B23 -> 11645-ORSE/SE | C64: =Moveis_Equipamentos!C23 -> Armário para vestiário, em aço, com 12 portas, com cadeado | D64: =Moveis_Equipamentos!D23 -> un | E64: =Moveis_Equipamentos!E23 -> 3 | F64: =Moveis_Equipamentos!F23 -> 0 | G64: 0
A65: 3.11 | B65: =Moveis_Equipamentos!B24 -> 73.72.07-SUDECAP/MG | C65: =Moveis_Equipamentos!C24 -> Bebedouro industrial (canteiro) | D65: =Moveis_Equipamentos!D24 -> un | E65: =Moveis_Equipamentos!E24 -> 4 | F65: =Moveis_Equipamentos!F24 -> 0 | G65: 0
A66: 3.12 | B66: =Moveis_Equipamentos!B25 -> 11534-ORSE/SE | C66: =Moveis_Equipamentos!C25 -> Cadeira giratória, com braço, tipo executiva | D66: =Moveis_Equipamentos!D25 -> un | E66: =Moveis_Equipamentos!E25 -> 89 | F66: =Moveis_Equipamentos!F25 -> 0 | G66: 0
A67: 3.13 | B67: =Moveis_Equipamentos!B26 -> 11543-ORSE | C67: =Moveis_Equipamentos!C26 -> Cadeira de plástico sem braço, cor branca | D67: =Moveis_Equipamentos!D26 -> un | E67: =Moveis_Equipamentos!E26 -> 15 | F67: =Moveis_Equipamentos!F26 -> 0 | G67: 0
A68: 3.14 | B68: =Moveis_Equipamentos!B27 -> COT_CAMA_BOX | C68: =Moveis_Equipamentos!C27 -> Cama box solteiro | D68: =Moveis_Equipamentos!D27 -> un | E68: =Moveis_Equipamentos!E27 -> 25 | F68: =Moveis_Equipamentos!F27 -> 0 | G68: 0
A69: 3.15 | B69: =Moveis_Equipamentos!B28 -> COT_CAM_FOTO | C69: =Moveis_Equipamentos!C28 -> Câmera fotográfica digital | D69: =Moveis_Equipamentos!D28 -> un | E69: =Moveis_Equipamentos!E28 -> 3 | F69: =Moveis_Equipamentos!F28 -> 0 | G69: 0
A70: 3.16 | B70: =Moveis_Equipamentos!B29 -> DV_16-CAERN/RN | C70: =Moveis_Equipamentos!C29 -> Carrinhos de lixo | D70: =Moveis_Equipamentos!D29 -> un | E70: =Moveis_Equipamentos!E29 -> 7 | F70: =Moveis_Equipamentos!F29 -> 0 | G70: 0
A71: 3.17 | B71: =Moveis_Equipamentos!B30 -> 040117-SBC/PE | C71: =Moveis_Equipamentos!C30 -> Cestos de lixo | D71: =Moveis_Equipamentos!D30 -> un | E71: =Moveis_Equipamentos!E30 -> 12 | F71: =Moveis_Equipamentos!F30 -> 0 | G71: 0
A72: 3.18 | B72: =Moveis_Equipamentos!B31 -> COT_CHAP | C72: =Moveis_Equipamentos!C31 -> Chapa gás para grelhar | D72: =Moveis_Equipamentos!D31 -> un | E72: =Moveis_Equipamentos!E31 -> 4 | F72: =Moveis_Equipamentos!F31 -> 0 | G72: 0
A73: 3.19 | B73: =Moveis_Equipamentos!B32 -> 621-ORSE/SE | C73: =Moveis_Equipamentos!C32 -> Coifa | D73: =Moveis_Equipamentos!D32 -> un | E73: =Moveis_Equipamentos!E32 -> 4 | F73: =Moveis_Equipamentos!F32 -> 0 | G73: 0
A74: 3.20 | B74: =Moveis_Equipamentos!B33 -> 39555-SINAPI/PE | C74: =Moveis_Equipamentos!C33 -> Condicionador de ar 12.000 BTU | D74: =Moveis_Equipamentos!D33 -> un | E74: =Moveis_Equipamentos!E33 -> 15 | F74: =Moveis_Equipamentos!F33 -> 0 | G74: 0
A75: 3.21 | B75: =Moveis_Equipamentos!B34 -> COT_MES_06 | C75: =Moveis_Equipamentos!C34 -> Conjunto de Mesa com 06 lugares (para cozinha) | D75: =Moveis_Equipamentos!D34 -> un | E75: =Moveis_Equipamentos!E34 -> 4 | F75: =Moveis_Equipamentos!F34 -> 0 | G75: 0
A76: 3.22 | B76: =Moveis_Equipamentos!B35 -> COT_UTENS | C76: =Moveis_Equipamentos!C35 -> Conjunto de utensílios para cozinha | D76: =Moveis_Equipamentos!D35 -> conj. | E76: =Moveis_Equipamentos!E35 -> 3 | F76: =Moveis_Equipamentos!F35 -> 0 | G76: 0
A77: 3.23 | B77: =Moveis_Equipamentos!B36 -> COT_FAQUEI | C77: =Moveis_Equipamentos!C36 -> Faqueiro com 24 peças | D77: =Moveis_Equipamentos!D36 -> un | E77: =Moveis_Equipamentos!E36 -> 17 | F77: =Moveis_Equipamentos!F36 -> 0 | G77: 0
A78: 3.24 | B78: =Moveis_Equipamentos!B37 -> 10231-ORSE/SE | C78: =Moveis_Equipamentos!C37 -> Fogão | D78: =Moveis_Equipamentos!D37 -> un | E78: =Moveis_Equipamentos!E37 -> 3 | F78: =Moveis_Equipamentos!F37 -> 0 | G78: 0
A79: 3.25 | B79: =Moveis_Equipamentos!B38 -> 78052-SIURB/SP | C79: =Moveis_Equipamentos!C38 -> Fogão industrial 6 bocas | D79: =Moveis_Equipamentos!D38 -> un | E79: =Moveis_Equipamentos!E38 -> 3 | F79: =Moveis_Equipamentos!F38 -> 0 | G79: 0
A80: 3.26 | B80: =Moveis_Equipamentos!B39 -> COT_FORNO | C80: =Moveis_Equipamentos!C39 -> Forno elétrico | D80: =Moveis_Equipamentos!D39 -> un | E80: =Moveis_Equipamentos!E39 -> 3 | F80: =Moveis_Equipamentos!F39 -> 0 | G80: 0
A81: 3.27 | B81: =Moveis_Equipamentos!B40 -> COT_MICROOND | C81: =Moveis_Equipamentos!C40 -> Forno Microondas | D81: =Moveis_Equipamentos!D40 -> un | E81: =Moveis_Equipamentos!E40 -> 3 | F81: =Moveis_Equipamentos!F40 -> 0 | G81: 0
A82: 3.28 | B82: =Moveis_Equipamentos!B41 -> F020000719-EMBASA/BA | C82: =Moveis_Equipamentos!C41 -> Freezer 246 l | D82: =Moveis_Equipamentos!D41 -> un | E82: =Moveis_Equipamentos!E41 -> 1 | F82: =Moveis_Equipamentos!F41 -> 0 | G82: 0
A83: 3.29 | B83: =Moveis_Equipamentos!B42 -> 029028-IOPES | C83: =Moveis_Equipamentos!C42 -> Cilindro de Gás de Cozinha 45 kg | D83: =Moveis_Equipamentos!D42 -> un | E83: =Moveis_Equipamentos!E42 -> 7 | F83: =Moveis_Equipamentos!F42 -> 0 | G83: 0
A84: 3.30 | B84: =Moveis_Equipamentos!B43 -> 4226-SINAPI/PE | C84: =Moveis_Equipamentos!C43 -> Gás de cozinha-GLP | D84: =Moveis_Equipamentos!D43 -> kg | E84: =Moveis_Equipamentos!E43 -> 3780 | F84: =Moveis_Equipamentos!F43 -> 0 | G84: 0
A85: 3.31 | B85: =Moveis_Equipamentos!B44 -> F020000716-EMBASA/BA | C85: =Moveis_Equipamentos!C44 -> Geladeira 280 litros | D85: =Moveis_Equipamentos!D44 -> un | E85: =Moveis_Equipamentos!E44 -> 3 | F85: =Moveis_Equipamentos!F44 -> 0 | G85: 0
A86: 3.32 | B86: =Moveis_Equipamentos!B45 -> 10232-ORSE/SE | C86: =Moveis_Equipamentos!C45 -> Geladeira industrial 300 litros | D86: =Moveis_Equipamentos!D45 -> un | E86: =Moveis_Equipamentos!E45 -> 3 | F86: =Moveis_Equipamentos!F45 -> 0 | G86: 0
A87: 3.33 | B87: =Moveis_Equipamentos!B46 -> COT_GPS | C87: =Moveis_Equipamentos!C46 -> GPS com cabo e software (conforme especificação) | D87: =Moveis_Equipamentos!D46 -> un | E87: =Moveis_Equipamentos!E46 -> 3 | F87: =Moveis_Equipamentos!F46 -> 0 | G87: 0
A88: 3.34 | B88: =Moveis_Equipamentos!B47 -> COT_GUARDA_ROUPA | C88: =Moveis_Equipamentos!C47 -> Guarda-Roupa 4 Portas | D88: =Moveis_Equipamentos!D47 -> un | E88: =Moveis_Equipamentos!E47 -> 2 | F88: =Moveis_Equipamentos!F47 -> 0 | G88: 0
A89: 3.35 | B89: =Moveis_Equipamentos!B48 -> COT_COPO | C89: =Moveis_Equipamentos!C48 -> Conjunto copos em vidro com 8 unidades | D89: =Moveis_Equipamentos!D48 -> un | E89: =Moveis_Equipamentos!E48 -> 50 | F89: =Moveis_Equipamentos!F48 -> 0 | G89: 0
A90: 3.36 | B90: =Moveis_Equipamentos!B49 -> COT_PANEL | C90: =Moveis_Equipamentos!C49 -> Conjunto de panelas com 7 peças | D90: =Moveis_Equipamentos!D49 -> un | E90: =Moveis_Equipamentos!E49 -> 4 | F90: =Moveis_Equipamentos!F49 -> 0 | G90: 0
A91: 3.37 | B91: =Moveis_Equipamentos!B50 -> COT_ROUPA_BANHO | C91: =Moveis_Equipamentos!C50 -> Jogo de Roupa de banho 5 Peças | D91: =Moveis_Equipamentos!D50 -> un | E91: =Moveis_Equipamentos!E50 -> 25 | F91: =Moveis_Equipamentos!F50 -> 0 | G91: 0
A92: 3.38 | B92: =Moveis_Equipamentos!B51 -> COT_ROUPA_CAMA | C92: =Moveis_Equipamentos!C51 -> Jogo de roupa de cama solteiro | D92: =Moveis_Equipamentos!D51 -> un | E92: =Moveis_Equipamentos!E51 -> 50 | F92: =Moveis_Equipamentos!F51 -> 0 | G92: 0
A93: 3.39 | B93: =Moveis_Equipamentos!B52 -> COT_SOFA | C93: =Moveis_Equipamentos!C52 -> Conjunto de sofá 2 e 3 lugares | D93: =Moveis_Equipamentos!D52 -> un | E93: =Moveis_Equipamentos!E52 -> 5 | F93: =Moveis_Equipamentos!F52 -> 0 | G93: 0
A94: 3.40 | B94: =Moveis_Equipamentos!B53 -> COT_LIQUID | C94: =Moveis_Equipamentos!C53 -> Liquidificadores industriais | D94: =Moveis_Equipamentos!D53 -> un | E94: =Moveis_Equipamentos!E53 -> 4 | F94: =Moveis_Equipamentos!F53 -> 0 | G94: 0
A95: 3.41 | B95: =Moveis_Equipamentos!B54 -> COT_MAQ_LAVA_LOUCA | C95: =Moveis_Equipamentos!C54 -> Máquina de lavar louças industrial | D95: =Moveis_Equipamentos!D54 -> un | E95: =Moveis_Equipamentos!E54 -> 3 | F95: =Moveis_Equipamentos!F54 -> 0 | G95: 0
A96: 3.42 | B96: =Moveis_Equipamentos!B55 -> COT_MAQ_LAVA_ROUPA | C96: =Moveis_Equipamentos!C55 -> Máquina de Lavar roupa 11kg | D96: =Moveis_Equipamentos!D55 -> un | E96: =Moveis_Equipamentos!E55 -> 3 | F96: =Moveis_Equipamentos!F55 -> 0 | G96: 0
A97: 3.43 | B97: =Moveis_Equipamentos!B56 -> COT_MESA_BUF | C97: =Moveis_Equipamentos!C56 -> Mesa buffets | D97: =Moveis_Equipamentos!D56 -> un | E97: =Moveis_Equipamentos!E56 -> 5 | F97: =Moveis_Equipamentos!F56 -> 0 | G97: 0
A98: 3.44 | B98: =Moveis_Equipamentos!B57 -> COT_MESA_REFEIT | C98: =Moveis_Equipamentos!C57 -> Mesa de refeitório 10 lugares com cadeiras | D98: =Moveis_Equipamentos!D57 -> un | E98: =Moveis_Equipamentos!E57 -> 20 | F98: =Moveis_Equipamentos!F57 -> 0 | G98: 0
A99: 3.45 | B99: =Moveis_Equipamentos!B58 -> COT_MESA_REUN | C99: =Moveis_Equipamentos!C58 -> Mesa de reunião 10 lugares com 10 cadeiras | D99: =Moveis_Equipamentos!D58 -> un | E99: =Moveis_Equipamentos!E58 -> 3 | F99: =Moveis_Equipamentos!F58 -> 0 | G99: 0
A100: 3.46 | B100: =Moveis_Equipamentos!B59 -> COT_MESA_PVC | C100: =Moveis_Equipamentos!C59 -> Mesa retangular em PVC | D100: =Moveis_Equipamentos!D59 -> un | E100: =Moveis_Equipamentos!E59 -> 3 | F100: =Moveis_Equipamentos!F59 -> 0 | G100: 0
A101: 3.47 | B101: =Moveis_Equipamentos!B60 -> COT_MESA_ESCR | C101: =Moveis_Equipamentos!C60 -> Mesas de escritório com gavetas (conforme especificação) | D101: =Moveis_Equipamentos!D60 -> un | E101: =Moveis_Equipamentos!E60 -> 89 | F101: =Moveis_Equipamentos!F60 -> 0 | G101: 0
A102: 3.48 | B102: =Moveis_Equipamentos!B61 -> COT_PRATO | C102: =Moveis_Equipamentos!C61 -> Pratos rasos | D102: =Moveis_Equipamentos!D61 -> un | E102: =Moveis_Equipamentos!E61 -> 300 | F102: =Moveis_Equipamentos!F61 -> 0 | G102: 0
A103: 3.49 | B103: =Moveis_Equipamentos!B62 -> F030000293-EMBASA/BA | C103: =Moveis_Equipamentos!C62 -> Projetor multimídia (Datashow) | D103: =Moveis_Equipamentos!D62 -> un | E103: =Moveis_Equipamentos!E62 -> 3 | F103: =Moveis_Equipamentos!F62 -> 0 | G103: 0
A104: 3.50 | B104: =Moveis_Equipamentos!B63 -> COT_RACK | C104: =Moveis_Equipamentos!C63 -> Rack (sala) | D104: =Moveis_Equipamentos!D63 -> un | E104: =Moveis_Equipamentos!E63 -> 3 | F104: =Moveis_Equipamentos!F63 -> 0 | G104: 0
A105: 3.51 | B105: =Moveis_Equipamentos!B64 -> COT_REFRESQUEIRA | C105: =Moveis_Equipamentos!C64 -> Refresqueira | D105: =Moveis_Equipamentos!D64 -> un | E105: =Moveis_Equipamentos!E64 -> 4 | F105: =Moveis_Equipamentos!F64 -> 0 | G105: 0
A106: 3.52 | B106: =Moveis_Equipamentos!B65 -> COT_TABUA | C106: =Moveis_Equipamentos!C65 -> Tábuas para carnes | D106: =Moveis_Equipamentos!D65 -> un | E106: =Moveis_Equipamentos!E65 -> 4 | F106: =Moveis_Equipamentos!F65 -> 0 | G106: 0
A107: 3.53 | B107: =Moveis_Equipamentos!B66 -> COT_TELEVISOR | C107: =Moveis_Equipamentos!C66 -> Televisor LCD com 27,5" | D107: =Moveis_Equipamentos!D66 -> un | E107: =Moveis_Equipamentos!E66 -> 3 | F107: =Moveis_Equipamentos!F66 -> 0 | G107: =ROUND(E107*F107,2) -> 0 | H107: =ROUND(G107/G$8,4) -> 
A109: 4. | C109: =Mao_de_Obra!C13 -> EQUIPE - MÃO DE OBRA | G109: =SUBTOTAL(109,G110:G170) -> 0 | H109: =ROUND(G109/G$8,4) -> 
A110: 4.1 | B110: =Mao_de_Obra!B14 -> P0 | C110: =Mao_de_Obra!C14 -> Coordenador - Engenheiro Sênior (Civil / Eletricista / Mecânico) - Esp. Manutenção Sist Abast/Ger | D110: =Mao_de_Obra!D14 -> homem x mês | E110: =Mao_de_Obra!E14 -> 12 | F110: =Mao_de_Obra!F14 -> 0 | G110: =ROUND(E110*F110,2) -> 0
A111: 4.2 | B111: =Mao_de_Obra!B15 -> A1 | C111: =Mao_de_Obra!C15 -> Assistente Administrativo | D111: =Mao_de_Obra!D15 -> homem x mês | E111: =Mao_de_Obra!E15 -> 12 | F111: =Mao_de_Obra!F15 -> 0 | G111: =ROUND(E111*F111,2) -> 0
A112: 4.3 | B112: =Mao_de_Obra!B16 -> A3 | C112: =Mao_de_Obra!C16 -> Auxiliar Administrativo | D112: =Mao_de_Obra!D16 -> homem x mês | E112: =Mao_de_Obra!E16 -> 48 | F112: =Mao_de_Obra!F16 -> 0 | G112: 0
A113: 4.4 | B113: =Mao_de_Obra!B17 -> P1 | C113: =Mao_de_Obra!C17 -> Coordenador Operação - Engenheiro Sênior (Civil / Eletricista / Mecânico) - Esp. Manutenção Sist Abast/Ger | D113: =Mao_de_Obra!D17 -> homem x mês | E113: =Mao_de_Obra!E17 -> 12 | F113: =Mao_de_Obra!F17 -> 0 | G113: 0
A114: 4.5 | B114: =Mao_de_Obra!B18 -> P1 | C114: =Mao_de_Obra!C18 -> Coordenador Manutenção - Engenheiro Sênior (Civil / Eletricista / Mecânico) - Esp. Manutenção Sist Abast/Ger | D114: =Mao_de_Obra!D18 -> homem x mês | E114: =Mao_de_Obra!E18 -> 12 | F114: =Mao_de_Obra!F18 -> 0 | G114: 0
A115: 4.6 | B115: =Mao_de_Obra!B19 -> AS | C115: =Mao_de_Obra!C19 -> Coordenador - Chefe de Escritório | D115: =Mao_de_Obra!D19 -> homem x mês | E115: =Mao_de_Obra!E19 -> 12 | F115: =Mao_de_Obra!F19 -> 0 | G115: 0
A116: 4.7 | B116: =Mao_de_Obra!B20 -> T1 | C116: =Mao_de_Obra!C20 -> Técnico Pleno - Analista em Tecnologia da Informação | D116: =Mao_de_Obra!D20 -> homem x mês | E116: =Mao_de_Obra!E20 -> 12 | F116: =Mao_de_Obra!F20 -> 0 | G116: 0
A117: 4.8 | B117: =Mao_de_Obra!B21 -> A3 | C117: =Mao_de_Obra!C21 -> Motorista | D117: =Mao_de_Obra!D21 -> homem x mês | E117: =Mao_de_Obra!E21 -> 60 | F117: =Mao_de_Obra!F21 -> 0 | G117: 0
A118: 4.9 | B118: =Mao_de_Obra!B22 -> A1 | C118: =Mao_de_Obra!C22 -> Almoxarife | D118: =Mao_de_Obra!D22 -> homem x mês | E118: =Mao_de_Obra!E22 -> 12 | F118: =Mao_de_Obra!F22 -> 0 | G118: 0
A119: 4.10 | B119: =Mao_de_Obra!B23 -> A3 | C119: =Mao_de_Obra!C23 -> Auxiliar de Almoxarifado | D119: =Mao_de_Obra!D23 -> homem x mês | E119: =Mao_de_Obra!E23 -> 36 | F119: =Mao_de_Obra!F23 -> 0 | G119: 0
A120: 4.11 | B120: =Mao_de_Obra!B24 -> A4 | C120: =Mao_de_Obra!C24 -> Servente | D120: =Mao_de_Obra!D24 -> homem x mês | E120: =Mao_de_Obra!E24 -> 144 | F120: =Mao_de_Obra!F24 -> 0 | G120: 0
A121: 4.12 | B121: =Mao_de_Obra!B25 -> P1 | C121: =Mao_de_Obra!C25 -> Engenheiro de Segurança e Medicina do Trabalho | D121: =Mao_de_Obra!D25 -> homem x mês | E121: =Mao_de_Obra!E25 -> 12 | F121: =Mao_de_Obra!F25 -> 0 | G121: 0
A122: 4.13 | B122: =Mao_de_Obra!B26 -> T2 | C122: =Mao_de_Obra!C26 -> Técnico de Segurança e Medicina do Trabalho | D122: =Mao_de_Obra!D26 -> homem x mês | E122: =Mao_de_Obra!E26 -> 24 | F122: =Mao_de_Obra!F26 -> 0 | G122: 0
A123: 4.14 | B123: =Mao_de_Obra!B27 -> P1 | C123: =Mao_de_Obra!C27 -> Médico do Trabalho | D123: =Mao_de_Obra!D27 -> homem x mês | E123: =Mao_de_Obra!E27 -> 12 | F123: =Mao_de_Obra!F27 -> 0 | G123: 0
A124: 4.15 | B124: =Mao_de_Obra!B28 -> P1 | C124: =Mao_de_Obra!C28 -> Engenheiro Pleno - Civil - Especialista em Hidráulica | D124: =Mao_de_Obra!D28 -> homem x mês | E124: =Mao_de_Obra!E28 -> 12 | F124: =Mao_de_Obra!F28 -> 0 | G124: 0
A125: 4.16 | B125: =Mao_de_Obra!B29 -> P1 | C125: =Mao_de_Obra!C29 -> Engenheiro Pleno - Civil - Especialista em Hidrologia | D125: =Mao_de_Obra!D29 -> homem x mês | E125: =Mao_de_Obra!E29 -> 12 | F125: =Mao_de_Obra!F29 -> 0 | G125: 0
A126: 4.17 | B126: =Mao_de_Obra!B30 -> P3 | C126: =Mao_de_Obra!C30 -> Engenheiro Junior - Civil | D126: =Mao_de_Obra!D30 -> homem x mês | E126: =Mao_de_Obra!E30 -> 12 | F126: =Mao_de_Obra!F30 -> 0 | G126: 0
A127: 4.18 | B127: =Mao_de_Obra!B31 -> P1 | C127: =Mao_de_Obra!C31 -> Engenheiro Pleno - Eletricista | D127: =Mao_de_Obra!D31 -> homem x mês | E127: =Mao_de_Obra!E31 -> 12 | F127: =Mao_de_Obra!F31 -> 0 | G127: 0
A128: 4.19 | B128: =Mao_de_Obra!B32 -> P1 | C128: =Mao_de_Obra!C32 -> Engenheiro Pleno - Eletricista - Especialista em Equipamentos e Sistemas Elétricos | D128: =Mao_de_Obra!D32 -> homem x mês | E128: =Mao_de_Obra!E32 -> 12 | F128: =Mao_de_Obra!F32 -> 0 | G128: 0
A129: 4.20 | B129: =Mao_de_Obra!B33 -> P1 | C129: =Mao_de_Obra!C33 -> Engenheiro Pleno - Eletricista - Especialista em Subestação Pátio, L. Transmissão e L. Distribuição | D129: =Mao_de_Obra!D33 -> homem x mês | E129: =Mao_de_Obra!E33 -> 12 | F129: =Mao_de_Obra!F33 -> 0 | G129: 0
A130: 4.21 | B130: =Mao_de_Obra!B34 -> P1 | C130: =Mao_de_Obra!C34 -> Engenheiro Pleno - Eletricista - Especialista em Sistema de Proteção, Controle e Supervisão (SPCS) | D130: =Mao_de_Obra!D34 -> homem x mês | E130: =Mao_de_Obra!E34 -> 12 | F130: =Mao_de_Obra!F34 -> 0 | G130: 0
A131: 4.22 | B131: =Mao_de_Obra!B35 -> P1 | C131: =Mao_de_Obra!C35 -> Engenheiro Pleno - Mecânico | D131: =Mao_de_Obra!D35 -> homem x mês | E131: =Mao_de_Obra!E35 -> 12 | F131: =Mao_de_Obra!F35 -> 0 | G131: 0
A132: 4.23 | B132: =Mao_de_Obra!B36 -> P1 | C132: =Mao_de_Obra!C36 -> Engenheiro Pleno - Civil | D132: =Mao_de_Obra!D36 -> homem x mês | E132: =Mao_de_Obra!E36 -> 12 | F132: =Mao_de_Obra!F36 -> 0 | G132: 0
A133: 4.24 | B133: =Mao_de_Obra!B37 -> P1 | C133: =Mao_de_Obra!C37 -> Engenheiro Pleno - Mecatrônica - Especialista em Automação | D133: =Mao_de_Obra!D37 -> homem x mês | E133: =Mao_de_Obra!E37 -> 12 | F133: =Mao_de_Obra!F37 -> 0 | G133: 0
A134: 4.25 | B134: =Mao_de_Obra!B38 -> P1 | C134: =Mao_de_Obra!C38 -> Engenheiro Pleno - Telecomunicações | D134: =Mao_de_Obra!D38 -> homem x mês | E134: =Mao_de_Obra!E38 -> 12 | F134: =Mao_de_Obra!F38 -> 0 | G134: 0
A135: 4.26 | B135: =Mao_de_Obra!B39 -> T1 | C135: =Mao_de_Obra!C39 -> Técnico Pleno - Manutenção Elétrica - Especialista em Equipamentos e Sistemas Elétricos | D135: =Mao_de_Obra!D39 -> homem x mês | E135: =Mao_de_Obra!E39 -> 12 | F135: =Mao_de_Obra!F39 -> 0 | G135: 0
A136: 4.27 | B136: =Mao_de_Obra!B40 -> T1 | C136: =Mao_de_Obra!C40 -> Técnico Pleno - Manutenção Elétrica - Especialista em Subestação Pátio, L. Transmissão e L. Distribuição | D136: =Mao_de_Obra!D40 -> homem x mês | E136: =Mao_de_Obra!E40 -> 12 | F136: =Mao_de_Obra!F40 -> 0 | G136: 0
A137: 4.28 | B137: =Mao_de_Obra!B41 -> T1 | C137: =Mao_de_Obra!C41 -> Técnico Pleno - Manutenção Elétrica - Especialista em Sistema de Proteção, Controle e Supervisão (SPCS) | D137: =Mao_de_Obra!D41 -> homem x mês | E137: =Mao_de_Obra!E41 -> 12 | F137: =Mao_de_Obra!F41 -> 0 | G137: 0
A138: 4.29 | B138: =Mao_de_Obra!B42 -> T1 | C138: =Mao_de_Obra!C42 -> Técnico Pleno - Manutenção Mecânica | D138: =Mao_de_Obra!D42 -> homem x mês | E138: =Mao_de_Obra!E42 -> 12 | F138: =Mao_de_Obra!F42 -> 0 | G138: 0
A139: 4.30 | B139: =Mao_de_Obra!B43 -> T1 | C139: =Mao_de_Obra!C43 -> Técnico Pleno - Manutenção Civil | D139: =Mao_de_Obra!D43 -> homem x mês | E139: =Mao_de_Obra!E43 -> 12 | F139: =Mao_de_Obra!F43 -> 0 | G139: 0
A140: 4.31 | B140: =Mao_de_Obra!B44 -> P1 | C140: =Mao_de_Obra!C44 -> Geólogo (Geotecnia) | D140: =Mao_de_Obra!D44 -> homem x mês | E140: =Mao_de_Obra!E44 -> 12 | F140: =Mao_de_Obra!F44 -> 0 | G140: 0
A141: 4.32 | B141: =Mao_de_Obra!B45 -> T1 | C141: =Mao_de_Obra!C45 -> Técnico Pleno - Eletrotécnico - Operador Estação de Bombeamento - Diurno (inclusive adicional de periculosidade) | D141: =Mao_de_Obra!D45 -> homem x mês | E141: =Mao_de_Obra!E45 -> 216 | F141: =Mao_de_Obra!F45 -> 0 | G141: 0
A142: 4.33 | B142: =Mao_de_Obra!B46 -> T1 | C142: =Mao_de_Obra!C46 -> Técnico Pleno - Eletrotécnico - Operador Estação de Bombeamento - Noturno (inclusive adicional de periculosidade) | D142: =Mao_de_Obra!D46 -> homem x mês | E142: =Mao_de_Obra!E46 -> 216 | F142: =Mao_de_Obra!F46 -> 0 | G142: 0
A143: 4.34 | B143: =Mao_de_Obra!B47 -> T2 | C143: =Mao_de_Obra!C47 -> Técnico Junior - Mecânico - Operador Estação de Bombeamento - Diurno (inclusive adicional de periculosidade) | D143: =Mao_de_Obra!D47 -> homem x mês | E143: =Mao_de_Obra!E47 -> 216 | F143: =Mao_de_Obra!F47 -> 0 | G143: 0
A144: 4.35 | B144: =Mao_de_Obra!B48 -> T2 | C144: =Mao_de_Obra!C48 -> Técnico Junior - Mecânico - Operador Estação de Bombeamento - Noturno (inclusive adicional de periculosidade) | D144: =Mao_de_Obra!D48 -> homem x mês | E144: =Mao_de_Obra!E48 -> 216 | F144: =Mao_de_Obra!F48 -> 0 | G144: 0
A145: 4.36 | B145: =Mao_de_Obra!B49 -> T1 | C145: =Mao_de_Obra!C49 -> Técnico Pleno - Eletrotécnico - Operador Subestação - Diurno (inclusive adicional de periculosidade) | D145: =Mao_de_Obra!D49 -> homem x mês | E145: =Mao_de_Obra!E49 -> 216 | F145: =Mao_de_Obra!F49 -> 0 | G145: 0
A146: 4.37 | B146: =Mao_de_Obra!B50 -> T1 | C146: =Mao_de_Obra!C50 -> Técnico Pleno - Eletrotécnico - Operador Subestação - Noturno (inclusive adicional de periculosidade) | D146: =Mao_de_Obra!D50 -> homem x mês | E146: =Mao_de_Obra!E50 -> 216 | F146: =Mao_de_Obra!F50 -> 0 | G146: 0
A147: 4.38 | B147: =Mao_de_Obra!B51 -> T2 | C147: =Mao_de_Obra!C51 -> Técnico Junior - Eletrotécnico - Operador Subestação - Diurno (inclusive adicional de periculosidade) | D147: =Mao_de_Obra!D51 -> homem x mês | E147: =Mao_de_Obra!E51 -> 216 | F147: =Mao_de_Obra!F51 -> 0 | G147: 0
A148: 4.39 | B148: =Mao_de_Obra!B52 -> T2 | C148: =Mao_de_Obra!C52 -> Técnico Junior - Eletrotécnico - Operador Subestação - Noturno (inclusive adicional de periculosidade) | D148: =Mao_de_Obra!D52 -> homem x mês | E148: =Mao_de_Obra!E52 -> 216 | F148: =Mao_de_Obra!F52 -> 0 | G148: 0
A149: 4.40 | B149: =Mao_de_Obra!B53 -> T3 | C149: =Mao_de_Obra!C53 -> Técnico Auxiliar (inclusive adicional de periculosidade) | D149: =Mao_de_Obra!D53 -> homem x mês | E149: =Mao_de_Obra!E53 -> 204 | F149: =Mao_de_Obra!F53 -> 0 | G149: 0
A150: 4.41 | B150: =Mao_de_Obra!B54 -> T3 | C150: =Mao_de_Obra!C54 -> Técnico Auxiliar - Leiturista (inclusive adicional de periculosidade) | D150: =Mao_de_Obra!D54 -> homem x mês | E150: =Mao_de_Obra!E54 -> 48 | F150: =Mao_de_Obra!F54 -> 0 | G150: 0
A151: 4.42 | B151: =Mao_de_Obra!B55 -> T1 | C151: =Mao_de_Obra!C55 -> Técnico Pleno - Mecânico (inclusive adicional de periculosidade) | D151: =Mao_de_Obra!D55 -> homem x mês | E151: =Mao_de_Obra!E55 -> 36 | F151: =Mao_de_Obra!F55 -> 0 | G151: 0
A152: 4.43 | B152: =Mao_de_Obra!B56 -> T3 | C152: =Mao_de_Obra!C56 -> Técnico Auxiliar - Mecânico (inclusive adicional de periculosidade) | D152: =Mao_de_Obra!D56 -> homem x mês | E152: =Mao_de_Obra!E56 -> 48 | F152: =Mao_de_Obra!F56 -> 0 | G152: 0
A153: 4.44 | B153: =Mao_de_Obra!B57 -> T1 | C153: =Mao_de_Obra!C57 -> Técnico Pleno - Eletrotécnico - Especialista em Baixa e Média Tensão (inclusive adicional de periculosidade) | D153: =Mao_de_Obra!D57 -> homem x mês | E153: =Mao_de_Obra!E57 -> 36 | F153: =Mao_de_Obra!F57 -> 0 | G153: 0
A154: 4.45 | B154: =Mao_de_Obra!B58 -> T1 | C154: =Mao_de_Obra!C58 -> Eletrotécnico - Especialista Subestação 230 Kv (inclusive adicional de periculosidade) | D154: =Mao_de_Obra!D58 -> homem x mês | E154: =Mao_de_Obra!E58 -> 12 | F154: =Mao_de_Obra!F58 -> 0 | G154: 0
A155: 4.46 | B155: =Mao_de_Obra!B59 -> T3 | C155: =Mao_de_Obra!C59 -> Eletricista (inclusive adicional de periculosidade) | D155: =Mao_de_Obra!D59 -> homem x mês | E155: =Mao_de_Obra!E59 -> 60 | F155: =Mao_de_Obra!F59 -> 0 | G155: 0
A156: 4.47 | B156: =Mao_de_Obra!B60 -> T1 | C156: =Mao_de_Obra!C60 -> Eletrotécnico - Especialista Inspeção em Linha de Transmissão 230 / 269 Kv (inclusive adicional de periculosidade) | D156: =Mao_de_Obra!D60 -> homem x mês | E156: =Mao_de_Obra!E60 -> 12 | F156: =Mao_de_Obra!F60 -> 0 | G156: =ROUND(E156*F156,2) -> 0 | H156: =ROUND(G156/G$8,4) -> 
A157: 4.48 | B157: =Mao_de_Obra!B61 -> T4 | C157: =Mao_de_Obra!C61 -> Auxiliar Eletrotécnico (inclusive adicional de periculosidade) | D157: =Mao_de_Obra!D61 -> homem x mês | E157: =Mao_de_Obra!E61 -> 12 | F157: =Mao_de_Obra!F61 -> 0 | G157: 0
A158: 4.49 | B158: =Mao_de_Obra!B62 -> T1 | C158: =Mao_de_Obra!C62 -> Eletrotécnico - Especialista em Linha de Distribuição 13,8 Kv (inclusive adicional de periculosidade) | D158: =Mao_de_Obra!D62 -> homem x mês | E158: =Mao_de_Obra!E62 -> 12 | F158: =Mao_de_Obra!F62 -> 0 | G158: 0
A159: 4.50 | B159: =Mao_de_Obra!B63 -> T1 | C159: =Mao_de_Obra!C63 -> Técnico Automação - Especialista em SDSC (inclusive adicional de periculosidade) | D159: =Mao_de_Obra!D63 -> homem x mês | E159: =Mao_de_Obra!E63 -> 36 | F159: =Mao_de_Obra!F63 -> 0 | G159: 0
A160: 4.51 | B160: =Mao_de_Obra!B64 -> T1 | C160: =Mao_de_Obra!C64 -> Eletrotécnico - Especialista em SPCS (inclusive adicional de periculosidade) | D160: =Mao_de_Obra!D64 -> homem x mês | E160: =Mao_de_Obra!E64 -> 12 | F160: =Mao_de_Obra!F64 -> 0 | G160: 0
A161: 4.52 | B161: =Mao_de_Obra!B65 -> T1 | C161: =Mao_de_Obra!C65 -> Técnico Telecomunicações/Eletrônica (inclusive adicional de periculosidade) | D161: =Mao_de_Obra!D65 -> homem x mês | E161: =Mao_de_Obra!E65 -> 12 | F161: =Mao_de_Obra!F65 -> 0 | G161: 0
A162: 4.53 | B162: =Mao_de_Obra!B66 -> T1 | C162: =Mao_de_Obra!C66 -> Técnico Pleno - Encarregado de Campo (inclusive adicional de periculosidade) | D162: =Mao_de_Obra!D66 -> homem x mês | E162: =Mao_de_Obra!E66 -> 36 | F162: =Mao_de_Obra!F66 -> 0 | G162: 0
A163: 4.54 | B163: =Mao_de_Obra!B67 -> T2 | C163: =Mao_de_Obra!C67 -> Tecnico Edificações - Inspeção (inclusive adicional de periculosidade) | D163: =Mao_de_Obra!D67 -> homem x mês | E163: =Mao_de_Obra!E67 -> 36 | F163: =Mao_de_Obra!F67 -> 0 | G163: 0
A164: 4.55 | B164: =Mao_de_Obra!B68 -> T2 | C164: =Mao_de_Obra!C68 -> Técnico Junior - Cadista | D164: =Mao_de_Obra!D68 -> homem x mês | E164: =Mao_de_Obra!E68 -> 36 | F164: =Mao_de_Obra!F68 -> 0 | G164: 0
A165: 4.56 | B165: =Mao_de_Obra!B69 -> T1 | C165: =Mao_de_Obra!C69 -> Topógrafo (inclusive adicional de periculosidade) | D165: =Mao_de_Obra!D69 -> homem x mês | E165: =Mao_de_Obra!E69 -> 12 | F165: =Mao_de_Obra!F69 -> 0 | G165: 0
A166: 4.57 | B166: =Mao_de_Obra!B70 -> T4 | C166: =Mao_de_Obra!C70 -> Auxiliar de Topografia (inclusive adicional de periculosidade) | D166: =Mao_de_Obra!D70 -> homem x mês | E166: =Mao_de_Obra!E70 -> 24 | F166: =Mao_de_Obra!F70 -> 0 | G166: 0
A167: 4.58 | B167: =Mao_de_Obra!B71 -> T3 | C167: =Mao_de_Obra!C71 -> Carpinteiro (inclusive adicional de periculosidade) | D167: =Mao_de_Obra!D71 -> homem x mês | E167: =Mao_de_Obra!E71 -> 36 | F167: =Mao_de_Obra!F71 -> 0 | G167: 0
A168: 4.59 | B168: =Mao_de_Obra!B72 -> T3 | C168: =Mao_de_Obra!C72 -> Ferreiro (inclusive adicional de periculosidade) | D168: =Mao_de_Obra!D72 -> homem x mês | E168: =Mao_de_Obra!E72 -> 36 | F168: =Mao_de_Obra!F72 -> 0 | G168: 0
A169: 4.60 | B169: =Mao_de_Obra!B73 -> T3 | C169: =Mao_de_Obra!C73 -> Pedreiro (inclusive adicional de periculosidade) | D169: =Mao_de_Obra!D73 -> homem x mês | E169: =Mao_de_Obra!E73 -> 84 | F169: =Mao_de_Obra!F73 -> 0 | G169: 0
A170: 4.61 | B170: =Mao_de_Obra!B74 -> A4 | C170: =Mao_de_Obra!C74 -> Servente (inclusive adicional de periculosidade) | D170: =Mao_de_Obra!D74 -> homem x mês | E170: =Mao_de_Obra!E74 -> 756 | F170: =Mao_de_Obra!F74 -> 0 | G170: 0
A172: 5. | C172: =Viagens_Diárias!C13 -> VIAGENS / DIÁRIAS | G172: =SUBTOTAL(109,G173:G177) -> 0 | H172: =ROUND(G172/G$8,4) -> 
A173: 5.1. | C173: =Viagens_Diárias!C15 -> DESPESAS COM VIAGENS COMERCIAIS | G173: =SUBTOTAL(109,G174:G175) -> 0
A174: 5.1.1 | B174: =Viagens_Diárias!B16 -> 0 | C174: =Viagens_Diárias!C16 -> Viagem por via aerea | D174: =Viagens_Diárias!D16 -> un | E174: =Viagens_Diárias!E16 -> 12 | F174: =Viagens_Diárias!F16 -> 0 | G174: =ROUND(E174*F174,2) -> 0
A175: 5.1.2 | B175: =Viagens_Diárias!B17 -> 0 | C175: =Viagens_Diárias!C17 -> Viagem por via terrestre (comercial) | D175: =Viagens_Diárias!D17 -> un | E175: =Viagens_Diárias!E17 -> 24 | F175: =Viagens_Diárias!F17 -> 0 | G175: 0
A176: 5.2. | C176: =Viagens_Diárias!C20 -> DESPESAS COM DIÁRIAS | G176: =SUBTOTAL(109,G177:G177) -> 0
A177: 5.2.1 | B177: =Viagens_Diárias!B21 -> 0 | C177: =Viagens_Diárias!C21 -> Diárias nacionais | D177: =Viagens_Diárias!D21 -> un | E177: =Viagens_Diárias!E21 -> 54 | F177: =Viagens_Diárias!F21 -> 0 | G177: 0
A179: 6. | C179: =Veiculos!C13 -> VEÍCULOS AUTOMOTORES | G179: =SUBTOTAL(109,G180:G185) ->  | H179: =ROUND(G179/G$8,4) -> 
A180: 6.1 | B180: =Veiculos!B14 -> B3 | C180: =Veiculos!C14 -> Veículo Leve - Tipo Hatch 1.4 Flex (85 CV) | D180: =Veiculos!D14 -> un x mês | E180: =Veiculos!E14 ->  | F180: =Veiculos!F14 -> 0
A181: 6.2 | B181: =Veiculos!B15 -> B4 | C181: =Veiculos!C15 -> Veículo Leve - Tipo Sedan 1.6 Flex (115 CV) | D181: =Veiculos!D15 -> un x mês | E181: =Veiculos!E15 ->  | F181: =Veiculos!F15 -> 0
A182: 6.3 | B182: =Veiculos!B16 -> B11 | C182: =Veiculos!C16 -> Veículo Tipo Pick Up Cabine Dupla 4 x 4 (163 CV) | D182: =Veiculos!D16 -> un x mês | E182: =Veiculos!E16 ->  | F182: =Veiculos!F16 -> 0
A183: 6.4 | B183: =Veiculos!B17 -> B7 | C183: =Veiculos!C17 -> Veículo - Tipo Microônibus - 28 assentos (150 CV) - COM MOTORISTA | D183: =Veiculos!D17 -> un x mês | E183: =Veiculos!E17 ->  | F183: =Veiculos!F17 -> 0
A184: 6.5 | B184: =Veiculos!B18 -> B8 | C184: =Veiculos!C18 -> Veículo - Tipo Ônibus - 45 assentos (218 CV) - COM MOTORISTA | D184: =Veiculos!D18 -> un x mês | E184: =Veiculos!E18 ->  | F184: =Veiculos!F18 -> 0
A185: 6.6 | B185: =Veiculos!B19 -> B6 | C185: =Veiculos!C19 -> Veículo Utilitário - Tipo Van - 16 assentos (129 CV) - COM MOTORISTA | D185: =Veiculos!D19 -> un x mês | E185: =Veiculos!E19 ->  | F185: =Veiculos!F19 -> 0
A187: 7. | C187: =Frentes_Moveis!C13 -> FRENTES MÓVEIS DE LIMPEZA E CONSERVAÇÃO | G187: =SUBTOTAL(109,G188:G190) -> 0 | H187: =ROUND(G187/G$8,4) -> 
A188: 7.1 | B188: =Frentes_Moveis!B14 -> 00303 - ORSE (5) | C188: =Frentes_Moveis!C14 -> Tenda Piramidal 5m x 5m (para refeitório) | D188: =Frentes_Moveis!D14 -> un x mês | E188: =Frentes_Moveis!E14 -> 96 | F188: =Frentes_Moveis!F14 -> 0 | G188: 0
A189: 7.2 | B189: =Frentes_Moveis!B15 -> 00303 - ORSE (3) | C189: =Frentes_Moveis!C15 -> Tenda Piramidal 3m x 3m | D189: =Frentes_Moveis!D15 -> un x mês | E189: =Frentes_Moveis!E15 -> 96 | F189: =Frentes_Moveis!F15 -> 0 | G189: 0
A190: 7.3 | B190: =Frentes_Moveis!B16 -> 10390 - ORSE/SE | C190: =Frentes_Moveis!C16 -> Banheiro Químico, com 03 limpezas semanais | D190: =Frentes_Moveis!D16 -> un x mês | E190: =Frentes_Moveis!E16 -> 252 | F190: =Frentes_Moveis!F16 -> 0 | G190: 0
A192: 8. | C192: =Materiais_Consumo!C13 -> MATERIAL DE CONSUMO - ALMOXARIFADOS | G192: =SUBTOTAL(109,G193:G350) -> 0 | H192: =ROUND(G192/G$8,4) -> 
A193: 8.1. | C193: =Materiais_Consumo!C15 -> MATERIAL DE CONSUMO - MECÂNICA | G193: =SUBTOTAL(109,G194:G248) -> 0
A194: 8.1.1 | B194: =Materiais_Consumo!B16 -> 04791 - SINAPI | C194: =Materiais_Consumo!C16 -> Adesivo Acrílico / Cola de contato | D194: =Materiais_Consumo!D16 -> un | E194: =Materiais_Consumo!E16 -> 480 | F194: =Materiais_Consumo!F16 -> 0 | G194: 0
A195: 8.1.2 | B195: =Materiais_Consumo!B17 -> 05318 - SINAPI | C195: =Materiais_Consumo!C17 -> Água Raz - galão 5 l | D195: =Materiais_Consumo!D17 -> un | E195: =Materiais_Consumo!E17 -> 112 | F195: =Materiais_Consumo!F17 -> 0 | G195: 0
A196: 8.1.3 | B196: =Materiais_Consumo!B18 -> F030000301 - EMBASA/BA | C196: =Materiais_Consumo!C18 -> Alcool Comum 90º GL | D196: =Materiais_Consumo!D18 -> l | E196: =Materiais_Consumo!E18 -> 1200 | F196: =Materiais_Consumo!F18 -> 0 | G196: 0
A197: 8.1.4 | B197: =Materiais_Consumo!B19 -> 0 | C197: =Materiais_Consumo!C19 -> Antiferrugem aerosol WD-40 - tubo de 300 ml | D197: =Materiais_Consumo!D19 -> un | E197: =Materiais_Consumo!E19 -> 289 | F197: =Materiais_Consumo!F19 -> 0 | G197: 0
A198: 8.1.5 | B198: =Materiais_Consumo!B20 -> 0 | C198: =Materiais_Consumo!C20 -> Antiespumante – antiespumante a base de silicone | D198: =Materiais_Consumo!D20 -> l | E198: =Materiais_Consumo!E20 -> 223 | F198: =Materiais_Consumo!F20 -> 0 | G198: 0
A199: 8.1.6 | B199: =Materiais_Consumo!B21 -> 00337 - SINAPI | C199: =Materiais_Consumo!C21 -> Arame recozido n.º 18 | D199: =Materiais_Consumo!D21 -> kg | E199: =Materiais_Consumo!E21 -> 2400 | F199: =Materiais_Consumo!F21 -> 0 | G199: 0
A200: 8.1.7 | B200: =Materiais_Consumo!B22 -> 00122 - SINAPI | C200: =Materiais_Consumo!C22 -> Cola de PVC com 850 g | D200: =Materiais_Consumo!D22 -> un | E200: =Materiais_Consumo!E22 -> 144 | F200: =Materiais_Consumo!F22 -> 0 | G200: 0
A201: 8.1.8 | B201: =Materiais_Consumo!B23 -> 0 | C201: =Materiais_Consumo!C23 -> Cola Ultra Gray 70g | D201: =Materiais_Consumo!D23 -> un | E201: =Materiais_Consumo!E23 -> 144 | F201: =Materiais_Consumo!F23 -> 0 | G201: 0
A202: 8.1.9 | B202: =Materiais_Consumo!B24 -> 0 | C202: =Materiais_Consumo!C24 -> Cola para junta de motores com 73g | D202: =Materiais_Consumo!D24 -> un | E202: =Materiais_Consumo!E24 -> 1200 | F202: =Materiais_Consumo!F24 -> 0 | G202: 0
A203: 8.1.10 | B203: =Materiais_Consumo!B25 -> 0 | C203: =Materiais_Consumo!C25 -> Convertedor de ferrugem | D203: =Materiais_Consumo!D25 -> un | E203: =Materiais_Consumo!E25 -> 445 | F203: =Materiais_Consumo!F25 -> 0 | G203: 0
A204: 8.1.11 | B204: =Materiais_Consumo!B26 -> 038200 - SINAPI | C204: =Materiais_Consumo!C26 -> Corda de bombeiro 12mm em nylon trançado (rolo de 100,00m) | D204: =Materiais_Consumo!D26 -> m | E204: =Materiais_Consumo!E26 -> 3200 | F204: =Materiais_Consumo!F26 -> 0 | G204: 0
A205: 8.1.12 | B205: =Materiais_Consumo!B27 -> 004221 - SINAPI | C205: =Materiais_Consumo!C27 -> Diesel comum (l) | D205: =Materiais_Consumo!D27 -> l | E205: =Materiais_Consumo!E27 -> 4800 | F205: =Materiais_Consumo!F27 -> 0 | G205: 0
A206: 8.1.13 | B206: =Materiais_Consumo!B28 -> 026019 - SINAPI | C206: =Materiais_Consumo!C28 -> Disco corte abrasivo 7" x 1/8" x 7/8" | D206: =Materiais_Consumo!D28 -> un | E206: =Materiais_Consumo!E28 -> 434 | F206: =Materiais_Consumo!F28 -> 0 | G206: =ROUND(E206*F206,2) -> 0
A207: 8.1.14 | B207: =Materiais_Consumo!B29 -> 025931 - SINAPI | C207: =Materiais_Consumo!C29 -> Disco de corte diamantado - 7", para esmerilhadeira, segmentado, para concreto | D207: =Materiais_Consumo!D29 -> un | E207: =Materiais_Consumo!E29 -> 434 | F207: =Materiais_Consumo!F29 -> 0 | G207: 0
A208: 8.1.15 | B208: =Materiais_Consumo!B30 -> 026018 - SINAPI | C208: =Materiais_Consumo!C30 -> Disco de corte para estrutura metálica 300 x 3,2 x 19,05 mm | D208: =Materiais_Consumo!D30 -> un | E208: =Materiais_Consumo!E30 -> 434 | F208: =Materiais_Consumo!F30 -> 0 | G208: 0
A209: 8.1.16 | B209: =Materiais_Consumo!B31 -> 026019 - SINAPI | C209: =Materiais_Consumo!C31 -> Disco de desbaste para estrutura metálica de 9" x 1/4" x 7/8" ( 225 x 6,25 x 21,87 mm) | D209: =Materiais_Consumo!D31 -> un | E209: =Materiais_Consumo!E31 -> 434 | F209: =Materiais_Consumo!F31 -> 0 | G209: 0
A210: 8.1.17 | B210: =Materiais_Consumo!B32 -> 010997 - SINAPI | C210: =Materiais_Consumo!C32 -> Eletrodos Revestido AWS-E7018, DN 4 mm | D210: =Materiais_Consumo!D32 -> kg | E210: =Materiais_Consumo!E32 -> 320 | F210: =Materiais_Consumo!F32 -> 0 | G210: 0
A211: 8.1.18 | B211: =Materiais_Consumo!B33 -> 10997 - SINAPI/PE | C211: =Materiais_Consumo!C33 -> Eletrodos Revestido AWS-E7018, DN 6 mm | D211: =Materiais_Consumo!D33 -> kg | E211: =Materiais_Consumo!E33 -> 320 | F211: =Materiais_Consumo!F33 -> 0 | G211: 0
A212: 8.1.19 | B212: =Materiais_Consumo!B34 -> 000012 - SINAPI | C212: =Materiais_Consumo!C34 -> Escova de aço para remoção da graxa envelhecida dos cabos de aço | D212: =Materiais_Consumo!D34 -> un | E212: =Materiais_Consumo!E34 -> 160 | F212: =Materiais_Consumo!F34 -> 0 | G212: 0
A213: 8.1.20 | B213: =Materiais_Consumo!B35 -> 000013 - SINAPI | C213: =Materiais_Consumo!C35 -> Estopa - embalagem 20 kg | D213: =Materiais_Consumo!D35 -> kg | E213: =Materiais_Consumo!E35 -> 294 | F213: =Materiais_Consumo!F35 -> 0 | G213: 0
... 565 more rows

Sheet Mobilizacao_Desmobilizacao
C1: Ministério do Desenvolvimento Regional - MDR
C2: Companhia de Desenvolvimento dos Vales do São Francisco e do Parnaíba
C3: Gerência de Operação do PISF - Centro de Controle e Operação (AD / GOI / CCO)
A5: SERVIÇOS DE OPERAÇÃO E MANUTENÇÃO DAS INFRAESTRUTURAS DO EIXO LESTE DO PROJETO DE INTEGRAÇÃO DO RIO SÃO FRANCISCO COM AS BACIAS HIDROGRÁFICAS DO NORDESTE SETENTRIONAL – PISF
A8: MOBILIZAÇÃO E DESMOBILIZAÇAO
A11: ITEM | B11: CÓDIGO | C11: DESCRIÇÃO | D11: UNIDADE | E11: QUANTIDADE | F11: VALOR (R$)
F12: UNITARIO | G12: TOTAL
C13: =A8 -> MOBILIZAÇÃO E DESMOBILIZAÇAO
A15: 1. | C15: MOBILIZAÇÃO (Máquinas, Equipamentos, Ferramentas, Instrumentos, Materiais, Mobiliário)
A16: 1.1 | C16: Mobilização da Equipe - Canteiro Lote 09 (Floresta/PE) | D16: un | E16: 1 | F16: =CPU_MOBILIZACAO!I64 -> 0 | G16: =ROUND(E16*F16,2) -> 0
A17: 1.2 | C17: Mobilização da Equipe - Canteiro Lote 10 (Custódia/PE) | D17: un | E17: 1 | F17: =CPU_MOBILIZACAO!I112 -> 0 | G17: =ROUND(E17*F17,2) -> 0
A18: 1.3 | C18: Mobilização da Equipe - Canteiro Lote 12 (Sertânia/PE) | D18: un | E18: 1 | F18: =CPU_MOBILIZACAO!I164 -> 0 | G18: 0
A19: TOTAL - MOBILIZAÇÃO DA EQUIPE (R$): | G19: =SUBTOTAL(9,G16:G18) -> 0
A21: 2. | C21: DESMOBILIZAÇÃO (Máquinas, Equip., Ferramentas, Instrumentos, Materiais, Mobiliário)
A22: 2.1 | C22: Desmobilização da Equipe - Canteiro Lote 09 (Floresta/PE) | D22: un | E22: 1 | F22: =CPU_DESMOBILIZAZAO!I64 -> 0 | G22: =ROUND(E22*F22,2) -> 0
A23: 2.2 | C23: Desmobilização da Equipe - Canteiro Lote 10 (Custódia/PE) | D23: un | E23: 1 | F23: =CPU_DESMOBILIZAZAO!I112 -> 0 | G23: =ROUND(E23*F23,2) -> 0
A24: 2.3 | C24: Desmobilização da Equipe - Canteiro Lote 12 (Sertânia/PE) | D24: un | E24: 1 | F24: =CPU_DESMOBILIZAZAO!I164 -> 0 | G24: 0
A25: TOTAL - DESMOBILIZAÇÃO DA EQUIPE (R$): | G25: =SUBTOTAL(9,G22:G24) -> 0
A27: ="TOTAL - "&C13&" - (R$):" -> TOTAL - MOBILIZAÇÃO E DESMOBILIZAÇAO - (R$): | G27: =SUBTOTAL(9,G15:G26) -> 0
A30: ="RESUMO - "&A$8 -> RESUMO - MOBILIZAÇÃO E DESMOBILIZAÇAO
A31: ITEM | C31: DESCRIÇÃO | F31: VALOR TOTAL (R$)
A32: 01 | C32: =C15 -> MOBILIZAÇÃO (Máquinas, Equipamentos, Ferramentas, Instrumentos, Materiais, Mobiliário) | F32: =G19 -> 0
A33: 02 | C33: =C21 -> DESMOBILIZAÇÃO (Máquinas, Equip., Ferramentas, Instrumentos, Materiais, Mobiliário) | F33: =G25 -> 0
A34: ="TOTAL GERAL - "&A$8&" - (R$):" -> TOTAL GERAL - MOBILIZAÇÃO E DESMOBILIZAÇAO - (R$): | F34: =SUM(F32:G33) -> 0
A37: NOME DO INFORMANTE: | F37: QUALIFICAÇÃO:
A39: ASSINATURA: | F39: DATA:
A41: OBSERVAÇÃO:
A42: 1. Considerou-se na Mobilizaçao: Transporte dos materiais e equipamentos / Instalação de Pessoal, entre outras despesas.
A43: 2. Considerou-se na Desmobilização: Retirada de máquinas e equipamentos / Demolições e/ou Recuperação de Canteiro, entre outras despesas.
A44: 3. Mobilização e Desmobilização do Quadro de Pessoal: Será realizada com os veículos previstos no contrato.

Sheet CPU_MOBILIZACAO
A1: Ministério do Desenvolvimento Regional -MDR
A2: Companhia de Desenvolvimento dos Vales do São Francisco e do Parnaíba
A3: Gerência de Operação do PISF-Centro de Controle e Operação (AD / GOI / CCO)
A5: SERVIÇOS DE OPERAÇÃO E MANUTENÇÃO DAS INFRAESTRUTURAS DO EIXO LESTE DO PROJETO DE INTEGRAÇÃO DO RIO SÃO FRANCISCO COM AS BACIAS HIDROGRÁFICAS DO NORDESTE SETENTRIONAL – PISF
A9: COMPOSIÇÃO DE PREÇO UNITÁRIO-MOBILIZAÇÃO
A10: Local / Canteiros: EIXO LESTE-Canteiro Lote 9 (Floresta/PE)
A12: Distância entre Recife/PE-Canteiro Lote 9 (km): | D12: =Canteiros!$H$13 -> 472 | E12: Veloc. Média (km/h): | I12: 60
A14: EQUIPAMENTO
A15: CÓDIGO | B15: DESCRIÇÃO | C15: MEIO DE LOCOMOÇÃO | D15: QUANTIDADE | E15: FU | F15: K | G15: DMT (km) | H15: CHP (R$) | I15: CUSTO TOTAL (R$)
A16: E9592-DNIT/PE | B16: Caminhão Carroceria-de madeira, capacidade de carga 15,0 t | C16: Rodando | D16: 2 | E16: 1 | F16: 1 | G16: =$D$12 -> 472 | I16: =ROUND(D16*(((G16*F16*E16)/$I$12)*H16),2) -> 0
A17: E9579-DNIT/PE | B17: Caminhão basculante, capacidade de carga 15,0 t e volume 10,0 m³ | C17: Rodando | D17: 1 | E17: 1 | F17: 1 | G17: =$D$12 -> 472 | I17: 0
A18: E9506-DNIT/PE | B18: Caminhao basculante, capacidade de carga 9,0 t e volume 6,0 m³ | C18: Rodando | D18: 1 | E18: 1 | F18: 1 | G18: 472 | I18: 0
A19: E9592-DNIT/PE | B19: Caminhão Carroceria-de madeira, capacidade de carga 15,0 t | C19: Rodando | D19: 1 | E19: 1 | F19: 1 | G19: 472 | I19: 0
A20: E9509-DNIT/PE | B20: Caminhão Comboio para lubrificação e abastecimento (melosa), convencional totalmente equipado (Capacidade de Combustível: 5.000 l, Capacidade de Lubrificante: 500 l, Capacidade de Graxa: 200 kg, Capacidade de Água: 300 l, Recipiente para Óleo Usado: 200 l, Compressor de Ar e Bomba- d’agua) | C20: Rodando | D20: 1 | E20: 1 | F20: 1 | G20: 472 | I20: 0
A21: E9686-DNIT/PE | B21: Caminhão guindauto com capacidade de carga até 10,0 t | C21: Rodando | D21: 1 | E21: 1 | F21: 1 | G21: 472 | I21: 0
A22: E9605-DNIT/PE | B22: Caminhão tanque, capacidade de volume 6000 l e potência 136,0 hp | C22: Rodando | D22: 1 | E22: 1 | F22: 1 | G22: 472 | I22: 0
A23: A9353-DNIT/PE | B23: Carreta Reboque (para embarcação) | C23: Rodando | D23: 4 | E23: 1 | F23: 1 | G23: 472 | I23: 0
A24: E9666-DNIT/PE | B24: Pá carregadeira sobre rodas, potência líquida 128 hp, capacidade da caçamba de 1,7 a 2,8 m³, peso operacional de 11.632 kg | C24: Carreta | D24: 1 | E24: 1 | F24: 2 | G24: 472 | I24: 0
A25: E9666-DNIT/PE | B25: Empilhadeira sobre pneus com torre de três estágios, 4,80 m de elevação, com deslocador lateral dos garfos, motor glp 2.4 l, capacidade nominal de carga de 2,5 t. | C25: Carreta | D25: 1 | E25: 1 | F25: 2 | G25: 472 | I25: 0
A26: E9666-DNIT/PE | B26: Escavadeira hidráulica sobre esteiras, caçamba 0,62 m³, peso operacional 12,61 t, potência líquida 95 hp. | C26: Carreta | D26: 1 | E26: 1 | F26: 2 | G26: 472 | I26: 0
A27: E9666-DNIT/PE | B27: Escavadeira hidráulica sobre esteiras, caçamba 0,80 m³, peso operacional 17 t, potência bruta 111 hp. | C27: Carreta | D27: 1 | E27: 1 | F27: 2 | G27: 472 | I27: 0
A28: E9686-DNIT/PE | B28: Grupo gerador de 4 KVA, 220v, trifásico, silenciado, com 100 metros de cabos e 01 QTA | C28: Guindauto | D28: 1 | E28: 1 | F28: 2 | G28: 472 | I28: 0
A29: E9686-DNIT/PE | B29: Grupo gerador de 10 KVA, 220v, trifásico, silenciado, com 100 metros de cabos e 01 QTA | C29: Guindauto | D29: 1 | E29: 1 | F29: 2 | G29: 472 | I29: 0
A30: E9686-DNIT/PE | B30: Grupo gerador, potência nominal 15 kVA (emergência), incluindo instalação, cabeamento, base de concreto e demais materiais necessários | C30: Guindauto | D30: 1 | E30: 1 | F30: 2 | G30: 472 | I30: 0
A31: E9686-DNIT/PE | B31: Grupo gerador de 15 kVA, 220V, trifásico, silenciado, com 100 metros de cabos e 01 QTA | C31: Guindauto | D31: 1 | E31: 1 | F31: 2 | G31: 472 | I31: 0
A32: E9666-DNIT/PE | B32: Motoniveladora com escarificador (potência básica líquida -primeira marcha- 125 hp , peso bruto 13.843 kg, largura da lâmina de 3,7 m) | C32: Carreta | D32: 1 | E32: 1 | F32: 2 | G32: 472 | I32: 0
A33: E9666-DNIT/PE | B33: Grupo Gerador-32,0 kVA, 220 V, trifásico, silenciado, com 100 metros de cabos e 01 QTA. | C33: Carreta | D33: 1 | E33: 1 | F33: 2 | G33: 472 | I33: 0
A34: E9666-DNIT/PE | B34: Motoniveladora com escarificador (potência básica líquida -primeira marcha- 125 hp , peso bruto 13.843 kg, largura da lâmina de 3,7 m) | C34: Carreta | D34: 1 | E34: 1 | F34: 2 | G34: 472 | I34: 0
A35: E9666-DNIT/PE | B35: Escavadeira hidráulica sobre esteiras, caçamba 0,62 m³, peso operacional 12,61 t, potência líquida 95 hp. | C35: Carreta | D35: 1 | E35: 1 | F35: 2 | G35: 472 | I35: 0
A36: E9666-DNIT/PE | B36: Trator de esteiras, potência de 150 hp, peso operacional de 16,7t, com roda motriz elevada e lâmina com contato de 3,18 m³. | C36: Carreta | D36: 1 | E36: 1 | F36: 2 | G36: 472 | I36: 0
A37: E9666-DNIT/PE | B37: Cavalo Mecânico com Reboque M. Benz Randon LS-1634/45 29,5 t, ou similar | C37: Carreta | D37: 1 | E37: 1 | F37: 2 | G37: 472 | I37: 0
A38: E9666-DNIT/PE | B38: Rolo compactador pé-de-carneiro vibratório, potência 125 hp, peso operacional sem/com lastro 11,95/13,30 t, impacto dinâmico 38,5/22,5 t, largura de trabalho 2,15 m. | C38: Carreta | D38: 1 | E38: 1 | F38: 2 | G38: 472 | I38: 0
A39: A9353-DNIT/PE | B39: Barco tipo Alumínio, 7 m de comprimento, Alumínio soldado, reforçado, borda sem corrimão, chapa de Alumínio 2,00 cm, boca 1,50 cm, borda 0,60 cm. / Motor popa, tipo partida manual, potência 15 hp, aplicação barco Alumínio, características adicionais: válvulas automáticas descompressão, refrigerado a ar, quantidade marchas 2 und, quantidade cilíndro 2 und, capacidade tanque 23 l, tipo motor: 2 tempos, velocidade: 4.500 a 5.800 rpm. | C39: Rodando | D39: 4 | E39: 1 | F39: 1 | G39: 472 | I39: 0
A41: SUB-TOTAL (R$): | I41: =SUM(I16:I39) -> 0
A43: MATERIAL
A44: CÓDIGO | B44: DESCRIÇÃO | C44: UNIDADE | D44: QUANTIDADE | H44: CUSTO UNIT. (R$) | I44: CUSTO TOTAL (R$)
A45: SINDUSCON/PE | B45: Alimentação (motorista que vai rodando) | C45: und | D45: =SUMIF(C16:C39,"RODANDO",D16:D39) -> 16 | I45: =ROUND(D45*H45,2) -> 0
A46: SINDUSCON/PE | B46: Alimentação (motorista que retorna) | C46: und | D46: =SUMIF(C16:C39,"CARRETA",D16:D39)+SUMIF(C16:C39,"REBOQUE",D16:D39)+SUMIF(C16:C39,"GUINDAUTO",D16:D39) -> 15 | I46: =ROUND(D46*H46,2) -> 0
A48: SUB-TOTAL (R$): | I48: =SUM(I45:I47) -> 0
A50: SERVIÇOS-COMPOSIÇÕES AUXILIARES
A51: CÓDIGO | B51: DESCRIÇÃO | C51: UNIDADE | D51: QUANTIDADE | H51: CUSTO UNIT. (R$) | I51: CUSTO TOTAL (R$)
A54: SUB-TOTAL (R$): | I54: =SUM(I52:I53) -> 0
A56: MÃO DE OBRA
A57: CÓDIGO | B57: DESCRIÇÃO | C57: UNIDADE | D57: QUANTIDADE | H57: CUSTO UNIT. (R$) | I57: CUSTO TOTAL (R$)
A60: SUB-TOTAL (R$): | I60: =SUM(I58:I59) -> 0
A62: PRODUÇÃO DA EQUIPE: | C62: 1 | D62: CUSTO (R$): | I62: =I41+I48+I54+I60 -> 0
A64: ="TOTAL-"&A9&"-(R$):" -> TOTAL-COMPOSIÇÃO DE PREÇO UNITÁRIO-MOBILIZAÇÃO-(R$): | I64: =ROUND(C62*I62,2) -> 0
A67: COMPOSIÇÃO DE PREÇO UNITÁRIO-MOBILIZAÇÃO
A68: Local / Canteiros: EIXO LESTE-Canteiro Lote 10 (Custódia/PE)
A70: Distância entre Recife/PE-Canteiro Lote 10 (km): | D70: =Canteiros!$H$17 -> 368 | E70: Veloc. Média (km/h): | I70: =I$12 -> 60
A72: EQUIPAMENTO
A73: CÓDIGO | B73: DESCRIÇÃO | C73: MEIO DE LOCOMOÇÃO | D73: QUANTIDADE | E73: FU | F73: K | G73: DMT (km) | H73: CHP (R$) | I73: CUSTO TOTAL (R$)
A74: E9592-DNIT/PE | B74: Caminhão Carroceria-de madeira, capacidade de carga 15,0 t | C74: Rodando | D74: 2 | E74: 1 | F74: 1 | G74: =$D$70 -> 368 | I74: =ROUND(D74*(((G74*F74*E74)/$I$12)*H74),2) -> 0
A75: E9579-DNIT/PE | B75: Caminhão basculante, capacidade de carga 15,0 t e volume 10,0 m³ | C75: Rodando | D75: 1 | E75: 1 | F75: 1 | G75: =$D$70 -> 368 | I75: 0
A76: E9506-DNIT/PE | B76: Caminhao basculante, capacidade de carga 9,0 t e volume 6,0 m³ | C76: Rodando | D76: 1 | E76: 1 | F76: 1 | G76: =$D$70 -> 368 | I76: 0
A77: E9592-DNIT/PE | B77: Caminhão Carroceria-de madeira, capacidade de carga 15,0 t | C77: Rodando | D77: 1 | E77: 1 | F77: 1 | G77: 368 | I77: 0
A78: E9686-DNIT/PE | B78: Caminhão guindauto com capacidade de carga até 10,0 t | C78: Rodando | D78: 1 | E78: 1 | F78: 1 | G78: 368 | I78: 0
A79: E9605-DNIT/PE | B79: Caminhão tanque, capacidade de volume 6000 l e potência 136,0 hp | C79: Rodando | D79: 1 | E79: 1 | F79: 1 | G79: 368 | I79: 0
A80: A9353-DNIT/PE | B80: Carreta Reboque (para embarcação) | C80: Rodando | D80: 4 | E80: 1 | F80: 1 | G80: 368 | I80: 0
A81: E9666-DNIT/PE | B81: Pá carregadeira sobre rodas, potência líquida 128 hp, capacidade da caçamba de 1,7 a 2,8 m³, peso operacional de 11.632 kg | C81: Carreta | D81: 1 | E81: 1 | F81: 2 | G81: 368 | I81: 0
A82: E9686-DNIT/PE | B82: Grupo gerador de 4 KVA, 220v, trifásico, silenciado, com 100 metros de cabos e 01 QTA | C82: Guindauto | D82: 1 | E82: 1 | F82: 2 | G82: 368 | I82: 0
A83: E9686-DNIT/PE | B83: Grupo gerador de 10 KVA, 220v, trifásico, silenciado, com 100 metros de cabos e 01 QTA | C83: Guindauto | D83: 1 | E83: 1 | F83: 2 | G83: 368 | I83: 0
A84: E9686-DNIT/PE | B84: Grupo gerador, potência nominal 15 kVA (emergência), incluindo instalação, cabeamento, base de concreto e demais materiais necessários | C84: Guindauto | D84: 1 | E84: 1 | F84: 2 | G84: 368 | I84: 0
A85: E9666-DNIT/PE | B85: Motoniveladora com escarificador (potência básica líquida -primeira marcha- 125 hp , peso bruto 13.843 kg, largura da lâmina de 3,7 m) | C85: Carreta | D85: 1 | E85: 1 | F85: 2 | G85: 368 | I85: 0
A86: E9666-DNIT/PE | B86: Rolo compactador pé-de-carneiro vibratório, potência 125 hp, peso operacional sem/com lastro 11,95/13,30 t, impacto dinâmico 38,5/22,5 t, largura de trabalho 2,15 m. | C86: Carreta | D86: 2 | E86: 1 | F86: 2 | G86: 368 | I86: 0
A87: A9353-DNIT/PE | B87: Barco tipo Alumínio, 7 m de comprimento, Alumínio soldado, reforçado, borda sem corrimão, chapa de Alumínio 2,00 cm, boca 1,50 cm, borda 0,60 cm. / Motor popa, tipo partida manual, potência 15 hp, aplicação barco Alumínio, características adicionais: válvulas automáticas descompressão, refrigerado a ar, quantidade marchas 2 und, quantidade cilíndro 2 und, capacidade tanque 23 l, tipo motor: 2 tempos, velocidade: 4.500 a 5.800 rpm. | C87: Rodando | D87: 4 | E87: 1 | F87: 1 | G87: 368 | I87: 0
A89: SUB-TOTAL (R$): | I89: =SUM(I74:I87) -> 0
A91: MATERIAL
A92: CÓDIGO | B92: DESCRIÇÃO | C92: UNIDADE | D92: QUANTIDADE | H92: CUSTO UNIT. (R$) | I92: CUSTO TOTAL (R$)
A93: SINDUSCON/PE | B93: Alimentação (motorista que vai rodando) | C93: und | D93: =SUMIF(C74:C87,"RODANDO",D74:D87) -> 15 | I93: =ROUND(D93*H93,2) -> 0
A94: SINDUSCON/PE | B94: Alimentação (motorista que retorna) | C94: und | D94: =SUMIF(C74:C87,"CARRETA",D74:D87)+SUMIF(C74:C87,"REBOQUE",D74:D87)+SUMIF(C74:C87,"GUINDAUTO",D74:D87) -> 7 | I94: =ROUND(D94*H94,2) -> 0
A96: SUB-TOTAL (R$): | I96: =SUM(I93:I95) -> 0
A98: SERVIÇOS-COMPOSIÇÕES AUXILIARES
A99: CÓDIGO | B99: DESCRIÇÃO | C99: UNIDADE | D99: QUANTIDADE | H99: CUSTO UNIT. (R$) | I99: CUSTO TOTAL (R$)
A102: SUB-TOTAL (R$): | I102: =SUM(I100:I101) -> 0
A104: MÃO DE OBRA
A105: CÓDIGO | B105: DESCRIÇÃO | C105: UNIDADE | D105: QUANTIDADE | H105: CUSTO UNIT. (R$) | I105: CUSTO TOTAL (R$)
A108: SUB-TOTAL (R$): | I108: =SUM(I106:I107) -> 0
A110: PRODUÇÃO DA EQUIPE: | C110: 1 | D110: CUSTO (R$): | I110: =I89+I96+I102+I108 -> 0
A112: ="TOTAL-"&A67&"-(R$):" -> TOTAL-COMPOSIÇÃO DE PREÇO UNITÁRIO-MOBILIZAÇÃO-(R$): | I112: =ROUND(C110*I110,2) -> 0
A115: COMPOSIÇÃO DE PREÇO UNITÁRIO-MOBILIZAÇÃO
A116: Local / Canteiros: EIXO LESTE-Canteiro Lote 12 (Sertânia/PE)
A118: Distância entre Recife/PE-Canteiro Lote 12 (km): | D118: =Canteiros!H21 -> 320 | E118: Veloc. Média (km/h): | I118: =$I$12 -> 60
A120: EQUIPAMENTO
A121: CÓDIGO | B121: DESCRIÇÃO | C121: MEIO DE LOCOMOÇÃO | D121: QUANTIDADE | E121: FU | F121: K | G121: DMT (km) | H121: CHP (R$) | I121: CUSTO TOTAL (R$)
A122: E9592-DNIT/PE | B122: Caminhão Carroceria-de madeira, capacidade de carga 15,0 t | C122: Rodando | D122: 2 | E122: 1 | F122: 1 | G122: =$D$118 -> 320 | I122: =D122*(((G122*F122*E122)/$I$12)*H122) -> 0
A123: E9579-DNIT/PE | B123: Caminhão basculante, capacidade de carga 15,0 t e volume 10,0 m³ | C123: Rodando | D123: 1 | E123: 1 | F123: 1 | G123: =$D$118 -> 320 | I123: 0
A124: E9506-DNIT/PE | B124: Caminhao basculante, capacidade de carga 9,0 t e volume 6,0 m³ | C124: Rodando | D124: 1 | E124: 1 | F124: 1 | G124: =$D$118 -> 320 | I124: 0
A125: E9592-DNIT/PE | B125: Caminhão Carroceria-de madeira, capacidade de carga 15,0 t | C125: Rodando | D125: 1 | E125: 1 | F125: 1 | G125: 320 | I125: 0
A126: E9686-DNIT/PE | B126: Caminhão guindauto com capacidade de carga até 10,0 t | C126: Rodando | D126: 1 | E126: 1 | F126: 1 | G126: 320 | I126: 0
A127: E9605-DNIT/PE | B127: Caminhão tanque, capacidade de volume 6000 l e potência 136,0 hp | C127: Rodando | D127: 1 | E127: 1 | F127: 1 | G127: 320 | I127: 0
A128: A9353-DNIT/PE | B128: Carreta Reboque (para embarcação) | C128: Rodando | D128: 4 | E128: 1 | F128: 1 | G128: 320 | I128: 0
A129: E9666-DNIT/PE | B129: Pá carregadeira sobre rodas, potência líquida 128 hp, capacidade da caçamba de 1,7 a 2,8 m³, peso operacional de 11.632 kg | C129: Carreta | D129: 1 | E129: 1 | F129: 2 | G129: 320 | I129: 0
A130: E9666-DNIT/PE | B130: Escavadeira hidráulica sobre esteiras, caçamba 0,80 m³, peso operacional 17 t, potência bruta 111 hp. | C130: Carreta | D130: 1 | E130: 1 | F130: 2 | G130: 320 | I130: 0
A131: E9686-DNIT/PE | B131: Grupo gerador de 4 KVA, 220v, trifásico, silenciado, com 100 metros de cabos e 01 QTA | C131: Guindauto | D131: 1 | E131: 1 | F131: 2 | G131: 320 | I131: 0
A132: E9686-DNIT/PE | B132: Grupo gerador de 10 KVA, 220v, trifásico, silenciado, com 100 metros de cabos e 01 QTA | C132: Guindauto | D132: 1 | E132: 1 | F132: 2 | G132: 320 | I132: 0
A133: E9686-DNIT/PE | B133: Grupo gerador, potência nominal 15 kVA (emergência), incluindo instalação, cabeamento, base de concreto e demais materiais necessários | C133: Guindauto | D133: 1 | E133: 1 | F133: 2 | G133: 320 | I133: 0
A134: E9686-DNIT/PE | B134: Locação de grupo gerador acima de 125 até 180 kVA, motor diesel, rebocável, acionamento manual | C134: Guindauto | D134: 1 | E134: 1 | F134: 2 | G134: 320 | I134: 0
A135: E9686-DNIT/PE | B135: Grupo gerador diesel, com carenagem, potência standart entre 250 e 260 kVA, velocidade de 1800 rpm, frequência de 60 Hz | C135: Guindauto | D135: 1 | E135: 1 | F135: 2 | G135: 320 | I135: 0
A136: E9686-DNIT/PE | B136: Minicarregadeira sobre rodas, potência líquida de 47 hp, capacidade nominal de operação de 646 kg | C136: Guindauto | D136: 2 | E136: 1 | F136: 2 | G136: 320 | I136: 0
A137: E9666-DNIT/PE | B137: Trator Agrícola para reboque de máquina roçadeira | C137: Carreta | D137: 1 | E137: 1 | F137: 2 | G137: 320 | I137: 0
A138: E9666-DNIT/PE | B138: Trator de esteiras, potência de 150 hp, peso operacional de 16,7 t, com roda motriz elevada e lâmina com contato de 3,18 m³. | C138: Carreta | D138: 1 | E138: 1 | F138: 2 | G138: 320 | I138: 0
A139: A9353-DNIT/PE | B139: Barco tipo Alumínio, 7 m de comprimento, Alumínio soldado, reforçado, borda sem corrimão, chapa de Alumínio 2,00 cm, boca 1,50 cm, borda 0,60 cm. / Motor popa, tipo partida manual, potência 15 hp, aplicação barco Alumínio, características adicionais: válvulas automáticas descompressão, refrigerado a ar, quantidade marchas 2 und, quantidade cilíndro 2 und, capacidade tanque 23 l, tipo motor: 2 tempos, velocidade: 4.500 a 5.800 rpm. | C139: Rodando | D139: 4 | E139: 1 | F139: 1 | G139: 320 | I139: 0
A141: SUB-TOTAL (R$): | I141: =SUM(I122:I139) -> 0
A143: MATERIAL
A144: CÓDIGO | B144: DESCRIÇÃO | C144: UNIDADE | D144: QUANTIDADE | H144: CUSTO UNIT. (R$) | I144: CUSTO TOTAL (R$)
A145: SINDUSCON/PE | B145: Alimentação (motorista que vai rodando) | C145: und | D145: =SUMIF(C122:C139,"RODANDO",D122:D139) -> 15 | I145: =D145*H145 -> 0
A146: SINDUSCON/PE | B146: Alimentação (motorista que retorna) | C146: und | D146: =SUMIF(C122:C139,"CARRETA",D122:D139)+SUMIF(C122:C139,"REBOQUE",D122:D139)+SUMIF(C122:C139,"GUINDAUTO",D122:D139) -> 11 | I146: =D146*H146 -> 0
A148: SUB-TOTAL (R$): | I148: =SUM(I145:I147) -> 0
A150: SERVIÇOS-COMPOSIÇÕES AUXILIARES
A151: CÓDIGO | B151: DESCRIÇÃO | C151: UNIDADE | D151: QUANTIDADE | H151: CUSTO UNIT. (R$) | I151: CUSTO TOTAL (R$)
A154: SUB-TOTAL (R$): | I154: =SUM(I152:I153) -> 0
A156: MÃO DE OBRA
A157: CÓDIGO | B157: DESCRIÇÃO | C157: UNIDADE | D157: QUANTIDADE | H157: CUSTO UNIT. (R$) | I157: CUSTO TOTAL (R$)
A160: SUB-TOTAL (R$): | I160: =SUM(I158:I159) -> 0
A162: PRODUÇÃO DA EQUIPE: | C162: 1 | D162: CUSTO (R$): | I162: =I141+I148+I154+I160 -> 0
A164: ="TOTAL-"&A115&"-(R$):" -> TOTAL-COMPOSIÇÃO DE PREÇO UNITÁRIO-MOBILIZAÇÃO-(R$): | I164: =ROUND(C162*I162,2) -> 0
A167: NOME DO INFORMANTE: | H167: QUALIFICAÇÃO:
A169: ASSINATURA: | H169: DATA:
A171: OBSERVAÇÃO:
A172: 1. Fonte de Preços: Sistemas de Custos Referenciais de Obras-DNIT/PE (Tabela SICRO/PE). Data base: Abril/2019.
A173: 2. Para o Cálculo do Custo da Mobilização foi utilizada a metodologia do DNIT/PE.
A174: 3. Distância considerada a partir da capital mais próxima ao canteiro
A180: Código | B180: Descrição | C180: R$/h
A181: E9592-DNIT/PE | B181: Caminhão carroceria com capacidade de 15 t-188 kW | C181: 151.7799
A182: E9579-DNIT/PE | B182: Caminhão basculante com capacidade de 10 m³-188 kW | C182: 153.7891
A183: E9506-DNIT/PE | B183: Caminhão basculante com capacidade de 6 m³-136 kW | C183: 107.3732
A184: E9509-DNIT/PE | B184: Caminhão tanque distribuidor de asfalto com capacidade de 6.000 l-7 kW/136 kW | C184: 155.9826
A185: E9686-DNIT/PE | B185: Caminhão carroceria com guindauto com capacidade de 20 t.m-136 kW | C185: 179.2911
A186: E9605-DNIT/PE | B186: Caminhão tanque com capacidade de 6.000 l-136 kW | C186: 149.4898
A187: A9353-DNIT/PE | B187: Semirreboque com 2 eixos | C187: 24.0721
A188: E9666-DNIT/PE | B188: Cavalo mecânico com semirreboque com capacidade de 30 t-265 kW | C188: 229.3884
A189: SINDUSCON/PE | B189: Alimentação (motorista que vai rodando)-Convenção Coletiva de Trabalho 2019-2021-SINDUSCON/PE (Cláusula 14ª) | C189: =2*9.32 -> 18.64

Sheet CPU_DESMOBILIZAZAO
A1: Ministério do Desenvolvimento Regional - MDR
A2: Companhia de Desenvolvimento dos Vales do São Francisco e do Parnaíba
A3: Gerência de Operação do PISF - Centro de Controle e Operação (AD / GOI / CCO)
A5: SERVIÇOS DE OPERAÇÃO E MANUTENÇÃO DAS INFRAESTRUTURAS DO EIXO LESTE DO PROJETO DE INTEGRAÇÃO DO RIO SÃO FRANCISCO COM AS BACIAS HIDROGRÁFICAS DO NORDESTE SETENTRIONAL – PISF
A9: COMPOSIÇÃO DE PREÇO UNITÁRIO - DESMOBILIZAÇÃO
A10: Local / Canteiros: EIXO LESTE - Canteiro Lote 9 (Floresta/PE)
A12: Distância entre Recife/PE - Canteiro Lote 9 (km): | D12: =Canteiros!H13 -> 472 | E12: Veloc. Média (km/h): | I12: 60
A14: EQUIPAMENTO
A15: CÓDIGO | B15: DISCRIMINAÇÃO | C15: MEIO DE LOCOMOÇÃO | D15: QUANTIDADE | E15: FU | F15: K | G15: DMT (km) | H15: CHP (R$) | I15: CUSTO TOTAL (R$)
A16: E9592-DNIT/PE | B16: Caminhão Carroceria - de madeira, capacidade de carga 15,0 t | C16: Rodando | D16: 2 | E16: 1 | F16: 1 | G16: =$D$12 -> 472 | I16: =ROUND(D16*(((G16*F16*E16)/$I$12)*H16),2) -> 0
A17: E9579-DNIT/PE | B17: Caminhão basculante, capacidade de carga 15,0 t e volume 10,0 m³ | C17: Rodando | D17: 1 | E17: 1 | F17: 1 | G17: =$D$12 -> 472 | I17: 0
A18: E9506-DNIT/PE | B18: Caminhao basculante, capacidade de carga 9,0 t e volume 6,0 m³ | C18: Rodando | D18: 1 | E18: 1 | F18: 1 | G18: 472 | I18: 0
A19: E9592-DNIT/PE | B19: Caminhão Carroceria - de madeira, capacidade de carga 15,0 t | C19: Rodando | D19: 1 | E19: 1 | F19: 1 | G19: 472 | I19: 0
A20: E9509-DNIT/PE | B20: Caminhão Comboio para lubrificação e abastecimento (melosa), convencional totalmente equipado (Capacidade de Combustível: 5.000 l, Capacidade de Lubrificante: 500 l, Capacidade de Graxa: 200 kg, Capacidade de Água: 300 l, Recipiente para Óleo Usado: 200 l, Compressor de Ar e Bomba- d’agua) | C20: Rodando | D20: 1 | E20: 1 | F20: 1 | G20: 472 | I20: 0
A21: E9686-DNIT/PE | B21: Caminhão guindauto com capacidade de carga até 10,0 t | C21: Rodando | D21: 1 | E21: 1 | F21: 1 | G21: 472 | I21: 0
A22: E9605-DNIT/PE | B22: Caminhão tanque, capacidade de volume 6000 l e potência 136,0 hp | C22: Rodando | D22: 1 | E22: 1 | F22: 1 | G22: 472 | I22: 0
A23: A9353-DNIT/PE | B23: Carreta Reboque (para embarcação) | C23: Rodando | D23: 4 | E23: 1 | F23: 1 | G23: 472 | I23: 0
A24: E9666-DNIT/PE | B24: Pá carregadeira sobre rodas, potência líquida 128 hp, capacidade da caçamba de 1,7 a 2,8 m³, peso operacional de 11.632 kg | C24: Carreta | D24: 1 | E24: 1 | F24: 2 | G24: 472 | I24: 0
A25: E9666-DNIT/PE | B25: Empilhadeira sobre pneus com torre de três estágios, 4,80 m de elevação, com deslocador lateral dos garfos, motor glp 2.4 l, capacidade nominal de carga de 2,5 t | C25: Carreta | D25: 1 | E25: 1 | F25: 2 | G25: 472 | I25: 0
A26: E9666-DNIT/PE | B26: Escavadeira hidráulica sobre esteiras, caçamba 0,62 m³, peso operacional 12,61 t, potência líquida 95 hp | C26: Carreta | D26: 1 | E26: 1 | F26: 2 | G26: 472 | I26: 0
A27: E9666-DNIT/PE | B27: Escavadeira hidráulica sobre esteiras, caçamba 0,80 m³, peso operacional 17 t, potência bruta 111 hp | C27: Carreta | D27: 1 | E27: 1 | F27: 2 | G27: 472 | I27: 0
A28: E9686-DNIT/PE | B28: Grupo gerador de 4 KVA, 220v, trifásico, silenciado, com 100 metros de cabos e 01 QTA | C28: Guindauto | D28: 1 | E28: 1 | F28: 2 | G28: 472 | I28: 0
A29: E9686-DNIT/PE | B29: Grupo gerador de 10 KVA, 220v, trifásico, silenciado, com 100 metros de cabos e 01 QTA | C29: Guindauto | D29: 1 | E29: 1 | F29: 2 | G29: 472 | I29: 0
A30: E9686-DNIT/PE | B30: Grupo gerador, potência nominal 15 kVA (emergência), incluindo instalação, cabeamento, base de concreto e demais materiais necessários | C30: Guindauto | D30: 1 | E30: 1 | F30: 2 | G30: 472 | I30: 0
A31: E9686-DNIT/PE | B31: Grupo gerador de 15 kVA, 220V, trifásico, silenciado, com 100 metros de cabos e 01 QTA | C31: Guindauto | D31: 1 | E31: 1 | F31: 2 | G31: 472 | I31: 0
A32: E9666-DNIT/PE | B32: Motoniveladora com escarificador (potência básica líquida -primeira marcha- 125 hp , peso bruto 13.843 kg, largura da lâmina de 3,7 m) | C32: Carreta | D32: 1 | E32: 1 | F32: 2 | G32: 472 | I32: 0
A33: E9666-DNIT/PE | B33: Grupo Gerador - 32,0 kVA, 220 V, trifásico, silenciado, com 100 metros de cabos e 01 QTA | C33: Carreta | D33: 1 | E33: 1 | F33: 2 | G33: 472 | I33: 0
A34: E9666-DNIT/PE | B34: Motoniveladora com escarificador (potência básica líquida -primeira marcha- 125 hp , peso bruto 13.843 kg, largura da lâmina de 3,7 m) | C34: Carreta | D34: 1 | E34: 1 | F34: 2 | G34: 472 | I34: 0
A35: E9666-DNIT/PE | B35: Escavadeira hidráulica sobre esteiras, caçamba 0,62 m³, peso operacional 12,61 t, potência líquida 95 hp | C35: Carreta | D35: 1 | E35: 1 | F35: 2 | G35: 472 | I35: 0
A36: E9666-DNIT/PE | B36: Trator de esteiras, potência de 150 hp, peso operacional de 16,7t, com roda motriz elevada e lâmina com contato de 3,18 m³ | C36: Carreta | D36: 1 | E36: 1 | F36: 2 | G36: 472 | I36: 0
A37: E9666-DNIT/PE | B37: Cavalo Mecânico com Reboque M. Benz Randon LS-1634/45 29,5 t, ou similar | C37: Carreta | D37: 1 | E37: 1 | F37: 2 | G37: 472 | I37: 0
A38: E9666-DNIT/PE | B38: Rolo compactador pé-de-carneiro vibratório, potência 125 hp, peso operacional sem/com lastro 11,95/13,30 t, impacto dinâmico 38,5/22,5 t, largura de trabalho 2,15 m | C38: Carreta | D38: 1 | E38: 1 | F38: 2 | G38: 472 | I38: 0
A39: A9353-DNIT/PE | B39: Barco tipo Alumínio, 7 m de comprimento, Alumínio soldado, reforçado, borda sem corrimão, chapa de Alumínio 2,00 cm, boca 1,50 cm, borda 0,60 cm. / Motor popa, tipo partida manual, potência 15 hp, aplicação barco Alumínio, características adicionais: válvulas automáticas descompressão, refrigerado a ar, quantidade marchas 2 und, quantidade cilíndro 2 und, capacidade tanque 23 l, tipo motor: 2 tempos, velocidade: 4.500 a 5.800 rpm | C39: Rodando | D39: 4 | E39: 1 | F39: 1 | G39: 472 | I39: 0
A41: SUB-TOTAL (R$): | I41: =SUM(I16:I39) -> 0
A43: MATERIAL
A44: CÓDIGO | B44: DISCRIMINAÇÃO | C44: UNIDADE | D44: QUANTIDADE | H44: CUSTO UNIT. (R$) | I44: CUSTO TOTAL (R$)
A45: SINDUSCON/PE | B45: Alimentação (motorista que vai rodando) | C45: und | D45: =SUMIF(C16:C39,"RODANDO",D16:D39) -> 16 | I45: =ROUND(D45*H45,2) -> 0
A46: SINDUSCON/PE | B46: Alimentação (motorista que retorna) | C46: und | D46: =SUMIF(C16:C39,"CARRETA",D16:D39)+SUMIF(C16:C39,"REBOQUE",D16:D39)+SUMIF(C16:C39,"GUINDAUTO",D16:D39) -> 15 | I46: =ROUND(D46*H46,2) -> 0
A48: SUB-TOTAL (R$): | I48: =SUM(I45:I47) -> 0
A50: SERVIÇOS - COMPOSIÇÕES AUXILIARES
A51: CÓDIGO | B51: DISCRIMINAÇÃO | C51: UNIDADE | D51: QUANTIDADE | H51: CUSTO UNIT. (R$) | I51: CUSTO TOTAL (R$)
A54: SUB-TOTAL (R$): | I54: =SUM(I52:I53) -> 0
A56: MÃO DE OBRA
A57: CÓDIGO | B57: DISCRIMINAÇÃO | C57: UNIDADE | D57: QUANTIDADE | H57: CUSTO UNIT. (R$) | I57: CUSTO TOTAL (R$)
A60: SUB-TOTAL (R$): | I60: =SUM(I58:I59) -> 0
A62: PRODUÇÃO DA EQUIPE | C62: 1 | D62: CUSTO (R$): | I62: =I41+I48+I54+I60 -> 0
A64: ="TOTAL - "&A9&" - (R$):" -> TOTAL - COMPOSIÇÃO DE PREÇO UNITÁRIO - DESMOBILIZAÇÃO - (R$): | I64: =ROUND(C62*I62,2) -> 0
A67: COMPOSIÇÃO DE PREÇO UNITÁRIO - DESMOBILIZAÇÃO
A68: Local / Canteiros: EIXO LESTE - Canteiro Lote 10 (Custódia/PE)
A70: Distância entre Recife/PE - Canteiro Lote 10 (km): | D70: =Canteiros!H17 -> 368 | E70: Veloc. Média (km/h): | I70: =$I$12 -> 60
A72: EQUIPAMENTO
A73: CÓDIGO | B73: DISCRIMINAÇÃO | C73: MEIO DE LOCOMOÇÃO | D73: QUANTIDADE | E73: FU | F73: K | G73: DMT (km) | H73: CHP (R$) | I73: CUSTO TOTAL (R$)
A74: E9592-DNIT/PE | B74: Caminhão Carroceria - de madeira, capacidade de carga 15,0 t | C74: Rodando | D74: 2 | E74: 1 | F74: 1 | G74: =$D$70 -> 368 | I74: =ROUND(D74*(((G74*F74*E74)/$I$12)*H74),2) -> 0
A75: E9579-DNIT/PE | B75: Caminhão basculante, capacidade de carga 15,0 t e volume 10,0 m³ | C75: Rodando | D75: 1 | E75: 1 | F75: 1 | G75: =$D$70 -> 368 | I75: 0
A76: E9506-DNIT/PE | B76: Caminhao basculante, capacidade de carga 9,0 t e volume 6,0 m³ | C76: Rodando | D76: 1 | E76: 1 | F76: 1 | G76: =$D$70 -> 368 | I76: 0
A77: E9592-DNIT/PE | B77: Caminhão Carroceria - de madeira, capacidade de carga 15,0 t | C77: Rodando | D77: 1 | E77: 1 | F77: 1 | G77: 368 | I77: 0
A78: E9686-DNIT/PE | B78: Caminhão guindauto com capacidade de carga até 10,0 t | C78: Rodando | D78: 1 | E78: 1 | F78: 1 | G78: 368 | I78: 0
A79: E9605-DNIT/PE | B79: Caminhão tanque, capacidade de volume 6000 l e potência 136,0 hp | C79: Rodando | D79: 1 | E79: 1 | F79: 1 | G79: 368 | I79: 0
A80: A9353-DNIT/PE | B80: Carreta Reboque (para embarcação) | C80: Rodando | D80: 4 | E80: 1 | F80: 1 | G80: 368 | I80: 0
A81: E9666-DNIT/PE | B81: Pá carregadeira sobre rodas, potência líquida 128 hp, capacidade da caçamba de 1,7 a 2,8 m³, peso operacional de 11.632 kg | C81: Carreta | D81: 1 | E81: 1 | F81: 2 | G81: 368 | I81: 0
A82: E9686-DNIT/PE | B82: Grupo gerador de 4 KVA, 220v, trifásico, silenciado, com 100 metros de cabos e 01 QTA | C82: Guindauto | D82: 1 | E82: 1 | F82: 2 | G82: 368 | I82: 0
A83: E9686-DNIT/PE | B83: Grupo gerador de 10 KVA, 220v, trifásico, silenciado, com 100 metros de cabos e 01 QTA | C83: Guindauto | D83: 1 | E83: 1 | F83: 2 | G83: 368 | I83: 0
A84: E9686-DNIT/PE | B84: Grupo gerador, potência nominal 15 kVA (emergência), incluindo instalação, cabeamento, base de concreto e demais materiais necessários | C84: Guindauto | D84: 1 | E84: 1 | F84: 2 | G84: 368 | I84: 0
A85: E9666-DNIT/PE | B85: Motoniveladora com escarificador (potência básica líquida -primeira marcha- 125 hp , peso bruto 13.843 kg, largura da lâmina de 3,7 m) | C85: Carreta | D85: 1 | E85: 1 | F85: 2 | G85: 368 | I85: 0
A86: E9666-DNIT/PE | B86: Rolo compactador pé-de-carneiro vibratório, potência 125 hp, peso operacional sem/com lastro 11,95/13,30 t, impacto dinâmico 38,5/22,5 t, largura de trabalho 2,15 m | C86: Carreta | D86: 2 | E86: 1 | F86: 2 | G86: 368 | I86: 0
A87: A9353-DNIT/PE | B87: Barco tipo Alumínio, 7 m de comprimento, Alumínio soldado, reforçado, borda sem corrimão, chapa de Alumínio 2,00 cm, boca 1,50 cm, borda 0,60 cm. / Motor popa, tipo partida manual, potência 15 hp, aplicação barco Alumínio, características adicionais: válvulas automáticas descompressão, refrigerado a ar, quantidade marchas 2 und, quantidade cilíndro 2 und, capacidade tanque 23 l, tipo motor: 2 tempos, velocidade: 4.500 a 5.800 rpm | C87: Rodando | D87: 4 | E87: 1 | F87: 1 | G87: 368 | I87: 0
A89: SUB-TOTAL (R$): | I89: =SUM(I74:I87) -> 0
A91: MATERIAL
A92: CÓDIGO | B92: DISCRIMINAÇÃO | C92: UNIDADE | D92: QUANTIDADE | H92: CUSTO UNIT. (R$) | I92: CUSTO TOTAL (R$)
A93: SINDUSCON/PE | B93: Alimentação (motorista que vai rodando) | C93: und | D93: =SUMIF(C74:C87,"RODANDO",D74:D87) -> 15 | I93: =ROUND(D93*H93,2) -> 0
A94: SINDUSCON/PE | B94: Alimentação (motorista que retorna) | C94: und | D94: =SUMIF(C74:C87,"CARRETA",D74:D87)+SUMIF(C74:C87,"REBOQUE",D74:D87)+SUMIF(C74:C87,"GUINDAUTO",D74:D87) -> 7 | I94: =ROUND(D94*H94,2) -> 0
A96: SUB-TOTAL (R$): | I96: =SUM(I93:I95) -> 0
A98: SERVIÇOS - COMPOSIÇÕES AUXILIARES
A99: CÓDIGO | B99: DISCRIMINAÇÃO | C99: UNIDADE | D99: QUANTIDADE | H99: CUSTO UNIT. (R$) | I99: CUSTO TOTAL (R$)
A102: SUB-TOTAL (R$): | I102: =SUM(I100:I101) -> 0
A104: MÃO DE OBRA
A105: CÓDIGO | B105: DISCRIMINAÇÃO | C105: UNIDADE | D105: QUANTIDADE | H105: CUSTO UNIT. (R$) | I105: CUSTO TOTAL (R$)
A108: SUB-TOTAL (R$): | I108: =SUM(I106:I107) -> 0
A110: PRODUÇÃO DA EQUIPE | C110: 1 | D110: CUSTO (R$): | I110: =I89+I96+I102+I108 -> 0
A112: ="TOTAL - "&A67&" - (R$):" -> TOTAL - COMPOSIÇÃO DE PREÇO UNITÁRIO - DESMOBILIZAÇÃO - (R$): | I112: =ROUND(C110*I110,2) -> 0
A115: COMPOSIÇÃO DE PREÇO UNITÁRIO - DESMOBILIZAÇÃO
A116: Local / Canteiros: EIXO LESTE - Canteiro Lote 12 (Sertânia/PE)
A118: Distância entre Recife/PE - Canteiro Lote 12 (km): | D118: =Canteiros!H21 -> 320 | E118: Veloc. Média (km/h): | I118: =$I$12 -> 60
A120: EQUIPAMENTO
A121: CÓDIGO | B121: DISCRIMINAÇÃO | C121: MEIO DE LOCOMOÇÃO | D121: QUANTIDADE | E121: FU | F121: K | G121: DMT (km) | H121: CHP (R$) | I121: CUSTO TOTAL (R$)
A122: E9592-DNIT/PE | B122: Caminhão Carroceria - de madeira, capacidade de carga 15,0 t | C122: Rodando | D122: 2 | E122: 1 | F122: 1 | G122: =$D$118 -> 320 | I122: =ROUND(D122*(((G122*F122*E122)/$I$12)*H122),2) -> 0
A123: E9579-DNIT/PE | B123: Caminhão basculante, capacidade de carga 15,0 t e volume 10,0 m³ | C123: Rodando | D123: 1 | E123: 1 | F123: 1 | G123: =$D$118 -> 320 | I123: 0
A124: E9506-DNIT/PE | B124: Caminhao basculante, capacidade de carga 9,0 t e volume 6,0 m³ | C124: Rodando | D124: 1 | E124: 1 | F124: 1 | G124: =$D$118 -> 320 | I124: 0
A125: E9592-DNIT/PE | B125: Caminhão Carroceria - de madeira, capacidade de carga 15,0 t | C125: Rodando | D125: 1 | E125: 1 | F125: 1 | G125: 320 | I125: 0
A126: E9686-DNIT/PE | B126: Caminhão guindauto com capacidade de carga até 10,0 t | C126: Rodando | D126: 1 | E126: 1 | F126: 1 | G126: 320 | I126: 0
A127: E9605-DNIT/PE | B127: Caminhão tanque, capacidade de volume 6000 l e potência 136,0 hp | C127: Rodando | D127: 1 | E127: 1 | F127: 1 | G127: 320 | I127: 0
A128: A9353-DNIT/PE | B128: Carreta Reboque (para embarcação) | C128: Rodando | D128: 4 | E128: 1 | F128: 1 | G128: 320 | I128: 0
A129: E9666-DNIT/PE | B129: Pá carregadeira sobre rodas, potência líquida 128 hp, capacidade da caçamba de 1,7 a 2,8 m³, peso operacional de 11.632 kg | C129: Carreta | D129: 1 | E129: 1 | F129: 2 | G129: 320 | I129: 0
A130: E9666-DNIT/PE | B130: Escavadeira hidráulica sobre esteiras, caçamba 0,80 m³, peso operacional 17 t, potência bruta 111 hp | C130: Carreta | D130: 1 | E130: 1 | F130: 2 | G130: 320 | I130: 0
A131: E9686-DNIT/PE | B131: Grupo gerador de 4 KVA, 220v, trifásico, silenciado, com 100 metros de cabos e 01 QTA | C131: Guindauto | D131: 1 | E131: 1 | F131: 2 | G131: 320 | I131: 0
A132: E9686-DNIT/PE | B132: Grupo gerador de 10 KVA, 220v, trifásico, silenciado, com 100 metros de cabos e 01 QTA | C132: Guindauto | D132: 1 | E132: 1 | F132: 2 | G132: 320 | I132: 0
A133: E9686-DNIT/PE | B133: Grupo gerador, potência nominal 15 kVA (emergência), incluindo instalação, cabeamento, base de concreto e demais materiais necessários | C133: Guindauto | D133: 1 | E133: 1 | F133: 2 | G133: 320 | I133: 0
A134: E9686-DNIT/PE | B134: Locação de grupo gerador acima de 125 até 180 kVA, motor diesel, rebocável, acionamento manual | C134: Guindauto | D134: 1 | E134: 1 | F134: 2 | G134: 320 | I134: 0
A135: E9686-DNIT/PE | B135: Grupo gerador diesel, com carenagem, potência standart entre 250 e 260 kVA, velocidade de 1800 rpm, frequência de 60 Hz | C135: Guindauto | D135: 1 | E135: 1 | F135: 2 | G135: 320 | I135: 0
A136: E9686-DNIT/PE | B136: Minicarregadeira sobre rodas, potência líquida de 47 hp, capacidade nominal de operação de 646 kg | C136: Guindauto | D136: 2 | E136: 1 | F136: 2 | G136: 320 | I136: 0
A137: E9666-DNIT/PE | B137: Trator Agrícola para reboque de máquina roçadeira | C137: Carreta | D137: 1 | E137: 1 | F137: 2 | G137: 320 | I137: 0
A138: E9666-DNIT/PE | B138: Trator de esteiras, potência de 150 hp, peso operacional de 16,7 t, com roda motriz elevada e lâmina com contato de 3,18 m³ | C138: Carreta | D138: 1 | E138: 1 | F138: 2 | G138: 320 | I138: 0
A139: A9353-DNIT/PE | B139: Barco tipo Alumínio, 7 m de comprimento, Alumínio soldado, reforçado, borda sem corrimão, chapa de Alumínio 2,00 cm, boca 1,50 cm, borda 0,60 cm. / Motor popa, tipo partida manual, potência 15 hp, aplicação barco Alumínio, características adicionais: válvulas automáticas descompressão, refrigerado a ar, quantidade marchas 2 und, quantidade cilíndro 2 und, capacidade tanque 23 l, tipo motor: 2 tempos, velocidade: 4.500 a 5.800 rpm | C139: Rodando | D139: 4 | E139: 1 | F139: 1 | G139: 320 | I139: 0
A141: SUB-TOTAL (R$): | I141: =SUM(I122:I139) -> 0
A143: MATERIAL
A144: CÓDIGO | B144: DISCRIMINAÇÃO | C144: UNIDADE | D144: QUANTIDADE | H144: CUSTO UNIT. (R$) | I144: CUSTO TOTAL (R$)
A145: SINDUSCON/PE | B145: Alimentação (motorista que vai rodando) | C145: und | D145: =SUMIF(C122:C139,"RODANDO",D122:D139) -> 15 | I145: =ROUND(D145*H145,2) -> 0
A146: SINDUSCON/PE | B146: Alimentação (motorista que retorna) | C146: und | D146: =SUMIF(C122:C139,"CARRETA",D122:D139)+SUMIF(C122:C139,"REBOQUE",D122:D139)+SUMIF(C122:C139,"GUINDAUTO",D122:D139) -> 11 | I146: =ROUND(D146*H146,2) -> 0
A148: SUB-TOTAL (R$): | I148: =SUM(I145:I147) -> 0
A150: SERVIÇOS - COMPOSIÇÕES AUXILIARES
A151: CÓDIGO | B151: DISCRIMINAÇÃO | C151: UNIDADE | D151: QUANTIDADE | H151: CUSTO UNIT. (R$) | I151: CUSTO TOTAL (R$)
A154: SUB-TOTAL (R$): | I154: =SUM(I152:I153) -> 0
A156: MÃO DE OBRA
A157: CÓDIGO | B157: DISCRIMINAÇÃO | C157: UNIDADE | D157: QUANTIDADE | H157: CUSTO UNIT. (R$) | I157: CUSTO TOTAL (R$)
A160: SUB-TOTAL (R$): | I160: =SUM(I158:I159) -> 0
A162: PRODUÇÃO DA EQUIPE | C162: 1 | D162: CUSTO (R$): | I162: =I141+I148+I154+I160 -> 0
A164: ="TOTAL - "&A115&" - (R$):" -> TOTAL - COMPOSIÇÃO DE PREÇO UNITÁRIO - DESMOBILIZAÇÃO - (R$): | I164: =ROUND(C162*I162,2) -> 0
A167: NOME DO INFORMANTE: | H167: QUALIFICAÇÃO:
A169: ASSINATURA: | H169: DATA:
A171: OBSERVAÇÃO:
A172: 1. Fonte de Preços: Sistemas de Custos Referenciais de Obras-DNIT/PE (Tabela SICRO/PE). Data base: Abril/2019.
A173: 2. Para o Cálculo do Custo da Mobilização foi utilizada a metodologia do DNIT/PE.
A174: 3. Distância considerada a partir da capital mais próxima ao canteiro

Sheet Canteiros
C1: Ministério do Desenvolvimento Regional - MDR
C2: Companhia de Desenvolvimento dos Vales do São Francisco e do Parnaíba
C3: Gerência de Operação do PISF - Centro de Controle e Operação (AD / GOI / CCO)
A5: SERVIÇOS DE OPERAÇÃO E MANUTENÇÃO DAS INFRAESTRUTURAS DO EIXO LESTE DO PROJETO DE INTEGRAÇÃO DO RIO SÃO FRANCISCO COM AS BACIAS HIDROGRÁFICAS DO NORDESTE SETENTRIONAL – PISF
A8: CANTEIROS - INFORMAÇÕES COMPLEMENTARES
A11: ITEM | B11: CANTEIRO | C11: COORDENADAS (SAD69) | D11: TRECHO | E11: RESERVATÓRIOS | F11: ESTAÇÕES DE BOMBEAMENTO | G11: LOCALIZAÇÃO
G12: CAPITAL MAIS PRÓXIMA | H12: DIST. ATÉ CAPITAL (km)
A13: 1 | B13: Lote 09 (Floresta/PE) | C13: Leste: 572780, Norte: 9030684 | D13: Trecho 1 - Do reservatório de Itaparica até o Reservatório Salgueiro | E13: Areias | F13: EBV-1 | G13: Recife / PE | H13: 472
E14: Braúnas | F14: EBV-2
E15: Mandantes | F15: EBV-3
E16: Salgueiro
A17: 2 | B17: Lote 10 (Custódia/PE) | C17: Leste: 628932, Norte: 9076044 | D17: . Trecho 2 - Do Reservatório Salgueiro até Reservatório Copiti. | E17: Muquem | F17: EBV-4 | G17: Recife / PE | H17: 368
E18: Cacimba Nova
E19: Bagres
E20: Copiti
A21: 3 | B21: Lote 12 (Sertânia/PE) | C21: Leste: 690429, Norte: 9108941 | D21: Trecho 3 - De Reservatório Copiti até Monteiro/PB. | E21: Moxotó | F21: EBV-5 | G21: Recife / PE | H21: 320
E22: Barreiro | F22: EBV-6
E23: Campos
E24: Barro Branco
E25: Monteiro
A28: NOME DO INFORMANTE: | G28: QUALIFICAÇÃO:
A30: ASSINATURA: | G30: DATA:
A32: OBSERVAÇAO:

Sheet Reforma_Canteiros
C1: Ministério do Desenvolvimento Regional - MDR
C2: Companhia de Desenvolvimento dos Vales do São Francisco e do Parnaíba
C3: Gerência de Operação do PISF - Centro de Controle e Operação (AD / GOI / CCO)
A5: SERVIÇOS DE OPERAÇÃO E MANUTENÇÃO DAS INFRAESTRUTURAS DO EIXO LESTE DO PROJETO DE INTEGRAÇÃO DO RIO SÃO FRANCISCO COM AS BACIAS HIDROGRÁFICAS DO NORDESTE SETENTRIONAL – PISF
A8: REFORMA DOS CANTEIROS
A11: ITEM | B11: CÓDIGO | C11: CANTEIRO | D11: UNIDADE | E11: QUANTIDADE | F11: VALOR (R$)
F12: UNITARIO | G12: TOTAL
C13: =A8 -> REFORMA DOS CANTEIROS
A15: 1 | C15: REFORMA DO CANTEIRO DO LOTE 09 (FLOPRESTA/PE)
A16: 1.1 | B16: 93206-SINAPI/PE* | C16: Escritório 1 | D16: m² | E16: 174.06 | G16: =ROUND(E16*F16,2) -> 0
A17: 1.2 | B17: 93206-SINAPI/PE* | C17: Escritório 2 | D17: m² | E17: 276.75 | G17: =ROUND(E17*F17,2) -> 0
A18: 1.3 | B18: 93585-SINAPI/PE* | C18: Guarita | D18: m² | E18: 57.29 | G18: 0
A19: 1.4 | B19: 93213-SINAPI/PE* | C19: Vestiário e sanitário | D19: m² | E19: 108.24 | G19: 0
A20: 1.5 | B20: 93211-SINAPI/PE* | C20: Cozinha e refeitório/Auditório | D20: m² | E20: 427.68 | G20: 0
A21: 1.6 | B21: 93213-SINAPI/PE* | C21: Lazer (área de convivência) | D21: m² | E21: 142.21 | G21: 0
A22: 1.7 | B22: 93209-SINAPI/PE* | C22: Almoxarifado | D22: m² | E22: 264.96 | G22: 0
A23: 1.8 | B23: 93582-SINAPI/PE* | C23: Central de armação | D23: m² | E23: 702.74 | G23: 0
A24: ="TOTAL - "&C15&" - (R$):" -> TOTAL - REFORMA DO CANTEIRO DO LOTE 09 (FLOPRESTA/PE) - (R$): | G24: =SUBTOTAL(9,G15:G23) -> 0
A26: 2. | C26: REFORMA DO CANTEIRO DO LOTE 10 (CUSTÓDIA/PE)
A27: 2.1 | B27: 93206-SINAPI/PE | C27: Escritório 1 | D27: m² | E27: 255.16 | G27: =ROUND(E27*F27,2) -> 0
A28: 2.2 | B28: 93206-SINAPI/PE | C28: Escritório 2 | D28: m² | E28: 297.08 | G28: 0
A29: 2.3 | B29: 93585-SINAPI/PE* | C29: Guarita | D29: m² | E29: 12.46 | G29: 0
A30: 2.4 | B30: 93213-SINAPI/PE | C30: Vestiário e sanitário | D30: m² | E30: 268.64 | G30: 0
A31: 2.5 | B31: 93211-SINAPI/PE | C31: Cozinha e refeitório/Auditório | D31: m² | E31: 1477.66 | G31: 0
A32: 2.6 | B32: 93213-SINAPI/PE* | C32: Lazer (área de convivência) | D32: m² | E32: 350 | G32: 0
A33: 2.7 | B33: 93209-SINAPI/PE* | C33: Almoxarifado | D33: m² | E33: 456.2 | G33: 0
A34: 2.8 | B34: 93582-SINAPI/PE* | C34: Central de armação | D34: m² | E34: 663.82 | G34: 0
A35: 2.9 | B35: 93206-SINAPI/PE | C35: Centro de Saúde | D35: m² | E35: 53.72 | G35: 0
A36: ="TOTAL - "&C26&" - (R$):" -> TOTAL - REFORMA DO CANTEIRO DO LOTE 10 (CUSTÓDIA/PE) - (R$): | G36: =SUBTOTAL(9,G26:G35) -> 0
A38: 3. | C38: REFORMA DO CANTEIRO DO LOTE 12 (SERTÂNIA/PE)
A39: 3.1 | B39: 93206-SINAPI/PE* | C39: Escritório 1 | D39: m² | E39: 285.33 | G39: =ROUND(E39*F39,2) -> 0
A40: 3.2 | B40: 93206-SINAPI/PE* | C40: Escritório 2 | D40: m² | E40: 323.2 | G40: 0
A41: 3.3 | B41: 93585-SINAPI/PE* | C41: Guarita | D41: m² | E41: 9.9 | G41: 0
A42: 3.4 | B42: 93213-SINAPI/PE* | C42: Vestiário e sanitário | D42: m² | E42: 616.98 | G42: 0
A43: 3.5 | B43: 93211-SINAPI/PE* | C43: Cozinha e refeitório/Auditório | D43: m² | E43: 690.8 | G43: 0
A44: 3.6 | B44: 93213-SINAPI/PE* | C44: Lazer (área de convivência) | D44: m² | E44: 58.76 | G44: 0
A45: 3.7 | B45: 93209-SINAPI/PE* | C45: Almoxarifado | D45: m² | E45: 229.35 | G45: 0
A46: 3.8 | B46: 93582-SINAPI/PE* | C46: Central de armação | D46: m² | E46: 216.72 | G46: 0
A47: 3.9 | B47: 93206-SINAPI/PE* | C47: Centro de Saúde | D47: m² | E47: 53.72 | G47: 0
A48: ="TOTAL - "&C38&" - (R$):" -> TOTAL - REFORMA DO CANTEIRO DO LOTE 12 (SERTÂNIA/PE) - (R$): | G48: =SUBTOTAL(9,G38:G47) -> 0
A50: ="TOTAL - "&C13&" - (R$):" -> TOTAL - REFORMA DOS CANTEIROS - (R$): | G50: =SUBTOTAL(9,G15:G49) -> 0
A53: ="RESUMO - "&A8 -> RESUMO - REFORMA DOS CANTEIROS
A54: ITEM | C54: DESCRIÇÃO | F54: VALOR TOTAL (R$)
A55: 1 | C55: =C15 -> REFORMA DO CANTEIRO DO LOTE 09 (FLOPRESTA/PE) | F55: =G24 -> 0
A56: 2 | C56: =C26 -> REFORMA DO CANTEIRO DO LOTE 10 (CUSTÓDIA/PE) | F56: =G36 -> 0
A57: 3 | C57: =C38 -> REFORMA DO CANTEIRO DO LOTE 12 (SERTÂNIA/PE) | F57: =G48 -> 0
A58: ="TOTAL GERAL - "&A53&" - (R$):" -> TOTAL GERAL - RESUMO - REFORMA DOS CANTEIROS - (R$): | F58: =SUM(F55:G57) -> 0
A61: NOME DO INFORMANTE: | F61: QUALIFICAÇÃO:
A63: ASSINATURA: | F63: DATA:
A65: OBSERVAÇÃO:
A66: 1. Fonte de Preços Sistema Nacional de Pesquisa de Custos e Índices da Construção (Tabela SINAPI/PE). Data base: Setembro/2019.
A67: 2. Para os serviços que não são codificados pela Tabela SINAPI, foi adotado valor de serviços similares.
A68: 3. Foi considerada reconstrução dos escritórios, vestiários e sanitários do canteiro de Custódia/PE
A69: 4. Para os casos de reconstrução, foi adotado o valor de referência integral da Tabela SINAPI/PE.
A70: 5. Para os casos de reforma, foi adotado o percentual de 25% do valor integral da Tabela SINAPI/PE.
A71: 6. A reforma dos escritórios inclui toda a parte civil e instalações prediais, inclusive serviços e fornecimento de material.
B76: Código | C76: Descrição | D76: R$
D77: 1 | E77: 0.25
B78: 93206-SINAPI/PE | C78: EXECUÇÃO DE ESCRITÓRIO EM CANTEIRO DE OBRA EM ALVENARIA, NÃO INCLUSO MOBILIÁRIO E EQUIPAMENTOS. AF_02/2016 | D78: 793.66 | E78: =ROUND(D78*E$77,2) -> 198.42
B79: 93585-SINAPI/PE | C79: EXECUÇÃO DE GUARITA EM CANTEIRO DE OBRA EM CHAPA DE MADEIRA COMPENSADA, NÃO INCLUSO MOBILIÁRIO. AF_04/2016 | D79: 687.44 | E79: 171.86
B80: 93213-SINAPI/PE | C80: EXECUÇÃO DE SANITÁRIO E VESTIÁRIO EM CANTEIRO DE OBRA EM ALVENARIA, NÃO INCLUSO MOBILIÁRIO. AF_02/2016 | D80: 738.13 | E80: 184.53
B81: 93211-SINAPI/PE | C81: EXECUÇÃO DE REFEITÓRIO EM CANTEIRO DE OBRA EM ALVENARIA, NÃO INCLUSO MOBILIÁRIO E EQUIPAMENTOS. AF_02/2016 | D81: 404.27 | E81: 101.07
B82: 93209-SINAPI/PE | C82: EXECUÇÃO DE ALMOXARIFADO EM CANTEIRO DE OBRA EM ALVENARIA, INCLUSO PRATELEIRAS. AF_02/2016 | D82: 656.1 | E82: 164.03
B83: 93582-SINAPI/PE | C83: EXECUÇÃO DE CENTRAL DE ARMADURA EM CANTEIRO DE OBRA, NÃO INCLUSO MOBILIÁRIO E EQUIPAMENTOS. AF_04/2016 | D83: 187.93 | E83: 46.98

Sheet Moveis_Equipamentos
C1: Ministério do Desenvolvimento Regional -MDR
C2: Companhia de Desenvolvimento dos Vales do São Francisco e do Parnaíba
C3: Gerência de Operação do PISF-Centro de Controle e Operação (AD / GOI / CCO)
A5: SERVIÇOS DE OPERAÇÃO E MANUTENÇÃO DAS INFRAESTRUTURAS DO EIXO LESTE DO PROJETO DE INTEGRAÇÃO DO RIO SÃO FRANCISCO COM AS BACIAS HIDROGRÁFICAS DO NORDESTE SETENTRIONAL – PISF
A8: MOBILIÁRIO E EQUIPAMENTOS DE ESCRITÓRIO
A11: ITEM | B11: CÓDIGO | C11: DESCRIÇÃO | D11: UNIDADE | E11: QUANTIDADE | F11: VALOR (R$)
F12: UNITARIO | G12: TOTAL
A13: 1. | C13: MOBILIÁRIO E EQUIPAMENTOS DE ESCRTÓRIO
A14: 1.1 | B14: E209300236-EMBASA/BA | C14: Aluguel de impressora colorida-Laser com cartuchos-formatos A4 e A3 (inclusive suprimentos) | D14: un x mês | E14: =3*12+5*3*12 -> 216 | G14: =ROUND(E14*F14,2) -> 0
A15: 1.2 | B15: I8612-SEINFRA/CE | C15: Aluguel de Plotter (inclusive suprimentos) | D15: un x mês | E15: =3*12 -> 36 | G15: =ROUND(E15*F15,2) -> 0
A16: 1.3 | B16: I2677-SEINFRA/CE | C16: Servidor para backup | D16: un | E16: =3*12 -> 36 | G16: 0
A17: 1.4 | B17: 3671-ORSE/SE | C17: Desktop com software-tipo 1 (i7, 1T, 8GB, monitor 19", S.O. Windows 10 e Office última versão) | D17: un | E17: =(44+29) -> 73 | G17: 0
A18: 1.5 | B18: I6395-SEINFRA/CE | C18: Notebook-tipo 1 (i7, 1T, 8GB, S.O. Windows 10 e Office última versão) | D18: um | E18: =(3+6+7) -> 16 | G18: 0
A19: 1.6 | B19: P.17.000.042561-CPOS/SP | C19: Antena externa | D19: un | E19: 1 | G19: 0
A20: 1.7 | B20: AP_JANTAR | C20: Aparelho de jantar para 06 pessoas | D20: un | E20: 20 | G20: 0
A21: 1.8 | B21: I0122-SEINFRA/CE | C21: Armário de cozinha completo | D21: un | E21: 3 | G21: 0
A22: 1.9 | B22: I0123-SEINFRA/CE | C22: Armário de escritório | D22: un | E22: 11 | G22: 0
A23: 1.10 | B23: 11645-ORSE/SE | C23: Armário para vestiário, em aço, com 12 portas, com cadeado | D23: un | E23: 3 | G23: 0
A24: 1.11 | B24: 73.72.07-SUDECAP/MG | C24: Bebedouro industrial (canteiro) | D24: un | E24: 4 | G24: 0
A25: 1.12 | B25: 11534-ORSE/SE | C25: Cadeira giratória, com braço, tipo executiva | D25: un | E25: 89 | G25: 0
A26: 1.13 | B26: 11543-ORSE | C26: Cadeira de plástico sem braço, cor branca | D26: un | E26: 15 | G26: 0
A27: 1.14 | B27: COT_CAMA_BOX | C27: Cama box solteiro | D27: un | E27: 25 | G27: 0
A28: 1.15 | B28: COT_CAM_FOTO | C28: Câmera fotográfica digital | D28: un | E28: 3 | G28: 0
A29: 1.16 | B29: DV_16-CAERN/RN | C29: Carrinhos de lixo | D29: un | E29: 7 | G29: 0
A30: 1.17 | B30: 040117-SBC/PE | C30: Cestos de lixo | D30: un | E30: 12 | G30: 0
A31: 1.18 | B31: COT_CHAP | C31: Chapa gás para grelhar | D31: un | E31: 4 | G31: 0
A32: 1.19 | B32: 621-ORSE/SE | C32: Coifa | D32: un | E32: 4 | G32: 0
A33: 1.20 | B33: 39555-SINAPI/PE | C33: Condicionador de ar 12.000 BTU | D33: un | E33: 15 | G33: 0
A34: 1.21 | B34: COT_MES_06 | C34: Conjunto de Mesa com 06 lugares (para cozinha) | D34: un | E34: 4 | G34: 0
A35: 1.22 | B35: COT_UTENS | C35: Conjunto de utensílios para cozinha | D35: conj. | E35: 3 | G35: 0
A36: 1.23 | B36: COT_FAQUEI | C36: Faqueiro com 24 peças | D36: un | E36: 17 | G36: 0
A37: 1.24 | B37: 10231-ORSE/SE | C37: Fogão | D37: un | E37: 3 | G37: 0
A38: 1.25 | B38: 78052-SIURB/SP | C38: Fogão industrial 6 bocas | D38: un | E38: 3 | G38: 0
A39: 1.26 | B39: COT_FORNO | C39: Forno elétrico | D39: un | E39: 3 | G39: 0
A40: 1.27 | B40: COT_MICROOND | C40: Forno Microondas | D40: un | E40: 3 | G40: 0
A41: 1.28 | B41: F020000719-EMBASA/BA | C41: Freezer 246 l | D41: un | E41: 1 | G41: 0
A42: 1.29 | B42: 029028-IOPES | C42: Cilindro de Gás de Cozinha 45 kg | D42: un | E42: =2*3+1 -> 7 | G42: =ROUND(E42*F42,2) -> 0
A43: 1.30 | B43: 4226-SINAPI/PE | C43: Gás de cozinha-GLP | D43: kg | E43: =E42*45*12 -> 3780 | G43: 0
A44: 1.31 | B44: F020000716-EMBASA/BA | C44: Geladeira 280 litros | D44: un | E44: 3 | G44: 0
A45: 1.32 | B45: 10232-ORSE/SE | C45: Geladeira industrial 300 litros | D45: un | E45: 3 | G45: 0
A46: 1.33 | B46: COT_GPS | C46: GPS com cabo e software (conforme especificação) | D46: un | E46: 3 | G46: 0
A47: 1.34 | B47: COT_GUARDA_ROUPA | C47: Guarda-Roupa 4 Portas | D47: un | E47: 2 | G47: 0
A48: 1.35 | B48: COT_COPO | C48: Conjunto copos em vidro com 8 unidades | D48: un | E48: 50 | G48: 0
A49: 1.36 | B49: COT_PANEL | C49: Conjunto de panelas com 7 peças | D49: un | E49: 4 | G49: 0
A50: 1.37 | B50: COT_ROUPA_BANHO | C50: Jogo de Roupa de banho 5 Peças | D50: un | E50: =E27 -> 25 | G50: 0
A51: 1.38 | B51: COT_ROUPA_CAMA | C51: Jogo de roupa de cama solteiro | D51: un | E51: =E$27*2 -> 50 | G51: 0
A52: 1.39 | B52: COT_SOFA | C52: Conjunto de sofá 2 e 3 lugares | D52: un | E52: 5 | G52: 0
A53: 1.40 | B53: COT_LIQUID | C53: Liquidificadores industriais | D53: un | E53: 4 | G53: 0
A54: 1.41 | B54: COT_MAQ_LAVA_LOUCA | C54: Máquina de lavar louças industrial | D54: un | E54: 3 | G54: 0
A55: 1.42 | B55: COT_MAQ_LAVA_ROUPA | C55: Máquina de Lavar roupa 11kg | D55: un | E55: 3 | G55: 0
A56: 1.43 | B56: COT_MESA_BUF | C56: Mesa buffets | D56: un | E56: 5 | G56: 0
A57: 1.44 | B57: COT_MESA_REFEIT | C57: Mesa de refeitório 10 lugares com cadeiras | D57: un | E57: 20 | G57: 0
A58: 1.45 | B58: COT_MESA_REUN | C58: Mesa de reunião 10 lugares com 10 cadeiras | D58: un | E58: 3 | G58: 0
A59: 1.46 | B59: COT_MESA_PVC | C59: Mesa retangular em PVC | D59: un | E59: 3 | G59: 0
A60: 1.47 | B60: COT_MESA_ESCR | C60: Mesas de escritório com gavetas (conforme especificação) | D60: un | E60: 89 | G60: 0
A61: 1.48 | B61: COT_PRATO | C61: Pratos rasos | D61: un | E61: 300 | G61: 0
A62: 1.49 | B62: F030000293-EMBASA/BA | C62: Projetor multimídia (Datashow) | D62: un | E62: 3 | G62: 0
A63: 1.50 | B63: COT_RACK | C63: Rack (sala) | D63: un | E63: 3 | G63: 0
A64: 1.51 | B64: COT_REFRESQUEIRA | C64: Refresqueira | D64: un | E64: 4 | G64: 0
A65: 1.52 | B65: COT_TABUA | C65: Tábuas para carnes | D65: un | E65: 4 | G65: 0
A66: 1.53 | B66: COT_TELEVISOR | C66: Televisor LCD com 27,5" | D66: un | E66: 3 | G66: 0
A67: ="TOTAL-"&C13&"-(R$):" -> TOTAL-MOBILIÁRIO E EQUIPAMENTOS DE ESCRTÓRIO-(R$): | G67: =SUBTOTAL(9,G13:G66) -> 0
A70: ="RESUMO-"&A$8 -> RESUMO-MOBILIÁRIO E EQUIPAMENTOS DE ESCRITÓRIO
A71: ITEM | C71: DESCRIÇÃO | F71: VALOR TOTAL (R$)
A72: 1 | C72: =C13 -> MOBILIÁRIO E EQUIPAMENTOS DE ESCRTÓRIO | F72: =G67 -> 0
A73: ="TOTAL GERAL-"&A70&"- (R$):" -> TOTAL GERAL-RESUMO-MOBILIÁRIO E EQUIPAMENTOS DE ESCRITÓRIO- (R$): | F73: =SUM(F72:G72) -> 0
A76: NOME DO INFORMANTE: | F76: QUALIFICAÇÃO:
A78: ASSINATURA: | F78: DATA:
A80: OBSERVAÇÃO:
A81: 1. Fonte de Preços: - Sistema Nacional de Pesquisa de Custos e Índices da Construção (Tabela SINAPI/PE). Data base: Setembro/2019. - Empresa Baiana de Águas e Saneamento S.A. (Tabela de preços EMBASA). Data base: 06/2017. - Secretaria da Infraestrutura do Estado do Ceará (Tabela 026 SEINFRA/CE). Data base: 12/2018. - Sistema de Orçamento de Obras de Sergipe (ORSE). Data base: 09/2019. - Companhia Paulista de Obras e Serviços (Boletim Referencial de Custos CPOS). Data base: 07/2019 - Superintendência de Desenvolvimento da Capital-Prefeitura de Belo Horizonte (Tabela de Preços SUDECAP/MG). Data base: 08/2019. - Companhia de Águas e Esgotos do Rio Grande do Norte (Tabela de Preços CAERN/RN). Data base: 05/2019. - Sistemas e Consultoria de Custos (Base de Dados SBC/PE). Data base: 11/2019. - Instituto de Obras Públicas do Estado do Espírito Santo (Tabela REferencial de Preços IOPES/ES). Data base: 07/2019.
B98: Código | C98: Descrição | D98: Unid. | E98: R$/unit
B99: E209300236-EMBASA/BA | C99: Aluguel de impressora colorida-Laser com cartuchos-formatos A4 e A3 | D99: un x mês | E99: 225.08
B100: E209300236-EMBASA/BA | C100: Aluguel de impressora colorida-Laser com cartuchos-formatos A4 e A3 | D100: un x mês | E100: 225.08
B101: I8612-SEINFRA/CE | C101: Aluguel de Plotter | D101: un x mês | E101: 320
B102: I2677-SEINFRA/CE | C102: Servidor para backup | D102: un | E102: 3652
B103: 3671-ORSE/SE | C103: Desktop com software-tipo 1 (i7, 1T, 8GB, monitor 19", S.O. Windows 10 e Office última versão) | D103: un | E103: 2505.11
B104: I6395-SEINFRA/CE | C104: Notebook-tipo 1 (i7, 1T, 8GB, S.O. Windows 10 e Office última versão) | D104: un | E104: 2343.44
B105: P.17.000.042561-CPOS/SP | C105: Antena externa | D105: un | E105: 326.55
B106: AP_JANTAR | C106: Aparelho de jantar para 06 pessoas | D106: un | E106: 199.97
B107: I0122-SEINFRA/CE | C107: Armário de cozinha completo | D107: un | E107: 499
B108: I0123-SEINFRA/CE | C108: Armário de escritório | D108: un | E108: 195.33
B109: 11645-ORSE/SE | C109: Armário para vestiário, em aço, com 12 portas, com cadeado | D109: un | E109: 1726.59
B110: 73.72.07-SUDECAP/MG | C110: Bebedouro industrial (canteiro) | D110: un | E110: 997.4
B111: 11534-ORSE/SE | C111: Cadeira giratória, com braço, tipo executiva | D111: un | E111: 280
B112: 11543-ORSE | C112: Cadeira de plástico sem braço, cor branca | D112: un | E112: 21
B113: COT_CAMA_BOX | C113: Cama box solteiro | D113: un | E113: 279.3
B114: COT_CAM_FOTO | C114: Câmera fotográfica digital | D114: un | E114: 1835.21
B115: DV_16-CAERN/RN | C115: Carrinhos de lixo | D115: un | E115: 429.02
B116: 040117-SBC/PE | C116: Cestos de lixo | D116: un | E116: 96
B117: COT_CHAP | C117: Chapa gás para grelhar | D117: un | E117: 674.1866667
B118: 621-ORSE/SE | C118: Coifa | D118: un | E118: 1679.3
B119: 39555-SINAPI/PE | C119: Condicionador de ar 12.000 BTU | D119: un | E119: 1629.96
B120: COT_COPO | C120: Conjunto copos em vidro com 8 unidades | D120: un | E120: 31.32333333
B121: COT_MES_06 | C121: Conjunto de Mesa com 06 lugares (para cozinha) | D121: un | E121: 550.63
B122: COT_PANEL | C122: Conjunto de panelas com 7 peças | D122: un | E122: 235.9633333
B123: COT_SOFA | C123: Conjunto de sofá 2 e 3 lugares | D123: un | E123: 495.6666667
B124: COT_UTENS | C124: Conjunto de utensílios para cozinha | D124: conj. | E124: 55.15333333
B125: COT_FAQUEI | C125: Faqueiro com 24 peças | D125: un | E125: 45.61333333
B126: 10231-ORSE/SE | C126: Fogão | D126: un | E126: 591.87
B127: 78052-SIURB/SP | C127: Fogão industrial 6 bocas | D127: un | E127: 1797.94
B128: COT_FORNO | C128: Forno elétrico | D128: un | E128: 1670.613333
B129: COT_MICROOND | C129: Forno Microondas | D129: un | E129: 469
B130: F020000719-EMBASA/BA | C130: Freezer 246 l | D130: un | E130: 1183.99
B131: 029028-IOPES | C131: Cilindro de Gás de Cozinha 45 kg | D131: un | E131: 535.17
B132: 4226-SINAPI/PE | C132: Gás de cozinha-GLP | D132: kg | E132: 4.97
B133: F020000716-EMBASA/BA | C133: Geladeira 280 litros | D133: un | E133: 789.33
B134: 10232-ORSE/SE | C134: Geladeira industrial 300 litros | D134: un | E134: 1616.1
B135: COT_GPS | C135: GPS com cabo e software (conforme especificação) | D135: un | E135: 321.97
B136: COT_GUARDA_ROUPA | C136: Guarda-Roupa 4 Portas | D136: un | E136: 287.2633333
B137: COT_ROUPA_BANHO | C137: Jogo de Roupa de banho 5 Peças | D137: un | E137: 96.62666667
B138: COT_ROUPA_CAMA | C138: Jogo de roupa de cama solteiro | D138: un | E138: 147.6333333
B139: COT_LIQUID | C139: Liquidificadores industriais | D139: un | E139: 616.1733333
B140: COT_MAQ_LAVA_LOUCA | C140: Máquina de lavar louças industrial | D140: um | E140: 1050
B141: COT_MAQ_LAVA_ROUPA | C141: Máquina de Lavar roupa 11kg | D141: un | E141: 1450.073333
B142: COT_MESA_BUF | C142: Mesa buffets | D142: un | E142: 1577.703333
B143: COT_MESA_REFEIT | C143: Mesa de refeitório 10 lugares com cadeiras | D143: un | E143: 1280.48
B144: COT_MESA_REUN | C144: Mesa de reunião 10 lugares com 10 cadeiras | D144: un | E144: 3669.743333
B145: COT_MESA_PVC | C145: Mesa retangular em PVC | D145: un | E145: 187.995
B146: COT_MESA_ESCR | C146: Mesas de escritório com gavetas (conforme especificação) | D146: un | E146: 390.9633333
B147: COT_PRATO | C147: Pratos rasos | D147: un | E147: 6.73
B148: F030000293-EMBASA/BA | C148: Projetor multimídia (Datashow) | D148: un | E148: 1270.25
B149: COT_RACK | C149: Rack (sala) | D149: un | E149: 210.3
B150: COT_REFRESQUEIRA | C150: Refresqueira | D150: un | E150: 1606.88
B151: COT_TABUA | C151: Tábuas para carnes | D151: un | E151: 91.59666667
B152: COT_TELEVISOR | C152: Televisor LCD com 27,5" | D152: un | E152: 913.4833333

Sheet Mao_de_Obra
C1: Ministério do Desenvolvimento Regional - MDR
C2: Companhia de Desenvolvimento dos Vales do São Francisco e do Parnaíba
C3: Gerência de Operação do PISF - Centro de Controle e Operação (AD / GOI / CCO)
A5: SERVIÇOS DE OPERAÇÃO E MANUTENÇÃO DAS INFRAESTRUTURAS DO EIXO LESTE DO PROJETO DE INTEGRAÇÃO DO RIO SÃO FRANCISCO COM AS BACIAS HIDROGRÁFICAS DO NORDESTE SETENTRIONAL – PISF
A8: EQUIPE - MÃO DE OBRA
A11: ITEM | B11: CÓDIGO | C11: DESCRIÇÃO | D11: UNIDADE | E11: QUANTIDADE | F11: VALOR (R$)
F12: UNITARIO | G12: TOTAL
A13: 1. | C13: =A8 -> EQUIPE - MÃO DE OBRA
A14: 1.1 | B14: =VLOOKUP(C14,'Mao_de_Obra (Total)'!B$15:C$108,2,FALSE) -> P0 | C14: Coordenador - Engenheiro Sênior (Civil / Eletricista / Mecânico) - Esp. Manutenção Sist Abast/Ger | D14: homem x mês | E14: =SUMIF('Mao_de_Obra (Total)'!B$14:B$109,C14,'Mao_de_Obra (Total)'!F$14:F$109) -> 12 | G14: =ROUND(E14*F14,2) -> 0
A15: 1.2 | B15: =VLOOKUP(C15,'Mao_de_Obra (Total)'!B$15:C$108,2,FALSE) -> A1 | C15: Assistente Administrativo | D15: homem x mês | E15: =SUMIF('Mao_de_Obra (Total)'!B$14:B$109,C15,'Mao_de_Obra (Total)'!F$14:F$109) -> 12 | G15: 0
A16: 1.3 | B16: =VLOOKUP(C16,'Mao_de_Obra (Total)'!B$15:C$108,2,FALSE) -> A3 | C16: Auxiliar Administrativo | D16: homem x mês | E16: =SUMIF('Mao_de_Obra (Total)'!B$14:B$109,C16,'Mao_de_Obra (Total)'!F$14:F$109) -> 48 | G16: 0
A17: 1.4 | B17: =VLOOKUP(C17,'Mao_de_Obra (Total)'!B$15:C$108,2,FALSE) -> P1 | C17: Coordenador Operação - Engenheiro Sênior (Civil / Eletricista / Mecânico) - Esp. Manutenção Sist Abast/Ger | D17: homem x mês | E17: =SUMIF('Mao_de_Obra (Total)'!B$14:B$109,C17,'Mao_de_Obra (Total)'!F$14:F$109) -> 12 | G17: 0
A18: 1.5 | B18: =VLOOKUP(C18,'Mao_de_Obra (Total)'!B$15:C$108,2,FALSE) -> P1 | C18: Coordenador Manutenção - Engenheiro Sênior (Civil / Eletricista / Mecânico) - Esp. Manutenção Sist Abast/Ger | D18: homem x mês | E18: =SUMIF('Mao_de_Obra (Total)'!B$14:B$109,C18,'Mao_de_Obra (Total)'!F$14:F$109) -> 12 | G18: 0
A19: 1.6 | B19: =VLOOKUP(C19,'Mao_de_Obra (Total)'!B$15:C$108,2,FALSE) -> AS | C19: Coordenador - Chefe de Escritório | D19: homem x mês | E19: =SUMIF('Mao_de_Obra (Total)'!B$14:B$109,C19,'Mao_de_Obra (Total)'!F$14:F$109) -> 12 | G19: 0
A20: 1.7 | B20: =VLOOKUP(C20,'Mao_de_Obra (Total)'!B$15:C$108,2,FALSE) -> T1 | C20: Técnico Pleno - Analista em Tecnologia da Informação | D20: homem x mês | E20: =SUMIF('Mao_de_Obra (Total)'!B$14:B$109,C20,'Mao_de_Obra (Total)'!F$14:F$109) -> 12 | G20: 0
A21: 1.8 | B21: =VLOOKUP(C21,'Mao_de_Obra (Total)'!B$15:C$108,2,FALSE) -> A3 | C21: Motorista | D21: homem x mês | E21: =SUMIF('Mao_de_Obra (Total)'!B$14:B$109,C21,'Mao_de_Obra (Total)'!F$14:F$109) -> 60 | G21: 0
A22: 1.9 | B22: =VLOOKUP(C22,'Mao_de_Obra (Total)'!B$15:C$108,2,FALSE) -> A1 | C22: Almoxarife | D22: homem x mês | E22: =SUMIF('Mao_de_Obra (Total)'!B$14:B$109,C22,'Mao_de_Obra (Total)'!F$14:F$109) -> 12 | G22: 0
A23: 1.10 | B23: =VLOOKUP(C23,'Mao_de_Obra (Total)'!B$15:C$108,2,FALSE) -> A3 | C23: Auxiliar de Almoxarifado | D23: homem x mês | E23: =SUMIF('Mao_de_Obra (Total)'!B$14:B$109,C23,'Mao_de_Obra (Total)'!F$14:F$109) -> 36 | G23: 0
A24: 1.11 | B24: =VLOOKUP(C24,'Mao_de_Obra (Total)'!B$15:C$108,2,FALSE) -> A4 | C24: Servente | D24: homem x mês | E24: =SUMIF('Mao_de_Obra (Total)'!B$14:B$109,C24,'Mao_de_Obra (Total)'!F$14:F$109) -> 144 | G24: 0
A25: 1.12 | B25: =VLOOKUP(C25,'Mao_de_Obra (Total)'!B$15:C$108,2,FALSE) -> P1 | C25: Engenheiro de Segurança e Medicina do Trabalho | D25: homem x mês | E25: =SUMIF('Mao_de_Obra (Total)'!B$14:B$109,C25,'Mao_de_Obra (Total)'!F$14:F$109) -> 12 | G25: 0
A26: 1.13 | B26: =VLOOKUP(C26,'Mao_de_Obra (Total)'!B$15:C$108,2,FALSE) -> T2 | C26: Técnico de Segurança e Medicina do Trabalho | D26: homem x mês | E26: =SUMIF('Mao_de_Obra (Total)'!B$14:B$109,C26,'Mao_de_Obra (Total)'!F$14:F$109) -> 24 | G26: 0
A27: 1.14 | B27: =VLOOKUP(C27,'Mao_de_Obra (Total)'!B$15:C$108,2,FALSE) -> P1 | C27: Médico do Trabalho | D27: homem x mês | E27: =SUMIF('Mao_de_Obra (Total)'!B$14:B$109,C27,'Mao_de_Obra (Total)'!F$14:F$109) -> 12 | G27: 0
A28: 1.15 | B28: =VLOOKUP(C28,'Mao_de_Obra (Total)'!B$15:C$108,2,FALSE) -> P1 | C28: Engenheiro Pleno - Civil - Especialista em Hidráulica | D28: homem x mês | E28: =SUMIF('Mao_de_Obra (Total)'!B$14:B$109,C28,'Mao_de_Obra (Total)'!F$14:F$109) -> 12 | G28: 0
A29: 1.16 | B29: =VLOOKUP(C29,'Mao_de_Obra (Total)'!B$15:C$108,2,FALSE) -> P1 | C29: Engenheiro Pleno - Civil - Especialista em Hidrologia | D29: homem x mês | E29: =SUMIF('Mao_de_Obra (Total)'!B$14:B$109,C29,'Mao_de_Obra (Total)'!F$14:F$109) -> 12 | G29: 0
A30: 1.17 | B30: =VLOOKUP(C30,'Mao_de_Obra (Total)'!B$15:C$108,2,FALSE) -> P3 | C30: Engenheiro Junior - Civil | D30: homem x mês | E30: =SUMIF('Mao_de_Obra (Total)'!B$14:B$109,C30,'Mao_de_Obra (Total)'!F$14:F$109) -> 12 | G30: 0
A31: 1.18 | B31: =VLOOKUP(C31,'Mao_de_Obra (Total)'!B$15:C$108,2,FALSE) -> P1 | C31: Engenheiro Pleno - Eletricista | D31: homem x mês | E31: =SUMIF('Mao_de_Obra (Total)'!B$14:B$109,C31,'Mao_de_Obra (Total)'!F$14:F$109) -> 12 | G31: 0
A32: 1.19 | B32: =VLOOKUP(C32,'Mao_de_Obra (Total)'!B$15:C$108,2,FALSE) -> P1 | C32: Engenheiro Pleno - Eletricista - Especialista em Equipamentos e Sistemas Elétricos | D32: homem x mês | E32: =SUMIF('Mao_de_Obra (Total)'!B$14:B$109,C32,'Mao_de_Obra (Total)'!F$14:F$109) -> 12 | G32: 0
A33: 1.20 | B33: =VLOOKUP(C33,'Mao_de_Obra (Total)'!B$15:C$108,2,FALSE) -> P1 | C33: Engenheiro Pleno - Eletricista - Especialista em Subestação Pátio, L. Transmissão e L. Distribuição | D33: homem x mês | E33: =SUMIF('Mao_de_Obra (Total)'!B$14:B$109,C33,'Mao_de_Obra (Total)'!F$14:F$109) -> 12 | G33: 0
A34: 1.21 | B34: =VLOOKUP(C34,'Mao_de_Obra (Total)'!B$15:C$108,2,FALSE) -> P1 | C34: Engenheiro Pleno - Eletricista - Especialista em Sistema de Proteção, Controle e Supervisão (SPCS) | D34: homem x mês | E34: =SUMIF('Mao_de_Obra (Total)'!B$14:B$109,C34,'Mao_de_Obra (Total)'!F$14:F$109) -> 12 | G34: 0
A35: 1.22 | B35: =VLOOKUP(C35,'Mao_de_Obra (Total)'!B$15:C$108,2,FALSE) -> P1 | C35: Engenheiro Pleno - Mecânico | D35: homem x mês | E35: =SUMIF('Mao_de_Obra (Total)'!B$14:B$109,C35,'Mao_de_Obra (Total)'!F$14:F$109) -> 12 | G35: 0
A36: 1.23 | B36: =VLOOKUP(C36,'Mao_de_Obra (Total)'!B$15:C$108,2,FALSE) -> P1 | C36: Engenheiro Pleno - Civil | D36: homem x mês | E36: =SUMIF('Mao_de_Obra (Total)'!B$14:B$109,C36,'Mao_de_Obra (Total)'!F$14:F$109) -> 12 | G36: 0
A37: 1.24 | B37: =VLOOKUP(C37,'Mao_de_Obra (Total)'!B$15:C$108,2,FALSE) -> P1 | C37: Engenheiro Pleno - Mecatrônica - Especialista em Automação | D37: homem x mês | E37: =SUMIF('Mao_de_Obra (Total)'!B$14:B$109,C37,'Mao_de_Obra (Total)'!F$14:F$109) -> 12 | G37: 0
A38: 1.25 | B38: =VLOOKUP(C38,'Mao_de_Obra (Total)'!B$15:C$108,2,FALSE) -> P1 | C38: Engenheiro Pleno - Telecomunicações | D38: homem x mês | E38: =SUMIF('Mao_de_Obra (Total)'!B$14:B$109,C38,'Mao_de_Obra (Total)'!F$14:F$109) -> 12 | G38: 0
A39: 1.26 | B39: =VLOOKUP(C39,'Mao_de_Obra (Total)'!B$15:C$108,2,FALSE) -> T1 | C39: Técnico Pleno - Manutenção Elétrica - Especialista em Equipamentos e Sistemas Elétricos | D39: homem x mês | E39: =SUMIF('Mao_de_Obra (Total)'!B$14:B$109,C39,'Mao_de_Obra (Total)'!F$14:F$109) -> 12 | G39: 0
A40: 1.27 | B40: =VLOOKUP(C40,'Mao_de_Obra (Total)'!B$15:C$108,2,FALSE) -> T1 | C40: Técnico Pleno - Manutenção Elétrica - Especialista em Subestação Pátio, L. Transmissão e L. Distribuição | D40: homem x mês | E40: =SUMIF('Mao_de_Obra (Total)'!B$14:B$109,C40,'Mao_de_Obra (Total)'!F$14:F$109) -> 12 | G40: 0
A41: 1.28 | B41: =VLOOKUP(C41,'Mao_de_Obra (Total)'!B$15:C$108,2,FALSE) -> T1 | C41: Técnico Pleno - Manutenção Elétrica - Especialista em Sistema de Proteção, Controle e Supervisão (SPCS) | D41: homem x mês | E41: =SUMIF('Mao_de_Obra (Total)'!B$14:B$109,C41,'Mao_de_Obra (Total)'!F$14:F$109) -> 12 | G41: 0
A42: 1.29 | B42: =VLOOKUP(C42,'Mao_de_Obra (Total)'!B$15:C$108,2,FALSE) -> T1 | C42: Técnico Pleno - Manutenção Mecânica | D42: homem x mês | E42: =SUMIF('Mao_de_Obra (Total)'!B$14:B$109,C42,'Mao_de_Obra (Total)'!F$14:F$109) -> 12 | G42: 0
A43: 1.30 | B43: =VLOOKUP(C43,'Mao_de_Obra (Total)'!B$15:C$108,2,FALSE) -> T1 | C43: Técnico Pleno - Manutenção Civil | D43: homem x mês | E43: =SUMIF('Mao_de_Obra (Total)'!B$14:B$109,C43,'Mao_de_Obra (Total)'!F$14:F$109) -> 12 | G43: 0
A44: 1.31 | B44: =VLOOKUP(C44,'Mao_de_Obra (Total)'!B$15:C$108,2,FALSE) -> P1 | C44: Geólogo (Geotecnia) | D44: homem x mês | E44: =SUMIF('Mao_de_Obra (Total)'!B$14:B$109,C44,'Mao_de_Obra (Total)'!F$14:F$109) -> 12 | G44: 0
A45: 1.32 | B45: =VLOOKUP(C45,'Mao_de_Obra (Total)'!B$15:C$108,2,FALSE) -> T1 | C45: Técnico Pleno - Eletrotécnico - Operador Estação de Bombeamento - Diurno (inclusive adicional de periculosidade) | D45: homem x mês | E45: =SUMIF('Mao_de_Obra (Total)'!B$14:B$109,C45,'Mao_de_Obra (Total)'!F$14:F$109) -> 216 | G45: 0
A46: 1.33 | B46: =VLOOKUP(C46,'Mao_de_Obra (Total)'!B$15:C$108,2,FALSE) -> T1 | C46: Técnico Pleno - Eletrotécnico - Operador Estação de Bombeamento - Noturno (inclusive adicional de periculosidade) | D46: homem x mês | E46: =SUMIF('Mao_de_Obra (Total)'!B$14:B$109,C46,'Mao_de_Obra (Total)'!F$14:F$109) -> 216 | G46: 0
A47: 1.34 | B47: =VLOOKUP(C47,'Mao_de_Obra (Total)'!B$15:C$108,2,FALSE) -> T2 | C47: Técnico Junior - Mecânico - Operador Estação de Bombeamento - Diurno (inclusive adicional de periculosidade) | D47: homem x mês | E47: =SUMIF('Mao_de_Obra (Total)'!B$14:B$109,C47,'Mao_de_Obra (Total)'!F$14:F$109) -> 216 | G47: 0
A48: 1.35 | B48: =VLOOKUP(C48,'Mao_de_Obra (Total)'!B$15:C$108,2,FALSE) -> T2 | C48: Técnico Junior - Mecânico - Operador Estação de Bombeamento - Noturno (inclusive adicional de periculosidade) | D48: homem x mês | E48: =SUMIF('Mao_de_Obra (Total)'!B$14:B$109,C48,'Mao_de_Obra (Total)'!F$14:F$109) -> 216 | G48: 0
A49: 1.36 | B49: =VLOOKUP(C49,'Mao_de_Obra (Total)'!B$15:C$108,2,FALSE) -> T1 | C49: Técnico Pleno - Eletrotécnico - Operador Subestação - Diurno (inclusive adicional de periculosidade) | D49: homem x mês | E49: =SUMIF('Mao_de_Obra (Total)'!B$14:B$109,C49,'Mao_de_Obra (Total)'!F$14:F$109) -> 216 | G49: 0
A50: 1.37 | B50: =VLOOKUP(C50,'Mao_de_Obra (Total)'!B$15:C$108,2,FALSE) -> T1 | C50: Técnico Pleno - Eletrotécnico - Operador Subestação - Noturno (inclusive adicional de periculosidade) | D50: homem x mês | E50: =SUMIF('Mao_de_Obra (Total)'!B$14:B$109,C50,'Mao_de_Obra (Total)'!F$14:F$109) -> 216 | G50: 0
A51: 1.38 | B51: =VLOOKUP(C51,'Mao_de_Obra (Total)'!B$15:C$108,2,FALSE) -> T2 | C51: Técnico Junior - Eletrotécnico - Operador Subestação - Diurno (inclusive adicional de periculosidade) | D51: homem x mês | E51: =SUMIF('Mao_de_Obra (Total)'!B$14:B$109,C51,'Mao_de_Obra (Total)'!F$14:F$109) -> 216 | G51: 0
A52: 1.39 | B52: =VLOOKUP(C52,'Mao_de_Obra (Total)'!B$15:C$108,2,FALSE) -> T2 | C52: Técnico Junior - Eletrotécnico - Operador Subestação - Noturno (inclusive adicional de periculosidade) | D52: homem x mês | E52: =SUMIF('Mao_de_Obra (Total)'!B$14:B$109,C52,'Mao_de_Obra (Total)'!F$14:F$109) -> 216 | G52: 0
A53: 1.40 | B53: =VLOOKUP(C53,'Mao_de_Obra (Total)'!B$15:C$108,2,FALSE) -> T3 | C53: Técnico Auxiliar (inclusive adicional de periculosidade) | D53: homem x mês | E53: =SUMIF('Mao_de_Obra (Total)'!B$14:B$109,C53,'Mao_de_Obra (Total)'!F$14:F$109) -> 204 | G53: 0
A54: 1.41 | B54: =VLOOKUP(C54,'Mao_de_Obra (Total)'!B$15:C$108,2,FALSE) -> T3 | C54: Técnico Auxiliar - Leiturista (inclusive adicional de periculosidade) | D54: homem x mês | E54: =SUMIF('Mao_de_Obra (Total)'!B$14:B$109,C54,'Mao_de_Obra (Total)'!F$14:F$109) -> 48 | G54: 0
A55: 1.42 | B55: =VLOOKUP(C55,'Mao_de_Obra (Total)'!B$15:C$108,2,FALSE) -> T1 | C55: Técnico Pleno - Mecânico (inclusive adicional de periculosidade) | D55: homem x mês | E55: =SUMIF('Mao_de_Obra (Total)'!B$14:B$109,C55,'Mao_de_Obra (Total)'!F$14:F$109) -> 36 | G55: 0
A56: 1.43 | B56: =VLOOKUP(C56,'Mao_de_Obra (Total)'!B$15:C$108,2,FALSE) -> T3 | C56: Técnico Auxiliar - Mecânico (inclusive adicional de periculosidade) | D56: homem x mês | E56: =SUMIF('Mao_de_Obra (Total)'!B$14:B$109,C56,'Mao_de_Obra (Total)'!F$14:F$109) -> 48 | G56: 0
A57: 1.44 | B57: =VLOOKUP(C57,'Mao_de_Obra (Total)'!B$15:C$108,2,FALSE) -> T1 | C57: Técnico Pleno - Eletrotécnico - Especialista em Baixa e Média Tensão (inclusive adicional de periculosidade) | D57: homem x mês | E57: =SUMIF('Mao_de_Obra (Total)'!B$14:B$109,C57,'Mao_de_Obra (Total)'!F$14:F$109) -> 36 | G57: 0
A58: 1.45 | B58: =VLOOKUP(C58,'Mao_de_Obra (Total)'!B$15:C$108,2,FALSE) -> T1 | C58: Eletrotécnico - Especialista Subestação 230 Kv (inclusive adicional de periculosidade) | D58: homem x mês | E58: =SUMIF('Mao_de_Obra (Total)'!B$14:B$109,C58,'Mao_de_Obra (Total)'!F$14:F$109) -> 12 | G58: 0
A59: 1.46 | B59: =VLOOKUP(C59,'Mao_de_Obra (Total)'!B$15:C$108,2,FALSE) -> T3 | C59: Eletricista (inclusive adicional de periculosidade) | D59: homem x mês | E59: =SUMIF('Mao_de_Obra (Total)'!B$14:B$109,C59,'Mao_de_Obra (Total)'!F$14:F$109) -> 60 | G59: 0
A60: 1.47 | B60: =VLOOKUP(C60,'Mao_de_Obra (Total)'!B$15:C$108,2,FALSE) -> T1 | C60: Eletrotécnico - Especialista Inspeção em Linha de Transmissão 230 / 269 Kv (inclusive adicional de periculosidade) | D60: homem x mês | E60: =SUMIF('Mao_de_Obra (Total)'!B$14:B$109,C60,'Mao_de_Obra (Total)'!F$14:F$109) -> 12 | G60: 0
A61: 1.48 | B61: =VLOOKUP(C61,'Mao_de_Obra (Total)'!B$15:C$108,2,FALSE) -> T4 | C61: Auxiliar Eletrotécnico (inclusive adicional de periculosidade) | D61: homem x mês | E61: =SUMIF('Mao_de_Obra (Total)'!B$14:B$109,C61,'Mao_de_Obra (Total)'!F$14:F$109) -> 12 | G61: 0
A62: 1.49 | B62: =VLOOKUP(C62,'Mao_de_Obra (Total)'!B$15:C$108,2,FALSE) -> T1 | C62: Eletrotécnico - Especialista em Linha de Distribuição 13,8 Kv (inclusive adicional de periculosidade) | D62: homem x mês | E62: =SUMIF('Mao_de_Obra (Total)'!B$14:B$109,C62,'Mao_de_Obra (Total)'!F$14:F$109) -> 12 | G62: 0
A63: 1.50 | B63: =VLOOKUP(C63,'Mao_de_Obra (Total)'!B$15:C$108,2,FALSE) -> T1 | C63: Técnico Automação - Especialista em SDSC (inclusive adicional de periculosidade) | D63: homem x mês | E63: =SUMIF('Mao_de_Obra (Total)'!B$14:B$109,C63,'Mao_de_Obra (Total)'!F$14:F$109) -> 36 | G63: 0
A64: 1.51 | B64: =VLOOKUP(C64,'Mao_de_Obra (Total)'!B$15:C$108,2,FALSE) -> T1 | C64: Eletrotécnico - Especialista em SPCS (inclusive adicional de periculosidade) | D64: homem x mês | E64: =SUMIF('Mao_de_Obra (Total)'!B$14:B$109,C64,'Mao_de_Obra (Total)'!F$14:F$109) -> 12 | G64: 0
A65: 1.52 | B65: =VLOOKUP(C65,'Mao_de_Obra (Total)'!B$15:C$108,2,FALSE) -> T1 | C65: Técnico Telecomunicações/Eletrônica (inclusive adicional de periculosidade) | D65: homem x mês | E65: =SUMIF('Mao_de_Obra (Total)'!B$14:B$109,C65,'Mao_de_Obra (Total)'!F$14:F$109) -> 12 | G65: 0
A66: 1.53 | B66: =VLOOKUP(C66,'Mao_de_Obra (Total)'!B$15:C$108,2,FALSE) -> T1 | C66: Técnico Pleno - Encarregado de Campo (inclusive adicional de periculosidade) | D66: homem x mês | E66: =SUMIF('Mao_de_Obra (Total)'!B$14:B$109,C66,'Mao_de_Obra (Total)'!F$14:F$109) -> 36 | G66: 0
A67: 1.54 | B67: =VLOOKUP(C67,'Mao_de_Obra (Total)'!B$15:C$108,2,FALSE) -> T2 | C67: Tecnico Edificações - Inspeção (inclusive adicional de periculosidade) | D67: homem x mês | E67: =SUMIF('Mao_de_Obra (Total)'!B$14:B$109,C67,'Mao_de_Obra (Total)'!F$14:F$109) -> 36 | G67: 0
A68: 1.55 | B68: =VLOOKUP(C68,'Mao_de_Obra (Total)'!B$15:C$108,2,FALSE) -> T2 | C68: Técnico Junior - Cadista | D68: homem x mês | E68: =SUMIF('Mao_de_Obra (Total)'!B$14:B$109,C68,'Mao_de_Obra (Total)'!F$14:F$109) -> 36 | G68: =ROUND(E68*F68,2) -> 0
A69: 1.56 | B69: =VLOOKUP(C69,'Mao_de_Obra (Total)'!B$15:C$108,2,FALSE) -> T1 | C69: Topógrafo (inclusive adicional de periculosidade) | D69: homem x mês | E69: =SUMIF('Mao_de_Obra (Total)'!B$14:B$109,C69,'Mao_de_Obra (Total)'!F$14:F$109) -> 12 | G69: 0
A70: 1.57 | B70: =VLOOKUP(C70,'Mao_de_Obra (Total)'!B$15:C$108,2,FALSE) -> T4 | C70: Auxiliar de Topografia (inclusive adicional de periculosidade) | D70: homem x mês | E70: =SUMIF('Mao_de_Obra (Total)'!B$14:B$109,C70,'Mao_de_Obra (Total)'!F$14:F$109) -> 24 | G70: 0
A71: 1.58 | B71: =VLOOKUP(C71,'Mao_de_Obra (Total)'!B$15:C$108,2,FALSE) -> T3 | C71: Carpinteiro (inclusive adicional de periculosidade) | D71: homem x mês | E71: =SUMIF('Mao_de_Obra (Total)'!B$14:B$109,C71,'Mao_de_Obra (Total)'!F$14:F$109) -> 36 | G71: 0
A72: 1.59 | B72: =VLOOKUP(C72,'Mao_de_Obra (Total)'!B$15:C$108,2,FALSE) -> T3 | C72: Ferreiro (inclusive adicional de periculosidade) | D72: homem x mês | E72: =SUMIF('Mao_de_Obra (Total)'!B$14:B$109,C72,'Mao_de_Obra (Total)'!F$14:F$109) -> 36 | G72: 0
A73: 1.60 | B73: =VLOOKUP(C73,'Mao_de_Obra (Total)'!B$15:C$108,2,FALSE) -> T3 | C73: Pedreiro (inclusive adicional de periculosidade) | D73: homem x mês | E73: =SUMIF('Mao_de_Obra (Total)'!B$14:B$109,C73,'Mao_de_Obra (Total)'!F$14:F$109) -> 84 | G73: 0
A74: 1.61 | B74: =VLOOKUP(C74,'Mao_de_Obra (Total)'!B$15:C$108,2,FALSE) -> A4 | C74: Servente (inclusive adicional de periculosidade) | D74: homem x mês | E74: =SUMIF('Mao_de_Obra (Total)'!B$14:B$109,C74,'Mao_de_Obra (Total)'!F$14:F$109) -> 756 | G74: 0
A76: ="TOTAL - "&C13&" - (R$):" -> TOTAL - EQUIPE - MÃO DE OBRA - (R$): | G76: =SUBTOTAL(9,G13:G75) -> 0
A79: ="RESUMO - "&A$8 -> RESUMO - EQUIPE - MÃO DE OBRA
A80: ITEM | C80: DESCRIÇÃO | F80: VALOR TOTAL (R$)
A81: 1 | C81: =C13 -> EQUIPE - MÃO DE OBRA | F81: =G76 -> 0
A82: ="TOTAL GERAL - "&A$8&" - (R$):" -> TOTAL GERAL - EQUIPE - MÃO DE OBRA - (R$): | F82: =SUM(F81:G81) -> 0
A85: NOME DO INFORMANTE: | F85: QUALIFICAÇÃO:
A87: ASSINATURA: | F87: DATA:
A89: OBSERVAÇÕES:
A90: 1. Considerado a carga horária de 176 horas/mês
A91: 2. Os cálculos de cada parcela que compõe o salário completo foram calculadas isoladamente. (Salário Base + Adicional de Periculosidade (quando houver) + Adicional Noturno (quando houver) + Adicional de Horas Extras (quando houver) + Encargos Sociais)
A93: 3. Adicional de Periculosidade 30%: foi previsto para todos os profissionais eletricitários (Operação e Manutenção) que trabalham em contato com rede elétrica (nas estações de bombeamento, sub-estações, etc.)
A95: 4. Hora Noturna: Hora Diurna x 20%
A96: 5. Adicional Noturno: *Considerado 120 horas/profissional/mês (Total de 8h noturnas: Período de 22h as 5h = 8h noturnas + 1h até as 6h => Súmula 60 do TST) *(Incide sobre Salário Base + Periculosidade => Súmula 191 do TST)
A98: 6. Período noturno – 22 às 5 horas, o valor da hora tem 52 minutos e 30 segundos; logo, nesse período, há 8 horas
A99: 7. Foi considerado intervalo intrajornada para todos os profissionais que trabalham em escala 12h x 36h

Sheet Mao_de_Obra (Total)
C1: Ministério do Desenvolvimento Regional - MDR
C2: Companhia de Desenvolvimento dos Vales do São Francisco e do Parnaíba
C3: Gerência de Operação do PISF - Centro de Controle e Operação (AD / GOI / CCO)
A5: SERVIÇOS DE OPERAÇÃO E MANUTENÇÃO DAS INFRAESTRUTURAS DO EIXO LESTE DO PROJETO DE INTEGRAÇÃO DO RIO SÃO FRANCISCO COM AS BACIAS HIDROGRÁFICAS DO NORDESTE SETENTRIONAL – PISF
A8: MÃO DE OBRA - TOTAL
A11: ITEM | B11: DESCRIÇÃO | C11: CLASSE | D11: Prazo (Mês) | E11: Quantidade (undxmês) | G11: SALÁRIOS MENSAL (R$) | Q11: SALÁRIOS TOTAL (R$) | X11: Original Total | Z11: Original Eixo Leste | AB11: Proposta atual
G12: SALÁRIO BASE (Sem Encargo) | H12: Periculosidade | I12: Adicional Noturno | K12: Hora Extra 100% | M12: Hora Extra 50% | O12: Encargos Sociais | P12: SALÁRIO COMPLETO (Incluindo: encargos, benefícios, adicionais e horas extras) | Q12: SALÁRIO BASE (Sem Encargo) | R12: Periculosidade | S12: Adicional Noturno (c/ intrajornada) | T12: Horas Extras | U12: Encargos Sociais | V12: SALÁRIO COMPLETO (Incluindo: encargos, adicionais e horas extras) | X12: Quantitativo | Y12: Diferença | Z12: Quantitativo | AA12: Diferença | AB12: Total | AC12: Coordenação (à definir) | AD12: Lote 09 (Floresta/PE) | AE12: Lote 10 (Custódia/PE) | AF12: Lote 12 (Sertânia/PE) | AG12: Eixo Norte
E13: Unitária | F13: Total | H13: 0.3 | I13: Valor da Hora Noturna | J13: Valor do Adicional Noturno (c/ intrajornada) | K13: Valor Unitário | L13: Valor Mensal (2,5% da quant. de horas /mês) | M13: Valor Unitário | N13: Valor Mensal (5% da quant. de horas /mês) | O13: ='Encargos Sociais e Benefícios'!$C$66 -> 0.7716648 | R13: =H13 -> 0.3 | U13: =O13 -> 0.7716648
A14: 1. | B14: COORDENAÇÃO GERAL
A15: 1.1 | B15: Coordenador - Engenheiro Sênior (Civil / Eletricista / Mecânico) - Esp. Manutenção Sist Abast/Ger | C15: P0 | D15: 12 | E15: =AB15 -> 1 | F15: =D15*E15 -> 12 | H15: 0 | I15: 0 | J15: 0 | K15: 0 | L15: 0 | M15: 0 | N15: 0 | O15: =ROUND((G15+H15+J15+L15+N15)*$O$13,2) -> 0 | P15: =G15+H15+J15+L15+N15+O15 -> 0 | Q15: =ROUND(F15*G15,2) -> 0 | R15: =ROUND(F15*H15,2) -> 0 | S15: =ROUND(F15*J15,2) -> 0 | T15: =ROUND((F15*L15)+(F15*N15),2) -> 0 | U15: =ROUND(F15*O15,2) -> 0 | V15: =ROUND(F15*P15,2) -> 0 | X15: 1 | Y15: =AB15-$X15 -> 0 | Z15: 1 | AA15: =AB15-Z15 -> 0 | AB15: =SUM(AC15:AG15) -> 1 | AC15: 1 | AD15: 0 | AE15: 0 | AF15: 0 | AG15: 0
A16: 1.2 | B16: Assistente Administrativo | C16: A1 | D16: =D$15 -> 12 | E16: =AB16 -> 1 | F16: =D16*E16 -> 12 | H16: 0 | I16: 0 | J16: 0 | K16: 0 | L16: 0 | M16: 0 | N16: 0 | O16: =ROUND((G16+H16+J16+L16+N16)*$O$13,2) -> 0 | P16: =G16+H16+J16+L16+N16+O16 -> 0 | Q16: =ROUND(F16*G16,2) -> 0 | R16: =ROUND(F16*H16,2) -> 0 | S16: =ROUND(F16*J16,2) -> 0 | T16: =ROUND((F16*L16)+(F16*N16),2) -> 0 | U16: =ROUND(F16*O16,2) -> 0 | V16: =ROUND(F16*P16,2) -> 0 | X16: 1 | Y16: =AB16-$X16 -> 0 | Z16: 1 | AA16: =AB16-Z16 -> 0 | AB16: =SUM(AC16:AG16) -> 1 | AC16: 1 | AD16: 0 | AE16: 0 | AF16: 0 | AG16: 0
A17: 1.3 | B17: Auxiliar Administrativo | C17: A3 | D17: =D$15 -> 12 | E17: =AB17 -> 1 | F17: =D17*E17 -> 12 | H17: 0 | I17: 0 | J17: 0 | K17: 0 | L17: 0 | M17: 0 | N17: 0 | O17: =ROUND((G17+H17+J17+L17+N17)*$O$13,2) -> 0 | P17: =G17+H17+J17+L17+N17+O17 -> 0 | Q17: =ROUND(F17*G17,2) -> 0 | R17: =ROUND(F17*H17,2) -> 0 | S17: =ROUND(F17*J17,2) -> 0 | T17: =ROUND((F17*L17)+(F17*N17),2) -> 0 | U17: =ROUND(F17*O17,2) -> 0 | V17: =ROUND(F17*P17,2) -> 0 | X17: 1 | Y17: =AB17-$X17 -> 0 | Z17: 1 | AA17: =AB17-Z17 -> 0 | AB17: =SUM(AC17:AG17) -> 1 | AC17: 1 | AD17: 0 | AE17: 0 | AF17: 0 | AG17: 0
A18: 2. | B18: COORDENAÇÃO DA OPERAÇÃO
A19: 2.1 | B19: Coordenador Operação - Engenheiro Sênior (Civil / Eletricista / Mecânico) - Esp. Manutenção Sist Abast/Ger | C19: P1 | D19: =D$15 -> 12 | E19: =AB19 -> 1 | F19: =D19*E19 -> 12 | H19: 0 | I19: 0 | J19: 0 | K19: 0 | L19: 0 | M19: 0 | N19: 0 | O19: =ROUND((G19+H19+J19+L19+N19)*$O$13,2) -> 0 | P19: =G19+H19+J19+L19+N19+O19 -> 0 | Q19: =ROUND(F19*G19,2) -> 0 | R19: =ROUND(F19*H19,2) -> 0 | S19: =ROUND(F19*J19,2) -> 0 | T19: =ROUND((F19*L19)+(F19*N19),2) -> 0 | U19: =ROUND(F19*O19,2) -> 0 | V19: =ROUND(F19*P19,2) -> 0 | X19: 1 | Y19: =AB19-$X19 -> 0 | Z19: 1 | AA19: =AB19-Z19 -> 0 | AB19: =SUM(AC19:AG19) -> 1 | AC19: 1 | AD19: 0 | AE19: 0 | AF19: 0 | AG19: 0
A20: 2.2 | B20: Auxiliar Administrativo | C20: A3 | D20: 12 | E20: =AB20 -> 1 | F20: =D20*E20 -> 12 | H20: 0 | I20: 0 | J20: 0 | K20: 0 | L20: 0 | M20: 0 | N20: 0 | O20: =ROUND((G20+H20+J20+L20+N20)*$O$13,2) -> 0 | P20: =G20+H20+J20+L20+N20+O20 -> 0 | Q20: =ROUND(F20*G20,2) -> 0 | R20: =ROUND(F20*H20,2) -> 0 | S20: =ROUND(F20*J20,2) -> 0 | T20: =ROUND((F20*L20)+(F20*N20),2) -> 0 | U20: =ROUND(F20*O20,2) -> 0 | V20: =ROUND(F20*P20,2) -> 0 | X20: 2 | Y20: =AB20-$X20 -> -1 | Z20: 2 | AA20: =AB20-Z20 -> -1 | AB20: =SUM(AC20:AG20) -> 1 | AC20: 1 | AD20: 0 | AE20: 0 | AF20: 0 | AG20: 0
A21: 3. | B21: COORDENAÇÃO DA MANUTENÇÃO
A22: 3.1 | B22: Coordenador Manutenção - Engenheiro Sênior (Civil / Eletricista / Mecânico) - Esp. Manutenção Sist Abast/Ger | C22: P1 | D22: =D$15 -> 12 | E22: =AB22 -> 1 | F22: =D22*E22 -> 12 | H22: 0 | I22: 0 | J22: 0 | K22: 0 | L22: 0 | M22: 0 | N22: 0 | O22: =ROUND((G22+H22+J22+L22+N22)*$O$13,2) -> 0 | P22: =G22+H22+J22+L22+N22+O22 -> 0 | Q22: =ROUND(F22*G22,2) -> 0 | R22: =ROUND(F22*H22,2) -> 0 | S22: =ROUND(F22*J22,2) -> 0 | T22: =ROUND((F22*L22)+(F22*N22),2) -> 0 | U22: =ROUND(F22*O22,2) -> 0 | V22: =ROUND(F22*P22,2) -> 0 | X22: 1 | Y22: =AB22-$X22 -> 0 | Z22: 1 | AA22: =AB22-Z22 -> 0 | AB22: =SUM(AC22:AG22) -> 1 | AC22: 1 | AD22: 0 | AE22: 0 | AF22: 0 | AG22: 0
A23: 3.2 | B23: Auxiliar Administrativo | C23: A3 | D23: 12 | E23: =AB23 -> 1 | F23: =D23*E23 -> 12 | H23: 0 | I23: 0 | J23: 0 | K23: 0 | L23: 0 | M23: 0 | N23: 0 | O23: =ROUND((G23+H23+J23+L23+N23)*$O$13,2) -> 0 | P23: =G23+H23+J23+L23+N23+O23 -> 0 | Q23: =ROUND(F23*G23,2) -> 0 | R23: =ROUND(F23*H23,2) -> 0 | S23: =ROUND(F23*J23,2) -> 0 | T23: =ROUND((F23*L23)+(F23*N23),2) -> 0 | U23: =ROUND(F23*O23,2) -> 0 | V23: =ROUND(F23*P23,2) -> 0 | X23: 2 | Y23: =AB23-$X23 -> -1 | Z23: 2 | AA23: =AB23-Z23 -> -1 | AB23: =SUM(AC23:AG23) -> 1 | AC23: 1 | AD23: 0 | AE23: 0 | AF23: 0 | AG23: 0
A24: 4. | B24: COORDENAÇÃO ADMINISTRAÇÃO E LOGÍSTICA
A25: 4.1 | B25: Coordenador - Chefe de Escritório | C25: AS | D25: =D$15 -> 12 | E25: =AB25 -> 1 | F25: =D25*E25 -> 12 | H25: 0 | I25: 0 | J25: 0 | K25: 0 | L25: 0 | M25: 0 | N25: 0 | O25: =ROUND((G25+H25+J25+L25+N25)*$O$13,2) -> 0 | P25: =G25+H25+J25+L25+N25+O25 -> 0 | Q25: =ROUND(F25*G25,2) -> 0 | R25: =ROUND(F25*H25,2) -> 0 | S25: =ROUND(F25*J25,2) -> 0 | T25: =ROUND((F25*L25)+(F25*N25),2) -> 0 | U25: =ROUND(F25*O25,2) -> 0 | V25: =ROUND(F25*P25,2) -> 0 | X25: 1 | Y25: =AB25-$X25 -> 0 | Z25: 1 | AA25: =AB25-Z25 -> 0 | AB25: =SUM(AC25:AG25) -> 1 | AC25: 1 | AD25: 0 | AE25: 0 | AF25: 0 | AG25: 0
A26: 4.2 | B26: Auxiliar Administrativo | C26: A3 | D26: 12 | E26: 1 | F26: 12 | H26: 0 | I26: 0 | J26: 0 | K26: 0 | L26: 0 | M26: 0 | N26: 0 | O26: 0 | P26: 0 | Q26: 0 | R26: 0 | S26: 0 | T26: 0 | U26: 0 | V26: 0 | X26: 2 | Y26: -1 | Z26: 2 | AA26: -1 | AB26: 1 | AC26: 1 | AD26: 0 | AE26: 0 | AF26: 0 | AG26: 0
A27: 4.3 | B27: Técnico Pleno - Analista em Tecnologia da Informação | C27: T1 | D27: 12 | E27: 1 | F27: 12 | H27: 0 | I27: 0 | J27: 0 | K27: 0 | L27: 0 | M27: 0 | N27: 0 | O27: 0 | P27: 0 | Q27: 0 | R27: 0 | S27: 0 | T27: 0 | U27: 0 | V27: 0 | X27: 1 | Y27: 0 | Z27: 1 | AA27: 0 | AB27: 1 | AC27: 1 | AD27: 0 | AE27: 0 | AF27: 0 | AG27: 0
A28: 4.4 | B28: Técnico em Tecnologia da Informação | C28: T2 | D28: 12 | E28: 0 | F28: 0 | H28: 0 | I28: 0 | J28: 0 | K28: 0 | L28: 0 | M28: 0 | N28: 0 | O28: 0 | P28: 0 | Q28: 0 | R28: 0 | S28: 0 | T28: 0 | U28: 0 | V28: 0 | X28: 1 | Y28: -1 | Z28: 1 | AA28: -1 | AB28: 0 | AC28: 0 | AD28: 0 | AE28: 0 | AF28: 0 | AG28: 0
A29: 4.5 | B29: Motorista | C29: A3 | D29: 12 | E29: 5 | F29: 60 | H29: 0 | I29: 0 | J29: 0 | K29: 0 | L29: 0 | M29: 0 | N29: 0 | O29: 0 | P29: 0 | Q29: 0 | R29: 0 | S29: 0 | T29: 0 | U29: 0 | V29: 0 | X29: 9 | Y29: -4 | Z29: 5 | AA29: 0 | AB29: 5 | AC29: 2 | AD29: 1 | AE29: 1 | AF29: 1 | AG29: 0
A30: 4.6 | B30: Almoxarife | C30: A1 | D30: 12 | E30: 1 | F30: 12 | H30: 0 | I30: 0 | J30: 0 | K30: 0 | L30: 0 | M30: 0 | N30: 0 | O30: 0 | P30: 0 | Q30: 0 | R30: 0 | S30: 0 | T30: 0 | U30: 0 | V30: 0 | X30: 2 | Y30: -1 | Z30: 1 | AA30: 0 | AB30: 1 | AC30: 1 | AD30: 0 | AE30: 0 | AF30: 0 | AG30: 0
A31: 4.7 | B31: Auxiliar de Almoxarifado | C31: A3 | D31: 12 | E31: 3 | F31: 36 | H31: 0 | I31: 0 | J31: 0 | K31: 0 | L31: 0 | M31: 0 | N31: 0 | O31: 0 | P31: 0 | Q31: 0 | R31: 0 | S31: 0 | T31: 0 | U31: 0 | V31: 0 | X31: 3 | Y31: 0 | Z31: 3 | AA31: 0 | AB31: 3 | AC31: 0 | AD31: 1 | AE31: 1 | AF31: 1 | AG31: 0
A32: 4.8 | B32: Servente | C32: A4 | D32: 12 | E32: 12 | F32: 144 | H32: 0 | I32: 0 | J32: 0 | K32: 0 | L32: 0 | M32: 0 | N32: 0 | O32: 0 | P32: 0 | Q32: 0 | R32: 0 | S32: 0 | T32: 0 | U32: 0 | V32: 0 | X32: 6 | Y32: 6 | Z32: 6 | AA32: 6 | AB32: 12 | AC32: 0 | AD32: 4 | AE32: 4 | AF32: 4 | AG32: 0
A33: 5. | B33: COORDENAÇÃO SEGURANÇA E MEDICINA DO TRABALHO
A34: 5.1 | B34: Engenheiro de Segurança e Medicina do Trabalho | C34: P1 | D34: =D$15 -> 12 | E34: =AB34 -> 1 | F34: =D34*E34 -> 12 | H34: 0 | I34: 0 | J34: 0 | K34: 0 | L34: 0 | M34: 0 | N34: 0 | O34: =ROUND((G34+H34+J34+L34+N34)*$O$13,2) -> 0 | P34: =G34+H34+J34+L34+N34+O34 -> 0 | Q34: =ROUND(F34*G34,2) -> 0 | R34: =ROUND(F34*H34,2) -> 0 | S34: =ROUND(F34*J34,2) -> 0 | T34: =ROUND((F34*L34)+(F34*N34),2) -> 0 | U34: =ROUND(F34*O34,2) -> 0 | V34: =ROUND(F34*P34,2) -> 0 | X34: 1 | Y34: =AB34-$X34 -> 0 | Z34: 1 | AA34: =AB34-Z34 -> 0 | AB34: =SUM(AC34:AG34) -> 1 | AC34: 1 | AD34: 0 | AE34: 0 | AF34: 0 | AG34: 0
A35: 5.2 | B35: Técnico de Segurança e Medicina do Trabalho | C35: T2 | D35: 12 | E35: =AB35 -> 2 | F35: =D35*E35 -> 24 | H35: 0 | I35: 0 | J35: 0 | K35: 0 | L35: 0 | M35: 0 | N35: 0 | O35: =ROUND((G35+H35+J35+L35+N35)*$O$13,2) -> 0 | P35: =G35+H35+J35+L35+N35+O35 -> 0 | Q35: =ROUND(F35*G35,2) -> 0 | R35: =ROUND(F35*H35,2) -> 0 | S35: =ROUND(F35*J35,2) -> 0 | T35: =ROUND((F35*L35)+(F35*N35),2) -> 0 | U35: =ROUND(F35*O35,2) -> 0 | V35: =ROUND(F35*P35,2) -> 0 | X35: 7 | Y35: =AB35-$X35 -> -5 | Z35: 3 | AA35: =AB35-Z35 -> -1 | AB35: =SUM(AC35:AG35) -> 2 | AC35: 2 | AD35: 0 | AE35: 0 | AF35: 0 | AG35: 0
A36: 5.3 | B36: Médico do Trabalho | C36: P1 | D36: 12 | E36: =AB36 -> 1 | F36: =D36*E36 -> 12 | H36: 0 | I36: 0 | J36: 0 | K36: 0 | L36: 0 | M36: 0 | N36: 0 | O36: =ROUND((G36+H36+J36+L36+N36)*$O$13,2) -> 0 | P36: =G36+H36+J36+L36+N36+O36 -> 0 | Q36: =ROUND(F36*G36,2) -> 0 | R36: =ROUND(F36*H36,2) -> 0 | S36: =ROUND(F36*J36,2) -> 0 | T36: =ROUND((F36*L36)+(F36*N36),2) -> 0 | U36: =ROUND(F36*O36,2) -> 0 | V36: =ROUND(F36*P36,2) -> 0 | X36: 1 | Y36: =AB36-$X36 -> 0 | Z36: 1 | AA36: =AB36-Z36 -> 0 | AB36: =SUM(AC36:AG36) -> 1 | AC36: 1 | AD36: 0 | AE36: 0 | AF36: 0 | AG36: 0
A37: 6. | B37: PLANEJAMENTO E CONTROLE DA OPERAÇÃO
A38: 6.1 | B38: Engenheiro Pleno - Civil - Especialista em Hidráulica | C38: P1 | D38: =D$15 -> 12 | E38: =AB38 -> 1 | F38: =D38*E38 -> 12 | H38: 0 | I38: 0 | J38: 0 | K38: 0 | L38: 0 | M38: 0 | N38: 0 | O38: =ROUND((G38+H38+J38+L38+N38)*$O$13,2) -> 0 | P38: =G38+H38+J38+L38+N38+O38 -> 0 | Q38: =ROUND(F38*G38,2) -> 0 | R38: =ROUND(F38*H38,2) -> 0 | S38: =ROUND(F38*J38,2) -> 0 | T38: =ROUND((F38*L38)+(F38*N38),2) -> 0 | U38: =ROUND(F38*O38,2) -> 0 | V38: =ROUND(F38*P38,2) -> 0 | X38: 1 | Y38: =AB38-$X38 -> 0 | Z38: 1 | AA38: =AB38-Z38 -> 0 | AB38: =SUM(AC38:AG38) -> 1 | AC38: 1 | AD38: 0 | AE38: 0 | AF38: 0 | AG38: 0
A39: 6.2 | B39: Engenheiro Pleno - Civil - Especialista em Hidrologia | C39: P1 | D39: 12 | E39: =AB39 -> 1 | F39: =D39*E39 -> 12 | H39: 0 | I39: 0 | J39: 0 | K39: 0 | L39: 0 | M39: 0 | N39: 0 | O39: =ROUND((G39+H39+J39+L39+N39)*$O$13,2) -> 0 | P39: =G39+H39+J39+L39+N39+O39 -> 0 | Q39: =ROUND(F39*G39,2) -> 0 | R39: =ROUND(F39*H39,2) -> 0 | S39: =ROUND(F39*J39,2) -> 0 | T39: =ROUND((F39*L39)+(F39*N39),2) -> 0 | U39: =ROUND(F39*O39,2) -> 0 | V39: =ROUND(F39*P39,2) -> 0 | X39: 1 | Y39: =AB39-$X39 -> 0 | Z39: 1 | AA39: =AB39-Z39 -> 0 | AB39: =SUM(AC39:AG39) -> 1 | AC39: 1 | AD39: 0 | AE39: 0 | AF39: 0 | AG39: 0
A40: 6.3 | B40: Engenheiro Junior - Civil | C40: P3 | D40: 12 | E40: =AB40 -> 1 | F40: =D40*E40 -> 12 | H40: 0 | I40: 0 | J40: 0 | K40: 0 | L40: 0 | M40: 0 | N40: 0 | O40: =ROUND((G40+H40+J40+L40+N40)*$O$13,2) -> 0 | P40: =G40+H40+J40+L40+N40+O40 -> 0 | Q40: =ROUND(F40*G40,2) -> 0 | R40: =ROUND(F40*H40,2) -> 0 | S40: =ROUND(F40*J40,2) -> 0 | T40: =ROUND((F40*L40)+(F40*N40),2) -> 0 | U40: =ROUND(F40*O40,2) -> 0 | V40: =ROUND(F40*P40,2) -> 0 | X40: 2 | Y40: =AB40-$X40 -> -1 | Z40: 1 | AA40: =AB40-Z40 -> 0 | AB40: =SUM(AC40:AG40) -> 1 | AC40: 1 | AD40: 0 | AE40: 0 | AF40: 0 | AG40: 0
A41: 6.4 | B41: Engenheiro Pleno - Eletricista | C41: P1 | D41: 12 | E41: =AB41 -> 1 | F41: =D41*E41 -> 12 | H41: 0 | I41: 0 | J41: 0 | K41: 0 | L41: 0 | M41: 0 | N41: 0 | O41: =ROUND((G41+H41+J41+L41+N41)*$O$13,2) -> 0 | P41: =G41+H41+J41+L41+N41+O41 -> 0 | Q41: =ROUND(F41*G41,2) -> 0 | R41: =ROUND(F41*H41,2) -> 0 | S41: =ROUND(F41*J41,2) -> 0 | T41: =ROUND((F41*L41)+(F41*N41),2) -> 0 | U41: =ROUND(F41*O41,2) -> 0 | V41: =ROUND(F41*P41,2) -> 0 | X41: 1 | Y41: =AB41-$X41 -> 0 | Z41: 1 | AA41: =AB41-Z41 -> 0 | AB41: =SUM(AC41:AG41) -> 1 | AC41: 1 | AD41: 0 | AE41: 0 | AF41: 0 | AG41: 0
A42: 6.5 | B42: Engenheiro Junior - Eletricista | C42: P3 | D42: 12 | E42: =AB42 -> 0 | F42: =D42*E42 -> 0 | H42: 0 | I42: 0 | J42: 0 | K42: 0 | L42: 0 | M42: 0 | N42: 0 | O42: =ROUND((G42+H42+J42+L42+N42)*$O$13,2) -> 0 | P42: =G42+H42+J42+L42+N42+O42 -> 0 | Q42: =ROUND(F42*G42,2) -> 0 | R42: =ROUND(F42*H42,2) -> 0 | S42: =ROUND(F42*J42,2) -> 0 | T42: =ROUND((F42*L42)+(F42*N42),2) -> 0 | U42: =ROUND(F42*O42,2) -> 0 | V42: =ROUND(F42*P42,2) -> 0 | X42: 1 | Y42: =AB42-$X42 -> -1 | Z42: 1 | AA42: =AB42-Z42 -> -1 | AB42: =SUM(AC42:AG42) -> 0 | AC42: 0 | AD42: 0 | AE42: 0 | AF42: 0 | AG42: 0
A43: 7. | B43: PLANEJAMENTO E CONTROLE DA MANUTENÇÃO
A44: 7.1 | B44: Engenheiro Pleno - Eletricista - Especialista em Equipamentos e Sistemas Elétricos | C44: P1 | D44: =D$15 -> 12 | E44: =AB44 -> 1 | F44: =D44*E44 -> 12 | H44: 0 | I44: 0 | J44: 0 | K44: 0 | L44: 0 | M44: 0 | N44: 0 | O44: =ROUND((G44+H44+J44+L44+N44)*$O$13,2) -> 0 | P44: =G44+H44+J44+L44+N44+O44 -> 0 | Q44: =ROUND(F44*G44,2) -> 0 | R44: =ROUND(F44*H44,2) -> 0 | S44: =ROUND(F44*J44,2) -> 0 | T44: =ROUND((F44*L44)+(F44*N44),2) -> 0 | U44: =ROUND(F44*O44,2) -> 0 | V44: =ROUND(F44*P44,2) -> 0 | X44: 1 | Y44: =AB44-$X44 -> 0 | Z44: 1 | AA44: =AB44-Z44 -> 0 | AB44: =SUM(AC44:AG44) -> 1 | AC44: 1 | AD44: 0 | AE44: 0 | AF44: 0 | AG44: 0
A45: 7.2 | B45: Engenheiro Pleno - Eletricista - Especialista em Subestação Pátio, L. Transmissão e L. Distribuição | C45: P1 | D45: 12 | E45: 1 | F45: 12 | H45: 0 | I45: 0 | J45: 0 | K45: 0 | L45: 0 | M45: 0 | N45: 0 | O45: 0 | P45: 0 | Q45: 0 | R45: 0 | S45: 0 | T45: 0 | U45: 0 | V45: 0 | X45: 1 | Y45: 0 | Z45: 1 | AA45: 0 | AB45: 1 | AC45: 1 | AD45: 0 | AE45: 0 | AF45: 0 | AG45: 0
A46: 7.3 | B46: Engenheiro Pleno - Eletricista - Especialista em Sistema de Proteção, Controle e Supervisão (SPCS) | C46: P1 | D46: 12 | E46: 1 | F46: 12 | H46: 0 | I46: 0 | J46: 0 | K46: 0 | L46: 0 | M46: 0 | N46: 0 | O46: 0 | P46: 0 | Q46: 0 | R46: 0 | S46: 0 | T46: 0 | U46: 0 | V46: 0 | X46: 1 | Y46: 0 | Z46: 1 | AA46: 0 | AB46: 1 | AC46: 1 | AD46: 0 | AE46: 0 | AF46: 0 | AG46: 0
A47: 7.4 | B47: Engenheiro Junior - Eletricista | C47: P3 | D47: 12 | E47: 0 | F47: 0 | H47: 0 | I47: 0 | J47: 0 | K47: 0 | L47: 0 | M47: 0 | N47: 0 | O47: 0 | P47: 0 | Q47: 0 | R47: 0 | S47: 0 | T47: 0 | U47: 0 | V47: 0 | X47: 2 | Y47: -2 | Z47: 1 | AA47: -1 | AB47: 0 | AC47: 0 | AD47: 0 | AE47: 0 | AF47: 0 | AG47: 0
A48: 7.5 | B48: Engenheiro Pleno - Mecânico | C48: P1 | D48: 12 | E48: 1 | F48: 12 | H48: 0 | I48: 0 | J48: 0 | K48: 0 | L48: 0 | M48: 0 | N48: 0 | O48: 0 | P48: 0 | Q48: 0 | R48: 0 | S48: 0 | T48: 0 | U48: 0 | V48: 0 | X48: 2 | Y48: -1 | Z48: 1 | AA48: 0 | AB48: 1 | AC48: 1 | AD48: 0 | AE48: 0 | AF48: 0 | AG48: 0
A49: 7.6 | B49: Engenheiro Junior - Mecânico | C49: P3 | D49: 12 | E49: 0 | F49: 0 | H49: 0 | I49: 0 | J49: 0 | K49: 0 | L49: 0 | M49: 0 | N49: 0 | O49: 0 | P49: 0 | Q49: 0 | R49: 0 | S49: 0 | T49: 0 | U49: 0 | V49: 0 | X49: 2 | Y49: -2 | Z49: 1 | AA49: -1 | AB49: 0 | AC49: 0 | AD49: 0 | AE49: 0 | AF49: 0 | AG49: 0
A50: 7.7 | B50: Engenheiro Pleno - Civil | C50: P1 | D50: 12 | E50: 1 | F50: 12 | H50: 0 | I50: 0 | J50: 0 | K50: 0 | L50: 0 | M50: 0 | N50: 0 | O50: 0 | P50: 0 | Q50: 0 | R50: 0 | S50: 0 | T50: 0 | U50: 0 | V50: 0 | X50: 2 | Y50: -1 | Z50: 1 | AA50: 0 | AB50: 1 | AC50: 1 | AD50: 0 | AE50: 0 | AF50: 0 | AG50: 0
A51: 7.8 | B51: Engenheiro Junior - Civil | C51: P3 | D51: 12 | E51: 0 | F51: 0 | H51: 0 | I51: 0 | J51: 0 | K51: 0 | L51: 0 | M51: 0 | N51: 0 | O51: 0 | P51: 0 | Q51: 0 | R51: 0 | S51: 0 | T51: 0 | U51: 0 | V51: 0 | X51: 2 | Y51: -2 | Z51: 1 | AA51: -1 | AB51: 0 | AC51: 0 | AD51: 0 | AE51: 0 | AF51: 0 | AG51: 0
A52: 7.9 | B52: Engenheiro Pleno - Mecatrônica - Especialista em Automação | C52: P1 | D52: 12 | E52: 1 | F52: 12 | H52: 0 | I52: 0 | J52: 0 | K52: 0 | L52: 0 | M52: 0 | N52: 0 | O52: 0 | P52: 0 | Q52: 0 | R52: 0 | S52: 0 | T52: 0 | U52: 0 | V52: 0 | X52: 1 | Y52: 0 | Z52: 1 | AA52: 0 | AB52: 1 | AC52: 1 | AD52: 0 | AE52: 0 | AF52: 0 | AG52: 0
A53: 7.10 | B53: Engenheiro Junior - Telecomunicações - Especialista em Automação | C53: P3 | D53: 12 | E53: 0 | F53: 0 | H53: 0 | I53: 0 | J53: 0 | K53: 0 | L53: 0 | M53: 0 | N53: 0 | O53: 0 | P53: 0 | Q53: 0 | R53: 0 | S53: 0 | T53: 0 | U53: 0 | V53: 0 | X53: 1 | Y53: -1 | Z53: 1 | AA53: -1 | AB53: 0 | AC53: 0 | AD53: 0 | AE53: 0 | AF53: 0 | AG53: 0
A54: 7.11 | B54: Engenheiro Pleno - Telecomunicações | C54: P1 | D54: 12 | E54: 1 | F54: 12 | H54: 0 | I54: 0 | J54: 0 | K54: 0 | L54: 0 | M54: 0 | N54: 0 | O54: 0 | P54: 0 | Q54: 0 | R54: 0 | S54: 0 | T54: 0 | U54: 0 | V54: 0 | X54: 1 | Y54: 0 | Z54: 1 | AA54: 0 | AB54: 1 | AC54: 1 | AD54: 0 | AE54: 0 | AF54: 0 | AG54: 0
A55: 7.12 | B55: Técnico Pleno - Manutenção Elétrica - Especialista em Equipamentos e Sistemas Elétricos | C55: T1 | D55: 12 | E55: 1 | F55: 12 | H55: 0 | I55: 0 | J55: 0 | K55: 0 | L55: 0 | M55: 0 | N55: 0 | O55: 0 | P55: 0 | Q55: 0 | R55: 0 | S55: 0 | T55: 0 | U55: 0 | V55: 0 | X55: 2 | Y55: -1 | Z55: 2 | AA55: -1 | AB55: 1 | AC55: 1 | AD55: 0 | AE55: 0 | AF55: 0 | AG55: 0
A56: 7.13 | B56: Técnico Pleno - Manutenção Elétrica - Especialista em Subestação Pátio, L. Transmissão e L. Distribuição | C56: T1 | D56: 12 | E56: 1 | F56: 12 | H56: 0 | I56: 0 | J56: 0 | K56: 0 | L56: 0 | M56: 0 | N56: 0 | O56: 0 | P56: 0 | Q56: 0 | R56: 0 | S56: 0 | T56: 0 | U56: 0 | V56: 0 | X56: 1 | Y56: 0 | Z56: 1 | AA56: 0 | AB56: 1 | AC56: 1 | AD56: 0 | AE56: 0 | AF56: 0 | AG56: 0
A57: 7.14 | B57: Técnico Pleno - Manutenção Elétrica - Especialista em Sistema de Proteção, Controle e Supervisão (SPCS) | C57: T1 | D57: 12 | E57: 1 | F57: 12 | H57: 0 | I57: 0 | J57: 0 | K57: 0 | L57: 0 | M57: 0 | N57: 0 | O57: 0 | P57: 0 | Q57: 0 | R57: 0 | S57: 0 | T57: 0 | U57: 0 | V57: 0 | X57: 1 | Y57: 0 | Z57: 1 | AA57: 0 | AB57: 1 | AC57: 1 | AD57: 0 | AE57: 0 | AF57: 0 | AG57: 0
A58: 7.15 | B58: Técnico Pleno - Manutenção Mecânica | C58: T1 | D58: 12 | E58: 1 | F58: 12 | H58: 0 | I58: 0 | J58: 0 | K58: 0 | L58: 0 | M58: 0 | N58: 0 | O58: 0 | P58: 0 | Q58: 0 | R58: 0 | S58: 0 | T58: 0 | U58: 0 | V58: 0 | X58: 4 | Y58: -3 | Z58: 2 | AA58: -1 | AB58: 1 | AC58: 1 | AD58: 0 | AE58: 0 | AF58: 0 | AG58: 0
A59: 7.16 | B59: Técnico Pleno - Manutenção Civil | C59: T1 | D59: 12 | E59: 1 | F59: 12 | H59: 0 | I59: 0 | J59: 0 | K59: 0 | L59: 0 | M59: 0 | N59: 0 | O59: 0 | P59: 0 | Q59: 0 | R59: 0 | S59: 0 | T59: 0 | U59: 0 | V59: 0 | X59: 4 | Y59: -3 | Z59: 2 | AA59: -1 | AB59: 1 | AC59: 1 | AD59: 0 | AE59: 0 | AF59: 0 | AG59: 0
A60: 7.17 | B60: Geólogo (Geotecnia) | C60: P1 | D60: 12 | E60: 1 | F60: 12 | H60: 0 | I60: 0 | J60: 0 | K60: 0 | L60: 0 | M60: 0 | N60: 0 | O60: 0 | P60: 0 | Q60: 0 | R60: 0 | S60: 0 | T60: 0 | U60: 0 | V60: 0 | X60: 2 | Y60: -1 | Z60: 1 | AA60: 0 | AB60: 1 | AC60: 1 | AD60: 0 | AE60: 0 | AF60: 0 | AG60: 0
A61: 8. | B61: OPERAÇÃO
A62: 8.1 | B62: Técnico Pleno - Eletrotécnico - Operador Estação de Bombeamento - Diurno (inclusive adicional de periculosidade) | C62: T1 | D62: =D$15 -> 12 | E62: =AB62 -> 18 | F62: =D62*E62 -> 216 | H62: =ROUND(((G62+J62)*$H$13),2) -> 0 | I62: 0 | J62: 0 | K62: 0 | L62: 0 | M62: 0 | N62: 0 | O62: =ROUND((G62+H62+J62+L62+N62)*$O$13,2) -> 0 | P62: =G62+H62+J62+L62+N62+O62 -> 0 | Q62: =ROUND(F62*G62,2) -> 0 | R62: =ROUND(F62*H62,2) -> 0 | S62: =ROUND(F62*J62,2) -> 0 | T62: =ROUND((F62*L62)+(F62*N62),2) -> 0 | U62: =ROUND(F62*O62,2) -> 0 | V62: =ROUND(F62*P62,2) -> 0 | X62: 18 | Y62: =AB62-$X62 -> 0 | Z62: 12 | AA62: =AB62-Z62 -> 6 | AB62: =SUM(AC62:AG62) -> 18 | AC62: 0 | AD62: 6 | AE62: 2 | AF62: 4 | AG62: 6
A63: 8.2 | B63: Técnico Pleno - Eletrotécnico - Operador Estação de Bombeamento - Noturno (inclusive adicional de periculosidade) | C63: T1 | D63: 12 | E63: 18 | F63: 216 | H63: =ROUND(((G63+J63)*$H$13),2) -> 0 | I63: =(((G63+H63)/176)*0.2) -> 0 | J63: =(I63*120)+((I63*120)/25)*5 -> 0 | K63: 0 | L63: 0 | M63: 0 | N63: 0 | O63: 0 | P63: 0 | Q63: 0 | R63: 0 | S63: 0 | T63: 0 | U63: 0 | V63: 0 | X63: 18 | Y63: 0 | Z63: 12 | AA63: 6 | AB63: 18 | AC63: 0 | AD63: 6 | AE63: 2 | AF63: 4 | AG63: 6
A64: 8.3 | B64: Técnico Junior - Mecânico - Operador Estação de Bombeamento - Diurno (inclusive adicional de periculosidade) | C64: T2 | D64: 12 | E64: 18 | F64: 216 | H64: 0 | I64: 0 | J64: 0 | K64: 0 | L64: 0 | M64: 0 | N64: 0 | O64: 0 | P64: 0 | Q64: 0 | R64: 0 | S64: 0 | T64: 0 | U64: 0 | V64: 0 | X64: 18 | Y64: 0 | Z64: 12 | AA64: 6 | AB64: 18 | AC64: 0 | AD64: 6 | AE64: 2 | AF64: 4 | AG64: 6
A65: 8.4 | B65: Técnico Junior - Mecânico - Operador Estação de Bombeamento - Noturno (inclusive adicional de periculosidade) | C65: T2 | D65: 12 | E65: 18 | F65: 216 | H65: 0 | I65: =(((G65+H65)/176)*0.2) -> 0 | J65: =(I65*120)+((I65*120)/25)*5 -> 0 | K65: 0 | L65: 0 | M65: 0 | N65: 0 | O65: 0 | P65: 0 | Q65: 0 | R65: 0 | S65: 0 | T65: 0 | U65: 0 | V65: 0 | X65: 18 | Y65: 0 | Z65: 12 | AA65: 6 | AB65: 18 | AC65: 0 | AD65: 6 | AE65: 2 | AF65: 4 | AG65: 6
A66: 8.5 | B66: Técnico Pleno - Eletrotécnico - Operador Subestação - Diurno (inclusive adicional de periculosidade) | C66: T1 | D66: 12 | E66: 18 | F66: 216 | H66: 0 | I66: 0 | J66: 0 | K66: 0 | L66: 0 | M66: 0 | N66: 0 | O66: 0 | P66: 0 | Q66: 0 | R66: 0 | S66: 0 | T66: 0 | U66: 0 | V66: 0 | X66: 18 | Y66: 0 | Z66: 12 | AA66: 6 | AB66: 18 | AC66: 0 | AD66: 6 | AE66: 2 | AF66: 4 | AG66: 6
A67: 8.6 | B67: Técnico Pleno - Eletrotécnico - Operador Subestação - Noturno (inclusive adicional de periculosidade) | C67: T1 | D67: 12 | E67: 18 | F67: 216 | H67: 0 | I67: =(((G67+H67)/176)*0.2) -> 0 | J67: =(I67*120)+((I67*120)/25)*5 -> 0 | K67: 0 | L67: 0 | M67: 0 | N67: 0 | O67: 0 | P67: 0 | Q67: 0 | R67: 0 | S67: 0 | T67: 0 | U67: 0 | V67: 0 | X67: 18 | Y67: 0 | Z67: 12 | AA67: 6 | AB67: 18 | AC67: 0 | AD67: 6 | AE67: 2 | AF67: 4 | AG67: 6
A68: 8.7 | B68: Técnico Junior - Eletrotécnico - Operador Subestação - Diurno (inclusive adicional de periculosidade) | C68: T2 | D68: 12 | E68: 18 | F68: 216 | H68: 0 | I68: 0 | J68: 0 | K68: 0 | L68: 0 | M68: 0 | N68: 0 | O68: 0 | P68: 0 | Q68: 0 | R68: 0 | S68: 0 | T68: 0 | U68: 0 | V68: 0 | X68: 18 | Y68: 0 | Z68: 12 | AA68: 6 | AB68: 18 | AC68: 0 | AD68: 6 | AE68: 2 | AF68: 4 | AG68: 6
A69: 8.8 | B69: Técnico Junior - Eletrotécnico - Operador Subestação - Noturno (inclusive adicional de periculosidade) | C69: T2 | D69: 12 | E69: 18 | F69: 216 | H69: 0 | I69: =(((G69+H69)/176)*0.2) -> 0 | J69: =(I69*120)+((I69*120)/25)*5 -> 0 | K69: 0 | L69: 0 | M69: 0 | N69: 0 | O69: 0 | P69: 0 | Q69: 0 | R69: 0 | S69: 0 | T69: 0 | U69: 0 | V69: 0 | X69: 18 | Y69: 0 | Z69: 12 | AA69: 6 | AB69: 18 | AC69: 0 | AD69: 6 | AE69: 2 | AF69: 4 | AG69: 6
A70: 8.9 | B70: Técnico Auxiliar (inclusive adicional de periculosidade) | C70: T3 | D70: 12 | E70: 13 | F70: 156 | H70: 0 | I70: 0 | J70: 0 | K70: 0 | L70: 0 | M70: 0 | N70: 0 | O70: 0 | P70: 0 | Q70: 0 | R70: 0 | S70: 0 | T70: 0 | U70: 0 | V70: 0 | X70: 18 | Y70: -5 | Z70: 4 | AA70: 9 | AB70: 13 | AC70: =1*(4+4+5) -> 13 | AD70: 0 | AE70: 0 | AF70: 0 | AG70: 0
A71: 8.10 | B71: Técnico Auxiliar - Leiturista (inclusive adicional de periculosidade) | C71: T3 | D71: 12 | E71: 4 | F71: 48 | H71: 0 | I71: 0 | J71: 0 | K71: 0 | L71: 0 | M71: 0 | N71: 0 | O71: 0 | P71: 0 | Q71: 0 | R71: 0 | S71: 0 | T71: 0 | U71: 0 | V71: 0 | X71: 6 | Y71: -2 | Z71: 2 | AA71: 2 | AB71: 4 | AC71: 4 | AD71: 0 | AE71: 0 | AF71: 0 | AG71: 0
A72: 9. | B72: MANUTENÇÃO - MECÂNICA
A73: 9.1 | B73: Técnico Pleno - Mecânico (inclusive adicional de periculosidade) | C73: T1 | D73: =D$15 -> 12 | E73: =AB73 -> 3 | F73: =D73*E73 -> 36 | H73: 0 | I73: 0 | J73: 0 | K73: 0 | L73: =K73*(176*0.025) -> 0 | M73: 0 | N73: =M73*(176*0.05) -> 0 | O73: =ROUND((G73+H73+J73+L73+N73)*$O$13,2) -> 0 | P73: =G73+H73+J73+L73+N73+O73 -> 0 | Q73: =ROUND(F73*G73,2) -> 0 | R73: =ROUND(F73*H73,2) -> 0 | S73: =ROUND(F73*J73,2) -> 0 | T73: =ROUND((F73*L73)+(F73*N73),2) -> 0 | U73: =ROUND(F73*O73,2) -> 0 | V73: =ROUND(F73*P73,2) -> 0 | X73: 7 | Y73: =AB73-$X73 -> -4 | Z73: 2 | AA73: =AB73-Z73 -> 1 | AB73: =SUM(AC73:AG73) -> 3 | AC73: 0 | AD73: 1 | AE73: 1 | AF73: 1 | AG73: 0
A74: 9.2 | B74: Técnico Auxiliar - Mecânico (inclusive adicional de periculosidade) | C74: T3 | D74: 12 | E74: 4 | F74: 48 | H74: 0 | I74: 0 | J74: 0 | K74: 0 | L74: 0 | M74: 0 | N74: 0 | O74: 0 | P74: 0 | Q74: 0 | R74: 0 | S74: 0 | T74: 0 | U74: 0 | V74: 0 | X74: 12 | Y74: -8 | Z74: 5 | AA74: -1 | AB74: 4 | AC74: 0 | AD74: 2 | AE74: 1 | AF74: 1 | AG74: 0
A75: 10. | B75: MANUTENÇÃO - EQUIPAMENTOS E SISTEMAS ELÉTRICOS
A76: 10.1 | B76: Técnico Pleno - Eletrotécnico - Especialista em Baixa e Média Tensão (inclusive adicional de periculosidade) | C76: T1 | D76: =D$15 -> 12 | E76: =AB76 -> 3 | F76: =D76*E76 -> 36 | H76: =ROUND(((G76)*$H$13),2) -> 0 | I76: 0 | J76: 0 | K76: 0 | L76: =K76*(176*0.025) -> 0 | M76: 0 | N76: =M76*(176*0.05) -> 0 | O76: =ROUND((G76+H76+J76+L76+N76)*$O$13,2) -> 0 | P76: =G76+H76+J76+L76+N76+O76 -> 0 | Q76: =ROUND(F76*G76,2) -> 0 | R76: =ROUND(F76*H76,2) -> 0 | S76: =ROUND(F76*J76,2) -> 0 | T76: =ROUND((F76*L76)+(F76*N76),2) -> 0 | U76: =ROUND(F76*O76,2) -> 0 | V76: =ROUND(F76*P76,2) -> 0 | X76: 6 | Y76: =AB76-$X76 -> -3 | Z76: 3 | AA76: =AB76-Z76 -> 0 | AB76: =SUM(AC76:AG76) -> 3 | AC76: 0 | AD76: 1 | AE76: 1 | AF76: 1 | AG76: 0
A77: 10.2 | B77: Técnico Junior - Eletrotécnico - Especialista em Baixa e Média Tensão (inclusive adicional de periculosidade) | C77: T2 | D77: 12 | E77: =AB77 -> 0 | F77: =D77*E77 -> 0 | H77: 0 | I77: 0 | J77: 0 | K77: 0 | L77: =K77*(176*0.025) -> 0 | M77: 0 | N77: =M77*(176*0.05) -> 0 | O77: =ROUND((G77+H77+J77+L77+N77)*$O$13,2) -> 0 | P77: =G77+H77+J77+L77+N77+O77 -> 0 | Q77: =ROUND(F77*G77,2) -> 0 | R77: =ROUND(F77*H77,2) -> 0 | S77: =ROUND(F77*J77,2) -> 0 | T77: =ROUND((F77*L77)+(F77*N77),2) -> 0 | U77: =ROUND(F77*O77,2) -> 0 | V77: =ROUND(F77*P77,2) -> 0 | X77: 2 | Y77: =AB77-$X77 -> -2 | Z77: 2 | AA77: =AB77-Z77 -> -2 | AB77: =SUM(AC77:AG77) -> 0 | AC77: 0 | AD77: 0 | AE77: 0 | AF77: 0 | AG77: 0
A78: 10.3 | B78: Técnico Auxiliar (inclusive adicional de periculosidade) | C78: T3 | D78: 12 | E78: =AB78 -> 4 | F78: =D78*E78 -> 48 | H78: 0 | I78: 0 | J78: 0 | K78: 0 | L78: 0 | M78: 0 | N78: =M78*(176*0.05) -> 0 | O78: =ROUND((G78+H78+J78+L78+N78)*$O$13,2) -> 0 | P78: =G78+H78+J78+L78+N78+O78 -> 0 | Q78: =ROUND(F78*G78,2) -> 0 | R78: =ROUND(F78*H78,2) -> 0 | S78: =ROUND(F78*J78,2) -> 0 | T78: =ROUND((F78*L78)+(F78*N78),2) -> 0 | U78: =ROUND(F78*O78,2) -> 0 | V78: =ROUND(F78*P78,2) -> 0 | X78: 8 | Y78: =AB78-$X78 -> -4 | Z78: 4 | AA78: =AB78-Z78 -> 0 | AB78: =SUM(AC78:AG78) -> 4 | AC78: 0 | AD78: 2 | AE78: 0 | AF78: 2 | AG78: 0
A79: 11. | B79: Manutenção - Subestação - Pátios
A80: 11.1 | B80: Eletrotécnico - Especialista Subestação 230 Kv (inclusive adicional de periculosidade) | C80: T1 | D80: =D$15 -> 12 | E80: =AB80 -> 1 | F80: =D80*E80 -> 12 | H80: 0 | I80: 0 | J80: 0 | K80: 0 | L80: 0 | M80: 0 | N80: =M80*(176*0.05) -> 0 | O80: =ROUND((G80+H80+J80+L80+N80)*$O$13,2) -> 0 | P80: =G80+H80+J80+L80+N80+O80 -> 0 | Q80: =ROUND(F80*G80,2) -> 0 | R80: =ROUND(F80*H80,2) -> 0 | S80: =ROUND(F80*J80,2) -> 0 | T80: =ROUND((F80*L80)+(F80*N80),2) -> 0 | U80: =ROUND(F80*O80,2) -> 0 | V80: =ROUND(F80*P80,2) -> 0 | X80: 1 | Y80: =AB80-$X80 -> 0 | Z80: 1 | AA80: =AB80-Z80 -> 0 | AB80: =SUM(AC80:AG80) -> 1 | AC80: 0 | AD80: 1 | AE80: 0 | AF80: 0 | AG80: 0
A81: 11.2 | B81: Eletricista (inclusive adicional de periculosidade) | C81: T3 | D81: 12 | E81: =AB81 -> 1 | F81: =D81*E81 -> 12 | H81: 0 | I81: 0 | J81: 0 | K81: 0 | L81: 0 | M81: 0 | N81: 0 | O81: =ROUND((G81+H81+J81+L81+N81)*$O$13,2) -> 0 | P81: =G81+H81+J81+L81+N81+O81 -> 0 | Q81: =ROUND(F81*G81,2) -> 0 | R81: =ROUND(F81*H81,2) -> 0 | S81: =ROUND(F81*J81,2) -> 0 | T81: =ROUND((F81*L81)+(F81*N81),2) -> 0 | U81: =ROUND(F81*O81,2) -> 0 | V81: =ROUND(F81*P81,2) -> 0 | X81: 2 | Y81: =AB81-$X81 -> -1 | Z81: 2 | AA81: =AB81-Z81 -> -1 | AB81: =SUM(AC81:AG81) -> 1 | AC81: 0 | AD81: 1 | AE81: 0 | AF81: 0 | AG81: 0
A82: 11.3 | B82: Eletromecânico (inclusive adicional de periculosidade) | C82: T3 | D82: 12 | E82: =AB82 -> 0 | F82: =D82*E82 -> 0 | H82: 0 | I82: 0 | J82: 0 | K82: 0 | L82: 0 | M82: 0 | N82: 0 | O82: =ROUND((G82+H82+J82+L82+N82)*$O$13,2) -> 0 | P82: =G82+H82+J82+L82+N82+O82 -> 0 | Q82: =ROUND(F82*G82,2) -> 0 | R82: =ROUND(F82*H82,2) -> 0 | S82: =ROUND(F82*J82,2) -> 0 | T82: =ROUND((F82*L82)+(F82*N82),2) -> 0 | U82: =ROUND(F82*O82,2) -> 0 | V82: =ROUND(F82*P82,2) -> 0 | X82: 2 | Y82: =AB82-$X82 -> -2 | Z82: 2 | AA82: =AB82-Z82 -> -2 | AB82: =SUM(AC82:AG82) -> 0 | AC82: 0 | AD82: 0 | AE82: 0 | AF82: 0 | AG82: 0
A83: 12. | B83: Manutenção - Linhas de Transmissão 230 kv e 69kv
A84: 12.1 | B84: Eletrotécnico - Especialista Inspeção em Linha de Transmissão 230 / 269 Kv (inclusive adicional de periculosidade) | C84: T1 | D84: =D$15 -> 12 | E84: =AB84 -> 1 | F84: =D84*E84 -> 12 | H84: 0 | I84: 0 | J84: 0 | K84: 0 | L84: 0 | M84: 0 | N84: 0 | O84: =ROUND((G84+H84+J84+L84+N84)*$O$13,2) -> 0 | P84: =G84+H84+J84+L84+N84+O84 -> 0 | Q84: =ROUND(F84*G84,2) -> 0 | R84: =ROUND(F84*H84,2) -> 0 | S84: =ROUND(F84*J84,2) -> 0 | T84: =ROUND((F84*L84)+(F84*N84),2) -> 0 | U84: =ROUND(F84*O84,2) -> 0 | V84: =ROUND(F84*P84,2) -> 0 | X84: 2 | Y84: =AB84-$X84 -> -1 | Z84: 2 | AA84: =AB84-Z84 -> -1 | AB84: =SUM(AC84:AG84) -> 1 | AC84: 0 | AD84: 0 | AE84: 1 | AF84: 0 | AG84: 0
A85: 12.2 | B85: Auxiliar Eletrotécnico (inclusive adicional de periculosidade) | C85: T4 | D85: 12 | E85: =AB85 -> 1 | F85: =D85*E85 -> 12 | H85: 0 | I85: 0 | J85: 0 | K85: 0 | L85: 0 | M85: 0 | N85: 0 | O85: =ROUND((G85+H85+J85+L85+N85)*$O$13,2) -> 0 | P85: =G85+H85+J85+L85+N85+O85 -> 0 | Q85: =ROUND(F85*G85,2) -> 0 | R85: =ROUND(F85*H85,2) -> 0 | S85: =ROUND(F85*J85,2) -> 0 | T85: =ROUND((F85*L85)+(F85*N85),2) -> 0 | U85: =ROUND(F85*O85,2) -> 0 | V85: =ROUND(F85*P85,2) -> 0 | X85: 2 | Y85: =AB85-$X85 -> -1 | Z85: 2 | AA85: =AB85-Z85 -> -1 | AB85: =SUM(AC85:AG85) -> 1 | AC85: 0 | AD85: 0 | AE85: 1 | AF85: 0 | AG85: 0
A86: 13. | B86: Manutenção - Linhas de Distibuição - 13,8kv e 6,9 kv
A87: 13.1 | B87: Eletrotécnico - Especialista em Linha de Distribuição 13,8 Kv (inclusive adicional de periculosidade) | C87: T1 | D87: =D$15 -> 12 | E87: =AB87 -> 1 | F87: =D87*E87 -> 12 | H87: 0 | I87: 0 | J87: 0 | K87: 0 | L87: 0 | M87: 0 | N87: 0 | O87: =ROUND((G87+H87+J87+L87+N87)*$O$13,2) -> 0 | P87: =G87+H87+J87+L87+N87+O87 -> 0 | Q87: =ROUND(F87*G87,2) -> 0 | R87: =ROUND(F87*H87,2) -> 0 | S87: =ROUND(F87*J87,2) -> 0 | T87: =ROUND((F87*L87)+(F87*N87),2) -> 0 | U87: =ROUND(F87*O87,2) -> 0 | V87: =ROUND(F87*P87,2) -> 0 | X87: 3 | Y87: =AB87-$X87 -> -2 | Z87: 2 | AA87: =AB87-Z87 -> -1 | AB87: =SUM(AC87:AG87) -> 1 | AC87: 0 | AD87: 0 | AE87: 0 | AF87: 1 | AG87: 0
A88: 13.2 | B88: Eletricista (inclusive adicional de periculosidade) | C88: T3 | D88: 12 | E88: =AB88 -> 1 | F88: =D88*E88 -> 12 | H88: 0 | I88: 0 | J88: 0 | K88: 0 | L88: 0 | M88: 0 | N88: 0 | O88: =ROUND((G88+H88+J88+L88+N88)*$O$13,2) -> 0 | P88: =G88+H88+J88+L88+N88+O88 -> 0 | Q88: =ROUND(F88*G88,2) -> 0 | R88: =ROUND(F88*H88,2) -> 0 | S88: =ROUND(F88*J88,2) -> 0 | T88: =ROUND((F88*L88)+(F88*N88),2) -> 0 | U88: =ROUND(F88*O88,2) -> 0 | V88: =ROUND(F88*P88,2) -> 0 | X88: 3 | Y88: =AB88-$X88 -> -2 | Z88: 2 | AA88: =AB88-Z88 -> -1 | AB88: =SUM(AC88:AG88) -> 1 | AC88: 0 | AD88: 0 | AE88: 0 | AF88: 1 | AG88: 0
A89: 13.3 | B89: Auxiliar Eletrotécnico (inclusive adicional de periculosidade) | C89: T4 | D89: 12 | E89: =AB89 -> 0 | F89: =D89*E89 -> 0 | H89: 0 | I89: 0 | J89: 0 | K89: 0 | L89: 0 | M89: 0 | N89: 0 | O89: =ROUND((G89+H89+J89+L89+N89)*$O$13,2) -> 0 | P89: =G89+H89+J89+L89+N89+O89 -> 0 | Q89: =ROUND(F89*G89,2) -> 0 | R89: =ROUND(F89*H89,2) -> 0 | S89: =ROUND(F89*J89,2) -> 0 | T89: =ROUND((F89*L89)+(F89*N89),2) -> 0 | U89: =ROUND(F89*O89,2) -> 0 | V89: =ROUND(F89*P89,2) -> 0 | X89: 3 | Y89: =AB89-$X89 -> -3 | Z89: 2 | AA89: =AB89-Z89 -> -2 | AB89: =SUM(AC89:AG89) -> 0 | AC89: 0 | AD89: 0 | AE89: 0 | AF89: 0 | AG89: 0
A90: 14. | B90: MANUTENÇÃO SDSC
A91: 14.1 | B91: Técnico Automação - Especialista em SDSC (inclusive adicional de periculosidade) | C91: T1 | D91: =D$15 -> 12 | E91: =AB91 -> 3 | F91: =D91*E91 -> 36 | H91: =ROUND(((G91+J91)*$H$13),2) -> 0 | I91: 0 | J91: 0 | K91: 0 | L91: 0 | M91: 0 | N91: 0 | O91: =ROUND((G91+H91+J91+L91+N91)*$O$13,2) -> 0 | P91: =G91+H91+J91+L91+N91+O91 -> 0 | Q91: =ROUND(F91*G91,2) -> 0 | R91: =ROUND(F91*H91,2) -> 0 | S91: =ROUND(F91*J91,2) -> 0 | T91: =ROUND((F91*L91)+(F91*N91),2) -> 0 | U91: =ROUND(F91*O91,2) -> 0 | V91: =ROUND(F91*P91,2) -> 0 | X91: 2 | Y91: =AB91-$X91 -> 1 | Z91: 2 | AA91: =AB91-Z91 -> 1 | AB91: =SUM(AC91:AG91) -> 3 | AC91: 0 | AD91: 1 | AE91: 1 | AF91: 1 | AG91: 0
A92: 14.2 | B92: Técnico Instrumentação (inclusive adicional de periculosidade) | C92: T1 | D92: 12 | E92: =AB92 -> 0 | F92: =D92*E92 -> 0 | H92: 0 | I92: 0 | J92: 0 | K92: 0 | L92: 0 | M92: 0 | N92: 0 | O92: =ROUND((G92+H92+J92+L92+N92)*$O$13,2) -> 0 | P92: =G92+H92+J92+L92+N92+O92 -> 0 | Q92: =ROUND(F92*G92,2) -> 0 | R92: =ROUND(F92*H92,2) -> 0 | S92: =ROUND(F92*J92,2) -> 0 | T92: =ROUND((F92*L92)+(F92*N92),2) -> 0 | U92: =ROUND(F92*O92,2) -> 0 | V92: =ROUND(F92*P92,2) -> 0 | X92: 1 | Y92: =AB92-$X92 -> -1 | Z92: 1 | AA92: =AB92-Z92 -> -1 | AB92: =SUM(AC92:AG92) -> 0 | AC92: 0 | AD92: 0 | AE92: 0 | AF92: 0 | AG92: 0
A93: 15. | B93: MANUTENÇÃO SPCS
A94: 15.1 | B94: Eletrotécnico - Especialista em SPCS (inclusive adicional de periculosidade) | C94: T1 | D94: =D$15 -> 12 | E94: =AB94 -> 1 | F94: =D94*E94 -> 12 | H94: 0 | I94: 0 | J94: 0 | K94: 0 | L94: 0 | M94: 0 | N94: 0 | O94: =ROUND((G94+H94+J94+L94+N94)*$O$13,2) -> 0 | P94: =G94+H94+J94+L94+N94+O94 -> 0 | Q94: =ROUND(F94*G94,2) -> 0 | R94: =ROUND(F94*H94,2) -> 0 | S94: =ROUND(F94*J94,2) -> 0 | T94: =ROUND((F94*L94)+(F94*N94),2) -> 0 | U94: =ROUND(F94*O94,2) -> 0 | V94: =ROUND(F94*P94,2) -> 0 | X94: 2 | Y94: =AB94-$X94 -> -1 | Z94: 2 | AA94: =AB94-Z94 -> -1 | AB94: =SUM(AC94:AG94) -> 1 | AC94: 1 | AD94: 0 | AE94: 0 | AF94: 0 | AG94: 0
A95: 16. | B95: MANUTENÇÃO TELECOM
A96: 16.1 | B96: Técnico Telecomunicações/Eletrônica (inclusive adicional de periculosidade) | C96: T1 | D96: =D$15 -> 12 | E96: =AB96 -> 1 | F96: =D96*E96 -> 12 | H96: =ROUND(((G96+J96)*$H$13),2) -> 0 | I96: 0 | J96: 0 | K96: 0 | L96: =K96*(176*0.025) -> 0 | M96: 0 | N96: =M96*(176*0.05) -> 0 | O96: =ROUND((G96+H96+J96+L96+N96)*$O$13,2) -> 0 | P96: =G96+H96+J96+L96+N96+O96 -> 0 | Q96: =ROUND(F96*G96,2) -> 0 | R96: =ROUND(F96*H96,2) -> 0 | S96: =ROUND(F96*J96,2) -> 0 | T96: =ROUND((F96*L96)+(F96*N96),2) -> 0 | U96: =ROUND(F96*O96,2) -> 0 | V96: =ROUND(F96*P96,2) -> 0 | X96: 4 | Y96: =AB96-$X96 -> -3 | Z96: 2 | AA96: =AB96-Z96 -> -1 | AB96: =SUM(AC96:AG96) -> 1 | AC96: 1 | AD96: 0 | AE96: 0 | AF96: 0 | AG96: 0
A97: 17. | B97: MANUTENÇÃO - CIVIL
A98: 17.1 | B98: Técnico Pleno - Encarregado de Campo (inclusive adicional de periculosidade) | C98: T1 | D98: =D$15 -> 12 | E98: =AB98 -> 3 | F98: =D98*E98 -> 36 | H98: =ROUND(((G98+J98)*$H$13),2) -> 0 | I98: 0 | J98: 0 | K98: 0 | L98: =K98*(176*0.025) -> 0 | M98: 0 | N98: =M98*(176*0.05) -> 0 | O98: =ROUND((G98+H98+J98+L98+N98)*$O$13,2) -> 0 | P98: =G98+H98+J98+L98+N98+O98 -> 0 | Q98: =ROUND(F98*G98,2) -> 0 | R98: =ROUND(F98*H98,2) -> 0 | S98: =ROUND(F98*J98,2) -> 0 | T98: =ROUND((F98*L98)+(F98*N98),2) -> 0 | U98: =ROUND(F98*O98,2) -> 0 | V98: =ROUND(F98*P98,2) -> 0 | X98: 5 | Y98: =AB98-$X98 -> -2 | Z98: 1 | AA98: =AB98-Z98 -> 2 | AB98: =SUM(AC98:AG98) -> 3 | AC98: 0 | AD98: 1 | AE98: 1 | AF98: 1 | AG98: 0
A99: 17.2 | B99: Tecnico Edificações - Inspeção (inclusive adicional de periculosidade) | C99: T2 | D99: 12 | E99: 3 | F99: 36 | H99: =ROUND(((G99+J99)*$H$13),2) -> 0 | I99: 0 | J99: 0 | K99: 0 | L99: 0 | M99: 0 | N99: 0 | O99: 0 | P99: 0 | Q99: 0 | R99: 0 | S99: 0 | T99: 0 | U99: 0 | V99: 0 | X99: 3 | Y99: 0 | Z99: 1 | AA99: 2 | AB99: 3 | AC99: 0 | AD99: 1 | AE99: 1 | AF99: 1 | AG99: 0
A100: 17.3 | B100: Técnico Junior - Cadista | C100: T2 | D100: 12 | E100: 3 | F100: 36 | H100: 0 | I100: 0 | J100: 0 | K100: 0 | L100: 0 | M100: 0 | N100: 0 | O100: 0 | P100: 0 | Q100: 0 | R100: 0 | S100: 0 | T100: 0 | U100: 0 | V100: 0 | X100: 3 | Y100: 0 | Z100: 2 | AA100: 1 | AB100: 3 | AC100: 0 | AD100: 1 | AE100: 1 | AF100: 1 | AG100: 0
A101: 17.4 | B101: Topógrafo (inclusive adicional de periculosidade) | C101: T1 | D101: 12 | E101: 1 | F101: 12 | H101: =ROUND(((G101+J101)*$H$13),2) -> 0 | I101: 0 | J101: 0 | K101: 0 | L101: 0 | M101: 0 | N101: 0 | O101: 0 | P101: 0 | Q101: 0 | R101: 0 | S101: 0 | T101: 0 | U101: 0 | V101: 0 | X101: 2 | Y101: -1 | Z101: 1 | AA101: 0 | AB101: 1 | AC101: 1 | AD101: 0 | AE101: 0 | AF101: 0 | AG101: 0
A102: 17.5 | B102: Auxiliar de Topografia (inclusive adicional de periculosidade) | C102: T4 | D102: 12 | E102: 2 | F102: 24 | H102: 0 | I102: 0 | J102: 0 | K102: 0 | L102: 0 | M102: 0 | N102: 0 | O102: 0 | P102: 0 | Q102: 0 | R102: 0 | S102: 0 | T102: 0 | U102: 0 | V102: 0 | X102: 4 | Y102: -2 | Z102: 2 | AA102: 0 | AB102: 2 | AC102: 2 | AD102: 0 | AE102: 0 | AF102: 0 | AG102: 0
A103: 17.6 | B103: Carpinteiro (inclusive adicional de periculosidade) | C103: T3 | D103: 12 | E103: 3 | F103: 36 | H103: 0 | I103: 0 | J103: 0 | K103: 0 | L103: 0 | M103: 0 | N103: 0 | O103: 0 | P103: 0 | Q103: 0 | R103: 0 | S103: 0 | T103: 0 | U103: 0 | V103: 0 | X103: 6 | Y103: -3 | Z103: 1 | AA103: 2 | AB103: 3 | AC103: 0 | AD103: 1 | AE103: 1 | AF103: 1 | AG103: 0
A104: 17.7 | B104: Eletricista (inclusive adicional de periculosidade) | C104: T3 | D104: 12 | E104: 3 | F104: 36 | H104: 0 | I104: 0 | J104: 0 | K104: 0 | L104: 0 | M104: 0 | N104: 0 | O104: 0 | P104: 0 | Q104: 0 | R104: 0 | S104: 0 | T104: 0 | U104: 0 | V104: 0 | X104: 7 | Y104: -4 | Z104: 2 | AA104: 1 | AB104: 3 | AC104: 0 | AD104: 1 | AE104: 1 | AF104: 1 | AG104: 0
A105: 17.8 | B105: Ferreiro (inclusive adicional de periculosidade) | C105: T3 | D105: 12 | E105: 3 | F105: 36 | H105: 0 | I105: 0 | J105: 0 | K105: 0 | L105: 0 | M105: 0 | N105: 0 | O105: 0 | P105: 0 | Q105: 0 | R105: 0 | S105: 0 | T105: 0 | U105: 0 | V105: 0 | X105: 6 | Y105: -3 | Z105: 1 | AA105: 2 | AB105: 3 | AC105: 0 | AD105: 1 | AE105: 1 | AF105: 1 | AG105: 0
A106: 17.9 | B106: Pedreiro (inclusive adicional de periculosidade) | C106: T3 | D106: 12 | E106: 7 | F106: 84 | H106: 0 | I106: 0 | J106: 0 | K106: 0 | L106: 0 | M106: 0 | N106: 0 | O106: 0 | P106: 0 | Q106: 0 | R106: 0 | S106: 0 | T106: 0 | U106: 0 | V106: 0 | X106: 14 | Y106: -7 | Z106: 3 | AA106: 4 | AB106: 7 | AC106: 0 | AD106: 3 | AE106: 2 | AF106: 2 | AG106: 0
A107: 17.10 | B107: Servente (inclusive adicional de periculosidade) | C107: A4 | D107: 12 | E107: 63 | F107: 756 | H107: 0 | I107: 0 | J107: 0 | K107: 0 | L107: 0 | M107: 0 | N107: 0 | O107: 0 | P107: 0 | Q107: 0 | R107: 0 | S107: 0 | T107: 0 | U107: 0 | V107: 0 | X107: 176 | Y107: -113 | Z107: 90 | AA107: -27 | AB107: 63 | AC107: 0 | AD107: =2*(3+3)+3*4 -> 24 | AE107: =2*(1+1)+3*4 -> 16 | AF107: =2*(2+2)+3*5 -> 23 | AG107: 0
A108: 17.11 | B108: Vigia (inclusive adicional de periculosidade) | C108: A4 | D108: 12 | E108: 0 | F108: 0 | H108: 0 | I108: 0 | J108: 0 | K108: 0 | L108: 0 | M108: 0 | N108: 0 | O108: 0 | P108: 0 | Q108: 0 | R108: 0 | S108: 0 | T108: 0 | U108: 0 | V108: 0 | X108: 4 | Y108: -4 | Z108: 2 | AA108: -2 | AB108: 0 | AC108: 0 | AD108: 0 | AE108: 0 | AF108: 0 | AG108: 0
A109: Total Geral - Equipe com Vínculo Mensalista (R$): | Q109: =SUM(Q15:Q108) -> 0 | R109: 0 | S109: 0 | T109: 0 | U109: 0 | V109: =SUM(V14:V108) -> 0
E110: =SUBTOTAL(9,E13:E109) -> 329 | F110: =SUBTOTAL(9,F13:F109) -> 3948 | X110: =SUM(X14:X109) -> 539 | Y110: -210 | Z110: 305 | AA110: 24 | AB110: 329 | AC110: 56 | AD110: 96 | AE110: 52 | AF110: =SUM(AF14:AF109) -> 77 | AG110: 48
E111: 214 | Z111: =Z110/X110 -> 0.5658627087 | AB111: =AB110/X110 -> 0.6103896104
A112: NOME DO INFORMANTE: | U112: QUALIFICAÇÃO:
A114: ASSINATURA: | U114: DATA:
A116: OBSERVAÇÕES:
A117: 1. Considerado a carga horária de 176 horas/mês
A118: 2. Os cálculos de cada parcela que compõe o salário completo foram calculadas isoladamente. (Salário Base + Adicional de Periculosidade (quando houver) + Adicional Noturno (quando houver) + Adicional de Horas Extras (quando houver) + Encargos Sociais)
A119: 3. Adicional de Periculosidade 30%: foi previsto para todos os profissionais eletricitários (Operação e Manutenção) que trabalham em contato com rede elétrica (nas estações de bombeamento, sub-estações, etc.)
A120: 4. Hora Noturna: Hora Diurna x 20%
A121: 5. Adicional Noturno: *Considerado 120 horas/profissional/mês (Total de 8h noturnas: Período de 22h as 5h = 8h noturnas + 1h até as 6h => Súmula 60 do TST) *(Incide sobre Salário Base + Periculosidade => Súmula 191 do TST)
A122: 6. Período noturno – 22 às 5 horas, o valor da hora tem 52 minutos e 30 segundos; logo, nesse período, há 8 horas
A123: 6. Foi considerado intervalo intrajornada para todos os profissionais que trabalham em escala 12h x 36h
A124: 7. Foi considerado para o cálculo de horas extras os percentuais de: *5% para as horas remuneradas a 50% sobre o valor da hora normal; e *2,5% para as horas trabalhadas remuneradas a 100% sobre o valor da hora normal
A125: 8. Horas Extras: Foi estimado um percentual de 20% de horas extras no total de contrato para todos os profissionais da manutenção. Essas horas só serão pagas se houver demanda.

Sheet Mem_Calculo_EQUIPE
B1: Ministério do Desenvolvimento Regional - MDR
B2: Companhia de Desenvolvimento dos Vales do São Francisco e do Parnaíba
B3: Gerência de Operação do PISF - Centro de Controle e Operação (AD / GOI / CCO)
A5: SERVIÇOS DE OPERAÇÃO E MANUTENÇÃO DAS INFRAESTRUTURAS DO EIXO LESTE DO PROJETO DE INTEGRAÇÃO DO RIO SÃO FRANCISCO COM AS BACIAS HIDROGRÁFICAS DO NORDESTE SETENTRIONAL – PISF
A8: MEMORIAL DE CÁLCULO - EQUIPE DE MÃO DE OBRA
A11: ITEM | B11: DESCRIÇÃO | C11: CLASSE | D11: LOTAÇÃO | E11: MOBILIZAÇÃO | F11: QUANTIDADE | G11: OBSERVAÇÕES
A12: 1. | B12: COORDENAÇÃO GERAL
A13: 1.1 | B13: Coordenador - Engenheiro Sênior (Civil / Eletricista / Mecânico) - Esp. Manutenção Sist Abast/Ger | C13: P0 | D13: Coordenação (à definir) | E13: Escritório | F13: 1
A14: 1.2 | B14: Assistente Administrativo | C14: A1 | D14: Coordenação (à definir) | E14: Escritório | F14: 1
A15: 1.3 | B15: Auxiliar Administrativo | C15: A3 | D15: Coordenação (à definir) | E15: Escritório | F15: 1
A17: 2. | B17: COORDENAÇÃO DA OPERAÇÃO
A18: 2.1 | B18: Coordenador - Engenheiro Sênior (Civil / Eletricista / Mecânico) - Esp. Manutenção Sist Abast/Ger | C18: P1 | D18: Coordenação (à definir) | E18: Escritório | F18: 1
A19: 2.2 | B19: Auxiliar Administrativo | C19: A3 | D19: Coordenação (à definir) | E19: Escritório | F19: 1
A21: 3. | B21: COORDENAÇÃO DA MANUTENÇÃO
A22: 3.1 | B22: Coordenador - Engenheiro Sênior (Civil / Eletricista / Mecânico) - Esp. Manutenção Sist Abast/Ger | C22: P1 | D22: Coordenação (à definir) | E22: Escritório | F22: 1
A23: 3.2 | B23: Auxiliar Administrativo | C23: A3 | D23: Coordenação (à definir) | E23: Escritório | F23: 1
A25: 4. | B25: COORDENAÇÃO ADMINISTRAÇÃO E LOGÍSTICA
A26: 4.1 | B26: Almoxarife | C26: A1 | D26: Coordenação (à definir) | E26: Pode utilizar o escritório | F26: 1
A27: 4.2 | B27: Auxiliar Administrativo | C27: A3 | D27: Coordenação (à definir) | E27: Escritório | F27: 1
A28: 4.3 | B28: Motorista | C28: A3 | D28: Coordenação (à definir) | E28: Não utilliza o Escritório | F28: 2
A29: 4.4 | B29: Coordenador - Chefe de Escritório | C29: AS | D29: Coordenação (à definir) | E29: Escritório | F29: 1
A30: 4.5 | B30: Técnico Pleno - Analista em Tecnologia da Informação | C30: T1 | D30: Coordenação (à definir) | E30: Escritório | F30: 1
A31: 4.6 | B31: Auxiliar de Almoxarifado | C31: A3 | D31: Lote 09 (Floresta/PE) | E31: Pode utilizar o escritório | F31: 1
A32: 4.7 | B32: Motorista | C32: A3 | D32: Lote 09 (Floresta/PE) | E32: Não utiliza o Escritório | F32: 1
A33: 4.8 | B33: Servente | C33: A4 | D33: Lote 09 (Floresta/PE) | E33: Não utilliza o Escritório | F33: 4 | G33: Equipe: 04/(canteiro)
A34: 4.9 | B34: Auxiliar de Almoxarifado | C34: A3 | D34: Lote 10 (Custódia/PE) | E34: Pode utilizar o escritório | F34: 1
A35: 4.10 | B35: Motorista | C35: A3 | D35: Lote 10 (Custódia/PE) | E35: Não utilliza o Escritório | F35: 1
A36: 4.11 | B36: Servente | C36: A4 | D36: Lote 10 (Custódia/PE) | E36: Não utilliza o Escritório | F36: 4 | G36: Equipe: 04/(canteiro)
A37: 4.12 | B37: Auxiliar de Almoxarifado | C37: A3 | D37: Lote 12 (Sertânia/PE) | E37: Pode utilizar o escritório | F37: 1
A38: 4.13 | B38: Motorista | C38: A3 | D38: Lote 12 (Sertânia/PE) | E38: Não utilliza o Escritório | F38: 1
A39: 4.14 | B39: Servente | C39: A4 | D39: Lote 12 (Sertânia/PE) | E39: Não utilliza o Escritório | F39: 4 | G39: Equipe: 04/(canteiro)
A41: 5. | B41: COORDENAÇÃO SEGURANÇA E MEDICINA DO TRABALHO
A42: 5.1 | B42: Engenheiro de Segurança e Medicina do Trabalho | C42: P1 | D42: Coordenação (à definir) | E42: Escritório | F42: 1
A43: 5.2 | B43: Médico do Trabalho | C43: P1 | D43: Coordenação (à definir) | E43: Escritório | F43: 1
A44: 5.3 | B44: Técnico de Segurança e Medicina do Trabalho | C44: T2 | D44: Coordenação (à definir) | E44: Pode utilizar o escritório | F44: 2
A46: 6. | B46: PLANEJAMENTO E CONTROLE DA OPERAÇÃO
A47: 6.1 | B47: Engenheiro Pleno - Civil - Especialista em Hidráulica | C47: P1 | D47: Coordenação (à definir) | E47: Planeja / Utiliza - Escritório | F47: 1
A48: 6.2 | B48: Engenheiro Pleno - Civil - Especialista em Hidrologia | C48: P1 | D48: Coordenação (à definir) | E48: Planeja / Utiliza - Escritório | F48: 1
A49: 6.3 | B49: Engenheiro Pleno - Eletricista | C49: P1 | D49: Coordenação (à definir) | E49: Planeja / Utiliza - Escritório | F49: 1
A50: 6.4 | B50: Engenheiro Junior - Civil | C50: P3 | D50: Coordenação (à definir) | E50: Planeja / Utiliza - Escritório | F50: 1
A52: 7. | B52: PLANEJAMENTO E CONTROLE DA MANUTENÇÃO
A53: 7.1 | B53: Engenheiro Pleno - Eletricista - Especialista em Equipamentos e Sistemas Elétricos | C53: P1 | D53: Coordenação (à definir) | E53: Planeja / Utiliza - Escritório | F53: 1
A54: 7.2 | B54: Engenheiro Pleno - Eletricista - Especialista em Subestação Pátio, L. Transmissão e L. Distribuição | C54: P1 | D54: Coordenação (à definir) | E54: Planeja / Utiliza - Escritório | F54: 1
A55: 7.3 | B55: Engenheiro Pleno - Eletricista - Especialista em Sistema de Proteção, Controle e Supervisão (SPCS) | C55: P1 | D55: Coordenação (à definir) | E55: Planeja / Utiliza - Escritório | F55: 1
A56: 7.4 | B56: Engenheiro Pleno - Mecânico | C56: P1 | D56: Coordenação (à definir) | E56: Planeja / Utiliza - Escritório | F56: 1
A57: 7.5 | B57: Engenheiro Pleno - Civil | C57: P1 | D57: Coordenação (à definir) | E57: Planeja / Utiliza - Escritório | F57: 1
A58: 7.6 | B58: Engenheiro Pleno - Mecatrônica - Especialista em Automação | C58: P1 | D58: Coordenação (à definir) | E58: Planeja / Utiliza - Escritório | F58: 1
A59: 7.7 | B59: Engenheiro Pleno - Telecomunicações | C59: P1 | D59: Coordenação (à definir) | E59: Planeja / Utiliza - Escritório | F59: 1
A60: 7.8 | B60: Geólogo (Geotecnia) | C60: P1 | D60: Coordenação (à definir) | E60: Planeja / Utiliza - Escritório | F60: 1 | G60: Profissional para atender aos serviços de Segurança de Barragem
A61: 7.9 | B61: Técnico Sênior - Manutenção Elétrica - Especialista em Equipamentos e Sistemas Elétricos | C61: T0 | D61: Coordenação (à definir) | E61: Pode utilizar o escritório | F61: 1
A62: 7.10 | B62: Técnico Sênior - Manutenção Elétrica - Especialista em Subestação Pátio, L. Transmissão e L. Distribuição | C62: T0 | D62: Coordenação (à definir) | E62: Pode utilizar o escritório | F62: 1
A63: 7.11 | B63: Técnico Sênior - Manutenção Elétrica - Especialista em Sistema de Proteção, Controle e Supervisão (SPCS) | C63: T0 | D63: Coordenação (à definir) | E63: Pode utilizar o escritório | F63: 1
A64: 7.12 | B64: Técnico Sênior - Manutenção Mecânica | C64: T0 | D64: Coordenação (à definir) | E64: Pode utilizar o escritório | F64: 1
A65: 7.13 | B65: Técnico Sênior - Manutenção Civil | C65: T0 | D65: Coordenação (à definir) | E65: Pode utilizar o escritório | F65: 1
A67: 8. | B67: OPERAÇÃO
A68: 8.1 | B68: Técnico Auxiliar | C68: T3 | D68: Coordenação (à definir) | E68: Não utilliza o Escritório | F68: =1*(4+4+5) -> 13 | G68: Equipe: 01/barragem
A69: 8.2 | B69: Técnico Auxiliar - Leiturista | C69: T3 | D69: Coordenação (à definir) | E69: Não utilliza o Escritório | F69: 4
A70: 8.3 | B70: Técnico Pleno - Eletrotécnico - Operador Estação de Bombeamento | C70: T1 | D70: Lote 09 (Floresta/PE) | E70: Não utilliza o Escritório | F70: =6+6 -> 12
A71: 8.4 | B71: Técnico Pleno - Eletrotécnico - Operador Subestação | C71: T1 | D71: Lote 09 (Floresta/PE) | E71: Não utilliza o Escritório | F71: =6+6 -> 12
A72: 8.5 | B72: Técnico Junior - Mecânico - Operador Estação de Bombeamento | C72: T2 | D72: Lote 09 (Floresta/PE) | E72: Não utilliza o Escritório | F72: =6+6 -> 12
A73: 8.6 | B73: Técnico Junior - Eletrotécnico - Operador Subestação | C73: T2 | D73: Lote 09 (Floresta/PE) | E73: Não utilliza o Escritório | F73: =6+6 -> 12
A74: 8.7 | B74: Técnico Pleno - Eletrotécnico - Operador Estação de Bombeamento | C74: T1 | D74: Lote 10 (Custódia/PE) | E74: Não utilliza o Escritório | F74: 4
A75: 8.8 | B75: Técnico Pleno - Eletrotécnico - Operador Subestação | C75: T1 | D75: Lote 10 (Custódia/PE) | E75: Não utilliza o Escritório | F75: 4
A76: 8.9 | B76: Técnico Junior - Mecânico - Operador Estação de Bombeamento | C76: T2 | D76: Lote 10 (Custódia/PE) | E76: Não utilliza o Escritório | F76: 4
A77: 8.10 | B77: Técnico Junior - Eletrotécnico - Operador Subestação | C77: T2 | D77: Lote 10 (Custódia/PE) | E77: Não utilliza o Escritório | F77: 4
A78: 8.11 | B78: Técnico Pleno - Eletrotécnico - Operador Estação de Bombeamento | C78: T1 | D78: Lote 12 (Sertânia/PE) | E78: Não utilliza o Escritório | F78: 8
A79: 8.12 | B79: Técnico Pleno - Eletrotécnico - Operador Subestação | C79: T1 | D79: Lote 12 (Sertânia/PE) | E79: Não utilliza o Escritório | F79: 8
A80: 8.13 | B80: Técnico Junior - Mecânico - Operador Estação de Bombeamento | C80: T2 | D80: Lote 12 (Sertânia/PE) | E80: Não utilliza o Escritório | F80: 8
A81: 8.14 | B81: Técnico Junior - Eletrotécnico - Operador Subestação | C81: T2 | D81: Lote 12 (Sertânia/PE) | E81: Não utilliza o Escritório | F81: 8
A83: 9. | B83: MANUTENÇÃO - MECÂNICA
A84: 9.1 | B84: Técnico Pleno - Mecânico | C84: T1 | D84: Lote 09 (Floresta/PE) | E84: Pode utilizar o escritório | F84: 1
A85: 9.2 | B85: Técnico Auxiliar - Mecânico | C85: T3 | D85: Lote 09 (Floresta/PE) | E85: Não utilliza o Escritório | F85: 2
A86: 9.3 | B86: Técnico Pleno - Mecânico | C86: T1 | D86: Lote 10 (Custódia/PE) | E86: Pode utilizar o escritório | F86: 1
A87: 9.4 | B87: Técnico Auxiliar - Mecânico | C87: T3 | D87: Lote 10 (Custódia/PE) | E87: Não utilliza o Escritório | F87: 1
A88: 9.5 | B88: Técnico Pleno - Mecânico | C88: T1 | D88: Lote 12 (Sertânia/PE) | E88: Pode utilizar o escritório | F88: 1
A89: 9.6 | B89: Técnico Auxiliar - Mecânico | C89: T3 | D89: Lote 12 (Sertânia/PE) | E89: Não utilliza o Escritório | F89: 1
A91: 10. | B91: MANUTENÇÃO - EQUIPAMENTOS E SISTEMAS ELÉTRICOS
A92: 10.1 | B92: Técnico Pleno - Eletrotécnico - Especialista em Baixa e Média Tensão | C92: T1 | D92: Lote 09 (Floresta/PE) | E92: Pode utilizar o escritório | F92: 1
A93: 10.2 | B93: Técnico Auxiliar | C93: T3 | D93: Lote 09 (Floresta/PE) | E93: Não utilliza o Escritório | F93: 2
A94: 10.3 | B94: Técnico Pleno - Eletrotécnico - Especialista em Baixa e Média Tensão | C94: T1 | D94: Lote 10 (Custódia/PE) | E94: Pode utilizar o escritório | F94: 1
A95: 10.4 | B95: Técnico Pleno - Eletrotécnico - Especialista em Baixa e Média Tensão | C95: T1 | D95: Lote 12 (Sertânia/PE) | E95: Pode utilizar o escritório | F95: 1
A96: 10.5 | B96: Técnico Auxiliar | C96: T3 | D96: Lote 12 (Sertânia/PE) | E96: Não utilliza o Escritório | F96: 2
A98: 11. | B98: MANUTENÇÃO - SUBESTAÇÃO - PÁTIOS
A99: 11.1 | B99: Eletrotécnico - Especialista Subestação 230 Kv (inclusive adicional de periculosidade) | C99: T1 | D99: Lote 09 (Floresta/PE) | E99: Não utilliza o Escritório | F99: 1
A100: 11.2 | B100: Eletricista (inclusive adicional de periculosidade) | C100: T3 | D100: Lote 09 (Floresta/PE) | E100: Não utilliza o Escritório | F100: 1
A102: 12. | B102: MANUTENÇÃO - LINHAS DE TRANSMISSÃO 230 KV E 69KV
A103: 12.1 | B103: Eletrotécnico - Especialista Inspeção em Linha de Transmissão 230 / 269 Kv (inclusive adicional de periculosidade) | C103: T1 | D103: Lote 10 (Custódia/PE) | E103: Não utilliza o Escritório | F103: 1
A104: 12.2 | B104: Auxiliar Eletrotécnico (inclusive adicional de periculosidade) | C104: T4 | D104: Lote 10 (Custódia/PE) | E104: Não utilliza o Escritório | F104: 1
A106: 13. | B106: MANUTENÇÃO - LINHAS DE DISTIBUIÇÃO - 13,8KV E 6,9 KV
A107: 13.1 | B107: Eletrotécnico - Especialista em Linha de Distribuição 13,8 Kv (inclusive adicional de periculosidade) | C107: T1 | D107: Lote 12 (Sertânia/PE) | E107: Não utilliza o Escritório | F107: 1
A108: 13.2 | B108: Eletricista (inclusive adicional de periculosidade) | C108: T3 | D108: Lote 12 (Sertânia/PE) | E108: Não utilliza o Escritório | F108: 1
A110: 14. | B110: MANUTENÇÃO SDSC
A111: 14.1 | B111: Técnico Automação - Especialista em SDSC (inclusive adicional de periculosidade) | C111: T1 | D111: Lote 09 (Floresta/PE) | E111: Não utilliza o Escritório | F111: 1
A112: 14.2 | B112: Técnico Automação - Especialista em SDSC (inclusive adicional de periculosidade) | C112: T1 | D112: Lote 10 (Custódia/PE) | E112: Não utilliza o Escritório | F112: 1
A113: 14.3 | B113: Técnico Automação - Especialista em SDSC (inclusive adicional de periculosidade) | C113: T1 | D113: Lote 12 (Sertânia/PE) | E113: Não utilliza o Escritório | F113: 1
A115: 15. | B115: MANUTENÇÃO - CIVIL
A116: 15.1 | B116: Topógrafo | C116: T1 | D116: Coordenação (à definir) | E116: Pode utilizar o escritório | F116: 1
A117: 15.2 | B117: Auxiliar de Topografia | C117: T4 | D117: Coordenação (à definir) | E117: Não utilliza o Escritório | F117: 2
A118: 15.3 | B118: Servente (com adicional de periculosidade) | C118: A4 | D118: Lote 09 (Floresta/PE) | E118: Não utilliza o Escritório | F118: =2*(3+3)+3*4 -> 24 | G118: Equipe: 02/(EB + SE) + 03/barragem
A119: 15.4 | B119: Técnico Sênior - Encarregado de Campo | C119: T0 | D119: Lote 09 (Floresta/PE) | E119: Pode utilizar o escritório | F119: 1
A120: 15.5 | B120: Tecnico Edificações - Inspeção | C120: T2 | D120: Lote 09 (Floresta/PE) | E120: Pode utilizar o escritório | F120: 1
A121: 15.6 | B121: Técnico Junior - Cadista | C121: T2 | D121: Lote 09 (Floresta/PE) | E121: Pode utilizar o escritório | F121: 1
A122: 15.7 | B122: Pedreiro | C122: T3 | D122: Lote 09 (Floresta/PE) | E122: Não utilliza o Escritório | F122: 3
A123: 15.8 | B123: Carpinteiro | C123: T3 | D123: Lote 09 (Floresta/PE) | E123: Não utilliza o Escritório | F123: 1
A124: 15.9 | B124: Ferreiro | C124: T3 | D124: Lote 09 (Floresta/PE) | E124: Não utilliza o Escritório | F124: 1
A125: 15.10 | B125: Eletricista | C125: T3 | D125: Lote 09 (Floresta/PE) | E125: Não utilliza o Escritório | F125: 1
A126: 15.11 | B126: Servente (com adicional de periculosidade) | C126: A4 | D126: Lote 10 (Custódia/PE) | E126: Não utilliza o Escritório | F126: =2*(1+1)+3*4 -> 16 | G126: Equipe: 02/(EB + SE) + 03/barragem
A127: 15.12 | B127: Técnico Sênior - Encarregado de Campo | C127: T0 | D127: Lote 10 (Custódia/PE) | E127: Pode utilizar o escritório | F127: 1
A128: 15.13 | B128: Tecnico Edificações - Inspeção | C128: T2 | D128: Lote 10 (Custódia/PE) | E128: Pode utilizar o escritório | F128: 1
A129: 15.14 | B129: Técnico Junior - Cadista | C129: T2 | D129: Lote 10 (Custódia/PE) | E129: Pode utilizar o escritório | F129: 1
A130: 15.15 | B130: Pedreiro | C130: T3 | D130: Lote 10 (Custódia/PE) | E130: Não utilliza o Escritório | F130: 1
A131: 15.16 | B131: Carpinteiro | C131: T3 | D131: Lote 10 (Custódia/PE) | E131: Não utilliza o Escritório | F131: 1
A132: 15.17 | B132: Ferreiro | C132: T3 | D132: Lote 10 (Custódia/PE) | E132: Não utilliza o Escritório | F132: 1
A133: 15.18 | B133: Eletricista | C133: T3 | D133: Lote 10 (Custódia/PE) | E133: Não utilliza o Escritório | F133: 2
A134: 15.19 | B134: Servente (com adicional de periculosidade) | C134: A4 | D134: Lote 12 (Sertânia/PE) | E134: Não utilliza o Escritório | F134: =2*(2+2)+3*5 -> 23 | G134: Equipe: 02/(EB + SE) + 03/barragem
A135: 15.20 | B135: Técnico Sênior - Encarregado de Campo | C135: T0 | D135: Lote 12 (Sertânia/PE) | E135: Pode utilizar o escritório | F135: 1
A136: 15.21 | B136: Técnico Junior - Cadista | C136: T2 | D136: Lote 12 (Sertânia/PE) | E136: Pode utilizar o escritório | F136: 1
A137: 15.22 | B137: Tecnico Edificações - Inspeção | C137: T2 | D137: Lote 12 (Sertânia/PE) | E137: Pode utilizar o escritório | F137: 1
A138: 15.23 | B138: Pedreiro | C138: T3 | D138: Lote 12 (Sertânia/PE) | E138: Não utilliza o Escritório | F138: 2
A139: 15.24 | B139: Carpinteiro | C139: T3 | D139: Lote 12 (Sertânia/PE) | E139: Não utilliza o Escritório | F139: 1
A140: 15.25 | B140: Ferreiro | C140: T3 | D140: Lote 12 (Sertânia/PE) | E140: Não utilliza o Escritório | F140: 1
A141: 15.26 | B141: Eletricista | C141: T3 | D141: Lote 12 (Sertânia/PE) | E141: Não utilliza o Escritório | F141: 1
A145: NOME DO INFORMANTE: | G145: QUALIFICAÇÃO:
A147: ASSINATURA: | G147: DATA:
A149: OBSERVAÇAO:

Sheet Encargos Sociais e Benefícios
B1: Ministério do Desenvolvimento Regional - MDR
B2: Companhia de Desenvolvimento dos Vales do São Francisco e do Parnaíba
B3: Gerência de Operação do PISF - Centro de Controle e Operação (AD / GOI / CCO)
A5: SERVIÇOS DE OPERAÇÃO E MANUTENÇÃO DAS INFRAESTRUTURAS DO EIXO LESTE DO PROJETO DE INTEGRAÇÃO DO RIO SÃO FRANCISCO COM AS BACIAS HIDROGRÁFICAS DO NORDESTE SETENTRIONAL – PISF
A8: ENCARGOS SOCIAIS E TRABALHISTAS E BENEFÍCIOS
A11: ITEM | B11: DESCRIÇÃO | C11: Mensalista Diurno
A13: GRUPO "A" | C13: %
A14: A1 | B14: INSS (Art. 22 inciso I da Lei 8.212/91) | C14: 0.2
A15: A2 | B15: SESC/SESI (Art. 3° da Lei 8036/90) | C15: 0.015
A16: A3 | B16: SENAC/SENAI (Decreto 2.318/86) | C16: 0.01
A17: A4 | B17: INCRA (Lei 7787 de 30/06/890e DL 1146/70) | C17: 0.002
A18: A5 | B18: SEBRAE (Art. 8° Lei 8029/90 e 8154 de 28/12/90) | C18: 0.006
A19: A6 | B19: Salário Educação (Art. 3° inciso I Decreto 87.043/) | C19: 0.025
A20: A7 | B20: Seguro contra Acidentes de Trabalho (Decreto 3.048/1999, Anexo V e Decreto 6.957/2009) | C20: 0.03
A21: A8 | B21: FGTS (Art. 15 da Lei 8030/90 art. 7° inciso III CF/88) | C21: 0.08
A22: A8 | B22: SECONCI | C22: -
A23: ="TOTAL - "&A13&" - (%):" -> TOTAL - GRUPO "A" - (%): | C23: =SUM(C14:C21) -> 0.368
A25: GRUPO "B" | C25: %
A26: B1 | B26: Repouso semanal remunerado | C26: -
A27: B2 | B27: Feriados | C27: -
A28: B3 | B28: Auxílio Enfermidade | C28: 0.0071
A29: B4 | B29: 13º Salário | C29: 0.0833
A30: B5 | B30: Licença Paternidade Faltas justificadas | C30: 0.0006
A31: B6 | B31: Faltas Justificadas | C31: 0.0056
A32: B7 | B32: Dias de Chuva | C32: -
A33: B8 | B33: Auxílio Acidente de Trabalho | C33: 0.0009
A34: B9 | B34: Férias Gozadas | C34: 0.059
A35: B10 | B35: Salário Maternidade | C35: 0.0002
A36: ="TOTAL - "&A25&" - (%):" -> TOTAL - GRUPO "B" - (%): | C36: =SUM(C26:C35) -> 0.1567
A38: GRUPO "C" | C38: %
A39: C1 | B39: Aviso Prévio Indenizado | C39: 0.0371
A40: C2 | B40: Aviso Prévio Trabalhado | C40: 0.0009
A41: C3 | B41: Férias Indenizadas | C41: 0.0458
A42: C4 | B42: Depósito Rescisão sem Justa Causa | C42: 0.0381
A43: C5 | B43: Indenização Adicional | C43: 0.0031
A44: ="TOTAL - "&A38&" - (%):" -> TOTAL - GRUPO "C" - (%): | C44: =SUM(C39:C43) -> 0.125
A46: GRUPO "D" | C46: %
A47: D1 | B47: Reincidência de Grupo A sobre Grupo B | C47: =C23*C36 -> 0.0576656
A48: D2 | B48: Reincidência de Grupo A sobre C2 e Reincidência de A8 sobre C1 | C48: =(C23*C40)+(C21*C39) -> 0.0032992
A49: ="TOTAL - "&A46&" - (%):" -> TOTAL - GRUPO "D" - (%): | C49: =SUM(C47:C48) -> 0.0609648
A51: GRUPO "E" | C51: %
A52: E1 | B52: Auxílio Alimentação | C52: 0.04
A53: E2 | B53: Equipamento de Proteção Individual - EPI | C53: 0.013
A54: E3 | B54: Consultas e exames Médicos | C54: 0.005
A55: E4 | B55: Seguro de Vida | C55: 0.003
A56: ="TOTAL - "&A51&" - (%):" -> TOTAL - GRUPO "E" - (%): | C56: =SUM(C52:C55) -> 0.061
A59: ="RESUMO - "&A$8 -> RESUMO - ENCARGOS SOCIAIS E TRABALHISTAS E BENEFÍCIOS
A60: ITEM | B60: DESCRIÇÃO | C60: %
A61: 1 | B61: =A13 -> GRUPO "A" | C61: =C23 -> 0.368
A62: 2 | B62: =A25 -> GRUPO "B" | C62: =C36 -> 0.1567
A63: 3 | B63: =A38 -> GRUPO "C" | C63: =C44 -> 0.125
A64: 4 | B64: =A46 -> GRUPO "D" | C64: =C49 -> 0.0609648
A65: 5 | B65: =A51 -> GRUPO "E" | C65: =C56 -> 0.061
A66: ="TOTAL - "&A59&" - (%):" -> TOTAL - RESUMO - ENCARGOS SOCIAIS E TRABALHISTAS E BENEFÍCIOS - (%): | C66: =SUM(C61:C65) -> 0.7716648
A69: NOME DO INFORMANTE: | C69: QUALIFICAÇÃO:
A71: ASSINATURA: | C71: DATA:
A73: OBSERVAÇÃO:
A74: 1. Fonte: Sistema Nacional de Pesquisa de Custos e Índices da Construção (Tablea SINAPI - Composição de Encargos Sociais).
A75: 2. Os percentuais dos encargos previdenciários e FGTS, a serem preenchidos na coluna %, são aqueles estabelecidos pela legislação vigente, incidentes sobre a remuneração

Sheet Viagens_Diárias
C1: Ministério do Desenvolvimento Regional - MDR
C2: Companhia de Desenvolvimento dos Vales do São Francisco e do Parnaíba
C3: Gerência de Operação do PISF - Centro de Controle e Operação (AD / GOI / CCO)
A5: SERVIÇOS DE OPERAÇÃO E MANUTENÇÃO DAS INFRAESTRUTURAS DO EIXO LESTE DO PROJETO DE INTEGRAÇÃO DO RIO SÃO FRANCISCO COM AS BACIAS HIDROGRÁFICAS DO NORDESTE SETENTRIONAL – PISF
A8: VIAGENS / DIÁRIAS
A11: ITEM | B11: CÓDIGO | C11: DESCRIÇÃO | D11: UNIDADE | E11: QUANTIDADE | F11: VALOR (R$)
F12: UNITARIO | G12: TOTAL
C13: =A8 -> VIAGENS / DIÁRIAS
A15: 1. | C15: DESPESAS COM VIAGENS COMERCIAIS
A16: 1.1 | C16: Viagem por via aerea | D16: un | E16: =6*2 -> 12 | G16: =ROUND(E16*F16,2) -> 0
A17: 1.2 | C17: Viagem por via terrestre (comercial) | D17: un | E17: =12*2 -> 24 | G17: =ROUND(E17*F17,2) -> 0
A18: ="TOTAL - "&C15&" - (R$):" -> TOTAL - DESPESAS COM VIAGENS COMERCIAIS - (R$): | G18: =SUBTOTAL(9,G15:G17) -> 0
A20: 2. | C20: DESPESAS COM DIÁRIAS
A21: 2.1 | C21: Diárias nacionais | D21: un | E21: =SUM(E16:E17)/2*3 -> 54 | G21: =ROUND(E21*F21,2) -> 0
A22: ="TOTAL - "&C20&" - (R$):" -> TOTAL - DESPESAS COM DIÁRIAS - (R$): | G22: =SUBTOTAL(9,G20:G21) -> 0
A24: ="TOTAL - "&C13&" - (R$):" -> TOTAL - VIAGENS / DIÁRIAS - (R$): | G24: =SUBTOTAL(9,G13:G23) -> 0
A27: ="RESUMO - "&A$8 -> RESUMO - VIAGENS / DIÁRIAS
A28: ITEM | C28: DESCRIÇÃO | F28: VALOR TOTAL (R$)
A29: 1 | C29: =C15 -> DESPESAS COM VIAGENS COMERCIAIS | F29: =G18 -> 0
A30: 2 | C30: =C20 -> DESPESAS COM DIÁRIAS | F30: =G22 -> 0
A31: ="TOTAL GERAL - "&A$8&" - (R$):" -> TOTAL GERAL - VIAGENS / DIÁRIAS - (R$): | F31: =SUM(F29:G30) -> 0
A34: NOME DO INFORMANTE: | F34: QUALIFICAÇÃO:
A36: ASSINATURA: | F36: DATA:
A38: OBSERVAÇÃO:
A39: 1. Os produtos serão pagos por demanda (Conforme efetiva utilização, mediante autorização prévia da fiscalização)
A40: 2. O valor estimado para as passagens aéreas foi calculado conforme "MEMORIAL DE CÁLCULO - VIAGENS"
A41: 3. O valor adotado para a diária é o valor praticado pela Codevasf, conforme "Tabela de Diárias da Codevasf", considerando: diária completa; demais localidades; e empregados de nível superior, médio e operacional.
A43: 4. Os quantitativos foram estimados de acordo com a quantidae de pessoal lotada no campo, e baseadas na quantidade de viagens que a equipe da Codevasf utiliza.
A44: 5. Os valores previstos são o máximo que serão pagos pela Codevasf durante todo o período do contrato.

Sheet CPU_Viagens
B1: Ministério do Desenvolvimento Regional - MDR
B2: Companhia de Desenvolvimento dos Vales do São Francisco e do Parnaíba
B3: Gerência de Operação do PISF - Centro de Controle e Operação (AD / GOI / CCO)
A5: SERVIÇOS DE OPERAÇÃO E MANUTENÇÃO DAS INFRAESTRUTURAS DO EIXO LESTE DO PROJETO DE INTEGRAÇÃO DO RIO SÃO FRANCISCO COM AS BACIAS HIDROGRÁFICAS DO NORDESTE SETENTRIONAL – PISF
A8: MEMORIAL DE CÁLCULO - VIAGENS
A11: ITEM | B11: ORIGEM | C11: DESTINO | D11: COMPANHIA | E11: VALOR (R$)
E12: TAXA | F12: TRECHO | G12: TOTAL
A13: 1. | B13: PASSAGENS AÉREAS
A14: 1.1 | B14: Brasília (BSB) | C14: Curitiba (CWB) | D14: Azul | E14: 71 | F14: 387 | G14: =F14+E14 -> 458
A15: 1.2 | B15: Brasília (BSB) | C15: Rio de Janeiro (GIG) | D15: Azul | E15: 71 | F15: 333 | G15: 404
A16: 1.3 | B16: Brasília (BSB) | C16: São Paulo (GRU) | D16: Azul | E16: 71 | F16: 164 | G16: 235
A17: 1.4 | B17: Brasília (BSB) | C17: Juazeiro do Norte (JDO) | D17: Azul | E17: 91 | F17: 604 | G17: 695
A18: 1.5 | B18: Brasília (BSB) | C18: Petrolina (PNZ) | D18: Azul | E18: 85 | F18: 544 | G18: 629
A19: 1.6 | B19: Brasília (BSB) | C19: Porto Alegre (POA) | D19: Azul | E19: 77 | F19: 467 | G19: 544
A20: 1.7 | B20: Brasília (BSB) | C20: Recife (REC) | D20: Azul | E20: 71 | F20: 292 | G20: 363
A21: 1.8 | B21: Brasília (BSB) | C21: Salvador (SSA) | D21: Latam | E21: 73 | F21: 418 | G21: 491
A22: 1.9 | B22: Curitiba (CWB) | C22: Rio de Janeiro (GIG) | D22: Gol | E22: 73 | F22: 200 | G22: 273
A23: 1.10 | B23: Curitiba (CWB) | C23: São Paulo (GRU) | D23: Latam | E23: 73 | F23: 117 | G23: 190
A24: 1.11 | B24: Curitiba (CWB) | C24: Juazeiro do Norte (JDO) | D24: Azul | E24: 84 | F24: 510 | G24: 594
A25: 1.12 | B25: Curitiba (CWB) | C25: Petrolina (PNZ) | D25: Gol | E25: 109 | F25: 755 | G25: 864
A26: 1.13 | B26: Curitiba (CWB) | C26: Porto Alegre (POA) | D26: Azul | E26: 73 | F26: 287 | G26: 360
A27: 1.14 | B27: Curitiba (CWB) | C27: Recife (REC) | D27: Azul | E27: 108 | F27: 746 | G27: 854
A28: 1.15 | B28: Curitiba (CWB) | C28: Salvador (SSA) | D28: Azul | E28: 82 | F28: 486 | G28: 568
A29: 1.16 | B29: Rio de Janeiro (GIG) | C29: São Paulo (GRU) | D29: Gol | E29: 72 | F29: 204 | G29: 276
A30: 1.17 | B30: Rio de Janeiro (GIG) | C30: Juazeiro do Norte (JDO) | D30: Azul | E30: 80 | F30: 497 | G30: 577
A31: 1.18 | B31: Rio de Janeiro (GIG) | C31: Petrolina (PNZ) | D31: Azul | E31: 104 | F31: 740 | G31: 844
A32: 1.19 | B32: Rio de Janeiro (GIG) | C32: Porto Alegre (POA) | D32: Azul | E32: 81 | F32: 505 | G32: 586
A33: 1.20 | B33: Rio de Janeiro (GIG) | C33: Recife (REC) | D33: Azul | E33: 77 | F33: 459 | G33: 536
A34: 1.21 | B34: Rio de Janeiro (GIG) | C34: Salvador (SSA) | D34: Latam | E34: 87 | F34: 550 | G34: 637
A35: 1.22 | B35: São Paulo (GRU) | C35: Juazeiro do Norte (JDO) | D35: Gol | E35: 72 | F35: 396 | G35: 468
A36: 1.23 | B36: São Paulo (GRU) | C36: Petrolina (PNZ) | D36: Gol | E36: 98 | F36: 654 | G36: 752
A37: 1.24 | B37: São Paulo (GRU) | C37: Porto Alegre (POA) | D37: Latam | E37: 72 | F37: 262 | G37: 334
A38: 1.25 | B38: São Paulo (GRU) | C38: Recife (REC) | D38: Azul | E38: 80 | F38: 478 | G38: 558
A39: 1.26 | B39: São Paulo (GRU) | C39: Salvador (SSA) | D39: Azul | E39: 72 | F39: 192 | G39: 264
A40: 1.27 | B40: Juazeiro do Norte (JDO) | C40: Petrolina (PNZ) | D40: Azul | E40: 256 | F40: 2294 | G40: 2550
A41: 1.28 | B41: Juazeiro do Norte (JDO) | C41: Porto Alegre (POA) | D41: Azul | E41: 88 | F41: 614 | G41: 702
A42: 1.29 | B42: Juazeiro do Norte (JDO) | C42: Recife (REC) | D42: Azul | E42: 66 | F42: 130 | G42: 196
A43: 1.30 | B43: Juazeiro do Norte (JDO) | C43: Salvador (SSA) | D43: Azul | E43: 66 | F43: 333 | G43: 399
A44: 1.31 | B44: Petrolina (PNZ) | C44: Porto Alegre (POA) | D44: Azul | E44: 96 | F44: 695 | G44: 791
A45: 1.32 | B45: Petrolina (PNZ) | C45: Recife (REC) | D45: Azul | E45: 66 | F45: 218 | G45: 284
A46: 1.33 | B46: Petrolina (PNZ) | C46: Salvador (SSA) | D46: Passaredo | E46: 65 | F46: 235 | G46: 300
A47: 1.34 | B47: Porto Alegre (POA) | C47: Recife (REC) | D47: Latam | E47: 89 | F47: 568 | G47: 657
A48: 1.35 | B48: Porto Alegre (POA) | C48: Salvador (SSA) | D48: Latam | E48: 80 | F48: 474 | G48: 554
A49: 1.36 | B49: Recife (REC) | C49: Salvador (SSA) | D49: Azul | E49: 73 | F49: 193 | G49: 266
A50: ="VALOR MÉDIO - "&B13&" - (R$):" -> VALOR MÉDIO - PASSAGENS AÉREAS - (R$): | G50: =ROUND(AVERAGE(G13:G49),2) -> 557.03
A52: 2. | B52: PASSAGENS TERRESTRES
A53: 2.1 | B53: Brasília (BSB) | C53: Curitiba (CWB) | D53: Real Expresso | E53: 0 | F53: 275.9 | G53: =F53+E53 -> 275.9
A54: 2.2 | B54: Brasília (BSB) | C54: Rio de Janeiro (GIG) | D54: Util | E54: 0 | F54: 196.67 | G54: =F54+E54 -> 196.67
A55: 2.3 | B55: Brasília (BSB) | C55: São Paulo (GRU) | D55: Real Expresso | E55: 0 | F55: 289 | G55: 289
A56: 2.4 | B56: Brasília (BSB) | C56: Juazeiro do Norte (JDO) | D56: Guanabara | E56: 0 | F56: 311.47 | G56: 311.47
A57: 2.5 | B57: Brasília (BSB) | C57: Petrolina (PNZ) | D57: Guanabara | E57: 0 | F57: 288.47 | G57: 288.47
A58: 2.6 | B58: Brasília (BSB) | C58: Porto Alegre (POA) | D58: Real Expresso | E58: 0 | F58: 416.42 | G58: 416.42
A59: 2.7 | B59: Brasília (BSB) | C59: Recife (REC) | D59: Expresso São Luiz | E59: 0 | F59: 407.91 | G59: 407.91
A60: 2.8 | B60: Brasília (BSB) | C60: Salvador (SSA) | D60: Rápido Federal | E60: 0 | F60: 309.01 | G60: 309.01
A61: 2.9 | B61: Curitiba (CWB) | C61: Rio de Janeiro (GIG) | D61: Penha | E61: 0 | F61: 202.64 | G61: 202.64
A62: 2.10 | B62: Curitiba (CWB) | C62: São Paulo (GRU) | D62: Eucatur | E62: 0 | F62: 54.02 | G62: 54.02
A63: 2.11 | B63: Curitiba (CWB) | C63: Porto Alegre (POA) | D63: Catarinense | E63: 0 | F63: 159.99 | G63: =F63+E63 -> 159.99
A64: 2.12 | B64: Rio de Janeiro (GIG) | C64: São Paulo (GRU) | D64: Kaissara | E64: 0 | F64: 109.99 | G64: 109.99
A65: 2.13 | B65: Rio de Janeiro (GIG) | C65: Porto Alegre (POA) | D65: Penha | E65: 0 | F65: 405.97 | G65: 405.97
A66: 2.14 | B66: Rio de Janeiro (GIG) | C66: Recife (REC) | D66: Itapemirim | E66: 0 | F66: 419.99 | G66: 419.99
A67: 2.15 | B67: Rio de Janeiro (GIG) | C67: Salvador (SSA) | D67: Kaissara | E67: 0 | F67: 359.98 | G67: 359.98
A68: 2.16 | B68: São Paulo (GRU) | C68: Porto Alegre (POA) | D68: Penha | E68: 0 | F68: 239.79 | G68: 239.79
A69: 2.17 | B69: São Paulo (GRU) | C69: Recife (REC) | D69: Itapemirim | E69: 0 | F69: 400.19 | G69: 400.19
A70: 2.18 | B70: Juazeiro do Norte (JDO) | C70: Recife (REC) | D70: Cruzeiro | E70: 0 | F70: 137.5 | G70: 137.5
A71: 2.19 | B71: Petrolina (PNZ) | C71: Recife (REC) | D71: Cruzeiro | E71: 0 | F71: 150.3 | G71: 150.3
A72: 2.20 | B72: Petrolina (PNZ) | C72: Salvador (SSA) | D72: Marte | E72: 0 | F72: 89.99 | G72: 89.99
A73: 2.21 | B73: Recife (REC) | C73: Salvador (SSA) | D73: Guanabara | E73: 0 | F73: 99.9 | G73: 99.9
A74: 2.22 | B74: Brasília (BSB) | C74: Salgueiro (SGI) | D74: Guanabara | E74: 0 | F74: 344.77 | G74: =F74+E74 -> 344.77
A75: 2.23 | B75: Petrolina (PNZ) | C75: Salgueiro (SGI) | D75: Cruzeiro | E75: 0 | F75: 56.2 | G75: 56.2
A76: 2.24 | B76: Recife (REC) | C76: Salgueiro (SGI) | D76: Cruzeiro | E76: 0 | F76: 102.3 | G76: 102.3
A77: ="VALOR MÉDIO - "&B52&" - (R$):" -> VALOR MÉDIO - PASSAGENS TERRESTRES - (R$): | G77: =ROUND(AVERAGE(G52:G76),2) -> 242.85
A80: ="RESUMO - "&A$8 -> RESUMO - MEMORIAL DE CÁLCULO - VIAGENS
A81: ITEM | B81: DESCRIÇÃO | F81: VALOR TOTAL (R$)
A82: 1 | B82: =B13 -> PASSAGENS AÉREAS | F82: =G50 -> 557.03
A83: 2 | B83: =B52 -> PASSAGENS TERRESTRES | F83: =G77 -> 242.85
A84: ="MÉDIA GERAL - "&A$8&" - (R$):" -> MÉDIA GERAL - MEMORIAL DE CÁLCULO - VIAGENS - (R$): | F84: =ROUND(AVERAGE(F82:G83),2) -> 399.94
A87: NOME DO INFORMANTE: | F87: QUALIFICAÇÃO:
A89: ASSINATURA: | F89: DATA:
A91: OBSERVAÇÃO:
A92: 1. Fonte de Preço: www.decolar.com. Considerando menores preços e companhias aéreas para registro do preço.
A93: 2. Data de pesquisa: 09/10/2019 . Período Pesquisado: 1ª Semana de Novembro/2019

Sheet Veiculos
C1: Ministério do Desenvolvimento Regional - MDR
C2: Companhia de Desenvolvimento dos Vales do São Francisco e do Parnaíba
C3: Gerência de Operação do PISF - Centro de Controle e Operação (AD / GOI / CCO)
A5: SERVIÇOS DE OPERAÇÃO E MANUTENÇÃO DAS INFRAESTRUTURAS DO EIXO LESTE DO PROJETO DE INTEGRAÇÃO DO RIO SÃO FRANCISCO COM AS BACIAS HIDROGRÁFICAS DO NORDESTE SETENTRIONAL – PISF
A8: VEÍCULOS AUTOMOTORES
A11: ITEM | B11: CÓDIGO | C11: DESCRIÇÃO | D11: UNIDADE | E11: QUANTIDADE | F11: VALOR (R$)
F12: UNITARIO | G12: TOTAL
A13: 1. | C13: VEÍCULOS AUTOMOTORES
A14: 1.1 | B14: B3 | C14: Veículo Leve - Tipo Hatch 1.4 Flex (85 CV) | D14: un x mês | E14: =SUMIF(#REF!,Veiculos!C14,#REF!) ->  | G14: =ROUND(E14*F14,2) -> 
A15: 1.2 | B15: B4 | C15: Veículo Leve - Tipo Sedan 1.6 Flex (115 CV) | D15: un x mês | E15: =SUMIF(#REF!,Veiculos!C15,#REF!) -> 
A16: 1.3 | B16: B11 | C16: Veículo Tipo Pick Up Cabine Dupla 4 x 4 (163 CV) | D16: un x mês | E16: =SUMIF(#REF!,Veiculos!C16,#REF!) -> 
A17: 1.4 | B17: B7 | C17: Veículo - Tipo Microônibus - 28 assentos (150 CV) - COM MOTORISTA | D17: un x mês | E17: =SUMIF(#REF!,Veiculos!C17,#REF!) -> 
A18: 1.5 | B18: B8 | C18: Veículo - Tipo Ônibus - 45 assentos (218 CV) - COM MOTORISTA | D18: un x mês | E18: =SUMIF(#REF!,Veiculos!C18,#REF!) -> 
A19: 1.6 | B19: B6 | C19: Veículo Utilitário - Tipo Van - 16 assentos (129 CV) - COM MOTORISTA | D19: un x mês | E19: =SUMIF(#REF!,Veiculos!C19,#REF!) -> 
A20: ="TOTAL - "&C13&" - (R$):" -> TOTAL - VEÍCULOS AUTOMOTORES - (R$): | G20: =SUBTOTAL(9,G13:G19) -> 
A23: ="RESUMO - "&A$8 -> RESUMO - VEÍCULOS AUTOMOTORES
A24: ITEM | C24: DESCRIÇÃO | F24: VALOR TOTAL (R$)
A25: 1 | C25: =C13 -> VEÍCULOS AUTOMOTORES | F25: =G20 -> 
A26: ="TOTAL GERAL - "&A23&" - (R$):" -> TOTAL GERAL - RESUMO - VEÍCULOS AUTOMOTORES - (R$): | F26: =SUM(F25:G25) -> 
A29: NOME DO INFORMANTE: | F29: QUALIFICAÇÃO:
A31: ASSINATURA: | F31: DATA:
A33: OBSERVAÇÃO:
A34: =#REF! -> 
A35: =#REF! -> 
A36: =#REF! -> 

Sheet Frentes_Moveis
C1: Ministério do Desenvolvimento Regional - MDR
C2: Companhia de Desenvolvimento dos Vales do São Francisco e do Parnaíba
C3: Gerência de Operação do PISF - Centro de Controle e Operação (AD / GOI / CCO)
A5: SERVIÇOS DE OPERAÇÃO E MANUTENÇÃO DAS INFRAESTRUTURAS DO EIXO LESTE DO PROJETO DE INTEGRAÇÃO DO RIO SÃO FRANCISCO COM AS BACIAS HIDROGRÁFICAS DO NORDESTE SETENTRIONAL – PISF
A8: FRENTES MÓVEIS DE LIMPEZA E CONSERVAÇÃO
A11: ITEM | B11: ITEM | C11: DESCRIÇÃO | D11: UNIDADE | E11: QUANTIDADE | F11: VALOR (R$)
F12: UNITARIO | G12: TOTAL
A13: 1. | C13: FRENTES MÓVEIS DE LIMPEZA E CONSERVAÇÃO
A14: 1.1 | B14: 00303 - ORSE (5) | C14: Tenda Piramidal 5m x 5m (para refeitório) | D14: un x mês | E14: =8*12 -> 96 | G14: =ROUND(E14*F14,2) -> 0
A15: 1.2 | B15: 00303 - ORSE (3) | C15: Tenda Piramidal 3m x 3m | D15: un x mês | E15: =8*12 -> 96 | G15: =ROUND(E15*F15,2) -> 0
A16: 1.3 | B16: 10390 - ORSE/SE | C16: Banheiro Químico, com 03 limpezas semanais | D16: un x mês | E16: =7*3*12 -> 252 | G16: =ROUND(E16*F16,2) -> 0
A17: ="TOTAL - "&C13&" - (R$):" -> TOTAL - FRENTES MÓVEIS DE LIMPEZA E CONSERVAÇÃO - (R$): | G17: =SUBTOTAL(9,G14:G16) -> 0
A20: ="RESUMO - "&A$8 -> RESUMO - FRENTES MÓVEIS DE LIMPEZA E CONSERVAÇÃO
A21: ITEM | C21: DESCRIÇÃO | F21: VALOR TOTAL (R$)
A22: 01 | C22: =C13 -> FRENTES MÓVEIS DE LIMPEZA E CONSERVAÇÃO | F22: =G17 -> 0
A23: ="TOTAL GERAL - "&A$8&" - (R$):" -> TOTAL GERAL - FRENTES MÓVEIS DE LIMPEZA E CONSERVAÇÃO - (R$): | F23: =SUM(F22) -> 0
A26: NOME DO INFORMANTE: | F26: QUALIFICAÇÃO:
A28: ASSINATURA: | F28: DATA:
A30: OBSERVAÇÃO:
B35: Código | C35: Descrição | D35: R$/m² | E35: R$/un | F35: R$/(un x mês)
B36: 00303 - ORSE (5) | C36: Tenda Piramidal 5m x 5m (para refeitório) | D36: 187.27 | E36: =(5*5)*D36 -> 4681.75 | F36: =ROUND(E36/12,2) -> 390.15
B37: 00303 - ORSE (3) | C37: Tenda Piramidal 3m x 3m | D37: =D36 -> 187.27 | E37: =(3*3)*D37 -> 1685.43 | F37: =ROUND(E37/12,2) -> 140.45
B38: 10390 - ORSE/SE | C38: Banheiro Químico, com limpezas diárias | F38: 535.9

Sheet Materiais_Consumo
C1: Ministério do Desenvolvimento Regional - MDR
C2: Companhia de Desenvolvimento dos Vales do São Francisco e do Parnaíba
C3: Gerência de Operação do PISF - Centro de Controle e Operação (AD / GOI / CCO)
A5: SERVIÇOS DE OPERAÇÃO E MANUTENÇÃO DAS INFRAESTRUTURAS DO EIXO LESTE DO PROJETO DE INTEGRAÇÃO DO RIO SÃO FRANCISCO COM AS BACIAS HIDROGRÁFICAS DO NORDESTE SETENTRIONAL – PISF
A8: MATERIAL DE CONSUMO - ALMOXARIFADOS
A11: ITEM | B11: CÓDIGO | C11: DESCRIÇÃO | D11: UNIDADE | E11: QUANTIDADE | F11: VALOR (R$)
F12: UNITARIO | G12: TOTAL
C13: =A8 -> MATERIAL DE CONSUMO - ALMOXARIFADOS
A15: 1. | C15: MATERIAL DE CONSUMO - MECÂNICA
A16: 1.1 | B16: 04791 - SINAPI | C16: Adesivo Acrílico / Cola de contato | D16: un | E16: 480 | G16: =ROUND(E16*F16,2) -> 0
A17: 1.2 | B17: 05318 - SINAPI | C17: Água Raz - galão 5 l | D17: un | E17: 112 | G17: =ROUND(E17*F17,2) -> 0
A18: 1.3 | B18: F030000301 - EMBASA/BA | C18: Alcool Comum 90º GL | D18: l | E18: 1200 | G18: 0
A19: 1.4 | C19: Antiferrugem aerosol WD-40 - tubo de 300 ml | D19: un | E19: 289 | G19: 0
A20: 1.5 | C20: Antiespumante – antiespumante a base de silicone | D20: l | E20: 223 | G20: 0
A21: 1.6 | B21: 00337 - SINAPI | C21: Arame recozido n.º 18 | D21: kg | E21: 2400 | G21: 0
A22: 1.7 | B22: 00122 - SINAPI | C22: Cola de PVC com 850 g | D22: un | E22: 144 | G22: 0
A23: 1.8 | C23: Cola Ultra Gray 70g | D23: un | E23: 144 | G23: 0
A24: 1.9 | C24: Cola para junta de motores com 73g | D24: un | E24: 1200 | G24: 0
A25: 1.10 | C25: Convertedor de ferrugem | D25: un | E25: 445 | G25: 0
A26: 1.11 | B26: 038200 - SINAPI | C26: Corda de bombeiro 12mm em nylon trançado (rolo de 100,00m) | D26: m | E26: 3200 | G26: 0
A27: 1.12 | B27: 004221 - SINAPI | C27: Diesel comum (l) | D27: l | E27: 4800 | G27: 0
A28: 1.13 | B28: 026019 - SINAPI | C28: Disco corte abrasivo 7" x 1/8" x 7/8" | D28: un | E28: 434 | G28: 0
A29: 1.14 | B29: 025931 - SINAPI | C29: Disco de corte diamantado - 7", para esmerilhadeira, segmentado, para concreto | D29: un | E29: 434 | G29: 0
A30: 1.15 | B30: 026018 - SINAPI | C30: Disco de corte para estrutura metálica 300 x 3,2 x 19,05 mm | D30: un | E30: 434 | G30: 0
A31: 1.16 | B31: 026019 - SINAPI | C31: Disco de desbaste para estrutura metálica de 9" x 1/4" x 7/8" ( 225 x 6,25 x 21,87 mm) | D31: un | E31: 434 | G31: 0
A32: 1.17 | B32: 010997 - SINAPI | C32: Eletrodos Revestido AWS-E7018, DN 4 mm | D32: kg | E32: 320 | G32: 0
A33: 1.18 | B33: 10997 - SINAPI/PE | C33: Eletrodos Revestido AWS-E7018, DN 6 mm | D33: kg | E33: 320 | G33: 0
A34: 1.19 | B34: 000012 - SINAPI | C34: Escova de aço para remoção da graxa envelhecida dos cabos de aço | D34: un | E34: 160 | G34: 0
A35: 1.20 | B35: 000013 - SINAPI | C35: Estopa - embalagem 20 kg | D35: kg | E35: 294 | G35: 0
A36: 1.21 | B36: 000404 - SINAPI | C36: Fita auto fusão 19 mm x 10 m | D36: un | E36: 194 | G36: 0
A37: 1.22 | B37: 012815 - SINAPI | C37: Fita crepe adesiva 25mm x 50mm | D37: un | E37: 194 | G37: 0
A38: 1.23 | B38: 020111 - SINAPI | C38: Fita isolante 19 mm x 20 m | D38: un | E38: 194 | G38: 0
A39: 1.24 | B39: 004222 - SINAPI | C39: Gasolina Comum | D39: l | E39: 2400 | G39: 0
A40: 1.25 | C40: Graxa a base de lítio NGLI 2 | D40: kg | E40: 478 | G40: 0
A41: 1.26 | C41: Graxa a base de lítio NGLI 3 | D41: kg | E41: 478 | G41: 0
A42: 1.27 | C42: Graxa com dissulfeto de molibidênio (MoS2) - Lata 500 g | D42: un | E42: 478 | G42: 0
A43: 1.28 | C43: Graxa GMA - 2 | D43: kg | E43: 478 | G43: 0
A44: 1.29 | C44: Graxa de Alta Resistência a Carga, Pressão LGEP 2/1. Aplicação: graxa para motor e bomba | D44: kg | E44: 478 | G44: 0
A45: 1.30 | C45: Graxa de Alta Resistência a Carga, Pressão LGEP 2/1. Aplicação: Engrenagens de roda e engrenagens expostas | D45: kg | E45: 478 | G45: 0
A46: 1.31 | C46: Hidróxido de cálcio | D46: kg | E46: 600 | G46: 0
A47: 1.32 | C47: Hipoclorito de sódio | D47: kg | E47: 1200 | G47: 0
A48: 1.33 | B48: 8216 - ORSE | C48: Lâmina de serra para metal Starret ou similar | D48: un | E48: 667 | G48: 0
A49: 1.34 | B49: I1660 - SEINFRA/CE | C49: Lençol de borracha manta 3/16” 4,8mm | D49: m² | E49: 400 | G49: 0
A50: 1.35 | C50: Líquido penetrante visível lavável à água (Ensaios de Líquido Penetrante) | D50: un | E50: 98 | G50: 0
A51: 1.36 | B51: 003767 - SINAPI | C51: Lixa nº120 | D51: un | E51: 2400 | G51: 0
A52: 1.37 | C52: Lona de borracha com alma 1,0 – 4,8 mm esp. | D52: m | E52: 45 | G52: 0
A53: 1.38 | B53: 003777 - SINAPI/PE | C53: Lona plástica - 4 x 100 m - 12 kg | D53: m² | E53: =800*4 -> 3200 | G53: 0
A54: 1.39 | B54: 037459 - SINAPI | C54: Mangueira Cristal, Lisa PVC transparente, 3/4" x 2 mm | D54: m | E54: 1600 | G54: 0
A55: 1.40 | C55: Mangueira FLG-62/1 0 - 150 PSI 1/4" NPT | D55: m | E55: 800 | G55: 0
A56: 1.41 | B56: 7696 - ORSE | C56: Massa calafetar cinza-Durepox ou similiar | D56: kg | E56: 334 | G56: 0
A57: 1.42 | C57: Óleo - Translação pórtico e ponte e direção do carro - 20 l - Óleo EP 220 | D57: l | E57: 334 | G57: 0
A58: 1.43 | C58: Óleo Hidràulico para os componentes não protegido dos Servomotor Hidráulico - Óleo EP 320 | D58: l | E58: 334 | G58: 0
A59: 1.44 | C59: Óleo Lubrificante Redutor - Óleo SAE 90 | D59: l | E59: 334 | G59: 0
A60: 1.45 | C60: Óleo lubrificante, para engrenagem., EP-5, viscosidade (CSt) ( - 40ºC) = 22 - tambor 20 l | D60: l | E60: 334 | G60: 0
A61: 1.46 | C61: PAC – Policloreto de alumínio (5 l) | D61: l | E61: 967 | G61: 0
A62: 1.47 | C62: Papelão grafitado 1,50 m x 1,60 m Esp 2.4 | D62: m | E62: 45 | G62: 0
A63: 1.48 | C63: Pasta de Limpeza | D63: kg | E63: 967 | G63: 0
A64: 1.49 | C64: Polímero aniônico | D64: kg | E64: 967 | G64: 0
A65: 1.50 | B65: 004224 - SINAPI | C65: Querosene para limpeza | D65: l | E65: 967 | G65: 0
A66: 1.51 | C66: Revelador não aquoso D70 (Ensaios de Líquido Penetrante) | D66: un | E66: 98 | G66: 0
A67: 1.52 | C67: Sílica Gel | D67: kg | E67: 98 | G67: 0
A68: 1.53 | B68: 039961 - SINAPI | C68: Silicone (acético branca) - Tubo de 280g | D68: un | E68: 480 | G68: 0
A69: 1.54 | C69: Trava química | D69: un | E69: 192 | G69: 0
A70: 1.55 | B70: 004869 - SBC | C70: Vaselina sólida anti-inflamável | D70: kg | E70: 480 | G70: =ROUND(E70*F70,2) -> 0
A72: ="TOTAL - "&C15&" - (R$):" -> TOTAL - MATERIAL DE CONSUMO - MECÂNICA - (R$): | G72: =SUBTOTAL(9,G15:G71) -> 0
A74: 2. | C74: MATERIAL DE CONSUMO - ELÉTRICA
A75: 2.1 | B75: 00181 - ORSE | C75: Anilha Identificação - 0,5 a 6mm² (pacote com 100 unidades) | D75: un | E75: 10 | G75: =ROUND(E75*F75,2) -> 0
A76: 2.2 | B76: 00181 - ORSE | C76: Anilha Identificação - 10 a 16mm² (pacote com 100 unidades) | D76: un | E76: 10 | G76: 0
A77: 2.3 | B77: 03875 - ORSE | C77: Anilha Identificação - 25 a 70mm² (pacote com 100 unidades) | D77: un | E77: 10 | G77: 0
A78: 2.4 | B78: 03875 - ORSE | C78: Anilha Identificação - 95 a 120mm² (pacote com 100 unidades) | D78: un | E78: 10 | G78: 0
A79: 2.5 | B79: 03531 - ORSE | C79: Ar comprimido seco Aerossol 300ml | D79: un | E79: 400 | G79: 0
A80: 2.6 | B80: 00993 - SINAPI | C80: Cabo cobre flexível classe 4 ou 5 isolação PVC/A M 1,68 e cobertura PVC-ST1 antichama BWF-B 0,6/1 kV 1,5mm² | D80: m | E80: 6000 | G80: 0
A81: 2.7 | B81: 01022 - SINAPI | C81: Cabo cobre flexível classe 4 ou 5 isolação PVC/A M 1,68 e cobertura PVC-ST1 antichama BWF-B 0,6/1 kV 2,5mm² | D81: m | E81: 6000 | G81: 0
A82: 2.8 | B82: 01003 - SINAPI | C82: Cabo cobre flexível classe 4 ou 5 isolação PVC/A M 1,68 e cobertura PVC-ST1 antichama BWF-B 0,6/1 kV 4mm² | D82: m | E82: 2000 | G82: 0
A83: 2.9 | B83: 00994 - SINAPI | C83: Cabo cobre flexível classe 4 ou 5 isolação PVC/A M 1,68 e cobertura PVC-ST1 antichama BWF-B 0,6/1 kV 6mm² | D83: m | E83: 2000 | G83: 0
A84: 2.10 | B84: 01020 - SINAPI | C84: Cabo cobre flexível classe 4 ou 5 isolação PVC/A M 1,68 e cobertura PVC-ST1 antichama BWF-B 0,6/1 kV 10mm² | D84: m | E84: 1000 | G84: 0
A85: 2.11 | B85: 00995 - SINAPI | C85: Cabo cobre flexível classe 4 ou 5 isolação PVC/A M 1,68 e cobertura PVC-ST1 antichama BWF-B 0,6/1 kV 16mm² | D85: m | E85: 1000 | G85: 0
A86: 2.12 | B86: 00996 - SINAPI | C86: Cabo cobre flexível classe 4 ou 5 isolação PVC/A M 1,68 e cobertura PVC-ST1 antichama BWF-B 0,6/1 kV 25mm² | D86: m | E86: 600 | G86: 0
A87: 2.13 | B87: 01019 - SINAPI | C87: Cabo cobre flexível classe 4 ou 5 isolação PVC/A M 1,68 e cobertura PVC-ST1 antichama BWF-B 0,6/1 kV 35mm² | D87: m | E87: 500 | G87: 0
A88: 2.14 | B88: 01018 - SINAPI | C88: Cabo cobre flexível classe 4 ou 5 isolação PVC/A M 1,68 e cobertura PVC-ST1 antichama BWF-B 0,6/1 kV 50mm² | D88: m | E88: 500 | G88: 0
A89: 2.15 | B89: 00977 - SINAPI | C89: Cabo cobre flexível classe 4 ou 5 isolação PVC/A M 1,68 e cobertura PVC-ST1 antichama BWF-B 0,6/1 kV 70mm² | D89: m | E89: 500 | G89: 0
A90: 2.16 | B90: 00998 - SINAPI | C90: Cabo cobre flexível classe 4 ou 5 isolação PVC/A M 1,68 e cobertura PVC-ST1 antichama BWF-B 0,6/1 kV 95mm² | D90: m | E90: 200 | G90: 0
A91: 2.17 | B91: 01017 - SINAPI | C91: Cabo cobre flexível classe 4 ou 5 isolação PVC/A M 1,68 e cobertura PVC-ST1 antichama BWF-B 0,6/1 kV 120mm² | D91: m | E91: 200 | G91: 0
A92: 2.18 | B92: 25005 - SINAPI | C92: Cabo de alumínio nu bitola 1/0 AWG (kg) | D92: kg | E92: 600 | G92: 0
A93: 2.19 | B93: 00842 - SINAPI | C93: Cabo de alumínio nu bitola 4/0 AWG (kg) | D93: kg | E93: 1200 | G93: 0
A94: 2.20 | B94: 00863 - SINAPI | C94: Cabo de cobre nu, eletrolítico, têmpera meio duro, #35mm² (m) | D94: m | E94: 500 | G94: 0
A95: 2.21 | B95: 00867 - SINAPI | C95: Cabo de cobre nu, eletrolítico, têmpera meio duro, #50mm² (m) | D95: m | E95: 500 | G95: 0
A96: 2.22 | B96: 00864 - SINAPI | C96: Cabo de cobre nu, eletrolítico, têmpera meio duro, #70mm² (m) | D96: m | E96: 500 | G96: 0
A97: 2.23 | B97: 09720 - ORSE | C97: Conector para haste aterramento #35mm² GTDU | D97: un | E97: 50 | G97: 0
A98: 2.24 | B98: 09720 - ORSE | C98: Conector para haste aterramento #50mm² GTDU | D98: un | E98: 40 | G98: 0
A99: 2.25 | B99: 09720 - ORSE | C99: Conector para haste aterramento #70mm² GTDU | D99: un | E99: 40 | G99: 0
A100: 2.26 | B100: 11602 - ORSE | C100: Filtro de ventiladores de painéis | D100: un | E100: 180 | G100: 0
A101: 2.27 | C101: Filtro dos motores do eixo leste EBV4, 5 e 6 (fabricante Aeroglass-ref 11140737) | D101: un | E101: 48 | G101: 0
A102: 2.28 | C102: Filtro dos motores do eixo leste EBV1, 2 e 3 (fabricante Aeroglass-modelo FMT_C2015 inox - 345x925x25mm) | D102: un | E102: 64 | G102: 0
A103: 2.29 | B103: 02643 - ORSE | C103: Fita isolante de borracha autofusão impermeável à prova dágua , até 69 kV (alta tensão)- 19mm x 10m | D103: un | E103: 756 | G103: 0
A104: 2.30 | B104: 020111 - SINAPI | C104: Fita isolante adesiva antichama 19mm x 20m | D104: un | E104: 1512 | G104: 0
A105: 2.31 | B105: 01118 - ORSE | C105: Interruptor simples com 01 tecla | D105: un | E105: 4 | G105: 0
A106: 2.32 | B106: 01119 - ORSE | C106: Interruptor simples com 02 teclas | D106: un | E106: 4 | G106: 0
A107: 2.33 | B107: 38070 - SINAPI | C107: Interruptor tipo three-way (paralelos) com 02 teclas | D107: un | E107: 4 | G107: 0
A108: 2.34 | C108: Limpador de contatos elétricos 300ml | D108: un | E108: 200 | G108: 0
A109: 2.35 | B109: 004221 - SINAPI | C109: Diesel comum (l) | D109: l | E109: 9720 | G109: 0
A110: 2.36 | C110: Pano para limpeza | D110: kg | E110: 50 | G110: 0
A111: 2.37 | B111: 11443 - ORSE | C111: Pincel - kit 03 pincéis 1/2" 1" 1.1/2" | D111: un | E111: 76 | G111: 0
A112: 2.38 | C112: Recarga de gás SF6 (hexafluoreto de enxofre) -52,16 kg | D112: un | E112: 2 | G112: 0
A113: 2.39 | C113: Sabão líquido neutro (5 l) | D113: un | E113: 54 | G113: 0
A114: 2.40 | B114: 02922 - ORSE | C114: Solvente/Desengraxante de alta rigidez dielétrica 1l | D114: un | E114: 36 | G114: 0
A115: 2.41 | B115: 12377 - ORSE* | C115: Terminal isolado tipo agulha para condutores de 0,5 a 1,5mm² (pct c/ 100) | D115: un | E115: 300 | G115: 0
A116: 2.42 | B116: 12377 - ORSE* | C116: Terminal isolado tipo agulha para condutores de 1,5 a 2,5 mm² (pct c/ 100) | D116: un | E116: 300 | G116: 0
A117: 2.43 | B117: 07948 - ORSE* | C117: Terminal isolado tipo agulha para condutores de 4 a 6 mm² (pct c/ 100) | D117: un | E117: 300 | G117: 0
A118: 2.44 | B118: 04669 - ORSE | C118: Terminal de compressão – 10mm² | D118: un | E118: 400 | G118: 0
A119: 2.45 | B119: 04670 - ORSE | C119: Terminal de compressão – 16mm² | D119: un | E119: 400 | G119: 0
A120: 2.46 | B120: 02676 - ORSE | C120: Terminal de compressão – 25mm² | D120: un | E120: 200 | G120: 0
A121: 2.47 | B121: 02677 - ORSE | C121: Terminal de compressão – 35mm² | D121: un | E121: 200 | G121: 0
A122: 2.48 | B122: 03559 - ORSE | C122: Terminal de compressão – 50mm² | D122: un | E122: 100 | G122: 0
A123: 2.49 | B123: 06911 - ORSE | C123: Terminal de compressão – 70mm² | D123: un | E123: 100 | G123: 0
A124: 2.50 | B124: 03153 - ORSE | C124: Terminal de compressão – 95mm² | D124: un | E124: 50 | G124: 0
A125: 2.51 | B125: 04673 - ORSE | C125: Terminal de compressão – 120mm² | D125: un | E125: 50 | G125: 0
A126: 2.52 | B126: 01587 - SINAPI | C126: Terminal de pressão – 35mm² | D126: un | E126: 50 | G126: 0
A127: 2.53 | B127: 01588 - SINAPI | C127: Terminal de pressão – 50mm² | D127: un | E127: 40 | G127: 0
A128: 2.54 | B128: 01589 - SINAPI | C128: Terminal de pressão – 70mm² | D128: un | E128: 40 | G128: =ROUND(E128*F128,2) -> 0
A130: ="TOTAL - "&C74&" - (R$):" -> TOTAL - MATERIAL DE CONSUMO - ELÉTRICA - (R$): | G130: =SUBTOTAL(9,G74:G129) -> 0
A132: 3. | C132: MATERIAL DE CONSUMO - CIVIL
A133: 3.1 | B133: 00034 - SINAPI | C133: Aço D=10 mm CA 50 | D133: kg | E133: 3112 | G133: =ROUND(E133*F133,2) -> 0
A134: 3.2 | B134: 00031 - SINAPI | C134: Aço D=12 mm CA 50 | D134: kg | E134: 3112 | G134: 0
A135: 3.3 | B135: 00039 - SINAPI | C135: Aço D=5.0 mm CA 60 | D135: kg | E135: 3112 | G135: 0
A136: 3.4 | B136: 00032 - SINAPI | C136: Aço D=6.3 mm CA 50 | D136: kg | E136: 3112 | G136: 0
A137: 3.5 | B137: 00033 - SINAPI | C137: Aço D=8.0 mm CA 50 | D137: kg | E137: 3112 | G137: 0
A138: 3.6 | B138: 00340 - SINAPI | C138: Arame farpado nº. 16 galvanizado Simples | D138: m | E138: 2223 | G138: 0
A139: 3.7 | B139: 00334 - SINAPI | C139: Arame galvanizado 8BWG, d=4,19mm | D139: kg | E139: 240 | G139: 0
A140: 3.8 | B140: 00337 - SINAPI | C140: Arame recozido n.º 18 | D140: kg | E140: 134 | G140: 0
A141: 3.9 | B141: 00367 - SINAPI | C141: Areia grossa comercial, posto em obra | D141: m³ | E141: 178 | G141: 0
A142: 3.10 | B142: 6884 - ORSE | C142: Argamassa para grouteamento | D142: kg | E142: 1112 | G142: 0
A143: 3.11 | B143: 004729 - SINAPI | C143: Pedra britada comercial (n.º 0 a 5) | D143: m³ | E143: 223 | G143: 0
A144: 3.12 | B144: 04513 - SINAPI | C144: Caibro de 5x5cm | D144: m | E144: 1334 | G144: 0
A145: 3.13 | B145: 001106 - SINAPI | C145: Cal hidratada | D145: kg | E145: 889 | G145: 0
A146: 3.14 | B146: 001379 - SINAPI | C146: Cimento CPII-32 | D146: kg | E146: 111112 | G146: 0
A147: 3.15 | B147: 001358 - SINAPI | C147: Compensado resinado 17mm | D147: m² | E147: 96 | G147: 0
A148: 3.16 | B148: 002692 - SINAPI | C148: Desmoldante | D148: l | E148: 86 | G148: 0
A149: 3.17 | B149: 004221 - SINAPI | C149: Diesel comum (l) | D149: l | E149: 56000 | G149: 0
A150: 3.18 | B150: 020111 - SINAPI | C150: Fita isolante adesiva antichama 19mm x 20m | D150: un | E150: 16 | G150: 0
A151: 3.19 | B151: M2018 - SICRO3/PE | C151: Gastalho 10x2,5cm | D151: m | E151: 1334 | G151: 0
A152: 3.20 | B152: 005076 - SINAPI | C152: Grampo para cerca galvanizado 1 x 9 | D152: kg | E152: 96 | G152: 0
A153: 3.21 | B153: 003681 - SINAPI | C153: Junta de dilatação (O-22 ou similar) | D153: m | E153: 134 | G153: 0
A154: 3.22 | B154: 014077 - SINAPI | C154: Junta de dilatação - Perfil elastomerico pre-formado em epmd, para junta de dilatacao de pisos com pouca solicitacao, 15 mm de largura, movimentacao de 11 a 19 mm | D154: m | E154: 134 | G154: 0
A155: 3.23 | B155: 38780 - SINAPI/PE | C155: Lâmpada fluorescente compacta, branca 20 W, base E27 (127/220 V) | D155: un | E155: 134 | G155: 0
A156: 3.24 | B156: 038780 - SINAPI | C156: Lâmpada fluorecente de 20W | D156: un | E156: 134 | G156: 0
A157: 3.25 | B157: 003751 - SINAPI | C157: Lâmpada vapor mercúrio 400 W (base E40) | D157: un | E157: 16 | G157: 0
A158: 3.26 | B158: 003767 - SINAPI | C158: Lixa nº120 | D158: un | E158: 40 | G158: 0
A159: 3.27 | B159: 003777 - SINAPI | C159: Lona plástica - 4 x 100m - 12kg | D159: m² | E159: =2*4 -> 8 | G159: 0
A160: 3.28 | B160: 025865 - SINAPI | C160: Manta termoplástica PEAD, geomembrana lisa, e=2 mm | D160: m² | E160: 734 | G160: 0
A161: 3.29 | B161: 004051 - SINAPI | C161: Massa corrida - latão 18 l | D161: un | E161: 23 | G161: 0
A162: 3.30 | B162: 2866 - ORSE | C162: Mastique elástico base silicone | D162: l | E162: 67 | G162: 0
A163: 3.31 | B163: 004108 - SINAPI | C163: Mourão de concreto reto para cercas | D163: un | E163: 224 | G163: 0
A164: 3.32 | C164: Perfil para fixação das geomembrana Barra de 6m | D164: m | E164: 134 | G164: 0
A165: 3.33 | B165: 11442 - ORSE | C165: Pincel 1" | D165: un | E165: 89 | G165: 0
A166: 3.34 | B166: 005075 - SINAPI | C166: Prego 18x30 | D166: kg | E166: 214 | G166: 0
A167: 3.35 | B167: 038390 - SINAPI | C167: Rolo de lã de carneiro - 20cm | D167: un | E167: 89 | G167: 0
A168: 3.36 | B168: 038393 - SINAPI | C168: Rolo de espuma poliéster 23 cm com cabo | D168: un | E168: 89 | G168: 0
A169: 3.37 | B169: 012296 - SINAPI | C169: Soquete de porcelana base E27, para uso ao tempo, para lâmpadas | D169: un | E169: 16 | G169: 0
A170: 3.38 | B170: 0093 - SINAPI | C170: Tábua de madeira de lei, 2,5x15cm (1x6) não aparelhada | D170: m | E170: 223 | G170: 0
A171: 3.39 | B171: 005318 - SINAPI* | C171: Thinner/águarras - 5 l | D171: un | E171: 9 | G171: 0
A172: 3.40 | B172: 07258 - SINAPI | C172: Tijolo comum (5,5x10x20) cm | D172: un | E172: 10667 | G172: 0
A173: 3.41 | B173: 00154 - SINAPI | C173: Tinta Alcatrão de Hulha - galão de 3,6 litros | D173: l | E173: 9 | G173: 0
A174: 3.42 | B174: 35691 - SINAPI | C174: Tinta Latex PVA | D174: l | E174: 221 | G174: 0
A175: 3.43 | B175: 38386 - SINAPI | C175: Trincha de 2 " | D175: un | E175: 89 | G175: 0
A176: 3.44 | B176: 38400 - SINAPI | C176: Vassourão 40cm com cabo | D176: un | E176: 110 | G176: =ROUND(E176*F176,2) -> 0
A178: ="TOTAL - "&C132&" - (R$):" -> TOTAL - MATERIAL DE CONSUMO - CIVIL - (R$): | G178: =SUBTOTAL(9,G132:G177) -> 0
A180: 4. | C180: =CPU_MANUTENCAO_CANTEIRO!C13 -> MANUTENÇÃO DE CANTEIRO - ESCRITÓRIO
A181: 4.1 | C181: Taxa de manutenção de canteiro, incluindo despesas com material de expediente, material de limpeza, água, energia, comunicação, entre outras | D181: un x mês | E181: =3*12 -> 36 | G181: =ROUND(E181*F181,2) -> 0
A183: ="TOTAL - "&C180&" - (R$):" -> TOTAL - MANUTENÇÃO DE CANTEIRO - ESCRITÓRIO - (R$): | G183: =SUBTOTAL(9,G180:G182) -> 0
A185: ="TOTAL - "&A8&" - (R$):" -> TOTAL - MATERIAL DE CONSUMO - ALMOXARIFADOS - (R$): | G185: =SUBTOTAL(9,G15:G184) -> 0
A188: ="RESUMO - "&A$8 -> RESUMO - MATERIAL DE CONSUMO - ALMOXARIFADOS
A189: ITEM | C189: DESCRIÇÃO | F189: VALOR TOTAL (R$)
A190: 1 | C190: =C15 -> MATERIAL DE CONSUMO - MECÂNICA | F190: =G72 -> 0
A191: 2 | C191: =C74 -> MATERIAL DE CONSUMO - ELÉTRICA | F191: =G130 -> 0
A192: 3 | C192: =C132 -> MATERIAL DE CONSUMO - CIVIL | F192: =G178 -> 0
A193: 4 | C193: =C180 -> MANUTENÇÃO DE CANTEIRO - ESCRITÓRIO | F193: =G183 -> 0
A194: ="TOTAL GERAL - "&A188&" - (R$):" -> TOTAL GERAL - RESUMO - MATERIAL DE CONSUMO - ALMOXARIFADOS - (R$): | F194: =SUM(F190:G193) -> 0
A197: NOME DO INFORMANTE: | F197: QUALIFICAÇÃO:
A199: ASSINATURA: | F199: DATA:
A201: OBSERVAÇÃO:

Sheet CPU_MANUTENCAO_CANTEIRO
C1: Ministério do Desenvolvimento Regional - MDR
C2: Companhia de Desenvolvimento dos Vales do São Francisco e do Parnaíba
C3: Gerência de Operação do PISF - Centro de Controle e Operação (AD / GOI / CCO)
A5: SERVIÇOS DE OPERAÇÃO E MANUTENÇÃO DAS INFRAESTRUTURAS DO EIXO LESTE DO PROJETO DE INTEGRAÇÃO DO RIO SÃO FRANCISCO COM AS BACIAS HIDROGRÁFICAS DO NORDESTE SETENTRIONAL – PISF
A8: MANUTENÇÃO DE CANTEIRO - ESCRITÓRIO
A11: ITEM | B11: CÓDIGO | C11: DESCRIÇÃO | D11: UNIDADE | E11: QUANTIDADE | F11: VALOR (R$)
F12: UNITARIO | G12: TOTAL
C13: =A8 -> MANUTENÇÃO DE CANTEIRO - ESCRITÓRIO
A15: 1. | C15: MATERIAL DE CONSUMO - ESCRITÓRIO
A16: 1.1 | C16: Açúcar | D16: kg | E16: 125 | G16: =ROUND(E16*F16,2) -> 0
A17: 1.2 | C17: Água Mineral (20 l) | D17: un | E17: 623 | G17: 0
A18: 1.3 | B18: 13003 - SINAPI | C18: Água Sanitária 1000 ml | D18: un | E18: 52 | G18: 0
A19: 1.4 | C19: Alcool Comum 90º GL | D19: l | E19: 52 | G19: 0
A20: 1.5 | C20: Bobina papel para ploter A0 | D20: un | E20: 3 | G20: 0
A21: 1.6 | C21: Café torrado e moído | D21: un | E21: 156 | G21: 0
A22: 1.7 | C22: Caneta esfereográfica Azul | D22: un | E22: 63 | G22: 0
A23: 1.8 | C23: Capa para encadernação Azul | D23: un | E23: 125 | G23: 0
A24: 1.9 | C24: Capa para encadernação Transparente | D24: un | E24: 249 | G24: 0
A25: 1.10 | C25: Cartucho colorido para impressora | D25: un | E25: 249 | G25: 0
A26: 1.11 | C26: Cartucho preto para impressora | D26: un | E26: 42 | G26: 0
A27: 1.12 | C27: Classificador elástico | D27: un | E27: 32 | G27: 0
A28: 1.13 | C28: Clips nº 02 (caixa com 100 unidades) | D28: cx | E28: 28 | G28: 0
A29: 1.14 | C29: Clips nº 04 (caixa com 100 unidades) | D29: cx | E29: 28 | G29: 0
A30: 1.15 | C30: Clips nº 06 (caixa com 100 unidades) | D30: cx | E30: 28 | G30: 0
A31: 1.16 | C31: Clips nº 08 (caixa com 100 unidades) | D31: cx | E31: 28 | G31: 0
A32: 1.17 | B32: I0814 - SEINFRA/CE | C32: Cola branca PVA | D32: kg | E32: 5 | G32: 0
A33: 1.18 | C33: Copo descartável 200 ml (pacote c/ 50 und) | D33: un | E33: 102 | G33: 0
A34: 1.19 | C34: Copo descartável 50 ml (pacote c/ 50 und) | D34: un | E34: 102 | G34: 0
A35: 1.20 | C35: Corretivo à base d'agua 18 ml | D35: un | E35: 47 | G35: 0
A36: 1.21 | C36: Desinfetante 5L | D36: un | E36: 262 | G36: 0
A37: 1.22 | B37: I7373 - SEINFRA/CE | C37: Detergente 5L | D37: l | E37: =11*5 -> 55 | G37: 0
A38: 1.23 | C38: DVD Regravável | D38: un | E38: 327 | G38: 0
A39: 1.24 | C39: Envelope de papel tamanho A3 | D39: un | E39: 131 | G39: 0
A40: 1.25 | C40: Envelope de papel tamanho A4 | D40: un | E40: 327 | G40: 0
A41: 1.26 | C41: Envelope de papel tamanho A5 - 200 x 280 mm | D41: un | E41: 327 | G41: 0
A42: 1.27 | C42: Espiral 7mm | D42: un | E42: 104 | G42: 0
A43: 1.28 | C43: Espiral 9mm | D43: un | E43: 104 | G43: 0
A44: 1.29 | C44: Esponja de prato | D44: un | E44: 104 | G44: 0
A45: 1.30 | C45: Estilete 18mm | D45: un | E45: 11 | G45: 0
A46: 1.31 | C46: Fita adesiva 48/100 | D46: un | E46: 42 | G46: 0
A47: 1.32 | C47: Fita adesiva transparente | D47: un | E47: 42 | G47: 0
A48: 1.33 | B48: I1178 - SEINFRA/CE* | C48: Fita crepe branca 45 x 50m | D48: un | E48: 21 | G48: 0
A49: 1.34 | C49: Flanela | D49: un | E49: 16 | G49: 0
A50: 1.35 | C50: Grampeador grande de mesa P/40F | D50: un | E50: 63 | G50: 0
A51: 1.36 | C51: Grampo 26/6 | D51: un | E51: 13 | G51: 0
A52: 1.37 | C52: Grampo tipo trilho | D52: un | E52: 7 | G52: 0
A53: 1.38 | C53: Lápis grafite | D53: un | E53: 75 | G53: 0
A54: 1.39 | C54: Livro de ata com 100 páginas numeradas | D54: un | E54: 19 | G54: 0
A55: 1.40 | C55: Marca texto | D55: un | E55: 78 | G55: 0
A56: 1.41 | C56: Pacote de lã de aço 60 g | D56: un | E56: 32 | G56: 0
A57: 1.42 | C57: Pano de chão | D57: un | E57: 42 | G57: 0
A58: 1.43 | C58: Pano de prato | D58: un | E58: 13 | G58: 0
A59: 1.44 | B59: I6039 - SEINFRA/CE* | C59: Papel A4-resma de 500 folhas | D59: un | E59: 52 | G59: 0
A60: 1.45 | C60: Papel higiênico | D60: un | E60: 476 | G60: 0
A61: 1.46 | C61: Papel Toalha | D61: un | E61: 130 | G61: 0
A62: 1.47 | C62: Pasta arquivo de A a Z Ofício | D62: un | E62: 104 | G62: 0
A63: 1.48 | C63: Pasta suspensa | D63: un | E63: 104 | G63: 0
A64: 1.49 | C64: Perfurador de papel 2 furos até 30 fls | D64: un | E64: 21 | G64: 0
A65: 1.50 | C65: Régua 30cm Acrílico Cristal | D65: un | E65: 21 | G65: 0
A66: 1.51 | C66: Rodo de borracha | D66: un | E66: 28 | G66: 0
A67: 1.52 | B67: I1841 - SEINFRA/CE* | C67: Sabão em pó 500g | D67: un | E67: 42 | G67: 0
A68: 1.53 | C68: Sabonetes líquido | D68: l | E68: 262 | G68: 0
A69: 1.54 | C69: Tinta para carimbo | D69: un | E69: 5 | G69: 0
A70: 1.55 | C70: Vassoura | D70: un | E70: 28 | G70: 0
A72: ="TOTAL - "&C15&" - (R$):" -> TOTAL - MATERIAL DE CONSUMO - ESCRITÓRIO - (R$): | G72: =SUBTOTAL(9,G15:G71) -> 0
A74: 2. | C74: OUTRAS DESPESAS DE MANUTENÇÃO
A75: 2.1 | B75: 10558 - ORSE | C75: Internet - dispêndio mensal | D75: mês | E75: =3*12 -> 36 | G75: =ROUND(E75*F75,2) -> 0
A76: 2.2 | B76: 10557 - ORSE | C76: Telefonia fixa - dispêndio mensal | D76: mês | E76: =3*12 -> 36 | G76: 0
A77: 2.3 | B77: 10557 - ORSE | C77: Telefonia móvel - dispêndio mensal | D77: mês | E77: =3*2*12 -> 72 | G77: 0
A78: 2.4 | B78: 10555 - ORSE | C78: Energia Elétrica - dispêndio mensal | D78: mês | E78: =3*12 -> 36 | G78: 0
A79: 2.5 | B79: 10554 - ORSE | C79: Água - dispêndio mensal | D79: mês | E79: 36 | G79: 0
A81: ="TOTAL - "&C74&" - (R$):" -> TOTAL - OUTRAS DESPESAS DE MANUTENÇÃO - (R$): | G81: =SUBTOTAL(9,G74:G80) -> 0
A83: ="TOTAL - "&C13&" - (R$):" -> TOTAL - MANUTENÇÃO DE CANTEIRO - ESCRITÓRIO - (R$): | G83: =SUBTOTAL(9,G13:G82) -> 0
A86: ="COMPOSIÇÃO MENSAL - "&A$8 -> COMPOSIÇÃO MENSAL - MANUTENÇÃO DE CANTEIRO - ESCRITÓRIO
A87: ITEM | C87: DESCRIÇÃO | F87: VALOR
A88: 1 | C88: ="TOTAL - "&C15&" - (R$)" -> TOTAL - MATERIAL DE CONSUMO - ESCRITÓRIO - (R$) | F88: =G72 -> 0
A89: 2 | C89: ="TOTAL - "&C74&" - (R$)" -> TOTAL - OUTRAS DESPESAS DE MANUTENÇÃO - (R$) | F89: =G81 -> 0
A90: 3 | C90: NÚMERO DE CANTEIROS PREVISTOS - (UN) | F90: 3
A91: 4 | C91: PRAZO PREVISTO PARA EXECUÇÃO CONTRATUAL - (MÊS) | F91: 12
A92: ="TAXA MÉDIA - "&A8&" - (R$ / UN x MÊS):" -> TAXA MÉDIA - MANUTENÇÃO DE CANTEIRO - ESCRITÓRIO - (R$ / UN x MÊS): | F92: =ROUND((F88+F89)/(F90*F91),2) -> 0
A95: NOME DO INFORMANTE: | F95: QUALIFICAÇÃO:
A97: ASSINATURA: | F97: DATA:
A99: OBSERVAÇÃO:

Sheet Ferramentas
C1: Ministério do Desenvolvimento Regional - MDR
C2: Companhia de Desenvolvimento dos Vales do São Francisco e do Parnaíba
C3: Gerência de Operação do PISF - Centro de Controle e Operação (AD / GOI / CCO)
A5: SERVIÇOS DE OPERAÇÃO E MANUTENÇÃO DAS INFRAESTRUTURAS DO EIXO LESTE DO PROJETO DE INTEGRAÇÃO DO RIO SÃO FRANCISCO COM AS BACIAS HIDROGRÁFICAS DO NORDESTE SETENTRIONAL – PISF
A8: FERRAMENTAS
A11: ITEM | B11: CÓDIGO | C11: DESCRIÇÃO | D11: UNIDADE | E11: QUANTIDADE | F11: VALOR (R$)
F12: UNITARIO | G12: TOTAL
C13: =A8 -> FERRAMENTAS
A15: 1. | C15: FERRAMENTAS - MECÂNICA
A16: 1.1 | C16: Alavanca para mecânico 38,4 cm | D16: un | E16: 4 | G16: =ROUND(E16*F16,2) -> 0
A17: 1.2 | B17: 11240 - ORSE | C17: Alicate de bico com isolamento para 1000V | D17: un | E17: 7 | G17: =ROUND(E17*F17,2) -> 0
A18: 1.3 | B18: 38470 - SINAPI | C18: Alicate de corte diagonal | D18: un | E18: 7 | G18: 0
A19: 1.4 | B19: 38471 - SINAPI | C19: Alicate para anéis externo pontas retas | D19: un | E19: 7 | G19: 0
A20: 1.5 | B20: 38471 - SINAPI | C20: Alicate para anéis externos ponta curva 90° | D20: un | E20: 7 | G20: 0
A21: 1.6 | B21: 38471 - SINAPI | C21: Alicate para anéis internos | D21: un | E21: 7 | G21: 0
A22: 1.7 | B22: 11275 - ORSE | C22: Alicate de pressão, 10", 250mm | D22: un | E22: 7 | G22: 0
A23: 1.8 | B23: 11240 - ORSE | C23: =C115 -> Alicate universal, 8", com isolação 1000 V | D23: un | E23: 7 | G23: 0
A24: 1.9 | B24: 10585 - ORSE | C24: Arco de Serra manual (com serra) | D24: un | E24: 4 | G24: 0
A25: 1.10 | C25: Cabo de força com encaixe de ½”, ¾” e 1” | D25: un | E25: 4 | G25: 0
A26: 1.11 | B26: 5090 - SINAPI | C26: Cadeado 30mm | D26: un | E26: 7 | G26: 0
A27: 1.12 | B27: 00425 - ORSE | C27: Cadeado 40mm | D27: un | E27: 7 | G27: 0
A28: 1.13 | C28: Calibrador de folgas de 0,03 mm - 0,50 mm | D28: un | E28: 4 | G28: 0
A29: 1.14 | C29: Canivete sem ponta | D29: un | E29: 7 | G29: 0
A30: 1.15 | C30: Chave ajustável n.º 08 | D30: un | E30: 7 | G30: 0
A31: 1.16 | C31: Chave combinada 1" x 5/16" | D31: un | E31: 7 | G31: 0
A32: 1.17 | C32: Chave combinada 22 mm | D32: un | E32: 7 | G32: 0
A33: 1.18 | C33: Chave combinada n.º 5/16" | D33: un | E33: 7 | G33: 0
A34: 1.19 | C34: Chave cruzada 8 x 150 | D34: un | E34: 7 | G34: 0
A35: 1.20 | C35: Chave de boca 3/4" x 25/32" | D35: un | E35: 7 | G35: 0
A36: 1.21 | C36: Chave de boca 5/16" x 1/4" | D36: un | E36: 7 | G36: 0
A37: 1.22 | C37: Chave de fenda 1/4x10 | D37: un | E37: 7 | G37: 0
A38: 1.23 | C38: Chave de fenda 1/8x3 | D38: un | E38: 7 | G38: 0
A39: 1.24 | C39: Chave de fenda 3/16x6 | D39: un | E39: 7 | G39: 0
A40: 1.25 | C40: Chave de fenda 3/8x10 | D40: un | E40: 7 | G40: 0
A41: 1.26 | C41: Chave de fenda 8x150 | D41: un | E41: 7 | G41: 0
A42: 1.27 | C42: Chave de fenda cruzada (Philips) 1/4" x 1. 1/2" | D42: un | E42: 7 | G42: 0
A43: 1.28 | C43: Chave de fenda tipo toco 1/4" x 1. 1/2" | D43: un | E43: 7 | G43: 0
A44: 1.29 | C44: Chave grifo n.º 8 | D44: un | E44: 4 | G44: 0
A45: 1.30 | C45: Chave grifo n.º 18 | D45: un | E45: 4 | G45: 0
A46: 1.31 | C46: Chave Philips | D46: un | E46: 7 | G46: 0
A47: 1.32 | C47: Chave soquete tipo canhão 1/2" | D47: un | E47: 3 | G47: 0
A48: 1.33 | C48: Chave soquete tipo canhão 1/4" | D48: un | E48: 3 | G48: 0
A49: 1.34 | C49: Chave soquete tipo canhão 11/32" | D49: un | E49: 3 | G49: 0
A50: 1.35 | C50: Chave soquete tipo canhão 3/8" | D50: un | E50: 3 | G50: 0
A51: 1.36 | C51: Chave soquete tipo canhão 7/16" | D51: un | E51: 3 | G51: 0
A52: 1.37 | C52: Chave soquete tipo canhão 9/16" | D52: un | E52: 3 | G52: 0
A53: 1.38 | B53: 12 - SINAPI | C53: Escova de aço, com cabo, *4 X 15* fileiras de cerdas | D53: un | E53: 3 | G53: 0
A54: 1.39 | C54: Espátula n.º 38A-23 | D54: un | E54: 7 | G54: 0
A55: 1.40 | B55: 38380 - SINAPI | C55: Esquadro Profissional 12" (em aço) | D55: un | E55: 4 | G55: 0
A56: 1.41 | C56: Extensão 20m | D56: un | E56: 4 | G56: 0
A57: 1.42 | C57: Faca reta desencapadora com isolamento para 1000V | D57: un | E57: 7 | G57: 0
A58: 1.43 | C58: Funil para troca de óleo | D58: un | E58: 4 | G58: 0
A59: 1.44 | C59: Jogo de broca de aço de 6 a 19mm (concreto parede) | D59: un | E59: 7 | G59: 0
A60: 1.45 | C60: Jogo de chave catraca | D60: un | E60: 4 | G60: 0
A61: 1.46 | C61: Jogo de chave combinada de nº 6 a nº 50 | D61: un | E61: 7 | G61: 0
A62: 1.47 | C62: Jogo de chave hexagonal (Allen) em polegada | D62: un | E62: 7 | G62: 0
A63: 1.48 | C63: Jogo de chave hexagonal (Allen) nº 03 a 17mm | D63: un | E63: 7 | G63: 0
A64: 1.49 | C64: Jogo de chave Phillips com isolamento para 1000V | D64: un | E64: 7 | G64: 0
A65: 1.50 | C65: Jogo de chave soquete 22 mm a 50 mm | D65: un | E65: 4 | G65: 0
A66: 1.51 | C66: Jogo de chaves de fenda com isolamento para 1000V | D66: un | E66: 7 | G66: 0
A67: 1.52 | C67: Jogo de macho para reparo de roscas | D67: un | E67: 4 | G67: 0
A68: 1.53 | C68: Lanterna grande - 10 Million | D68: un | E68: 4 | G68: 0
A69: 1.54 | C69: Lima chata paralela murça 6" | D69: un | E69: 7 | G69: 0
A70: 1.55 | C70: Lima paralela bastarda 6" | D70: un | E70: 7 | G70: 0
A71: 1.56 | C71: Lima redonda murça 6" | D71: un | E71: 7 | G71: 0
A72: 1.57 | C72: Limas diversas | D72: un | E72: 7 | G72: 0
A73: 1.58 | C73: Mala de ferramenta com 05 gavetas | D73: un | E73: 7 | G73: 0
A74: 1.59 | B74: 4729 - ORSE | C74: Marreta 1kg | D74: un | E74: 7 | G74: 0
A75: 1.60 | C75: Marreta 2 kg | D75: un | E75: 4 | G75: 0
A76: 1.61 | C76: Marreta de 5kg com cabo de madeira | D76: un | E76: 4 | G76: 0
A77: 1.62 | C77: Martelo bola 1kg | D77: un | E77: 7 | G77: 0
A78: 1.63 | C78: Martelo de borracha 32 Cm | D78: un | E78: 7 | G78: 0
A79: 1.64 | C79: Nível a laser com base magnética e tripé | D79: un | E79: 4 | G79: 0
A80: 1.65 | C80: Nível de mão – metálico e magnético | D80: un | E80: 4 | G80: 0
A81: 1.66 | C81: Pé-de-cabra | D81: un | E81: 4 | G81: =ROUND(E81*F81,2) -> 0
A82: 1.67 | B82: 38377 - SINAPI | C82: Prumo de centro | D82: un | E82: 4 | G82: 0
A83: 1.68 | C83: Punção de centro 100 x 4 mm | D83: un | E83: 7 | G83: 0
A84: 1.69 | C84: Punção de centro 150 x 6 mm | D84: un | E84: 7 | G84: 0
A85: 1.70 | C85: Saca pino 03 mm | D85: un | E85: 7 | G85: 0
A86: 1.71 | C86: Saca pino 08mm | D86: un | E86: 7 | G86: 0
A87: 1.72 | C87: Saca pino 17 mm | D87: un | E87: 7 | G87: 0
A88: 1.73 | C88: Saca pino paralelo 150x4 | D88: un | E88: 7 | G88: 0
A89: 1.74 | C89: Saca pino paralelo 150x6 | D89: un | E89: 7 | G89: 0
A90: 1.75 | C90: Saca pino paralelo 150x8 | D90: un | E90: 7 | G90: 0
A91: 1.76 | C91: Saca polia 10" | D91: un | E91: 3 | G91: 0
A92: 1.77 | C92: Soquete 65 | D92: un | E92: 3 | G92: 0
A93: 1.78 | C93: Soquete 70 | D93: un | E93: 3 | G93: 0
A94: 1.79 | C94: Soquete 75/55 | D94: un | E94: 3 | G94: 0
A95: 1.80 | C95: Talhadeira para mecânica | D95: un | E95: 7 | G95: 0
A96: 1.81 | C96: Torquímetro de estalo 50 - 400 N.m | D96: un | E96: 3 | G96: 0
A97: 1.82 | C97: Trena Metálica 8 m | D97: un | E97: 4 | G97: 0
A98: ="TOTAL - "&C15&" - (R$):" -> TOTAL - FERRAMENTAS - MECÂNICA - (R$): | G98: =SUBTOTAL(9,G15:G97) -> 0
A100: 2. | C100: FERRAMENTAS - ELÉTRICA
A101: 2.1 | C101: Adaptador universal de tomadas | D101: un | E101: 46 | G101: =ROUND(E101*F101,2) -> 0 | H101: 11.44666667
A102: 2.2 | C102: Alavanca reta, 1,75 m | D102: un | E102: 10 | G102: 0 | H102: 228.65
A103: 2.3 | C103: Alicate bico chato/pato, 6" | D103: un | E103: 13 | G103: 0 | H103: 73.61
A104: 2.4 | B104: 38470 - SINAPI | C104: Alicate cortador de cabos diagonal, 6" | D104: un | E104: 23 | G104: 0 | H104: 12.68
A105: 2.5 | C105: Alicate cortador de cabos frontal, 6" | D105: un | E105: 13 | G105: 0 | H105: 54.33
A106: 2.6 | C106: Alicate/Tesoura cortador manual de cabos de até 300mm², 225mm | D106: un | E106: 13 | G106: 0 | H106: 608.93
A107: 2.7 | B107: 38547 - SINAPI | C107: Alicate crimpador, RJ-11/RJ-45, 200mm | D107: un | E107: 2 | G107: 0 | H107: 49.99
A108: 2.8 | B108: 38547 - SINAPI | C108: Alicate crimpador, RG-59 e RG-6, 130mm | D108: un | E108: 2 | G108: 0 | H108: 39
A109: 2.9 | B109: 11272 - ORSE | C109: Alicate crimpador para terminais 1,0 a 10mm², 220mm | D109: un | E109: 13 | G109: 0 | H109: 75.9
A110: 2.10 | B110: 11272 - ORSE | C110: Alicate crimpador para terminais 10 a 120mm², 620mm | D110: un | E110: 1 | G110: 0 | H110: 371.1766667
A111: 2.11 | B111: 11272 - ORSE | C111: Alicate crimpador 11", 280mm | D111: un | E111: 2 | G111: 0 | H111: 148.9
A112: 2.12 | C112: Alicate crimpador, hidráulico, prensa terminal, com matriz de 10 a 300mm² | D112: un | E112: 1 | G112: 0 | H112: 417.1966667
A113: 2.13 | B113: 11275 - ORSE | C113: Alicate de pressão, 10", 250mm | D113: un | E113: 13 | G113: 0 | H113: 31.31666667
A114: 2.14 | B114: 11240 - ORSE | C114: Alicate profissional universal, 8". Material: Cromo Vanadium | D114: un | E114: 13 | G114: 0 | H114: 29.31
A115: 2.15 | B115: 11240 - ORSE | C115: Alicate universal, 8", com isolação 1000 V | D115: un | E115: 10 | G115: 0 | H115: 31.89
A116: 2.16 | C116: Aluguel Notebook - tipo 1 (i7, 1T, 8GB, S.O. 10 e Office última versão) | D116: un | E116: 2 | G116: 0 | H116: 450
A117: 2.17 | C117: Andaime modular isolante 2x1m, com conexões em aluminio fundido - Altura de 15 m. | D117: un | E117: 1 | G117: 0 | H117: 164369.99
A118: 2.18 | B118: 10585 - ORSE | C118: Arco de Serra manual (com serra) | D118: un | E118: 23 | G118: 0 | H118: 22.59333333
A119: 2.19 | C119: Bastão/Vara de manobra 35 kV, Ø 32 mm, 3,0 m, 2 m isolante | D119: un | E119: 2 | G119: 0 | H119: 357
A120: 2.20 | C120: Bastão isolante universal Ø 38 mm, 6 m, com 2 cabeçotes | D120: un | E120: 2 | G120: 0 | H120: 695
A121: 2.21 | C121: Bastão de resgate - 35 kV, 220 mm | D121: un | E121: 2 | G121: 0 | H121: 721.6666667
A122: 2.22 | C122: Bastão-garra comprimento do isolante 3 m | D122: un | E122: 2 | G122: 0 | H122: 398
A123: 2.23 | C123: Bastão tensor com luva ajustável Ø 51 mm, 72,5 kV, 2,30 m | D123: un | E123: 2 | G123: 0 | H123: 149.77
A124: 2.24 | C124: Bastão com gancho tipo "J" 90cm | D124: un | E124: 2 | G124: 0 | H124: 149.77
A125: 2.25 | C125: Banqueta isolante, 500x500x300 mm, 40 kV | D125: un | E125: 2 | G125: 0 | H125: 439.1166667
A126: 2.26 | C126: Berço simples para cadeia de isoladores 230 kV para até 6 isoladores de até Ø 254 mm | D126: un | E126: 2 | G126: 0 | H126: 54.14
A127: 2.27 | B127: 38374 - SINAPI | C127: Balancim (Ref. RE402-0099 ou similar) para escada perfil de fibra de vidro extensiva | D127: un | E127: 2 | G127: 0 | H127: 103.31
A128: 2.28 | C128: Binóculo Profissional Ampliação 8 à 24x 50mm | D128: un | E128: 2 | G128: 0 | H128: 449.51
A129: 2.29 | C129: Chave de boca ajustável 8" | D129: un | E129: 10 | G129: 0 | H129: 39.645
A130: 2.30 | C130: Chave de boca ajustável 12" | D130: un | E130: 10 | G130: 0 | H130: 77.99
A131: 2.31 | C131: Chave de boca ajustável 18" | D131: un | E131: 10 | G131: 0 | H131: 228.895
A132: 2.32 | B132: 00425 - ORSE | C132: Cadeado 40mm | D132: un | E132: 27 | G132: 0 | H132: 17.85
A133: 2.33 | C133: Caixa de ferramentas para eletricista NR10 com 34 peças - Equipes de Manutenção | D133: un | E133: 6 | G133: 0 | H133: 77.395
A134: 2.34 | C134: Caixa de ferramentas para eletricista NR10 com 34 peças para operadores EB | D134: un | E134: 6 | G134: 0 | H134: 77.395
A135: 2.35 | C135: Caixa de ferramentas com 40 peças (Para técnicos de automação e telecom) | D135: un | E135: 2 | G135: 0 | H135: 772.3966667
A136: 2.36 | C136: Caixa de ferramentas tipo sanfonada, confeccionada em chapa de aço, com rodas e puxador | D136: un | E136: 13 | G136: 0 | H136: 161.945
A137: 2.37 | C137: Câmera fotográfica digital 20MP, 5x Zoom Óptico | D137: un | E137: 2 | G137: 0 | H137: 526.2666667
A138: 2.38 | C138: Chave com catraca 4 bocas 8x9x10x11 mm (Ref. 44637101 ou similar) | D138: un | E138: 10 | G138: 0 | H138: 117.5066667
A139: 2.39 | C139: Conjunto de aterramento rápido e temporário para cubículos até 35kV | D139: un | E139: 2 | G139: 0 | H139: 1045
A140: 2.40 | C140: Conjunto de aterramento rápido e temporário para redes isoladas até 1kV | D140: un | E140: 2 | G140: 0 | H140: 365
A141: 2.41 | C141: Conjunto de aterramento temporário para subestações até 36kV | D141: un | E141: 2 | G141: 0 | H141: 934.5
A142: 2.42 | C142: Conjunto de chaves básicas para eletricista com 06 peças | D142: un | E142: 10 | G142: 0 | H142: 71.96666667
A143: 2.43 | C143: Detector de Tensão por contato 1kV | D143: un | E143: 23 | G143: 0 | H143: 623.75
A144: 2.44 | C144: Detector unipolar de tensão por aproximação - 10 a 40KV | D144: un | E144: 13 | G144: 0 | H144: 578
A145: 2.45 | C145: Encerado de lona (3x2 m) | D145: un | E145: 10 | G145: 0 | H145: 30.43333333
A146: 2.46 | C146: Escada perfil "U" de fibra de vidro extensiva - altura esticada 8,40 m - 15 kV | D146: un | E146: 10 | G146: 0 | H146: 918.2666667
A147: 2.47 | C147: Escada de fibra de vidro tipo "A" (subestações) - 10 degraus | D147: un | E147: 2 | G147: 0 | H147: 808.14
A148: 2.48 | B148: 12 - SINAPI | C148: Escova com cerdas de aço para condutores | D148: un | E148: 10 | G148: 0 | H148: 33 | I148: ESCOVA DE ACO, COM CABO, *4 X 15* FILEIRAS DE CERDAS
A149: 2.49 | C149: Facão para mato, 18 pol | D149: un | E149: 10 | G149: 0 | H149: 20
A150: 2.50 | C150: Farol de punho | D150: un | E150: 10 | G150: 0 | H150: 85.48
A151: 2.51 | C151: Ferramenta universal para bastão de manobra - Adaptador de ferramentas | D151: un | E151: 2 | G151: 0 | H151: 69
A152: 2.52 | C152: Ferramenta universal para bastão de manobra - Adaptador de peças | D152: un | E152: 2 | G152: 0 | H152: 49
A153: 2.53 | C153: Ferramenta universal para bastão de manobra - Adaptador universal | D153: un | E153: 2 | G153: 0 | H153: 174
A154: 2.54 | C154: Ferramenta universal para bastão de manobra - Cabeçote com gancho duplo | D154: un | E154: 2 | G154: 0 | H154: 49
A155: 2.55 | C155: Ferramenta universal para bastão de manobra - Cabeçote multi-uso | D155: un | E155: 2 | G155: 0 | H155: 81.5
A156: 2.56 | C156: Ferramenta universal para bastão de manobra - Cabeçote para grampo de aterramento | D156: un | E156: 2 | G156: 0 | H156: 95.85
A157: 2.57 | C157: Ferramenta universal para bastão de manobra - Chave com catraca | D157: un | E157: 2 | G157: 0 | H157: 445
A158: 2.58 | C158: Ferramenta universal para bastão de manobra - Desconector para chave fusível | D158: un | E158: 2 | G158: 0 | H158: 32.07
A159: 2.59 | C159: Ferramenta universal para bastão de manobra - Escova em "V" para limpeza de condutor | D159: un | E159: 2 | G159: 0 | H159: 255.89
A160: 2.60 | C160: Ferramenta universal para bastão de manobra - Extrator de cartucho | D160: un | E160: 2 | G160: 0 | H160: 200
A161: 2.61 | C161: Ferramenta universal para bastão de manobra - Extrator de contrapino por impulso | D161: un | E161: 2 | G161: 0 | H161: 135
A162: 2.62 | C162: Ferramenta universal para bastão de manobra - Gancho tração espiral | D162: un | E162: 2 | G162: 0 | H162: 70
A163: 2.63 | C163: Ferramenta universal para bastão de manobra - Garfo ajustador de concha | D163: un | E163: 2 | G163: 0 | H163: 170
A164: 2.64 | C164: Ferramenta universal para bastão de manobra - Garra de amarração | D164: un | E164: 2 | G164: 0 | H164: 115
A165: 2.65 | C165: Ferramenta universal para bastão de manobra - Instalador de Contrapino | D165: un | E165: 2 | G165: =ROUND(E165*F165,2) -> 0 | H165: 330
A166: 2.66 | C166: Ferramenta universal para bastão de manobra - Jogo para Tensionadores Duplos - jugo duplo com corrente lado morto | D166: un | E166: 2 | G166: 0 | H166: 83.03
A167: 2.67 | C167: Ferramenta universal para bastão de manobra - Jogo para Tensionadores Duplos -jugo duplo lado vivo | D167: un | E167: 2 | G167: 0 | H167: 86.69
A168: 2.68 | C168: Ferramenta universal para bastão de manobra - Jogo para Tensionadores Simples - balancim trinangular chapa dupla | D168: un | E168: 2 | G168: 0 | H168: 79.68
A169: 2.69 | C169: Ferramenta universal para bastão de manobra - Sacador de contrapino em alavanca | D169: un | E169: 2 | G169: 0 | H169: 158
A170: 2.70 | C170: Ferramenta universal para bastão de manobra - Suporte de concha | D170: un | E170: 2 | G170: 0 | H170: 135
A171: 2.71 | C171: Ferramenta universal para bastão de manobra - Suporte flexível para soquete hexagonal | D171: un | E171: 2 | G171: 0 | H171: 200
A172: 2.72 | C172: Ferramenta universal para bastão de manobra - Tenaz multi-angular | D172: un | E172: 2 | G172: 0 | H172: 210
A173: 2.73 | C173: Ferramenta universal para bastão de manobra - Tenaz para isolador | D173: un | E173: 2 | G173: 0 | H173: 250
A174: 2.74 | C174: Foice 33mm (Com Cabo 110cm) | D174: un | E174: 10 | G174: 0 | H174: 28.51
A175: 2.75 | C175: Fumigador para apicultura | D175: un | E175: 10 | G175: 0 | H175: 122.76
A176: 2.76 | C176: Furadeira elétrica de impacto 1/2" Ø 13mm, 800W, 1050 A, 2800 rpm e 220V | D176: un | E176: 10 | G176: 0 | H176: 278.9333333
A177: 2.77 | C177: Grampo de aterramento com parafuso olhal T (linhas) | D177: un | E177: 3 | G177: 0 | H177: 88.5
A178: 2.78 | C178: Jogo de chave canhão com 12 unidades | D178: un | E178: 10 | G178: 0 | H178: 220.3766667
A179: 2.79 | C179: Jogo de chave combinada com 16 unidades (sextavado/boca fixa) de 1/4" a 1.1/4" (6,35 mm a 31,75 mm) | D179: un | E179: 10 | G179: 0 | H179: 279.68
A180: 2.80 | C180: Jogo de soquetes estriado com encaixe 1/2" com 38 soquetes - 10-32mmn | D180: un | E180: 10 | G180: 0 | H180: 856.6266667
A181: 2.81 | C181: Jogo tensionador simples com munhão | D181: un | E181: 2 | G181: 0 | H181: 79.68
A182: 2.82 | C182: Jogo de chaves biela 12 peças tipo L 8 a 19mm | D182: un | E182: 10 | G182: 0 | H182: 116.4033333
A183: 2.83 | C183: Jogo de chave de fenda e philips com haste protegida para eletricista com 07 peças | D183: un | E183: 10 | G183: 0 | H183: 38.42
A184: 2.84 | C184: Jogo de chave de fenda para bastão | D184: un | E184: 2 | G184: 0 | H184: 225.69
A185: 2.85 | C185: Kit de reparo eletrônico (ferro de solda, sugador de placa de circuito impresso, componentes sobressalentes) | D185: un | E185: 2 | G185: 0 | H185: 140.34
A186: 2.86 | C186: Kit ferramenta fibra óptica (clivador +alicate decapador + alicate stripper + bolsa + 2 chaves allen + recipiente para álcool + guia) + Medidor de potência para fibra óptica (Power Meter Medidor Potência Fibra Óptica + Caneta Laser 10W) | D186: un | E186: 2 | G186: 0 | H186: 436.9933333
A187: 2.87 | C187: Kit ferramentas telecom ( tipo TRAMONTINA PRO 44970053 ou similar) | D187: un | E187: 2 | G187: 0 | H187: 1564.05
A188: 2.88 | B188: 11396 - ORSE | C188: Lanterna tática grande - 5.500.000 lumens | D188: un | E188: 10 | G188: 0 | H188: 102.4
A189: 2.89 | C189: Lima chata murça 8" com cabo | D189: un | E189: 1 | G189: 0 | H189: 43.01666667
A190: 2.90 | C190: Lima chata bastarda 10" | D190: un | E190: 1 | G190: 0 | H190: 43.63666667
A191: 2.91 | C191: Luva de cobertura punho 15cm | D191: un | E191: 13 | G191: 0 | H191: 25.495
A192: 2.92 | C192: Luva isolante classe 00 - 2,5kV | D192: un | E192: 13 | G192: 0 | H192: 152
A193: 2.93 | C193: Luva isolante classe 0 - 5kV | D193: un | E193: 13 | G193: 0 | H193: 207.495
A194: 2.94 | C194: Luva isolante classe 3 - 30kV | D194: un | E194: 13 | G194: 0 | H194: 768.5
A195: 2.95 | C195: Marreta de 5kg com cabo de madeira | D195: un | E195: 10 | G195: 0 | H195: 61.805
A196: 2.96 | C196: Martelete Perfurador/Rompedor Profissional 220V, 800W, 870 RPM | D196: un | E196: 1 | G196: 0 | H196: 532.45
A197: 2.97 | C197: Martelo-bola 1kg | D197: un | E197: 10 | G197: 0 | H197: 57.55666667
A198: 2.98 | C198: Martelo universal (de unha) 25mm | D198: un | E198: 10 | G198: 0 | H198: 30.4
A199: 2.99 | C199: Kit para enchimento e complementação de gás SF6, composto de adaptador, mangueira, regulador e manômetro padrão | D199: un | E199: 1 | G199: 0 | H199: 765.0009
A200: 2100 | C200: Pá-de-bico com cabo de madeira | D200: un | E200: 10 | G200: 0 | H200: 26.55
A201: 2101 | C201: Parafusadeira/Furadeira elétrica com fio - 220V, 400W | D201: un | E201: 10 | G201: 0 | H201: 226.4866667
A202: 2102 | C202: Plataforma de fibra de vidro antiderrapente para andaime modular isolante, com conexoes em aluminio fundido 2x1m | D202: un | E202: 2 | G202: 0 | H202: 152.47
A203: 2103 | C203: Punho saca fusível NH tamanho 000 a 4, 1kV | D203: un | E203: 10 | G203: 0 | H203: 58.67333333
A204: 2104 | C204: Sela com extensor colar de 38mm | D204: un | E204: 2 | G204: 0 | H204: 1058
A205: 2105 | C205: Separador de fases horizontal 15kV polietileno de alta densidade na cor cinza (cx 110-690 mm ; cx 66-850 mm) | D205: un | E205: 4 | G205: 0 | H205: 869.12
A206: 2106 | C206: Soprador térmico 2000W, 220V | D206: un | E206: 1 | G206: 0 | H206: 187.9633333
A207: 2107 | C207: Talha manual Tirfor 1.600kgf/cm² com alavanca | D207: un | E207: 1 | G207: 0 | H207: 1224.425
... 71 more rows

Sheet Equipamentos
C1: Ministério do Desenvolvimento Regional - MDR
C2: Companhia de Desenvolvimento dos Vales do São Francisco e do Parnaíba
C3: Gerência de Operação do PISF - Centro de Controle e Operação (AD / GOI / CCO)
A5: SERVIÇOS DE OPERAÇÃO E MANUTENÇÃO DAS INFRAESTRUTURAS DO EIXO LESTE DO PROJETO DE INTEGRAÇÃO DO RIO SÃO FRANCISCO COM AS BACIAS HIDROGRÁFICAS DO NORDESTE SETENTRIONAL – PISF
A8: EQUIPAMENTOS
A11: ITEM | B11: CÓDIGO | C11: DESCRIÇÃO | D11: UNIDADE | E11: QUANTIDADE | F11: VALOR (R$)
F12: UNITARIO | G12: TOTAL
C13: =A8 -> EQUIPAMENTOS
A15: 1. | C15: EQUIPAMENTOS - MECÂNICA
A16: 1.1 | B16: COT_AFER | C16: Aferidor de manômetro de 0 a 150 bar | D16: un x mês | E16: =1*12 -> 12 | G16: =ROUND(E16*F16,2) -> 0
A17: 1.2 | B17: COT_ALMO_FLEX | C17: Almotolia de bico flexível 500ml | D17: un x mês | E17: =3*12 -> 36 | G17: =ROUND(E17*F17,2) -> 0
A18: 1.3 | B18: COT_ALMO_RIG | C18: Almotolia de bico rígido 500ml | D18: un x mês | E18: =3*12 -> 36 | G18: 0
A19: 1.4 | B19: COT_ANDA | C19: Andaime metálico tipo fachadeiro Dim: Largura= 1,20m / Altura por peça= 2,00m. (Altura Total=10m - 5 peças por conjunto) | D19: m² | E19: =12*12 -> 144 | G19: 0
A20: 1.5 | B20: COT_BANC_OFIC | C20: Bancada para oficina (Dim: 1,2m x 2,5m) | D20: un x mês | E20: =6*12 -> 72 | G20: 0
A21: 1.6 | B21: COT_BOMB_GRAX | C21: Bomba de graxa manual 5kg | D21: un x mês | E21: =3*12 -> 36 | G21: 0
A22: 1.7 | B22: 13914 - SINAPI/PE | C22: Talha Manual de Corrente com Alavanca 1,5 t Elevação 1,5m (Catraca 1,5 ton) | D22: un x mês | E22: =1*12 -> 12 | G22: 0
A23: 1.8 | B23: COT_CHAV_46 | C23: Chave de impacto 46mm boca/estria | D23: un x mês | E23: =2*12 -> 24 | G23: 0
A24: 1.9 | B24: COT_CHAV_55 | C24: Chave de impacto 55mm boca/estria | D24: un x mês | E24: =2*12 -> 24 | G24: 0
A25: 1.10 | B25: COT_CHAV_60 | C25: Chave de impacto 60mm boca/estria | D25: un x mês | E25: 24 | G25: 0
A26: 1.11 | B26: COT_CHAV_65 | C26: Chave de impacto 65mm boca/estria | D26: un x mês | E26: 24 | G26: 0
A27: 1.12 | B27: COT_CHAV_70 | C27: Chave de impacto 70mm boca/estria | D27: un x mês | E27: 24 | G27: 0
A28: 1.13 | B28: COT_CHAV_75 | C28: Chave de impacto 75mm boca/estria | D28: un x mês | E28: =2*12*2 -> 48 | G28: 0
A29: 1.15 | B29: COT_CHAV_85 | C29: Chave de impacto 85mm boca/estria | D29: un x mês | E29: =2*12*2 -> 48 | G29: 0
A30: 1.17 | B30: COT_CINT_3T | C30: Cinta para elevação de carga (comprimento: 3m / capacidade de carga: 3t) | D30: un x mês | E30: =1.5*12 -> 18 | G30: 0
A31: 1.18 | B31: COT_CINT_20T | C31: Cinta para elevação de carga (comprimento: 6m / capacidade de carga: 20t) | D31: un x mês | E31: =1.5*12 -> 18 | G31: 0
A32: 1.19 | B32: COT_CORT | C32: Cortador a frio para tubos - Cortador Tubo Ferro Ferrari 1/8" - 2" | D32: un x mês | E32: =2*12 -> 24 | G32: 0
A33: 1.20 | B33: COT_CURV | C33: Curvador de tubos (Até 1”) - Curvador e Dobrador De Tubos Manual | D33: un x mês | E33: =2*12 -> 24 | G33: 0
A34: 1.21 | B34: 38476 - SINAPI/PE | C34: Escada de abrir com 2 x 8 degraus (2,40m) em alumínio | D34: un x mês | E34: =4*12 -> 48 | G34: 0
A35: 1.22 | B35: 38477 - SINAPI/PE | C35: Escada de marinheiro extensível em duraluníno com 10 x 20 degraus (3,00m / 6,00m) | D35: un x mês | E35: =3*12 -> 36 | G35: 0
A36: 1.23 | B36: COT_ESCA_07 | C36: Escada metálica de 07 degraus | D36: un x mês | E36: =3*12 -> 36 | G36: 0
A37: 1.24 | B37: COT_ESCA_16 | C37: Escada articulada multifuncional 4x4 16 degraus | D37: un x mês | E37: =1*12 -> 12 | G37: 0
A38: 1.25 | B38: COT_ESME | C38: Esmerilhadeira angular de 4 ½” | D38: un x mês | E38: =2*12 -> 24 | G38: 0
A39: 1.26 | B39: 11359 - SINAPI/PE | C39: Esmerilhadeira angular de 7” | D39: un x mês | E39: =2*12 -> 24 | G39: 0
A40: 1.27 | B40: I9378 - SEINFRA/CE | C40: Furadeira Manual 650W 1050 – 1450 RPM 220V Ø 13mm | D40: un x mês | E40: =2*12 -> 24 | G40: 0
A41: 1.28 | B41: COT_INDU | C41: Indutor elétrico para aquecimento de rolamentos (JM 500) | D41: un x mês | E41: =1*12 -> 12 | G41: 0
A42: 1.29 | B42: COT_LIXA | C42: Lixadeira 4 1/2" | D42: un x mês | E42: =2*12 -> 24 | G42: 0
A43: 1.30 | B43: COT_MACA_20T | C43: Macaco de comando a distância 20 t - Macaco Hidráulico 20 Toneladas Tipo Garrafa | D43: un x mês | E43: =2*12 -> 24 | G43: 0
A44: 1.31 | B44: COT_MACA_50T | C44: Macaco de comando a distância 50 t - Macaco Hidráulico 50 Toneladas Tipo Garrafa | D44: un x mês | E44: 24 | G44: 0
A45: 1.32 | B45: COT_MACA_2T | C45: Macaco tipo elevador capacidade de 2 t - Macaco Hidráulico 2 Toneladas tipo Garrafa | D45: un x mês | E45: 24 | G45: 0
A46: 1.33 | B46: COT_MACA_GIR | C46: Macaco tipo girafa de 2 t - Guincho Hidráulico 2 Toneladas com Prolongador | D46: un x mês | E46: 24 | G46: 0
A47: 1.34 | B47: 40403 - SINAPI/PE | C47: Máquina de solda elétrica de 250 A com kit. | D47: un x mês | E47: 24 | G47: 0
A48: 1.35 | B48: COT_MORS | C48: Morsa para bancada nº 08 | D48: un x mês | E48: =6*12 -> 72 | G48: 0
A49: 1.36 | B49: E9630-DNIT/PE | C49: Conjunto Motor bomba 7,5 CV, 380 V, Q=75,6 m3/h e H=17 mca. (Poço de rebaixamento da EBV-3) | D49: un x mês | E49: =1*12 -> 12 | G49: 0
A50: 1.37 | B50: COT_BOMB_SUB | C50: Bomba Submersível 5 Cv Trifásica 380V, Q=2 - 52 m3/h e H= 3-25 mca.(Poço de rebaixamento do Res. de areias (Estrutura de Controle) | D50: un x mês | E50: =1*12 -> 12 | G50: 0
A51: 1.38 | B51: COT_MOTO_ESMER | C51: Motoesmeril de 1cv - 3.500 RPM | D51: un x mês | E51: =6*12 -> 72 | G51: 0
A52: 1.39 | B52: COT_MULT | C52: Multiplicador de Torque Manual 2700 N.m/2000 lb.ft CDI GA190 | D52: un x mês | E52: =1*12 -> 12 | G52: 0
A53: 1.40 | B53: 7252 - SINAPI/PE | C53: Nível de precisão | D53: un x mês | E53: =1*12 -> 12 | G53: 0
A54: 1.41 | B54: COT_PARA | C54: Parafusadeira elétrica a bateria | D54: un x mês | E54: =2*12 -> 24 | G54: 0
A55: 1.42 | B55: COT_PREN | C55: Prensa hidráulica de 10 ton | D55: un x mês | E55: =2*12 -> 24 | G55: 0
A56: 1.43 | B56: E9207-DNIT/PE | C56: Retífica elétrica | D56: un x mês | E56: 24 | G56: 0
A57: 1.44 | B57: E9748-DNIT/PE | C57: Rosqueadeira ( para tubos de ½” a 4”) -Rosqueadeira Elétrica 1/2 A 4 Pol. 750w 220v-Br Motors-Brr124bsp | D57: un x mês | E57: =1*12 -> 12 | G57: 0
A58: 1.45 | B58: 10809 - SINAPI/PE | C58: Talha capacidade 3t | D58: un x mês | E58: 24 | G58: 0
A59: 1.46 | B59: COT_TIFO | C59: Tifor 3t | D59: un x mês | E59: 24 | G59: 0
A60: ="TOTAL - "&C15&":" -> TOTAL - EQUIPAMENTOS - MECÂNICA: | G60: =SUBTOTAL(9,G15:G59) -> 0
A62: 2. | C62: EQUIPAMENTOS - ELÉTRICA
A63: 2.1 | B63: COT_ANAL | C63: Analisador de grandezas elétricas trifásico, display LCD colorido 5,6", TRMS 1.000 V, corrente 3.000A | D63: un x mês | E63: =1*12 -> 12 | G63: =ROUND(E63*F63,2) -> 0
A64: 2.2 | B64: COT_BANC_TESTE | C64: Bancada de teste, amperimetro 150A, voltímetro 40V | D64: un x mês | E64: 12 | G64: 0
A65: 2.3 | B65: COT_BANC_PROT | C65: Bancada protegida contra eletricidade estática | D65: un x mês | E65: 12 | G65: 0
A66: 2.4 | B66: COT_DATA | C66: Data Logger de 4 a 20 mA (verificação de intermitência em instrumentação) | D66: un x mês | E66: 12 | G66: 0
A67: 2.5 | B67: 13761 - SINAPI/PE | C67: Estação de solda com temperatura ajustável e proteção antiestático | D67: un x mês | E67: 12 | G67: 0
A68: 2.6 | B68: 10236 - ORSE/SE | C68: Fonte de alimentação com tensão variável de 0 a 30Vcc de 3 A | D68: un x mês | E68: 12 | G68: 0
A69: 2.7 | B69: COT_FONT | C69: Fonte de bancada 12 V | D69: un x mês | E69: 12 | G69: 0
A70: 2.8 | B70: I9378 - SEINFRA/CE | C70: Furadeira Manual 650W 1050 – 1450 RPM 220V Ø 13mm | D70: un x mês | E70: 12 | G70: 0
A71: 2.9 | B71: COT_GERA | C71: Gerador de corrente e tensão de 0 a 20 mA e 0 a 10V, precisão de 0,1% | D71: un x mês | E71: 12 | G71: 0
A72: 2.10 | B72: COT_KIT | C72: Kit para enchimento e complementação para gás SF6, composto de adaptador ,regulador, mangueira e manômetro padrão | D72: un x mês | E72: 12 | G72: 0
A73: 2.11 | B73: COT_TTR | C73: TTR - medidor digital de relação de espiras, escala de medição 0,8000:1 a 8.000,0: 1 | D73: un x mês | E73: 12 | G73: 0
A74: ="TOTAL - "&C62&":" -> TOTAL - EQUIPAMENTOS - ELÉTRICA: | G74: =SUBTOTAL(9,G62:G73) -> 0
A76: 3. | C76: EQUIPAMENTOS - CIVIL
A77: 3.1 | C77: MANUTENÇÃO
A78: 3.1.1 | B78: 4085 - SINAPI/PE | C78: Bomba elétrica submersa para drenagem 5cv Flyght 3" 12.3 m³/h (acompanhada com os mangotes, incluindo quadro de comando compatível com o modelo de bomba, 250 m de cabo flexível trifásico, isolado, tensão 600 V/1000 V, em conformidade com NBR 7288). | D78: un x mês | E78: =2*12 -> 24 | G78: =ROUND(E78*F78,2) -> 0
A79: 3.1.2 | B79: COT_ANDA | C79: Andaime metálico tipo fachadeiro Dim: Largura= 1,20m / Altura por peça= 2,00m. (Altura Total=10m - 5 peças por conjunto) | D79: m² | E79: =12*12 -> 144 | G79: 0
A80: 3.1.3 | B80: COT_BETO | C80: Betoneira, capacidade nominal 400 l, capacidade de mistura 310 l, motor a diesel potência 5 cv, sem carregador. | D80: un x mês | E80: =3*12 -> 36 | G80: 0
A81: 3.1.4 | B81: 36398 - SINAPI/PE | C81: Betoneira, capacidade nominal 600 l, capacidade de mistura 440 l, motor a diesel potência 10 cv, com carregador. | D81: un x mês | E81: =3*12 -> 36 | G81: 0
A82: 3.1.5 | B82: 746 - SINAPI/PE | C82: Lavadora de alta pressão a diesel, partida elétrica, motor de 10 hp | D82: un x mês | E82: =1*12 -> 12 | G82: 0
A83: 3.1.6 | B83: COT_BOMB_DRAGA | C83: Bomba draga autoescorvante 3”x 3” , motor: 4 tempos, potência: 6,5cv, cilindrada: 196 cm³, ignição eletrônica, consumo aproximadamente: 1,7 l/h, capacidade do tanque: 3,6 l. | D83: un x mês | E83: =2*12 -> 24 | G83: 0
A84: 3.1.7 | B84: COT_BOMB_4CV | C84: Locação de bomba submersível para drenagem e esgotamento, motor elétrico trifásico, potência de 4 cv, diâmetro de recalque de 3". Faixa de operação: Q= 60 m³/h (± 1 m³/h) e AMT=2 m; Q= 11 m³/h (± 1 m³/h) e AMT = 23 m (± 1 m). | D84: un x mês | E84: =2*12 -> 24 | G84: 0
A85: 3.1.8 | B85: COT_BOMBA_2CV | C85: Locação de bomba submersível para drenagem e esgotamento, motor elétrico trifásico, potência de 2 cv, diâmetro de recalque de 2". Faixa de operação: Q= 35 m³/h (± 3 m³/h) e AMT=2 m; Q=13 m³/h (± 3 m³/h) e AMT = 17 m (± 3 m). | D85: un x mês | E85: =2*12 -> 24 | G85: 0
A86: 3.1.9 | B86: E9579-DNIT/PE | C86: Caminhão basculante, capacidade de carga 15,0 t e volume 10,0 m³ . | D86: un x mês | E86: =3*12 -> 36 | G86: 0
A87: 3.1.10 | B87: E9506-DNIT/PE | C87: Caminhao basculante, capacidade de carga 9,0 t e volume 6,0 m³ . | D87: un x mês | E87: =3*12 -> 36 | G87: 0
A88: 3.1.11 | B88: E9592-DNIT/PE | C88: Caminhão Carroceria - de madeira, capacidade de carga 15,0 t | D88: un x mês | E88: 36 | G88: 0
A89: 3.1.12 | B89: COT_CAMI | C89: Caminhão Comboio para lubrificação e abastecimento (melosa), convencional totalmente equipado (Capacidade de Combustível: 5.000 l, Capacidade de Lubrificante: 500 l, Capacidade de Graxa: 200 kg, Capacidade de Água: 300 l, Recipiente para Óleo Usado: 200 l, Compressor de Ar e Bomba- d’agua). | D89: un x mês | E89: =1*12 -> 12 | G89: 0
A90: 3.1.13 | B90: E9686-DNIT/PE | C90: Caminhão guindauto com capacidade de carga até 10,0 t. | D90: un x mês | E90: =3*12 -> 36 | G90: 0
A91: 3.1.14 | B91: E9605-DNIT/PE | C91: Caminhão tanque, capacidade de volume 6000 l e potência 136,0 hp . | D91: un x mês | E91: =3*12 -> 36 | G91: 0
A92: 3.1.15 | B92: 4262 - SINAPI/PE | C92: Pá carregadeira sobre rodas, potência líquida 128 hp, capacidade da caçamba de 1,7 a 2,8 m³, peso operacional de 11.632 kg. | D92: un x mês | E92: =2*12 -> 24 | G92: 0
A93: 3.1.16 | B93: E9666-DNIT/PE | C93: Transportes de máquinas e equipamentos por caminhão cavalo mecânico com carreta-prancha capacidade 20t | D93: un x mês | E93: =1*12 -> 12 | G93: 0
A94: 3.1.17 | B94: E9107-DNIT/PE | C94: Compactador de solo a percussão (soquete), com motor gasolina de 4 tempos, peso entre 55 e 65 kg, força de impacto de 1.000 a 1.500 kgf, frequência de 600 a 700 golpes por minuto,velocidade de trabalho entre 10 e 15 m/min, potência entre 2 e 3 hp. | D94: un x mês | E94: =9*12 -> 108 | G94: 0
A95: 3.1.18 | B95: E9556-DNIT/PE | C95: Compactador de solo, tipo placa vibratória reversível, com motor a diesel, peso entre 700 e 820 kg, força centrífuga entre 6.200 e 10.000 kgf, largura de trabalho entre 650 e 720 mm, frequência de vibração entre 3.000 e 3.500 rpm, velocidade de trabalho entre 25 e 30 m/min, potência entre 13,0 e 15,0 hp. | D95: un x mês | E95: =5*12 -> 60 | G95: 0
A96: 3.1.19 | B96: E9513-DNIT/PE | C96: Compressor de ar rebocável, vazão 400 pcm, pressão efetiva de trabalho 102 psi, motor diesel, potência 110 cv. | D96: un x mês | E96: =1*12 -> 12 | G96: 0
A97: 3.1.20 | B97: E9661-DNIT/PE | C97: Compressor de ar rebocável, vazão 189 pcm, pressão efetiva de trabalho 102 psi, motor diesel, potência 63 cv. | D97: un x mês | E97: =1*12 -> 12 | G97: 0
A98: 3.1.21 | B98: COT_CONJ_160 | C98: Conjunto motorbomba com 160 kW de potência no motor elétrico (25 mca x 0,5 m³/s) para esgotamento, com respectivos mangotes de sucção e descarga a serem especificados em função dos diâmetros. | D98: un x mês | E98: 12 | G98: 0
A99: 3.1.22 | B99: COT_CONJ_30 | C99: Conjunto motorbomba com 30 kW de potência no motor elétrico (25 mca x 0,1 m³/s) para esgotamento, com respectivos mangotes de sucção e descarga a serem especificados em função dos diâmetros. | D99: un x mês | E99: 12 | G99: 0
A100: 3.1.23 | B100: E9528-DNIT/PE | C100: Empilhadeira sobre pneus com torre de três estágios, 4,80 m de elevação, com deslocador lateral dos garfos, motor glp 2.4 l, capacidade nominal de carga de 2,5 t. | D100: un x mês | E100: 12 | G100: 0
A101: 3.1.24 | B101: E9017-DNIT/PE | C101: Escavadeira hidráulica sobre esteiras, caçamba 0,62 m³, peso operacional 12,61 t, potência líquida 95 hp. | D101: un x mês | E101: 12 | G101: 0
A102: 3.1.25 | B102: COT_ESCAV | C102: Escavadeira hidráulica sobre esteiras, caçamba 0,80 m³, peso operacional 17 t, potência bruta 111 hp. | D102: un x mês | E102: =2*12 -> 24 | G102: 0
A103: 3.1.26 | B103: E9521-DNIT/PE | C103: Grupo gerador de 4 KVA, 220v, trifásico, silenciado, com 100 metros de cabos e 01 QTA. | D103: un x mês | E103: =2*12 -> 24 | G103: 0
A104: 3.1.27 | B104: E9066-DNIT/PE | C104: Grupo gerador de 10 KVA, 220v, trifásico, silenciado, com 100 metros de cabos e 01 QTA. | D104: un x mês | E104: 24 | G104: 0
A105: 3.1.28 | B105: COT_GRUP_15KVA | C105: Grupo gerador, potência nominal 15 kVA (emergência), incluindo instalação, cabeamento, base de concreto e demais materiais necessários. | D105: un x mês | E105: 24 | G105: 0
A106: 3.1.29 | B106: E9066-DNIT/PE | C106: Grupo gerador de 15 kVA, 220V, trifásico, silenciado, com 100 metros de cabos e 01 QTA. | D106: un x mês | E106: =1*12 -> 12 | G106: 0
A107: 3.1.30 | B107: 36500 - SINAPI/PE | C107: Locação de grupo gerador acima de 125 até 180 kVA, motor diesel, rebocável, acionamento manual. | D107: un x mês | E107: =1*12 -> 12 | G107: 0
A108: 3.1.31 | B108: 39593 - SINAPI/PE | C108: Grupo gerador diesel, com carenagem, potência standart entre 250 e 260 kVA, velocidade de 1800 rpm, frequência de 60 Hz. | D108: un x mês | E108: 12 | G108: 0
A109: 3.1.32 | B109: COT_PLAT | C109: Plataforma Aérea, altura de trabalho 16,0 m, capacidade de carga 227 kg, fonte de energia: diesel, painel de controle na base e na plataforma, altura arriada: 2,0 m. | D109: un x mês | E109: =2*12 -> 24 | G109: 0
A110: 3.1.33 | B110: 40269 - SINAPI/PE | C110: Serra circular de bancada, modelo pica-pau, diâmetro de 350 mm. Características do motor: trifásico, potência de 5 hp, frequência de 60 H. | D110: un x mês | E110: =3*12 -> 36 | G110: 0
A111: 3.1.34 | B111: 40403 - SINAPI/PE | C111: Máquina de solda elétrica de 250 A com kit. | D111: un x mês | E111: =3*12 -> 36 | G111: 0
A112: 3.1.35 | B112: E9568-DNIT/PE | C112: Furadeira elétrica profissional. | D112: un x mês | E112: 36 | G112: 0
A113: 3.1.36 | B113: 13192 - SINAPI/PE | C113: Lixadeira elétrica angular para concreto, potência 1.400 W, prato diamantado de 5''. | D113: un x mês | E113: 36 | G113: 0
A114: 3.1.37 | B114: 14619 - SINAPI/PE | C114: Máquina para corte com disco abrasivo de diâmetro de 18'' (450 mm), com motor elétrico trifásico de 10 cv. | D114: un x mês | E114: =3*12 -> 36 | G114: 0
A115: 3.1.38 | B115: 40703 - SINAPI/PE | C115: Martelete rompedor 33 kg. | D115: un x mês | E115: 36 | G115: 0
A116: 3.1.39 | B116: 36533 - SINAPI/PE | C116: Martelo demolidor pneumático manual, com redução de vibração, peso de 31,5 kg. | D116: un x mês | E116: 36 | G116: 0
A117: 3.1.40 | B117: 37514 - SINAPI/PE | C117: Minicarregadeira sobre rodas, potência líquida de 47 hp, capacidade nominal de operação de 646 kg. | D117: un x mês | E117: =2*12 -> 24 | G117: 0
A118: 3.1.41 | B118: 4090 - SINAPI/PE | C118: Motoniveladora com escarificador (potência básica líquida -primeira marcha- 125 hp , peso bruto 13.843 kg, largura da lâmina de 3,7 m) | D118: un x mês | E118: =2*12 -> 24 | G118: 0
A119: 3.1.42 | B119: 13955 - SINAPI/PE | C119: Motoserra portátil com motor a gosolina de 60 cc. | D119: un x mês | E119: =3*12 -> 36 | G119: 0
A120: 3.1.43 | B120: 4778 - SINAPI/PE | C120: Perfuratriz pneumática manual de peso médio, 18 kg, comprimento de curso de 6 m, diâmetro do pistão de 5,5 cm | D120: un x mês | E120: =1*12 -> 12 | G120: 0
A121: 3.1.44 | B121: E9526-DNIT/PE | C121: Retroescavadeira sobre rodas com carregadeira, tração 4x4, potência líquida 72 hp, peso operacional mínimo de 7.140 kg, capacidade mínima da carregadeira de 0,79 m³ e da retroescavadeira mínima de 0,18 m³, profundidade de escavação máxima de 4,50 m. | D121: un x mês | E121: =6*12 -> 72 | G121: 0
A122: 3.1.45 | B122: 10664 - SINAPI/PE | C122: Roçadeira deslocável, largura de trabalho de 1,3 m. | D122: un x mês | E122: =1*12 -> 12 | G122: 0
A123: 3.1.46 | B123: 10559 - SINAPI/PE | C123: Roçadeira costal com motor a gasolina de 32 cc. | D123: un x mês | E123: =6*12 -> 72 | G123: 0
A124: 3.1.47 | B124: E9685-DNIT/PE | C124: Rolo compactador pé-de-carneiro vibratório, potência 125 hp, peso operacional sem/com lastro 11,95/13,30 t, impacto dinâmico 38,5/22,5 t, largura de trabalho 2,15 m. | D124: un x mês | E124: =2*12 -> 24 | G124: 0
A125: 3.1.48 | B125: COT_TORR | C125: Torre de iluminação 4000 W | D125: un x mês | E125: =3*12 -> 36 | G125: 0
A126: 3.1.49 | B126: 36511 - SINAPI/PE | C126: Trator Agrícola para reboque de máquina roçadeira | D126: un x mês | E126: =1*12 -> 12 | G126: 0
A127: 3.1.50 | B127: E9540-DNIT/PE | C127: Trator de esteiras, potência de 150 hp, peso operacional de 16,7 t, com roda motriz elevada e lâmina com contato de 3,18 m³. | D127: un x mês | E127: =1*12 -> 12 | G127: 0
A128: 3.1.51 | B128: 39628 - SINAPI/PE | C128: Motor a diesel para vibrador de imersão de 4,7 cv. | D128: un x mês | E128: 12 | G128: 0
A129: 3.1.52 | B129: 39399 - SINAPI/PE | C129: Vibrador de imersão, com ponteira de 35 mm, mangote de 5 m, sem motor. | D129: un x mês | E129: =3*12 -> 36 | G129: 0
A130: 3.1.53 | B130: 39400 - SINAPI/PE | C130: Vibrador de imersão, com ponteira de 45 mm, mangote de 5 m, sem motor. | D130: un x mês | E130: =3*12 -> 36 | G130: 0
A131: 3.1.54 | B131: 39401 - SINAPI/PE | C131: Vibrador de imersão, com ponteira de 60 mm, mangote de 5 m, sem motor. | D131: un x mês | E131: 36 | G131: 0
A132: ="TOTAL - "&C77&":" -> TOTAL - MANUTENÇÃO: | G132: =SUBTOTAL(9,G77:G131) -> 0
A134: 3.2 | C134: SEGURANÇA DE BARRAGEM
A135: 3.2.1 | B135: E9763-DNIT/PE | C135: Grupo Gerador - 32,0 kVA, 220 V, trifásico, silenciado, com 100 metros de cabos e 01 QTA. | D135: un x mês | E135: 12 | G135: =ROUND(E135*F135,2) -> 0
A136: 3.2.2 | B136: 4090 - SINAPI/PE | C136: Motoniveladora com escarificador (potência básica líquida -primeira marcha- 125 hp , peso bruto 13.843 kg, largura da lâmina de 3,7 m) | D136: un x mês | E136: 12 | G136: 0
A137: 3.2.3 | B137: E9017-DNIT/PE | C137: Escavadeira hidráulica sobre esteiras, caçamba 0,62 m³, peso operacional 12,61 t, potência líquida 95 hp. | D137: un x mês | E137: 12 | G137: 0
A138: 3.2.4 | B138: E9540-DNIT/PE | C138: Trator de esteiras, potência de 150 hp, peso operacional de 16,7 t, com roda motriz elevada e lâmina com contato de 3,18 m³. | D138: un x mês | E138: 12 | G138: 0
A139: 3.2.5 | B139: E9666-DNIT/PE | C139: Cavalo Mecânico com Reboque M. Benz Randon LS-1634/45 29,5 t, ou similar | D139: un x mês | E139: 12 | G139: 0
A140: 3.2.6 | B140: E9685-DNIT/PE | C140: Rolo compactador pé-de-carneiro vibratório, potência 125 hp, peso operacional sem/com lastro 11,95/13,30 t, impacto dinâmico 38,5/22,5 t, largura de trabalho 2,15 m. | D140: un x mês | E140: 12 | G140: 0
A141: 3.2.7 | B141: E9043-DNIT/PE | C141: Barco tipo Alumínio, 7 m de comprimento, Alumínio soldado, reforçado, borda sem corrimão, chapa de Alumínio 2,00 cm, boca 1,50 cm, borda 0,60 cm (inclusive barqueiro) | D141: un x mês | E141: 144 | G141: 0
A142: 3.2.8 | B142: A9382-DNIT/PE | C142: Carreta Reboque (para embarcação) | D142: un x mês | E142: 144 | G142: 0
A143: 3.2.9 | B143: COT_MOTO_POP | C143: Motor popa, tipo partida manual, potência 15 hp, aplicação barco Alumínio, características adicionais: válvulas automáticas descompressão, refrigerado a ar, quantidade marchas 2 und, quantidade cilíndro 2 und, capacidade tanque 23 l, tipo motor: 2 tempos, velocidade: 4.500 a 5.800 rpm. | D143: un x mês | E143: 144 | G143: 0
A144: ="TOTAL - "&C134&" - (R$):" -> TOTAL - SEGURANÇA DE BARRAGEM - (R$): | G144: =SUBTOTAL(9,G134:G143) -> 0
A146: ="TOTAL - "&C76&" - (R$):" -> TOTAL - EQUIPAMENTOS - CIVIL - (R$): | G146: =SUBTOTAL(9,G76:G144) -> 0
A148: ="TOTAL - "&C13&" - (R$):" -> TOTAL - EQUIPAMENTOS - (R$): | G148: =SUBTOTAL(9,G13:G146) -> 0
A151: ="RESUMO - "&A$8 -> RESUMO - EQUIPAMENTOS
A152: ITEM | C152: DESCRIÇÃO | F152: VALOR TOTAL (R$)
A153: 01 | C153: =C15 -> EQUIPAMENTOS - MECÂNICA | F153: =G60 -> 0
A154: 02 | C154: =C62 -> EQUIPAMENTOS - ELÉTRICA | F154: =G74 -> 0
A155: 03 | C155: =C76 -> EQUIPAMENTOS - CIVIL | F155: =G146 -> 0
A156: ="TOTAL GERAL - "&A151&" - (R$):" -> TOTAL GERAL - RESUMO - EQUIPAMENTOS - (R$): | F156: =SUM(F153:G155) -> 0
A159: NOME DO INFORMANTE: | F159: QUALIFICAÇÃO:
A161: ASSINATURA: | F161: DATA:
A163: OBSERVAÇÃO:
A164: 1. A unidade adotada na planilha (un x mês) foi de acordo com o cronograma de alocação de recursos materiais, onde foi feita a divisão de uso mensalmente de cada equipamento, por canteiro. Dessa forma, é possivel diluir o custo durante todo o período do contrato.
A166: 2. Os preços apresentados inlcuem o custo de operadores, motoristas e demais mão de obra necesária para utilização do mesmo. Bem como combustível, quando requeridos.
A169: 1. Considerado a carga horária de 176 horas/mês
C171: Carga horária mensal: | D171: 176 | E171: =582.5/(12*30*8) -> 0.2022569444
D173: Operativa | E173: R$/h (Operativa) | F173: R$/h (Improdutiva) | G173: R$/mês
B174: COT_AFER | C174: Aferidor de manômetro de 0 a 150 bar | D174: 1 | G174: 382.3055556
B175: COT_ALMO_FLEX | C175: Almotolia de bico flexível 500ml | D175: 1 | G175: 2.675185185
B176: COT_ALMO_RIG | C176: Almotolia de bico rígido 500ml | D176: 1 | G176: 1.886296296
B177: COT_ANAL | C177: Analisador de grandezas elétricas trifásico, display LCD colorido 5,6", TRMS 1.000 V, corrente 3.000A | D177: 1 | G177: 2485.67
B178: COT_ANDA | C178: Andaime metálico tipo fachadeiro Dim: Largura= 1,20m / Altura por peça= 2,00m. (Altura Total=10m - 5 peças por conjunto) | D178: 1 | G178: 2.99
B179: COT_BANC_TESTE | C179: Bancada de teste, amperimetro 150A, voltímetro 40V | D179: 1 | G179: 13.76
B180: COT_BANC_OFIC | C180: Bancada para oficina (Dim: 1,2m x 2,5m) | D180: 1 | G180: 58.70148148
B181: COT_BANC_PROT | C181: Bancada protegida contra eletricidade estática | D181: 1 | G181: 61.09
B182: E9043-DNIT/PE | C182: Barco tipo Alumínio, 7 m de comprimento, Alumínio soldado, reforçado, borda sem corrimão, chapa de Alumínio 2,00 cm, boca 1,50 cm, borda 0,60 cm (inclusive barqueiro) | D182: 1 | E182: =65.0627-28.9143 -> 36.1484 | F182: =29.2579-28.9143 -> 0.3436 | G182: =ROUND($D$171*(D182*E182+(1-D182)*F182),2)-G258 -> 6012.19
B183: COT_BETO | C183: Betoneira, capacidade nominal 400 l, capacidade de mistura 310 l, motor a diesel potência 5 cv, sem carregador. | D183: 1 | G183: 271.98
B184: 36398 - SINAPI/PE | C184: Betoneira, capacidade nominal 600 l, capacidade de mistura 440 l, motor a diesel potência 10 cv, com carregador. | D184: 1 | E184: =18470.78/(12*30*8) -> 6.413465278 | G184: =ROUND($D$171*(D184*E184+(1-D184)*F184),2) -> 1128.77
B185: COT_BOMB_GRAX | C185: Bomba de graxa manual 5kg | D185: 1 | G185: 14.31222222
B186: COT_BOMB_DRAGA | C186: Bomba draga autoescorvante 3”x 3” , motor: 4 tempos, potência: 6,5cv, cilindrada: 196 cm³, ignição eletrônica, consumo aproximadamente: 1,7 l/h, capacidade do tanque: 3,6 l. | D186: 1 | G186: 51.68
B187: 4085 - SINAPI/PE | C187: Bomba elétrica submersa para drenagem 5cv Flyght 3" 12.3 m³/h (acompanhada com os mangotes, incluindo quadro de comando compatível com o modelo de bomba, 250 m de cabo flexível trifásico, isolado, tensão 600 V/1000 V, em conformidade com NBR 7288). | D187: 1 | E187: 3.19 | G187: 561.44
B188: COT_BOMB_SUB | C188: Bomba Submersível 5 Cv Trifásica 380V, Q=2 - 52 m3/h e H= 3-25 mca.(Poço de rebaixamento do Res. de areias (Estrutura de Controle) | D188: 1 | G188: 905.8902778
B189: E9579-DNIT/PE | C189: Caminhão basculante, capacidade de carga 15,0 t e volume 10,0 m³ . | D189: 1 | E189: 153.7891 | F189: 47.0979 | G189: 27066.88
B190: E9506-DNIT/PE | C190: Caminhao basculante, capacidade de carga 9,0 t e volume 6,0 m³ . | D190: 1 | E190: 107.3732 | F190: 44.0267 | G190: 18897.68
B191: E9592-DNIT/PE | C191: Caminhão Carroceria - de madeira, capacidade de carga 15,0 t | D191: 1 | E191: 151.7799 | F191: 46.1078 | G191: 26713.26
B192: COT_CAMI | C192: Caminhão Comboio para lubrificação e abastecimento (melosa), convencional totalmente equipado (Capacidade de Combustível: 5.000 l, Capacidade de Lubrificante: 500 l, Capacidade de Graxa: 200 kg, Capacidade de Água: 300 l, Recipiente para Óleo Usado: 200 l, Compressor de Ar e Bomba- d’agua). | D192: 1 | G192: 11000
B193: E9686-DNIT/PE | C193: Caminhão guindauto com capacidade de carga até 10,0 t. | D193: 1 | E193: 179.2911 | F193: 71.6663 | G193: 31555.23
B194: E9605-DNIT/PE | C194: Caminhão tanque, capacidade de volume 6000 l e potência 136,0 hp . | D194: 1 | E194: 149.4898 | F194: 45.9831 | G194: 26310.2
B195: A9382-DNIT/PE | C195: Carreta Reboque (para embarcação) | D195: 0 | E195: 11.3547 | F195: 6.4651 | G195: 1137.86
B196: E9666-DNIT/PE | C196: Cavalo Mecânico com Reboque M. Benz Randon LS-1634/45 29,5 t, ou similar | D196: 1 | E196: 229.3884 | F196: 69.8668 | G196: 40372.36
B197: COT_CHAV_46 | C197: Chave de impacto 46mm boca/estria | D197: 1 | G197: 6.841111111
B198: COT_CHAV_55 | C198: Chave de impacto 55mm boca/estria | D198: 1 | G198: 12.59148148
B199: COT_CHAV_60 | C199: Chave de impacto 60mm boca/estria | D199: 1 | G199: 13.59944444
B200: COT_CHAV_65 | C200: Chave de impacto 65mm boca/estria | D200: 1 | G200: 24.81722222
B201: COT_CHAV_70 | C201: Chave de impacto 70mm boca/estria | D201: 1 | G201: 22.4962963
B202: COT_CHAV_75 | C202: Chave de impacto 75mm boca/estria | D202: 1 | G202: 37.02759259
B203: COT_CHAV_85 | C203: Chave de impacto 85mm boca/estria | D203: 1 | G203: 62.66444444
B204: COT_CINT_20T | C204: Cinta para elevação de carga (comprimento: 6m / capacidade de carga: 20t) | D204: 1 | G204: 69.44444444
B205: COT_CINT_3T | C205: Cinta para elevação de carga (comprimento: 3m / capacidade de carga: 3t) | D205: 1 | G205: 6.464444444
B206: E9107-DNIT/PE | C206: Compactador de solo a percussão (soquete), com motor gasolina de 4 tempos, peso entre 55 e 65 kg, força de impacto de 1.000 a 1.500 kgf, frequência de 600 a 700 golpes por minuto,velocidade de trabalho entre 10 e 15 m/min, potência entre 2 e 3 hp. | D206: 1 | E206: 4.2076 | F206: 0.6133 | G206: 740.54
B207: E9556-DNIT/PE | C207: Compactador de solo, tipo placa vibratória reversível, com motor a diesel, peso entre 700 e 820 kg, força centrífuga entre 6.200 e 10.000 kgf, largura de trabalho entre 650 e 720 mm, frequência de vibração entre 3.000 e 3.500 rpm, velocidade de trabalho entre 25 e 30 m/min, potência entre 13,0 e 15,0 hp. | D207: 1 | E207: 6.805 | F207: 1.4742 | G207: 1197.68
B208: E9661-DNIT/PE | C208: Compressor de ar rebocável, vazão 189 pcm, pressão efetiva de trabalho 102 psi, motor diesel, potência 63 cv. | D208: 1 | E208: 40.2537 | F208: 8.5904 | G208: 7084.65
B209: E9513-DNIT/PE | C209: Compressor de ar rebocável, vazão 400 pcm, pressão efetiva de trabalho 102 psi, motor diesel, potência 110 cv. | D209: 1 | E209: 69.4026 | F209: 14.3013 | G209: 12214.86
B210: E9630-DNIT/PE | C210: Conjunto Motor bomba 7,5 CV, 380 V, Q=75,6 m3/h e H=17 mca. (Poço de rebaixamento da EBV-3) | D210: 1 | E210: 0.4994 | F210: 0.2913 | G210: 87.89
B211: COT_CONJ_160 | C211: Conjunto motorbomba com 160 kW de potência no motor elétrico (25 mca x 0,5 m³/s) para esgotamento, com respectivos mangotes de sucção e descarga a serem especificados em função dos diâmetros. | D211: 1 | G211: 24444.44
B212: COT_CONJ_30 | C212: Conjunto motorbomba com 30 kW de potência no motor elétrico (25 mca x 0,1 m³/s) para esgotamento, com respectivos mangotes de sucção e descarga a serem especificados em função dos diâmetros. | D212: 1 | G212: 3361.11
B213: COT_CORT | C213: Cortador a frio para tubos - Cortador Tubo Ferro Ferrari 1/8" - 2" | D213: 1 | G213: 19.6537037
B214: COT_CURV | C214: Curvador de tubos (Até 1”) - Curvador e Dobrador De Tubos Manual | D214: 1 | G214: 78.40703704
B215: COT_DATA | C215: Data Logger de 4 a 20 mA (verificação de intermitência em instrumentação) | D215: 1 | G215: 31.96
B216: E9528-DNIT/PE | C216: Empilhadeira sobre pneus com torre de três estágios, 4,80 m de elevação, com deslocador lateral dos garfos, motor glp 2.4 l, capacidade nominal de carga de 2,5 t. | D216: 1 | E216: =80.6238-18.5817 -> 62.0421 | F216: =38.0837-18.5817 -> 19.502 | G216: 10919.41
B217: COT_ESCA_16 | C217: Escada articulada multifuncional 4x4 16 degraus | D217: 1 | G217: 19.14351852
B218: 38476 - SINAPI/PE | C218: Escada de abrir com 2 x 8 degraus (2,40m) em alumínio | D218: 1 | E218: =222.39/(12*30*8) -> 0.07721875 | G218: 13.59
B219: 38477 - SINAPI/PE | C219: Escada de marinheiro extensível em duraluníno com 10 x 20 degraus (3,00m / 6,00m) | D219: 1 | E219: =629.83/(12*30*8) -> 0.2186909722 | G219: 38.49
B220: COT_ESCA_07 | C220: Escada metálica de 07 degraus | D220: 1 | G220: 6.894444444
B221: COT_ESCAV | C221: Escavadeira hidráulica sobre esteiras, caçamba 0,80 m³, peso operacional 17 t, potência bruta 111 hp. | D221: 1 | G221: 22831.67
B222: E9017-DNIT/PE | C222: Escavadeira hidráulica sobre esteiras, caçamba 0,62 m³, peso operacional 12,61 t, potência líquida 95 hp. | D222: 1 | E222: 121.3975 | F222: 63.2102 | G222: 21365.96
... 62 more rows

Sheet Instrumentos
C1: Ministério do Desenvolvimento Regional - MDR
C2: Companhia de Desenvolvimento dos Vales do São Francisco e do Parnaíba
C3: Gerência de Operação do PISF - Centro de Controle e Operação (AD / GOI / CCO)
A5: SERVIÇOS DE OPERAÇÃO E MANUTENÇÃO DAS INFRAESTRUTURAS DO EIXO LESTE DO PROJETO DE INTEGRAÇÃO DO RIO SÃO FRANCISCO COM AS BACIAS HIDROGRÁFICAS DO NORDESTE SETENTRIONAL – PISF
A8: INSTRUMENTOS
A11: ITEM | B11: CÓDIGO | C11: DESCRIÇÃO | D11: UNIDADE | E11: QUANTIDADE | F11: VALOR (R$)
F12: UNITARIO | G12: TOTAL
C13: =A8 -> INSTRUMENTOS
A15: 1. | C15: INSTRUMENTOS - MECÂNICA
A16: 1.1 | C16: Analisador de vibração VIB 496FFY VIBOTRON | D16: un x mês | E16: =1*12 -> 12 | G16: =ROUND(E16*F16,2) -> 0
A17: 1.2 | C17: Base magnética para relógio comparador | D17: un x mês | E17: =4*12 -> 48 | G17: 0
A18: 1.3 | C18: Estetoscópio Kent | D18: un x mês | E18: =2*12 -> 24 | G18: 0
A19: 1.4 | C19: Micrômetro 100 à 200 externo | D19: un x mês | E19: =2*12 -> 24 | G19: 0
A20: 1.5 | C20: Micrômetro externo 0 – 100mm | D20: un x mês | E20: 24 | G20: 0
A21: 1.6 | C21: Micrômetro interno 50 – 800mm | D21: un x mês | E21: 24 | G21: 0
A22: 1.7 | C22: Nível ótico (Topcon AT-B2) ou similar | D22: un x mês | E22: =1*12 -> 12 | G22: 0
A23: 1.8 | C23: Paquímetro digital 0 – 150mm/0,01mm | D23: un x mês | E23: =2*12 -> 24 | G23: 0
A24: 1.9 | C24: Paquímetro universal 0 - 650mm/0,02mm | D24: un x mês | E24: =2*12 -> 24 | G24: 0
A25: 1.10 | C25: Relógio comparador 0 – 10/0,01mm digital | D25: un x mês | E25: =4*12 -> 48 | G25: 0
A26: 1.11 | C26: Tacômetro digital 0,1 - 1,0 RPM DT - 2234 A | D26: un x mês | E26: =1*12 -> 12 | G26: 0
A27: 1.12 | C27: Termômetro mira laser escala de -20 a 500ºC | D27: un x mês | E27: =1*12 -> 12 | G27: 0
A28: 1.13 | C28: Termovisor, com resolução Infravermelha de 120 x 90, Sensibilidade Térmica menor que 0,10 ºC, frequência da imagem de 9 Hz e faixa de temperatura –20 a 250 °C. | D28: un x mês | E28: =1*12 -> 12 | G28: 0
A29: ="TOTAL - "&C15&" - (R$):" -> TOTAL - INSTRUMENTOS - MECÂNICA - (R$): | G29: =SUBTOTAL(9,G15:G28) -> 0
A31: 2. | C31: INSTRUMENTOS - ELÉTRICA
A32: 2.1 | C32: Alicate Amperímetro (mod. 381 CA/CC True-rms 1000V CAT III (ou similar) | D32: un x mês | E32: =13*12 -> 156 | G32: =ROUND(E32*F32,2) -> 0
A33: 2.2 | C33: Alicate amperímetro CA/CC de 600V, digital, CAT III FLUKE 305 | D33: un x mês | E33: =10*12 -> 120 | G33: 0
A34: 2.3 | C34: Alicate Medidor de qualidade de energia (mod. Fluke 345 ou similar) | D34: un x mês | E34: =2*12 -> 24 | G34: 0
A35: 2.4 | C35: Calibrador de processos multifunção digital (mod. Fluke 725 ou similar) | D35: un x mês | E35: =2*12 -> 24 | G35: 0
A36: 2.5 | C36: Fasímetro, digital, categoria IV, 40~700Vca, 600V | D36: un x mês | E36: =10*12 -> 120 | G36: 0
A37: 2.6 | C37: Freqüencímetro gitital de bancada , 1GHz de 8 dígitos | D37: un x mês | E37: =1*12 -> 12 | G37: 0
A38: 2.7 | C38: Medidor de distância, laser, amplitude de medição 1mm a 80m | D38: un x mês | E38: =1*12 -> 12 | G38: 0
A39: 2.8 | C39: Medidor de resistência de aterramento e resistividade do solo (Faixa de medição de 0,02Ω a 300KΩ; Alcance de até 2 K Ω) com 02 pinças | D39: un x mês | E39: =1*12 -> 12 | G39: 0
A40: 2.9 | C40: Medidor de vazão portátil tipo Clamp-on | D40: un x mês | E40: 12 | G40: 0
A41: 2.10 | C41: Megôhmetro digital de 5 kV, alcance de até 1 TΩ, Interface USB, IP54 | D41: un x mês | E41: =2*12 -> 24 | G41: 0
A42: 2.11 | C42: Multímetro digital, tensão DC/AC 50,000 mV a 1000V, 0,4% (True/RMS), frequencia 99,999Hz a 999,99KHz "FLUKE-87-V" com pontas prova TWIST GUARD | D42: un x mês | E42: =13*12 -> 156 | G42: 0
A43: 2.12 | C43: Multímetro digital para teste de equipotencialização (medições de baixas resistências), 100V, 10A, 0,1 Ω a 50 Ω | D43: un x mês | E43: =13*12 -> 156 | G43: 0
A44: 2.13 | C44: Osciloscópio portátil com frequência de trabalho de 100Mhz, LCD Colorido 7”, CAT II 600V | D44: un x mês | E44: =1*12 -> 12 | G44: 0
A45: 2.14 | C45: Power Meter (Medidor Potência Fibra Óptica) potência 1310 nm, 1490 nm e 1550 nm + Caneta Laser 10w | D45: un x mês | E45: =2*12 -> 24 | G45: 0
A46: 2.15 | C46: Termômetro mira laser escala de -30ºC a 500ºc | D46: un x mês | E46: =13*12 -> 156 | G46: 0
A47: 2.16 | C47: Termovisor -20ºC a 350ºC, com camera de 5 megapixels, visor LCD de 3,5 polegadas | D47: un x mês | E47: =1*12 -> 12 | G47: 0
A48: 2.17 | C48: Testador de cabos RJ45 / 11, frequencia 200kHz, display LCD 3 ½ digitos, 600V | D48: un x mês | E48: =2*12 -> 24 | G48: 0
A49: 2.18 | C49: Verificador elétrico de tensão 1000V, sem contato com cabo (mod. T6-1000 Fluke ou similar) | D49: un x mês | E49: =13*12 -> 156 | G49: =ROUND(E49*F49,2) -> 0
A50: ="TOTAL - "&C31&" - (R$):" -> TOTAL - INSTRUMENTOS - ELÉTRICA - (R$): | G50: =SUBTOTAL(9,G31:G49) -> 0
A52: 3. | C52: INSTRUMENTOS - CIVIL
A53: 3.1 | C53: GPS Geodésico portátil com visor 65K de cores legível sob luz solar, à prova d'água, geocaching informatizado e recurso de mapeamento ampliados. | D53: un x mês | E53: =9*12 -> 108 | G53: =ROUND(E53*F53,2) -> 0
A54: 3.2 | C54: Estação Total com leitura direta de 1 segundo e precisão de 2". Prumo óptico na alidade. Interface com principais softwares do mercado, à prova d'água e poeira conforme norma internacional: IEC529. Com kit completo, inclusive tripé com pernas extensíveis. | D54: un x mês | E54: =1*12 -> 12 | G54: 0
A55: 3.3 | C55: Nível automático com precisão de ± 1,0 mm/km duplo de nivelamento, aumento de imagem 32 vezes, limbo horizontal com escala de 1º, abertura da objetiva 45 mm, foco mínimo 1,60 m. Com tripé e mira. | D55: un x mês | E55: =1*12 -> 12 | G55: 0
A56: ="TOTAL - "&C52&" - (R$):" -> TOTAL - INSTRUMENTOS - CIVIL - (R$): | G56: =SUBTOTAL(9,G52:G55) -> 0
A58: ="TOTAL - "&C13&" - (R$):" -> TOTAL - INSTRUMENTOS - (R$): | G58: =SUBTOTAL(9,G13:G57) -> 0
A61: ="RESUMO - "&A$8 -> RESUMO - INSTRUMENTOS
A62: ITEM | C62: DESCRIÇÃO | F62: VALOR TOTAL (R$)
A63: 01 | C63: =C15 -> INSTRUMENTOS - MECÂNICA | F63: =G29 -> 0
A64: 02 | C64: =C31 -> INSTRUMENTOS - ELÉTRICA | F64: =G50 -> 0
A65: 03 | C65: =C52 -> INSTRUMENTOS - CIVIL | F65: =G56 -> 0
A66: ="TOTAL GERAL - "&A61&" - (R$):" -> TOTAL GERAL - RESUMO - INSTRUMENTOS - (R$): | F66: =SUM(F63:G65) -> 0
A69: NOME DO INFORMANTE: | F69: QUALIFICAÇÃO:
A71: ASSINATURA: | F71: DATA:
A73: OBSERVAÇÃO:
A74: 1. A unidade adotada na planilha (un x mês) foi de acordo com o cronograma de alocação de recursos materiais, onde foi feita a divisão de uso mensalmente de cada equipamento, por canteiro. Dessa forma, é possivel diluir o custo durante todo o período do contrato.

Sheet Radios_Comunicadores
C1: Ministério do Desenvolvimento Regional - MDR
C2: Companhia de Desenvolvimento dos Vales do São Francisco e do Parnaíba
C3: Gerência de Operação do PISF - Centro de Controle e Operação (AD / GOI / CCO)
A5: SERVIÇOS DE OPERAÇÃO E MANUTENÇÃO DAS INFRAESTRUTURAS DO EIXO LESTE DO PROJETO DE INTEGRAÇÃO DO RIO SÃO FRANCISCO COM AS BACIAS HIDROGRÁFICAS DO NORDESTE SETENTRIONAL – PISF
A8: SISTEMA DE RÁDIO COMUNICAÇÃO
A11: ITEM | B11: CÓDIGO | C11: DESCRIÇÃO | D11: UNIDADE | E11: QUANTIDADE | F11: VALOR (R$)
F12: UNITARIO | G12: TOTAL
A13: 1. | C13: SISTEMA DE RÁDIO COMUNICAÇÃO
A14: 1.1 | C14: Sistema de repetidoras VHF interligadas com link UHF - 4 antenas | D14: un x mês | E14: =1*12 -> 12 | G14: =ROUND(E14*F14,2) -> 0
A15: 1.2 | C15: Rádio VHF portátil EP 450 (Reservatórios) | D15: un x mês | E15: =13*12 -> 156 | G15: =ROUND(E15*F15,2) -> 0
A16: 1.3 | C16: Rádio VHF móvel digital para viatura | D16: un x mês | E16: =SUM(Veiculos!E16:E19) -> 
A17: 1.4 | C17: Rádio VHF para instalação nas EB's, SE´s e Canteiros, composto por rádio base e sistema irradiante | D17: un x mês | E17: =(3+6+6)*12 -> 180 | G17: 0
A18: 1.5 | C18: Serviço de instalação e configuração de sistema de repetidoras e infraestrutura | D18: un x mês | E18: 1 | G18: 0
A19: ="TOTAL - "&C13&" - (R$):" -> TOTAL - SISTEMA DE RÁDIO COMUNICAÇÃO - (R$): | G19: =SUBTOTAL(9,G13:G18) -> 
A22: ="RESUMO - "&A$8 -> RESUMO - SISTEMA DE RÁDIO COMUNICAÇÃO
A23: ITEM | C23: DESCRIÇÃO | F23: VALOR TOTAL (R$)
A24: 1 | C24: =C13 -> SISTEMA DE RÁDIO COMUNICAÇÃO | F24: =G19 -> 
A25: ="TOTAL GERAL - "&A22&" - (R$):" -> TOTAL GERAL - RESUMO - SISTEMA DE RÁDIO COMUNICAÇÃO - (R$): | F25: =SUM(F24:G24) -> 
A28: NOME DO INFORMANTE: | F28: QUALIFICAÇÃO:
A30: ASSINATURA: | F30: DATA:
A32: OBSERVAÇÃO:

Sheet Custos Administração
B1: Ministério do Desenvolvimento Regional - MDR
B2: Companhia de Desenvolvimento dos Vales do São Francisco e do Parnaíba
B3: Gerência de Operação do PISF - Centro de Controle e Operação (AD / GOI / CCO)
A5: SERVIÇOS DE OPERAÇÃO E MANUTENÇÃO DAS INFRAESTRUTURAS DO EIXO LESTE DO PROJETO DE INTEGRAÇÃO DO RIO SÃO FRANCISCO COM AS BACIAS HIDROGRÁFICAS DO NORDESTE SETENTRIONAL – PISF
A8: CUSTOS ADMINISTRAÇÃO - DETALHAMENTO
A11: ITEM | B11: DESCRIÇÃO | C11: %
A12: 1. | B12: CUSTO DE ADMINISTRAÇÃO
A13: 1.1 | B13: Custos da equipe da administração central da empresa contratada ( diretoria, pessoal técnico de apoio e pessoal administrativo não diretamente vinculado à prestação dos serviços) | C13: 0.07
A14: 1.2 | B14: Outras despesas que afetam o custo de produção como treinamento, biblioteca, programa de qualidade, auditoria interna e externa | C14: 0.015
A15: 1.3 | B15: Despesas com aluguéis, água, energia, comunicação, manutenção e transporte não diretamente relacionados com o custo direto dos serviços | C15: 0.015
A16: ="Total - "&B12&" - (R$):" -> Total - CUSTO DE ADMINISTRAÇÃO - (R$): | C16: =SUBTOTAL(9,C12:C15) -> 0.1
A19: ="RESUMO - "&A$8 -> RESUMO - CUSTOS ADMINISTRAÇÃO - DETALHAMENTO
A20: ITEM | B20: DESCRIÇÃO | C20: % TOTAL
A21: 1 | B21: =B12 -> CUSTO DE ADMINISTRAÇÃO | C21: =C16 -> 0.1
A22: ="TOTAL GERAL - "&A$8&" - (R$):" -> TOTAL GERAL - CUSTOS ADMINISTRAÇÃO - DETALHAMENTO - (R$): | C22: =SUM(C21:C21) -> 0.1
A25: NOME DO INFORMANTE: | C25: QUALIFICAÇÃO:
A27: ASSINATURA: | C27: DATA:
A29: OBSERVAÇAO:

Sheet Despesas Fiscais
B1: Ministério do Desenvolvimento Regional - MDR
B2: Companhia de Desenvolvimento dos Vales do São Francisco e do Parnaíba
B3: Gerência de Operação do PISF - Centro de Controle e Operação (AD / GOI / CCO)
A5: SERVIÇOS DE OPERAÇÃO E MANUTENÇÃO DAS INFRAESTRUTURAS DO EIXO LESTE DO PROJETO DE INTEGRAÇÃO DO RIO SÃO FRANCISCO COM AS BACIAS HIDROGRÁFICAS DO NORDESTE SETENTRIONAL – PISF
A8: DESPESAS FISCAIS - DETALHAMENTO
A11: ITEM | B11: DESCRIÇÃO | C11: DF % | D11: DF' %
A12: 1. | B12: DESPESAS FISCAIS
A13: 1.1 | B13: ISS | C13: 0.05 | D13: =ROUND((1/(1-$C$16))*C13,4) -> 0.0583
A14: 1.2 | B14: PIS | C14: 0.0165 | D14: 0.0192
A15: 1.3 | B15: COFINS | C15: 0.076 | D15: =ROUND((1/(1-$C$16))*C15,4) -> 0.0886
A16: ="TOTAL - "&B12&" - (R$):" -> TOTAL - DESPESAS FISCAIS - (R$): | C16: =SUM(C13:C15) -> 0.1425 | D16: =SUM(D13:D15) -> 0.1661
A19: ="RESUMO - "&A$8 -> RESUMO - DESPESAS FISCAIS - DETALHAMENTO
A20: ITEM | B20: DESCRIÇÃO | C20: % TOTAL
A21: 1 | B21: =B12 -> DESPESAS FISCAIS | C21: =D16 -> 0.1661
A22: ="TOTAL GERAL - "&A$8&" - (R$):" -> TOTAL GERAL - DESPESAS FISCAIS - DETALHAMENTO - (R$): | C22: =SUM(C21:C21) -> 0.1661
A25: NOME DO INFORMANTE: | C25: QUALIFICAÇÃO:
A27: ASSINATURA: | C27: DATA:
A29: OBSERVAÇAO:
A30: 1. Ddiscriminar os tributos que incidem sobre os custos da prestação dos serviços.
A31: 2. DF = Indicar o % de cada tributo e soma dos mesmos (ex: ISS 5% + PIS 1,65% + COFINS 7,60% = 14,25%)
A32: 3. As despesas fiscais (DF) incindem sobre o total da fatura e não sobre os custos incorridos, devendo ser calculado o DF', aplicando-se a seguinte fórmula:
A34: DF' = { [ 1 / ( 1 - DF) ] - 1 } x 100
